{"text_format":"1","workbook":"xlsx","n_sheets":4,"sheets":["Database 2017","Analysis","ForbesDataAuto","ForbesDataAuto2"],"not_rendered":{"charts":0,"images":0,"macros":1,"external_links":0,"defined_names":170,"comments":1,"pivot_tables":3},"unopened":[],"bounds":{"document_bytes":16777216,"sheet_cells":100000,"rows_first":2000,"rows_last":500,"rows_between":2000,"halvings":0,"cell_chars":16384,"cell_head_chars":4096},"cells_cut":0,"cells_raw":0,"read":"whole","date_system":"1900"}

{"sheet":"Database 2017","index":0,"n_rows":3230,"n_cols":6,"rows_kept":3230,"cut":false,"hidden":false,"merged":[]}
["Name","Source of Wealth","Source of Wealth Type\n1) Domestic\n2) International","Country of Citizenship 2016","Company Name","In-Scope"]
["A. Jerrold Perenchio","Self-made","Domestic","United States","Univision","yes"]
["Abdul Al Rahman Al Jeraisy",null,null,"Saudi Arabia","","no"]
["Abdul Aziz Al Ghurair & Family",null,null,"United Arab Emirates","","no"]
["Abdul Majeed Alhokair","Self-made",null,"Saudi Arabia","","no"]
["Abdul Rasyid",null,null,"Indonesia","","no"]
["Abdulaziz Bin Hamad Algosaibi & Family",null,null,"Saudi Arabia","","no"]
["Abdulla Al Futtaim","",null,"United Arab Emirates","","no"]
["Abdulla bin Ahmad Al Ghurair & Family","",null,"United Arab Emirates","","no"]
["Abdullah Al Rajhi","",null,"Saudi Arabia","","no"]
["Abdulsamad Rabiu","",null,"Nigeria","","no"]
["Abhay Firodia","Multi-generational","Domestic","India","Force Motors","yes"]
["Abigail Johnson","Multi-generational","Domestic","United States","Fidelity Management & Research","yes"]
["Abilio dos Santos Diniz","Multi-generational",null,"Brazil","Grupo Pao de Acucar","no"]
["Achal Bakeri","Self-made","Domestic","India","Symphony Ltd","yes"]
["Achille Maramotti","Self-made","International","Italy","Max Mara","yes"]
["Achmad Hamami & Family","",null,"Indonesia","","no"]
["Adam Neumann",null,null,"Israel","","no"]
["Adi Godrej & Family","Multi-generational","Domestic","India","Godrej Group","yes"]
["Karl Albrecht Sr.","Self-made","International","Germany","Aldi Süd","yes"]
["Adolf Merckle","Multi-generational","International","Germany","Merckle Unternehmensgruppe","yes"]
["Adrian Swire & Family","Multi-generational","International","United Kingdom","Cathay Pacific","yes"]
["Aerin Lauder Zinterhofer","Multi-generational","International","United States","Estee Lauder Companies Inc.","yes"]
["Ahmed Ali Kanoo","Multi-generational",null,"Bahrain","","no"]
["Ahmet Calik","Self-made","International","Turkey","Calik Holding","yes"]
["Ahmet Nazif Zorlu","Multi-generational","International","Turkey","Zorlu Holding","yes"]
["Pierre Castel & Family","Self-made","International","France","Groupe Castel","yes"]
["Alexander Lutsenko","Self-made","Domestic","Russia","Sodrugestvo Group","yes"]
["Ajay Kalsi","Self-made","Domestic","India","Indus Gas","yes"]
["Ajay Piramal","Multi-generational","International","India","Piramal Enterprises ","yes"]
["Akihiko Otsuka","Self-made","International","Japan","Otsuka Holdings","yes"]
["Akio Morita","Self-made","International","Japan","Sony","yes"]
["Akio Nitori","Self-made","Domestic","Japan","Nitori","yes"]
["Akira Mori & Family","Multi-generational","Domestic","Japan","Mori Trust","yes"]
["Alain Bouchard","",null,"Canada","","no"]
["Alain Merieux & Family","Multi-generational","International","France","Biomerieux, Sanofi Pasteur","yes"]
["Alain Taravella","Self-made","Domestic","France","Altarea Cogedim","yes"]
["Alain Wertheimer","Multi-generational","International","France","Chanel","yes"]
["Alexei Bogachev","Self-made","Domestic","Russia","Magnit","yes"]
["Alan Casden","Self-made","Domestic","United States","Casden Properties, LLC","yes"]
["Alan Gerry","Self-made","Domestic","United States","Cablevision Industries","yes"]
["Alan Howard","Self-made","Domestic","United Kingdom","Brevan Howard Asset Management LLP","yes"]
["Alan Rydge","",null,"Australia","","no"]
["Albert Berner","Self-made","International","Germany","Berner Group","yes"]
["Albert Blokker","",null,"Belgium","","no"]
["Albert Frere","",null,"Belgium","","no"]
["Albert Gubay","Self-made","Domestic","United Kingdom","Kwik Save","yes"]
["Albert Lee Ueltschi","Self-made","International","United States","Flight Safety International","yes"]
["Amit Burman","Multi-generational","Domestic","India","Dabur","yes"]
["Albert Ueltschi","Self-made","International","United States","Flight Safety International","yes"]
["Albert von Thurn und Taxis","Multi-generational","Domestic","Germany","Owners of breweries and former builders of castles","yes"]
["Albert Yeung","Self-made","Domestic","Hong Kong","Emperor Group","yes"]
["Alberto Alcocer","Self-made","Domestic","Spain","Alcor Holdings","yes"]
["Alberto Bailleres Gonzalez & Family","Multi-generational",null,"Mexico","Grupo Bal","no"]
["Alberto Benavides & Family",null,null,"Peru","","no"]
["Alberto Bombassei","Self-made","International","Italy","Brembo","yes"]
["Mary & Douglas Perkins","Self-made","International","United Kingdom","Specsavers","yes"]
["Alberto Prada","Multi-generational","International","Italy","Prada","yes"]
["Alberto Roemmers","",null,"Argentina","","no"]
["Alberto Vilar","Self-made","Domestic","United States","Amerido Investment Advisors Inc. ","yes"]
["Albrecht and Henkel Family Woeste","Multi-generational","International","Germany","Henkel","yes"]
["Aldo Bensadoun","Self-made",null,"Canada","","no"]
["Alec Gores","Self-made","International","United States","Gores Group","yes"]
["Alejandro Santo Domingo Davila & Family","Multi-generational",null,"Colombia","","no"]
["Alejo Peralta","Self-made",null,"Mexico","","no"]
["C. James Koch","Multi-generational","Domestic","United States","Samuel Adams beer","yes"]
["Alexander Abramov","Self-made","Domestic","Russia","Evraz","yes"]
["Alexander Dzhaparidze","Self-made","Domestic","Russia","Eurasia Drilling Company","yes"]
["Alexander Frolov","Self-made","Domestic","Russia","Evraz","yes"]
["Alexander Girda","Self-made","Domestic","Russia","Pyaterochka Holding","yes"]
["Alexander Karp","Self-made","Domestic","United States","Palantir Technologies","yes"]
["Alexander Knaster","Self-made","Domestic","United States","Pamplona Capital Management","yes"]
["Alexander Lebedev","Self-made","Domestic","Russia","National Reserve Corporation ","yes"]
["Charles Butt & Family","Multi-generational","Domestic","United States","H-E-B","yes"]
["Alexander Lutsenko & Family","Self-made","Domestic","Russia","Sodrugestvo Group","yes"]
["Alexander Machkevich","",null,"Israel","","no"]
["Alexander Mamut","Self-made","Domestic","Russia","Evroset","yes"]
["Alexander Mashkevich","Self-made","International","Russia","Eurasian Natural Resources","yes"]
["Alexander Nesis","Self-made","Domestic","Russia","Polymetal","yes"]
["Alexander Ponomarenko","Self-made","Domestic","Russia","TPS Real Estate Holdings Ltd.","yes"]
["Alexander Putilov","Self-made","Domestic","Russia","Eurasia Drilling Company","yes"]
["Alexander Rovt","Self-made","International","United States","IBE Trade ","yes"]
["Bill Adderley & Family","Self-made","Domestic","United Kingdom","Dunelm Group","yes"]
["Alexander Shchukin","Self-made","Domestic","Russia","Sibuglemet","yes"]
["Alexander Shnaider",null,null,"Canada","","no"]
["Alexander Skorobogatko","Self-made","Domestic","Russia","TPS Real Estate Holdings Ltd.","yes"]
["Alexander Spanos & Family","Self-made","Domestic","United States","A.G. Spanos","yes"]
["Alexander Svetakov","Self-made","Domestic","Russia","Absolut Group","yes"]
["Alexander Tedja",null,null,"Indonesia","","no"]
["Alexander Vagin","Self-made","Domestic","Russia","Raspadskaya OAO","yes"]
["Alexander Vik","",null,"Norway","","no"]
["Alexandra Andresen",null,null,"Norway","","no"]
["Alexandra Daitch","Multi-generational","International","United States","Cargill","yes"]
["Alexandra Schörghuber","Multi-generational","Domestic","Germany","Schörghuber Unternehmensgruppe","yes"]
["Alexandre Grendene Bartelle","",null,"Brazil","","no"]
["Alexandre Soares dos Santos & Family","",null,"Portugal","","no"]
["Alexei Ananyev","Self-made","Domestic","Russia","Technoserv","yes"]
["Dai Deming","Self-made","Domestic","China","Hubei Hengxin Delong","yes"]
["Alexei Kuzmichev","Self-made","Domestic","Russia","Alfa Group","yes"]
["Alexei Semin","Self-made","Domestic","Russia","AS Management ","yes"]
["Alexey Mordashov","Self-made","International","Russia","Severstal","yes"]
["Alfonso Romo Garza","Self-made",null,"Mexico","","no"]
["Alfred Gantner","Self-made","International","Switzerland","Partners Group","yes"]
["Alfred Heineken","Multi-generational",null,"Netherlands","","no"]
["Alfred James Clark","Self-made","Domestic","United States","Clark Enterprises","yes"]
["Alfred Lerner","Self-made","Domestic","United States","Various (real estate, sport)","yes"]
["Donald Hall","Multi-generational","Domestic","United States","Hallmark Cards","yes"]
["Alfred Oetker","Multi-generational","International","Germany","Oetker Group","yes"]
["Alfred von Oppenheim","Multi-generational","Domestic","Germany","Sal. Oppenheim jr. & Cie. AG & Co. KGaA","yes"]
["Alfred West Jr","self-made","International","United States","SEI Investments","yes"]
["Alfredo Egydio Arruda Villela Filho","",null,"Brazil","","no"]
["Alfredo Harp Helu & Family","",null,"Mexico","","no"]
["Ali Ibrahim Agaoglu","Multi-generational","Domestic","Turkey","Agaoglu Group","yes"]
["Ali Metin Kazanci","Self-made","Domestic","Turkey","Kazanci Holding","yes"]
["Alice Walton","Multi-generational","International","United States","Walmart","yes"]
["Alicia Koplowitz","Multi-generational","Domestic","Spain","Fomento de Construcciones y Contraras","yes"]
["Alijan Ibragimov","",null,"Kazakhstan","","no"]
["Aliko Dangote","Self-made",null,"Nigeria","","no"]
["Alisher Usmanov","Self-made","Domestic","Russia","Metalloinvest, MegaFon, Kommerant","yes"]
["Allan Gray","",null,"South Africa","","no"]
["Allan Slaight","",null,"Canada","","no"]
["Allan Wong","Self-made","International","Hong Kong","Vtech Holdings","yes"]
["Aloke Lohia","",null,"Thailand","","no"]
["Aloys Wobben","Self-made","International","Germany","enercon","yes"]
["Aloysio de Andrade Faria","",null,"Brazil","","no"]
["Alvaro Noboa","Multi-generational",null,"Ecuador","","no"]
["Alvaro Saieh Bendeck","",null,"Chile","","no"]
["Amalia Lacroze de Fortabat",null,null,"Argentina","","no"]
["Amancio Ortega","Self-made","International","Spain","Zara","yes"]
["Amar Bose","Self-made","International","United States","Bose Corp.","yes"]
["Americo Amorim","",null,"Portugal","","no"]
["Edward Stack","Multi-generational","Domestic","United States","Dick's Sporting Goods","yes"]
["Amos Hostetter Jr","Self-made","Domestic","United States","Continental Cablevision (media one)","yes"]
["Amy Wyss","Multi-generational","International","Switzerland","Synthes","yes"]
["An Kang","Self-made","Domestic","China","Hualan Biological Engineering","yes"]
["Ana Lucia de Mattos Barretto Villela","",null,"Brazil","","no"]
["Ana Maria Brescia Cafferata","",null,"Peru","","no"]
["Ana Maria Marcondes Penido Sant'Anna","",null,"Brazil","","no"]
["Anacleto Angelini","Self-made",null,"Chile","","no"]
["Anand Burman","Multi-generational","Domestic","India","Dabur","yes"]
["Anand Jain","Self-made","Domestic","India","Various (ex vice chariman Reliance group, Indian Petro Chemicals Ltd)","yes"]
["Anand Mahindra","Multi-generational","International","India","Mahindra Group","yes"]
["Ananda Krishnan","Self-made",null,"Malaysia","","no"]
["Anas Sefrioui","",null,"Morocco","","no"]
["Anatoly Lomakin","Self-made","International","Russia","International Potassium Company","yes"]
["Anatoly Sedykh","Self-made","Domestic","Russia","United Metallurgical Company","yes"]
["Anatoly Skurov","Self-made","Domestic","Russia","Sibuglemet, Uralkali","yes"]
["Anders Holch Povlsen","",null,"Denmark","","no"]
["Andre Esteves","",null,"Brazil","","no"]
["André Kudelski","Multi-generational","International","Switzerland","Kudelski Group","yes"]
["Andrea Della Valle","Multi-generational","International","Italy","Tod's S.p.A","yes"]
["Andrea Reimann-Ciardelli","Multi-generational","Domestic","Germany","Joh. A. Benckiser ","yes"]
["Andreas Halvorsen","",null,"Norway","","no"]
["Fred DeLuca","Self-made","International","United States","Subway Restaurants","yes"]
["Andreas Struengmann","Self-made","Domestic","Germany","Hexal","yes"]
["Andreas von Bechtolsheim","Self-made","International","Germany","Sun Microsystem","yes"]
["Andrei Bokarev","Self-made","Domestic","Russia","Transmashholding","yes"]
["Andrei Borodin","Self-made","Domestic","Russia","Bank of Moscow","yes"]
["Andrei Filatov","Self-made","Domestic","Russia","N-Trans Group","yes"]
["Andrei Guriev","Self-made","Domestic","Russia","FosAgro","yes"]
["Andrei Klyamko","Self-made","International","Russia","Smart Holding Group","yes"]
["Andrei Komarov","Self-made","Domestic","Russia","ChPTZ group","yes"]
["Andrei Kosogov","Self-made","Domestic","Russia","Alfa Group","yes"]
["Andrei Kozitsyn","Self-made","International","Russia","Urals Mining and Metals Company","yes"]
["Andrei Kuzyaev","Self-made","Domestic","Russia","Perm Financial Industrial Group","yes"]
["Andrei Molchanov","Self-made","Domestic","Russia","LSR Group","yes"]
["Andrei Rappoport","Self-made","International","Russia","Georgian Global Utilities","yes"]
["Andrei Rogachev","Self-made","Domestic","Russia","X5 Retail Group","yes"]
["Andrei Skoch","Self-made","International","Russia","Metalloinvest","yes"]
["Andrej Babis","",null,"Czech Republic","","no"]
["Andres Santo Domingo","Multi-generational",null,"Colombia","","no"]
["Andrew & Peggy Cherng","Self-made","Domestic","United States","Panda Restaurant Group","yes"]
["Andrew Beal","Self-made","Domestic","United States","Beal Bank","yes"]
["Andrew Currie","Self-made","International","United Kingdom","Ineos Group Limited","yes"]
["Andrew Forrest","",null,"Australia","","no"]
["Andrew Gotianun","Self-made",null,"Philippines","","no"]
["Andrew McKelvey","Self-made","International","United States","Monster Worldwide","yes"]
["Andrew Tan","",null,"Philippines","","no"]
["Andrey Melnichenko","Self-made","Domestic","Russia","Alfa Group","yes"]
["Andrey Verevskiy",null,null,"Ukraine","","no"]
["Andronico Luksic & Family","Self-made",null,"Chile","","no"]
["Herbert Louis","Multi-generational","International","United States","SC Johnson","yes"]
["Angela Bennett","",null,"Australia","","no"]
["Angela Leong","Multi-generational","Domestic","Hong Kong","SJM Holdings","yes"]
["Anil Agarwal","Self-made","International","India","Vedanta Resources","yes"]
["Anil Ambani","Multi-generational","Domestic","India","Reliance Group","yes"]
["Anita Zucker","Multi-generational","International","United States","Hudson's Bay Company","yes"]
["Ann Walton Kroenke","Multi-generational","International","United States","Walmart","yes"]
["Anna Maria Braun","Multi-generational","International","Germany","B. Braun Melsungen AG","yes"]
["Anne Beaufour","Multi-generational","International","France","Ipsen","yes"]
["Hong Xiaobo","Self-made","Domestic","China","Vipshop","yes"]
["Anne Gittinger","Multi-generational","Domestic","United States"," Nordstrom","yes"]
["Anne Windfohr Marion","Multi-generational","Domestic","United States","Burnet Oil","yes"]
["Anneliese Brost","Multi-generational","Domestic","Germany","WAZ Media","yes"]
["Anthony Bamford","Multi-generational","International","United Kingdom","JCB","yes"]
["Anthony Langley","Self-made","Domestic","United Kingdom","Langley Holdings","yes"]
["Anthony O'Reilly & Family","Multi-generational","International","Ireland","JCB","no"]
["Anthony Pratt","",null,"Australia","","no"]
["Anthony Pritzker","Multi-generational","International","United States","Hyatt Hotels","yes"]
["Anton Kathrein Jr","Multi-generational","Domestic","Germany","Kathrein-Werke KG","yes"]
["Anton Rupert","Self-made",null,"South Africa","","no"]
["Anton Schlecker","Self-made","Domestic","Germany","Schlecker","yes"]
["Antonia Johnson","",null,"Sweden","","no"]
["Antonio Champalimaud",null,null,"Portugal","","no"]
["Antonio Del Valle Ruiz & Family","",null,"Mexico","","no"]
["Antonio Ermirio de Moraes & Family","Multi-generational",null,"Brazil","","no"]
["Antonio Jose Carneiro",null,null,"Brazil","","no"]
["Antonio Luiz Seabra","Self-made",null,"Brazil","","no"]
["Antony Ressler","Self-made","Domestic","United States","Ares Management","yes"]
["Antti Aarnio-Wihuri","Multi-generational",null,"Finland","","no"]
["Antti Herlin","",null,"Finland","","no"]
["Benedicta Chamberlain","Multi-generational","International","United Kingdom","Wiliam grant & Sons","yes"]
["Anurag Dikshit","Self-made","International","India","PartyGaming","yes"]
["Ao Xiaoqiang","Self-made","Domestic","China","Beijing SDL Technology","yes"]
["Aras Agalarov","Self-made","International","Russia","Crocus","yes"]
["Archie Aldis Emmerson","Self-made","Domestic","United States","Sierra Pacific Industries","yes"]
["Aristotelis Mistakidis","",null,"Greece","","no"]
["Arkady Rotenberg","Self-made","Domestic","Russia","SGM Group","yes"]
["Arkady Volozh","Self-made","International","Russia","Yandex","yes"]
["Arne Wilhelmsen & Family","",null,"Norway","","no"]
["Arnon Milchan","",null,"Israel","","no"]
["Arthur Blank","Self-made","Domestic","United States","Home Depot","yes"]
["Arthur Irving","",null,"Canada","","no"]
["Arthur Rock","Self-made","International","United States","Various (Intel, Apple Computer, Scientific Data Systems)","yes"]
["Arthur Williams Jr","Self-made","Domestic","United States","A.L. Williams & Associates (Primerica Financial Services)","yes"]
["Arturo Moreno","Self-made","Domestic","United States","Outdoor Systems","yes"]
["Ashwin Dani","Multi-generational","Domestic","India","Asian Paints","yes"]
["Asim Kibar","Self-made","Domestic","Turkey","Kibar Holding Inc.","yes"]
["Asok Kumar Hiranandani","Self-made","International","Singapore","Royal Group Holdings","yes"]
["Aubrey McClendon","Self-made","Domestic","United States","Chesapeake Energy","yes"]
["August Oetker","Multi-generational","International","Germany","Oetker Group","yes"]
["August von Finck & Family","Multi-generational","Domestic","Germany","Merck Finck","yes"]
["Augusto & Giorgio Perfetti","Multi-generational","International","Italy","Perfetti Van Melle","yes"]
["Austen Cargill II","Multi-generational","International","United States","Cargill Inc.","yes"]
["Austin Hearst","Multi-generational","Domestic","United States","Hearst Communications","yes"]
["Axel Oberwelland","Multi-generational","Domestic","Germany","Storck","yes"]
["Jean-Charles Naouri","Self-made","International","France","Casino","yes"]
["Ayhan Sahenk","Self-made","Domestic","Turkey","Doğuş Group","yes"]
["Ayman Asfari","Self-made","International","United Kingdom","Petrofac","yes"]
["Ayman Hariri","",null,"Lebanon","","no"]
["Azad Moopen","Self-made","International","India","Aster DM Healthcare","yes"]
["Azim Premji","Multi-generational","Domestic","India","Wipro","yes"]
["Aziz Akhannouch & Family","",null,"Morocco","","no"]
["B. Wayne Hughes","Self-made","Domestic","United States","Public Storage","yes"]
["B. Wayne Hughes Jr","Multi-generational","Domestic","United States","Public Storage","yes"]
["B.R. Shetty","Self-made","Domestic","India","NMC Health","yes"]
["B.Ramalinga Raju","Self-made","Domestic","India","Mahindra Satyam (formerly Satyam Computer Services Limited)","yes"]
["Baba Kalyani","Multi-generational","Domestic","India","Kalyani Group","yes"]
["Bachtiar Karim","",null,"Indonesia","","no"]
["Bahaa Hariri","",null,"Lebanon","","no"]
["Bakhytbek Baiseitov",null,null,"Kazakhstan","","no"]
["Baldwin and Nikolaus Knauf","Multi-generational","International","Germany","Knauf","yes"]
["Balkrishan Goenka","Self-made","International","India","Welspun India Ltd.","yes"]
["Banyong Lamsam","Multi-generational",null,"Thailand","","no"]
["Josephine Louis & Family","Multi-generational","International","United States","SC Johnson","yes"]
["Barbara Cox Anthony","Multi-generational","Domestic","United States","Cox Enterprises","yes"]
["Barbara Davis & Family","Multi-generational","Domestic","United States","Davis Petroleum","yes"]
["Barbara Piasecka Johnson","Multi-generational","International","United States","Johnson & Johnson","yes"]
["Baron Hans Heinrich Thyssen-Bornesmisza","Multi-generational","Domestic","Switzerland","Thyssen-Bornemisza Group","yes"]
["Barry (Pai-li) Lin",null,null,"Taiwan","","no"]
["Barry Diller","Self-made","Domestic","United States","Various (ABC, Paramount, Fox, USA Broadcasting…)","yes"]
["Barry Lam","",null,"Taiwan","","no"]
["Bassam Alghanim","",null,"Kuwait","","no"]
["Bautista Soler","Self-made","Domestic","Spain","Various (Real Estate, Valencia Football club)","yes"]
["Beate Heister & Karl Albrecht Jr.","Multi-generational","International","Germany","Aldi Süd","yes"]
["Beatrix Queen",null,null,"Netherlands","","no"]
["Joyce Raley Teel","Multi-generational","Domestic","United States","Bel Air Markets, Nob Hill Foods and Food Source stores","yes"]
["Belmiro de Azevedo","",null,"Portugal","","no"]
["Ben Silbermann","Self-made","International","United States","Pinterest","yes"]
["Karen Johnson Boyd","Multi-generational","International","United States","SC Johnson","yes"]
["Benjamin de Rothschild","Multi-generational","International","Switzerland","Bank Rothschild","yes"]
["Bennett Dorrance","Multi-generational","International","United States","Campbell Soup","yes"]
["Benny Subianto","Self-made",null,"Indonesia","","no"]
["Bent Jensen","",null,"Denmark","","no"]
["Benu Gopal Bangur","Self-made","Domestic","India","Shree Cement","yes"]
["Beny Steinmetz","",null,"Israel","","no"]
["Bergit Douglas","Multi-generational","International","Germany","Oetker Group","yes"]
["Bernard (Barry) Sherman","",null,"Canada","","no"]
["Bernard Arnault & Family","Self-made","International","France","LVMH","yes"]
["Bernard Broermann","Self-made","Domestic","Germany","Asklepios Group","yes"]
["Bernard Ecclestone & Family","Self-made","International","United Kingdom","Formula One Group","yes"]
["Bernard Fraisse","Self-made","International","France","Fareva Group","yes"]
["Bernard Marcus","Self-made","Domestic","United States","Home Depot","yes"]
["Bernard Osher","Self-made","Domestic","United States","Golden West Financials","yes"]
["Bernard Saul II","Multi-generational","Domestic","United States","Saul Centers Inc","yes"]
["Bernardo Garza Sada","Self-made",null,"Mexico","","no"]
["Bernardo Matte","",null,"Chile","","no"]
["Bernd Freier","Self-made","International","Germany","s.Oliver","yes"]
["Bernhard Braun-Luedicke","Multi-generational","International","Germany","B. Braun Melsungen AG","yes"]
["Bertil Hult","",null,"Sweden","","no"]
["Beda Diethelm","Self-made","International","Switzerland","Sonova Holding AG","yes"]
["Bharat Desai & Family","Self-made","International","United States","Syntel","yes"]
["Bhupendra Kumar Modi","Multi-generational","Domestic","India","Modi Industries","yes"]
["Bidzina Ivanishvili","Self-made",null,"Georgia","","no"]
["David Sainsbury","Multi-generational","Domestic","United Kingdom","J. Sainsbury Ltd.","yes"]
["Bill Alfond","Multi-generational","Domestic","United States","Dexter Shoe Company","yes"]
["Bill Gates","Self-made","International","United States","Microsoft","yes"]
["Bill Gross","Self-made","Domestic","United States","Pimco","yes"]
["Bill Haslam","Multi-generational","Domestic","United States","Pilot Flying J","yes"]
["Billy Joe (Red) McCombs","Self-made","Domestic","United States","Various (McCombs Automotive Group, Texas, Clear Channel Communications, former owner of the San Antonio Spurs, Denver Nuggets and the Minnesota Vikings)","yes"]
["Billy Kan","Self-made","Domestic","Hong Kong","LNG Group","yes"]
["Binny Bansal","Self-made","Domestic","India","Flipkart","yes"]
["Binod Chaudhary & Family","",null,"Nepal","","no"]
["Birgit Rausing & Family",null,null,"Sweden","","no"]
["Bjorgolfur Thor Bjorgolfsson",null,null,"Iceland","","no"]
["Blair Parry-Okeden","Multi-generational","Domestic","United States","Cox Enterprises","yes"]
["Blairo Maggi","Multi-generational",null,"Brazil","","no"]
["Blase Golisano","Self-made","Domestic","United States","Paychex","yes"]
["Bob Ell",null,null,"Australia","","no"]
["Bob Parsons","Self-made","International","United States","GoDaddy","yes"]
["Bobby Murphy","Self-made","International","United States","Snapchat","yes"]
["Boonchai Bencharongkul","Self-made",null,"Thailand","","no"]
["Boonsong Asavabhokhin","Self-made",null,"Thailand","","no"]
["Boris Berezovsky","Self-made","Domestic","Russia","Channel One","yes"]
["Boris Mints","Self-made","International","Russia","O1 Group","yes"]
["Boris Rotenberg","Self-made","Domestic","Russia","SGM Group","yes"]
["Brad Kelley","Self-made","Domestic","United States","Commonwealth Brands","yes"]
["Brandt Louie","Multi-generational",null,"Canada","","no"]
["Brian Acton","Self-made","International","United States","WhatsApp","yes"]
["Brian Chesky","Self-made","International","United States","Airbnb","yes"]
["Brian Higgins","Self-made","Domestic","United States","King Street Capital Management","yes"]
["Brian Roberts","Multi-generational","International","United States","Comcast","yes"]
["Brian Sheth","Self-made","Domestic","United States","Vista Equity Partners","yes"]
["Brij Bhushan Singal","Self-made","Domestic","India","Bhushan Steel","yes"]
["Li Yongjun","Self-made","International","China","Guangdong Strong Group","yes"]
["Bruce Cheng","",null,"Taiwan","","no"]
["Bruce Halle","Self-made","Domestic","United States","Discount Tire","yes"]
["Bruce Karsh","Self-made","International","United States","Oaktree Capital Management","yes"]
["Bruce Kovner","Self-made","Domestic","United States","Caxton Alternative Management LP","yes"]
["Bruce McCaw","Self-made","Domestic","United States","McCaw Cellular (AT&T Wireless Services)","yes"]
["Bruce Nordstrom","Multi-generational","Domestic","United States","Nordstrom","yes"]
["Bruce Wasserstein","Self-made","Domestic","United States","Wasserstein Peralla & Co","yes"]
["Liang Zhaoxian","Multi-generational","International","China","Galanz Group","yes"]
["Bruno Schroder & Family","Multi-generational","Domestic","United Kingdom","Schroders","yes"]
["Bruno Steinhoff","Self-made","International","Germany","Steinhoff International Holdings","yes"]
["Bubba Cathy","Multi-generational","Domestic","United States","Chick-Fil-A","yes"]
["Bulat Utemuratov","",null,"Kazakhstan","","no"]
["Bulent Eczacibasi","Multi-generational","Domestic","Turkey","Eczacibasi Holding","yes"]
["C. Dean Metropoulos","Self-made","Domestic","United States","C. Dean Metropoulos and Company","yes"]
["Lv Dalong","Self-made","Domestic","China","Beijing Xinwei Telecom Technology Group","yes"]
["C.F. Chan","Self-made","International","Hong Kong","Various (Hotels from Asia to Europe, Victoria Park Hotel, Ltd)","yes"]
["Cai Dongqing","Self-made","Domestic","China","Alpha Group","yes"]
["Cai Kui","Self-made","Domestic","China","Longfor Properties ","yes"]
["Cai Xiaoru","Self-made","International","China","Tatwah Smartech","yes"]
["Calisto Tanzi","Self-made","International","Italy","Parmalat","yes"]
["Calvin Ayre",null,null,"Costa Rica","","no"]
["Cameron Mackintosh","Self-made","Domestic","United Kingdom","Cameron Mackintosh","yes"]
["Cao Kejian","Self-made","Domestic","China","Zhejiang Kaishan Compressor Co.","yes"]
["Cao Longxiang","Self-made","Domestic","China","Hubei Hongcheng General Machinery","yes"]
["Caprotti Bernardo","Self-made","Domestic","Italy","Esselunga","yes"]
["Cargill MacMillan","Multi-generational","International","United States","Cargill","yes"]
["Cargill MacMillan III","Multi-generational","International","United States","Cargill","yes"]
["Carl Bennet","",null,"Sweden","","no"]
["Carl Berg","Self-made","Domestic","United States","Mission West Real Estate Investment Trust","yes"]
["Carl Cook","Multi-generational","International","United States","Cook Group","yes"]
["Carl Ferdinand Oetker","Multi-generational","International","Germany","Oetker Group","yes"]
["Carl Icahn","Self-made","Domestic","United States","Icahn Enterprises","yes"]
["Carl Lindner Jr","Self-made","Domestic","United States","United Dairy Farmers","yes"]
["Carl Pohlad","Self-made","Domestic","United States","Marquette Bank","yes"]
["Carlo Benetton","Self-made","International","Italy","Benetton Group","yes"]
["Carlo De Benedetti","Multi-generational","Domestic","Italy","Gilardini company, Gruppo Editoriale L'Espresso","yes"]
["Carlo Fidani","",null,"Canada","","no"]
["Carlos & Alejandro Bulgheroni","",null,"Argentina","","no"]
["Carlos Alberto Sicupira","",null,"Brazil","","no"]
["Carlos Ardila Lulle","Self-made",null,"Colombia","Origanizacion Ardila Lulle","no"]
["Carlos Francisco Ribeiro Jereissati & Family","",null,"Brazil","","no"]
["Carlos Hank Rhon & Family","",null,"Mexico","","no"]
["Carlos Martins","",null,"Brazil","","no"]
["Carlos Peralta & Family",null,null,"Mexico","","no"]
["Carlos Rodriguez-Pastor","",null,"Peru","","no"]
["Carlos Sanchez","Multi-generational",null,"Brazil","","no"]
["Carlos Sicupira",null,null,"Brazil","","no"]
["Carlos Slim Helu & Family","Self-made",null,"Mexico","Grupo Carso","no"]
["Carol Jenkins Barnett","Multi-generational","Domestic","United States","Publix Super Markets","yes"]
["Caroline Hagen Kjos",null,null,"Norway","","no"]
["Carolus Nolet Sr","Multi-generational",null,"Netherlands","","no"]
["Carrie Perrodo & Family","Multi-generational","Domestic","France","Perenco","yes"]
["Catherine Lozick","Multi-generational","International","United States","Swagelok Company","yes"]
["Cesar Mata Pires","",null,"Brazil","","no"]
["Chaijudh Karnasuta","Self-made",null,"Thailand","","no"]
["Chairul Tanjung","",null,"Indonesia","","no"]
["Chaleo Yoovidhya",null,null,"Thailand","","no"]
["Chan Laiwa & Family","Self-made","International","China","Fu Wah International Land Group","yes"]
["Chan Tan Ching-fen","Self-made","Domestic","Hong Kong","Hanglung Properties","yes"]
["Chanchai Ruayrungruang","Self-made","International","China","Reignwood Group","yes"]
["Chandru Raheja","Multi-generational","Domestic","India","K. Raheja Corp.","yes"]
["Chang Pyung-Soon","",null,"South Korea","","no"]
["Chang Yun Chung","Self-made","International","Singapore","Pacific International Lines","yes"]
["Chang Yung Fa & Family","Self-made",null,"Taiwan","","no"]
["Chao Teng-Hsiung","",null,"Taiwan","","no"]
["Charlene de Carvalho-Heineken","",null,"Netherlands","","no"]
["Charles And Rupert Johnson","Multi-generational","International","United States","Franklin Resources","yes"]
["Charles Bartlett Johnson","Multi-generational","International","United States","Franklin Resources","yes"]
["Charles Brandes","Self-made","Domestic","United States","Brandes Investment Partners","yes"]
["Charles Bronfman","Multi-generational",null,"Canada","Seagrams","no"]
["Horst Brandstaetter","Multi-generational","International","Germany","Brandstätter Group","yes"]
["Hubert D'Ornano","Multi-generational","International","France","Sisley Cosmetics","yes"]
["Charles Dolan & Family","Self-made","International","United States","HBO","yes"]
["Charles Dunstone","Self-made","Domestic","United Kingdom","Carphone Warehouse","yes"]
["Charles Edelstenne","Self-made","International","France","Dassault Systèmes'","yes"]
["Charles Ergen","Self-made","Domestic","United States","Dish Network & EchoStar","yes"]
["Charles Gates Jr","Multi-generational","Domestic","United States","Gates Rubber Company","yes"]
["Charles Koch","Multi-generational","International","United States","Koch industries","yes"]
["Charles Munger","Self-made","Domestic","United States","Berkshire Hathaway","yes"]
["Charles Schwab","Self-made","Domestic","United States","Charles Schwab","yes"]
["Charles Simonyi","Self-made","International","United States","Microsoft","yes"]
["Charles Sirois",null,null,"Canada","","no"]
["Charles Zegar","Self-made","International","United States","Bloomberg L.P.","yes"]
["Charlotte Colket Weber","Multi-generational","International","United States","Campbell Soup","yes"]
["Charlotte Soderstrom","Multi-generational",null,"Sweden","H&M","no"]
["Charoen Sirivadhanabhakdi","",null,"Thailand","","no"]
["Chase Coleman III","Self-made","Domestic","United States","Tiger Global Management","yes"]
["Chatri Sophonpanich","Multi-generational",null,"Thailand","","no"]
["Meg Whitman","Self-made","International","United States","Hawlett Packard","yes"]
["Che Jianxin","Self-made","Domestic","China","Red Star Macalline","yes"]
["Che Jianxing","Self-made","Domestic","China","Red Star Macalline","yes"]
["Chee Chen Tung & Family","Multi-generational","International","Hong Kong","Orient Overseas","yes"]
["Chen Bang","Self-made","Domestic","China","Aier Eye Hospital Group","yes"]
["Chen Baozhen","Self-made","Domestic","China","Wangsu Science & Technology","yes"]
["Chen Din Hwa","Self-made","Domestic","Hong Kong","Nan Fung Group","yes"]
["Chen Fashu","Self-made","Domestic","China","Zijin Mining ","yes"]
["Chen Hua","Self-made","Domestic","China","Kingkey Group","yes"]
["Chen Jiancheng","Self-made","International","China","Wolong Holding Group","yes"]
["Chen Jiangtao","Self-made","Domestic","China","Watertek Information Technology","yes"]
["Chen Jianhua & Family","Self-made","Domestic","China","Hengli Group","yes"]
["Chen Jianqiang","Self-made","Domestic","Hong Kong","Springland International","yes"]
["Chen Jinshi & Family","Self-made","Domestic","China","Jiangsu Zhongnan Construction Group","yes"]
["Brunello Cucinelli","Self-made","International","Italy","Bruno Cucinelli SpA","yes"]
["Chen Jinxia","Multi-generational","Domestic","China","Hunan Yongjin Group ","yes"]
["Chen Lip Keong","",null,"Malaysia","","no"]
["Chen Miaolin","Self-made","Domestic","China","New Century Group ","yes"]
["Chen Qingzhou","Self-made","International","China","Hytera Communications Corporation","yes"]
["Nikolai Tsvetkov","Self-made","Domestic","Russia","Kopeyka","yes"]
["Chen Yansheng","Self-made","Domestic","China","Rastar Group","yes"]
["Chen Yihong","Self-made","Domestic","China","Beijing Li Ning Sports Goods","yes"]
["Chen Yung-Tai","",null,"Taiwan","","no"]
["Chen Din Hwa","Self-made","Domestic","Hong Kong","Nan Fung Group","yes"]
["Chen-fu Koo",null,null,"Taiwan","","no"]
["Cheng Wei","Self-made","Domestic","China","Didi Kuaidi","yes"]
["Cheng Xianfeng","Self-made","Domestic","China","Zhejiang Hangzhou Xifu Pharmaceutical","yes"]
["Cheng Xue","Self-made","International","China","Foshan Haitian Flavoring","yes"]
["Cheng Yu-tung","Self-made","Domestic","Hong Kong","Chow Tai Fook","yes"]
["Cher Wang Wenchi Chen",null,null,"Taiwan","","no"]
["Chris Dawson","Self-made","Domestic","United Kingdom","The Range","yes"]
["Chey Ki-Won","Multi-generational",null,"South Korea","","no"]
["Chey Tae-Won","",null,"South Korea","","no"]
["Chin Jong Hwa","Self-made",null,"Taiwan","","no"]
["Chip Wilson","Self-made",null,"Canada","","no"]
["Chirayu Amin","Multi-generational","International","India","Alembic Pharmaceuticals","yes"]
["Cho Chang-Gul",null,null,"South Korea","","no"]
["Cho Jung-Ho",null,null,"South Korea","","no"]
["Cho Tak Wong & Family","Self-made","International","Hong Kong","Fuyao Group","yes"]
["Cho Yang-Rai","",null,"South Korea","","no"]
["Choo Chong Ngen","Self-made","Domestic","Singapore","Various (Hotel 81, V Hotel, Venue Hotel)","yes"]
["Choy Kam Lok & Family","Self-made","Domestic","Hong Kong","United Laboratories Limited ","yes"]
["Robert Piccinini","Multi-generational","Domestic","United States","Save Mart","yes"]
["Chris Wallin",null,null,"Australia","","no"]
["Ron Sim","Self-made","International","Singapore","OSIM International","yes"]
["Christian & Olivier Courtin-Clarins & Family","Multi-generational","International","France","Clarins","yes"]
["Christian Oetker","Multi-generational","International","Germany","Oetker Group","yes"]
["Christoffel Wiese","",null,"South Africa","","no"]
["Christoph Blocher","Self-made","International","Switzerland","EMS-Chemie","yes"]
["Christoph Henkel","Multi-generational","International","Germany","Henkel","yes"]
["Christoph Zeller","Self-made","International","Germany","Ivoclar Vivadent AG","yes"]
["Christopher Burch","Self-made","Domestic","United States","Burch Creative Capital","yes"]
["Christopher Chandler",null,null,"New Zealand","","no"]
["Christopher Cline","Multi-generational","Domestic","United States","Foresight Reserves LP","yes"]
["Christopher Goldsbury","Multi-generational","Domestic","United States","Silver Ventures","yes"]
["Christopher Hohn","Self-made","Domestic","United Kingdom","Children's investment Fund","yes"]
["Sergei Katsiev","Self-made","International","Russia","Megapolis","yes"]
["Christy Walton & Family","Multi-generational","International","United States","Walmart","yes"]
["Shen Ya","Self-made","Domestic","China","Vipshop","yes"]
["Chu Lam Yiu","Self-made","Domestic","Hong Kong","Huabao International","yes"]
["Chu Mang Yee & Family","Self-made","Domestic","China","Hopson Development","yes"]
["Chung Eui-Sun","",null,"South Korea","","no"]
["Chung Mong-Joon","",null,"South Korea","","no"]
["Chung Mong-Koo","",null,"South Korea","","no"]
["Chung Yong-Jin","",null,"South Korea","","no"]
["Cigdem Sabanci Bilen","Multi-generational","Domestic","Turkey","Sabanci Group, Akbank","yes"]
["Ciputra & Family","Multi-generational",null,"Indonesia","","no"]
["Shishir Bajaj","Multi-generational","Domestic","India","Bajaj Group","yes"]
["Clayton Mathile","Self-made","Domestic","United States","Iams","yes"]
["Clayton Riddell","",null,"Canada","","no"]
["Clelia Haji-Ioannou","Multi-generational",null,"Cyprus","","no"]
["Clemens Toennies","Self-made","International","Germany","Tonnies Lebensmittel","yes"]
["Clement Fayat & Family","Self-made","Domestic","France","Fayat Group","yes"]
["Clemmie Spangler Jr","Multi-generational","Domestic","United States","Bank North Carolina","yes"]
["Sidharth Burman","Multi-generational","Domestic","India","Dabur","yes"]
["Clive Calder","Self-made","Domestic","United Kingdom","Zomba Group","yes"]
["Conrad Prebys","Self-made","Domestic","United States","Progress Construction","yes"]
["Constantino de Oliveira Jr",null,null,"Brazil","","no"]
["Craig McCaw","Multi-generational","Domestic","United States","McCaw Cellular","yes"]
["Cui Lijie","Multi-generational","International","Hong Kong","First National Foods (Imperial Pacific International)","yes"]
["Cui Zhixiang","Self-made","Domestic","China","Dongying Fangyuan ","yes"]
["Curt Engelhorn","Multi-generational","International","Germany","Boehringer Mannheim, BASF","yes"]
["Curtis LeRoy Carlson","Self-made","International","United States","Carlson","yes"]
["Cyrus Poonawalla","Self-made","Domestic","India","Poonawalla Group","yes"]
["D. Leopoldo Del Pino y Calvo-Sotelo","Multi-generational","International","Spain","Ferrovial S.A.","yes"]
["Dagmar Dolby & Family","Multi-generational","International","United States","Dolby Laboratories","yes"]
["Tory Burch","Self-made","International","United States","Tory Burch","yes"]
["Daisy Igel","",null,"Brazil","","no"]
["Dan Cathy","Multi-generational","Domestic","United States","Chick-Fil-A","yes"]
["Dan Duncan","Self-made","Domestic","United States","Enterprise Products","yes"]
["Dan Friedkin","Multi-generational","Domestic","United States","Gulf States Toyota","yes"]
["Dan Gertler","",null,"Israel","","no"]
["Dan Olsson","",null,"Sweden","","no"]
["Dan Snyder","Self-made","Domestic","United States","Snyder Communications","yes"]
["Dan Wilks","Self-made","Domestic","United States","Frac Tech","yes"]
["Daniel D'Aniello","Self-made","Domestic","United States","Carlyle Group","yes"]
["Daniel Gilbert","Self-made","Domestic","United States","Quicken Loans","yes"]
["Daniel Harrison III","Multi-generational","Domestic","United States","Various (Oil fields)","yes"]
["Daniel Hirschfeld","Multi-generational","Domestic","United States","The Buckle inc.","yes"]
["Daniel Loeb","Self-made","Domestic","United States","Third Point","yes"]
["V.G. Siddhartha","Multi-generational","International","India","Café Coffee Day","yes"]
["Daniel Och","Self-made","Domestic","United States","Och-Ziff Capital Management Group","yes"]
["Daniel Pritzker","Multi-generational","International","United States","Hyatt Hotels","yes"]
["Daniel Roullier & Family","Self-made","Domestic","France","Groupe Roullier","yes"]
["Daniel Servitje Montull & Family",null,null,"Mexico","","no"]
["Daniel Tsai","Multi-generational",null,"Taiwan","Fubon Financial Holdings","no"]
["Daniel Ziff","Multi-generational","Domestic","United States","Ziff Davis LLC","yes"]
["Daniela Herz","Multi-generational","International","Germany","Maxingvest","yes"]
["Danil Khachaturov","Self-made","Domestic","Russia","Rosgosstrakh","yes"]
["Dannine Avara","Multi-generational","Domestic","United States","Enterprise Products","yes"]
["Danny Tan Chee Sing","",null,"Malaysia","","no"]
["Dariusz Milek","Self-made",null,"Poland","","no"]
["Darwin Deason","Self-made","International","United States","Affiliated Computer Services","yes"]
["Daryl Katz","",null,"Canada","","no"]
["David & Frederick Barclay","Self-made","Domestic","United Kingdom","The Telegraph Newspaper Group, the Shop Direct Group, Trust Holding Real Estate Properties (Ellerman Lines  is the intial sold company but not main source of wealth)","yes"]
["David & Simon Reuben","Self-made","International","United Kingdom","Trans-world","yes"]
["David and Cliff Lede",null,null,"Canada","","no"]
["David Azrieli & Family","",null,"Canada","","no"]
["David Bonderman","Self-made","Domestic","United States","TPG capital","yes"]
["David Booth","Self-made","International","United States","Dimensional Fund Advisors","yes"]
["David Bromilow",null,null,"Thailand","","no"]
["David Cheriton","",null,"Canada","","no"]
["David Chow","",null,"Macau","","no"]
["David Consunji","",null,"Philippines","","no"]
["David Copley","Multi-generational","Domestic","United States","Copley Press","yes"]
["David Davidovich","Self-made","Domestic","Russia","Various (Metals, Oil)","yes"]
["David Duffield","Self-made","International","United States","Workday","yes"]
["David Einhorn","Self-made","Domestic","United States","Greenlight Capital","yes"]
["David Filo","Self-made","International","United States","Yahoo","yes"]
["David Geffen","Self-made","International","United States","DreamWorks","yes"]
["David Gottesman","Self-made","Domestic","United States","Berkshire Hathaway","yes"]
["David Green","Self-made","Domestic","United States","Hobby Lobby","yes"]
["David Hains","",null,"Australia","","no"]
["David Harding","Self-made","Domestic","United Kingdom","Winton Capital Management","yes"]
["David Hearst Jr","Multi-generational","Domestic","United States","Hearst Corp","yes"]
["David Hindawi","Self-made","Domestic","United States","Tanium, Software Ventures, BigFix Inc","yes"]
["David Koch","Multi-generational","International","United States","Koch industries","yes"]
["David Lichtenstein","Self-made","Domestic","United States","Lightstone Group","yes"]
["Venugopal Dhoot","Multi-generational","Domestic","India","Videcon","yes"]
["David Murdock","Self-made","International","United States","Dole Food Company","yes"]
["David Nahmad","",null,"Monaco","","no"]
["David Penaloza Alanis","Multi-generational",null,"Mexico","","no"]
["David Penaloza Sandoval","",null,"Mexico","","no"]
["David Rich","Multi-generational","International","United States","Rich Products","yes"]
["David Rockefeller Sr","Multi-generational","International","United States","Various (Chase National Bank)","yes"]
["David Rubenstein","Self-made","Domestic","United States","Carlyle Group","yes"]
["Vladimir Gruzdev","Self-made","Domestic","Russia","Sedmoi Kontinent","yes"]
["David Shaw","Self-made","Domestic","United States","D. E. Shaw & Co.","yes"]
["David Siegel","Self-made","Domestic","United States","Two Sigma Investments","yes"]
["David Sun","Self-made","International","United States","Kingston Technology Corporation","yes"]
["David Teoh",null,null,"Australia","","no"]
["David Tepper","Self-made","Domestic","United States","Appaloosa Management","yes"]
["David Thomson & Family","Multi-generational",null,"Canada","","no"]
["David Walentas","Self-made","Domestic","United States","Two Trees","yes"]
["David William Grainger","Multi-generational","International","United States","W.W. Grainger","yes"]
["David Yakobashvili","Self-made","International","Russia","Wimm-Bill-Dann","yes"]
["Dean White","Multi-generational","Domestic","United States","Whiteco Advertising Company","yes"]
["Den Fujita & Family","Self-made","Domestic","Japan"," McDonald's Japan.","yes"]
["Denis Defforey & Family","Self-made","International","France","Carrefour","yes"]
["Denis O'Brien","",null,"Ireland","","no"]
["Denise Coates","Self-made","International","United Kingdom","Bet365","yes"]
["Denise York","Multi-generational","Domestic","United States","San Francisco 49ers","yes"]
["Deniz Sahenk","Multi-generational","Domestic","Turkey","Dogus Holding","yes"]
["Dennis Albaugh","self-made","Domestic","United States","Albaugh, Inc","yes"]
["Dennis Bakke","Self-made","Domestic","United States","Imagine Schools","yes"]
["Dennis Washington","Self-made","International","United States","Washington Company Group","yes"]
["Dermot Desmond","Self-made",null,"Ireland","","no"]
["Desh Bandhu Gupta","Self-made","International","India","Lupin Limited","yes"]
["Desmond Sacco","",null,"South Africa","","no"]
["Devendra Jain","Self-made","Domestic","India","INOX Group","yes"]
["Dhanin Chearavanont & Family","Multi-generational",null,"Thailand","Charoen Pokphand Group","no"]
["Dhirubhai Ambani & Family","Self-made","Domestic","India","Reliance Industries","yes"]
["Diane Hendricks","Self-made","Domestic","United States","ABC Supply","yes"]
["Didier Primat","Multi-generational","International","France","Schlumberger","yes"]
["Diego Della Valle","Multi-generational","International","Italy","Tod's S.p.A","yes"]
["Dieter Schaub","Multi-generational","Domestic","Germany","Medien Union","yes"]
["Dieter Schnabel","Multi-generational","International","Germany","Helm AG","yes"]
["Dieter Schwarz","Multi-generational","International","Germany","Schwarz Group (Lidl/Kaufland)","yes"]
["Dieter von Holtzbrinck","Multi-generational","International","Germany","Verlagsgruppe Holzbrink","yes"]
["Dietmar Hopp","Self-made","International","Germany","SAP","yes"]
["Dietrich Mateschitz","",null,"Austria","","no"]
["Dilek Sabanci","Multi-generational","Domestic","Turkey"," Sabancı Holding.","yes"]
["Dilip Shanghvi","Self-made","International","India","Sun Pharmaceuticals","yes"]
["Dinara Kulibaeva","",null,"Kazakhstan","","no"]
["Ding Shijia","Self-made","Domestic","China","Anta Sports","yes"]
["Ding Shizhong & Family","Self-made","Domestic","China","Anta Sports","yes"]
["Dinu Patriciu",null,null,"Romania","","no"]
["Dirce Navarro De Camargo & Family",null,null,"Brazil","","no"]
["Dirk Rossmann","Self-made","International","Germany","Dirk Rossmann Gmbh","yes"]
["Dirk Ziff","Multi-generational","Domestic","United States","Ziff Davis LLC","yes"]
["Djoko Susanto","Self-made",null,"Indonesia","","no"]
["Djuhar Sutanto","Self-made",null,"Indonesia","","no"]
["Dmitry Ananyev","Self-made","Domestic","Russia","Technoserv","yes"]
["Dmitry Kamenshchik","Self-made","Domestic","Russia","Domodedovo Airport","yes"]
["Dmitry Korzhev","Self-made","Domestic","Russia","Various (Mega-Auto, Multon, O'Key chain)","yes"]
["Xiao Fen","Self-made","Domestic","China","Shenzhen Fenda Technology","yes"]
["Dmitry Pumpyansky","Self-made","International","Russia","TMK","yes"]
["Dmitry Rybolovlev","Self-made","International","Russia","Uralkali","yes"]
["Dmitry Troitsky","Self-made","Domestic","Russia","Various (Mega-Auto, Multon, O'Key chain)","yes"]
["Domenico Dolce","Self-made","International","Italy","Dolce & Gabbana","yes"]
["Dominika & Sebastian Kulczyk","Multi-generational",null,"Poland","","no"]
["Don Gao","Self-made","International","China","Positec","yes"]
["Don Hankey","Self-made","Domestic","United States","Hankey Group","yes"]
["Don Simplot","Multi-generational","International","United States","JR Simplot Company","yes"]
["Dona Bertarelli","Multi-generational","International","Switzerland","Serono","yes"]
["Donald Bren","Self-made","Domestic","United States","Irvine Company","yes"]
["Donald Fisher","Self-made","International","United States","The Gap","yes"]
["Donald Friese","Self-made","International","United States","C.R. Laurence","yes"]
["Donald Gordon","self-made","Domestic","United Kingdom","Liberty Life","yes"]
["Yang Yuanqing","Self-made","International","China","Lenovo","yes"]
["Donald Horton","self-made","Domestic","United States","D.R. Horton ","yes"]
["Donald L. Bren","Self-made","Domestic","United States","Irvine Company","yes"]
["Donald L. Sturm","Self-made","Domestic","United States"," American National Bank-Northern Colorado, The Sturm Financial Group ","yes"]
["Donald Newhouse","Multi-generational","Domestic","United States","Advanced Publications","yes"]
["Donald Schneider","Multi-generational","International","United States","Schneider National","yes"]
["Donald Sterling","Self-made","Domestic","United States","Los Angeles Clippers","yes"]
["Donald Trump","Multi-generational","Domestic","United States","Trump Enterprises","yes"]
["Doris Fisher","Self-made","International","United States","Gap","yes"]
["Dorothea Steinbruch","",null,"Brazil","","no"]
["Dorrance Hamilton","Multi-generational","International","United States","Campbell Soup","yes"]
["Dou Zhenggang","Self-made","Domestic","China","Hangzhou Jinjiang Group","yes"]
["Douglas Fregin",null,null,"Canada","","no"]
["Douglas Hsu & Family","",null,"Taiwan","","no"]
["Douglas Leone","Self-made","International","United States","Sequoia Capital","yes"]
["Drew Houston","Self-made","International","United States","Dropbox","yes"]
["Du Jiangtao","Self-made","Domestic","China","Junzheng Energy & Chemical Industry","yes"]
["Du Jiangtao & Family","Self-made","Domestic","China","Junzheng Energy & Chemical Industry, henzhen medical equipment company, Beijing Bohui Innovation Technology","yes"]
["Du Shuanghua","Self-made","Domestic","China","Rizhao Steel Holding","yes"]
["Dulce Pugliese de Godoy Bueno","",null,"Brazil","","no"]
["Dustin Moskovitz","Self-made","International","United States","Facebook","yes"]
["Dwight Schar","Self-made","Domestic","United States","NVHomes","yes"]
["E. Joe Shoen","Multi-generational","Domestic","United States","U-Haul","yes"]
["E. Pierce Marshall","Self-made","Domestic","United States","Marshall Petroleum","yes"]
["E. Stanley Kroenke","Self-made","Domestic","United States","Kroenke Enterprise","yes"]
["Eddie & Sol Zakay","Self-made","Domestic","United Kingdom","Topland group","yes"]
["Eddy Kusnadi Sariaatmadja","Self-made",null,"Indonesia","","no"]
["Edgar Bronfman Sr","Multi-generational","International","United States","Seagram & Sons","yes"]
["Edgar de Picciotto","Self-made","Domestic","Switzerland","Union Bancaire Privee","yes"]
["Edir Macedo & Family","",null,"Brazil","","no"]
["Edmond Safra","Multi-generational",null,"Lebanon","","no"]
["Edmund Ansin","Multi-generational","International","United States","WSVN","yes"]
["Edmund Wattis Littlefield","Multi-generational","Domestic","United States","Utah Construction Company","yes"]
["Edouard Carmignac","Self-made","Domestic","France","Carmignac Gestion","yes"]
["Edson de Godoy Bueno","",null,"Brazil","","no"]
["Eduard Shifrin","Self-made","Domestic","United Kingdom","Zaporizhstal","yes"]
["Eduardo Belmont Anderson","",null,"Peru","","no"]
["Eduardo Eurnekian","",null,"Argentina","","no"]
["Eduardo Hochschild","",null,"Peru","","no"]
["Eduardo Saverin","",null,"Brazil","","no"]
["Edward Bass","Multi-generational","Domestic","United States","Fine Line","yes"]
["Edward DeBartolo Jr","Multi-generational","Domestic","United States","Simon DeBartolo Group","yes"]
["Edward Johnson III","Multi-generational","Domestic","United States","Fidelity Management & Research","yes"]
["Edward Lampert","Self-made","Domestic","United States","ELS Investments","yes"]
["Edward Lewis Gaylord","Multi-generational","Domestic","United States","Gaylord Entertainment Company","yes"]
["Edward Rogers",null,null,"Canada","","no"]
["Edward Roski Jr","Multi-generational","Domestic","United States","Majestic Realty, Co.","yes"]
["Yu Awu","Self-made","Domestic","China","Zhejiang Ming Jewelry","yes"]
["Edwin Leong","Self-made","Domestic","Hong Kong","Tai Hung Fai Enterprise","yes"]
["Edwin Soeryadjaya","",null,"Indonesia","","no"]
["Eggon da Silva","",null,"Brazil","","no"]
["Eike Batista",null,null,"Brazil","","no"]
["Eitaro Itoyama","Self-made","Domestic","Japan","Onetime holding","yes"]
["Eka Tjipta Widjaja","Self-made",null,"Indonesia","","no"]
["Elaine Tettemer Marshall & Family","Multi-generational","International","United States","Koch industries","yes"]
["Elaine Wynn","Self-made","Domestic","United States","Wynn Resorts","yes"]
["Elena Baturina","Self-made","Domestic","Russia","Inteko","yes"]
["Eli Broad","Self-made","Domestic","United States","KB Home & SunAmerica","yes"]
["Elie Horn","",null,"Brazil","","no"]
["Eliezer Steinbruch & Family",null,null,"Brazil","","no"]
["Eliodoro Matte","",null,"Chile","","no"]
["Yuri Gushchin","Self-made","Domestic","Russia","Obyedinennye Konditery","yes"]
["Elisio Alexandre Soares dos Santos & Family",null,null,"Portugal","","no"]
["Elizabeth Holmes","Self-made","Domestic","United States","Theranos","yes"]
["Elizabeth Mohn & Family","Multi-generational","International","Germany","Bretelsmann","yes"]
["Elizabeth Wiskemann","Multi-generational","Domestic","United States"," Inherited 6% of Franklin Resources' gold and precious metals fund","yes"]
["Elon Musk","Self-made","International","United States","Tesla Motors","yes"]
["Els Blokker","",null,"Netherlands","","no"]
["Emanuele (Lino) Saputo","",null,"Canada","","no"]
["Emanuella Barilla","Multi-generational","International","Italy","Barilla","yes"]
["Emilio Azcarraga Jean","Multi-generational",null,"Mexico","Grupo Televisa","no"]
["Emilio Botín","Multi-generational","International","Spain","Santander","yes"]
["Emilio Gnutti","Self-made","Domestic","Italy","Hopa SpA","yes"]
["Emmanuel Besnier","Multi-generational","Domestic","France","Lactalis","yes"]
["Ennio Doris & Family","Self-made","Domestic","Italy","Mediolanum","yes"]
["Enric Bernat","Self-made","International","Spain","Chupa Chups","yes"]
["Enrique Banuelos","Self-made","Domestic","Spain","Astroc Mediterraneo S.A.","yes"]
["Enrique Razon Jr","",null,"Philippines","","no"]
["Eric Lefkofsky","Self-made","International","United States","Groupon","yes"]
["Eric Schmidt","Self-made","International","United States","Google","yes"]
["Erich Kellerhals","Self-made","International","Germany","Media Markt","yes"]
["Erik Selin",null,null,"Sweden","","no"]
["Erika Pohl-Ströher","Multi-generational","International","Germany","Wella","yes"]
["Erivan Haub & Family","Multi-generational","International","Germany","Tengelmann Group","yes"]
["Erman Ilicak","Self-made","International","Turkey","Rönesans Holding","yes"]
["Ermirio Pereira de Moraes","",null,"Brazil","","no"]
["Ernest Gallo & Family","Multi-generational","Domestic","United States","Gallo Family Vineyards","yes"]
["Ernest Rady","Self-made","Domestic","United States","American Assets","yes"]
["Ernest Stempel","Self-made","International","United States","American International Group","yes"]
["Ernestina Herrera de Noble",null,null,"Argentina","","no"]
["Ernesto Bertarelli & Family","Multi-generational","International","Switzerland","Serono","yes"]
["Erol Sabanci","Multi-generational","Domestic","Turkey","Akbank","yes"]
["Erwin Franz Mueller","Self-made","International","Germany","Mueller","yes"]
["Esther Grether & Family","Multi-generational","Domestic","Switzerland","Doetsch Grether","yes"]
["Esther Koplowitz","Multi-generational","Domestic","Spain","inherited Fomento de Construcciones y Contratas (FCC)","yes"]
["Eugen Viehof & Family","Self-made","Domestic","Germany","Allkauf supermarket chain","yes"]
["Eugene Kaspersky","Self-made","International","Russia","Kaspersky Labs","yes"]
["Eugene Melnyk",null,null,"Canada","","no"]
["Eugene Wu","Self-made",null,"Taiwan","","no"]
["Eugenio Garza Laguera & Family","Self-made",null,"Mexico","","no"]
["Eugenio Lopez","Multi-generational",null,"Philippines","","no"]
["Eva Gonda de Rivera & Family","",null,"Mexico","","no"]
["Eva Maria Braun-Luedicke","Multi-generational","International","Germany","B. Braun Melsungen AG","yes"]
["Eva Maria Bucher-Haefner","Multi-generational","Domestic","Switzerland","Careal Holding","yes"]
["Evan Sharp","Self-made","International","United States","Pinterest","yes"]
["Evan Spiegel","Self-made","International","United States","Snapchat","yes"]
["Evan Williams","Self-made","International","United States","Twitter","yes"]
["Evelyn Danzig Haas","Multi-generational","International","United States","Levi Strauss & Co","yes"]
["Evgeny (Eugene) Shvidler","Self-made","Domestic","United States","Gazprom Neft","yes"]
["Eyal Ofer","",null,"Israel","","no"]
["Ezra Nahmad","",null,"Monaco","","no"]
["Fabio Bertarelli","Self-made","International","Switzerland","Serono","yes"]
["Fahd Hariri","",null,"Lebanon","","no"]
["Faisal Bin Qassim Al Thani",null,null,"Qatar","","no"]
["Families Brost","Multi-generational","Domestic","Germany","WAZ","yes"]
["Families Funke & Brost","Multi-generational","Domestic","Germany","WAZ","yes"]
["Families Seydoux/Schlumberger","Multi-generational","International","France","Schlumberger","yes"]
["Family Al-Rajhi","Multi-generational",null,"Saudi Arabia","","no"]
["Family Aramburuzabala","Multi-generational",null,"Mexico","","no"]
["Family Autrey","Multi-generational",null,"Mexico","","no"]
["Family Bemberg","Multi-generational",null,"Argentina","","no"]
["Family Boehringer","Multi-generational","International","Germany","Boehringer Ingelheim","yes"]
["Family Bombardier",null,null,"Canada","","no"]
["Family Brenninkmeyer","Multi-generational",null,"Netherlands","","no"]
["Family Brescia","Multi-generational",null,"Peru","","no"]
["Family Camargo","Multi-generational",null,"Brazil","","no"]
["Family Cargill","Multi-generational","International","United States","Cargill Inc.","yes"]
["Family Chey Jong-hyon","Multi-generational",null,"Korea","","no"]
["Family Conle","Multi-generational","Domestic","Germany","Various (real estate)","yes"]
["Family Freudenberg","Multi-generational","International","Germany","Freudenberg Group","yes"]
["Family Goulandris","Multi-generational",null,"Greece","","no"]
["Family Haas","Multi-generational","International","United States","Levi Strauss & Co","yes"]
["Family Haindl","Multi-generational","Domestic","Germany","Haindl Papier","yes"]
["Family Haniel","Multi-generational","Domestic","Germany","Franz Haniel & Cie","yes"]
["Family Hearst","Multi-generational","Domestic","United States","Hearst Communications","yes"]
["Family Henkel","Multi-generational","International","Germany","Henkel","yes"]
["Family Hinduja","Multi-generational","International","India","Hinduja Group","yes"]
["Family Isono","Multi-generational","Domestic","Japan","Meidi-Ya","yes"]
["Family Iwasaki","Multi-generational","Domestic","Japan","Iwasaki Sangyo","yes"]
["Family Juffali","Multi-generational",null,"Saudi Arabia","","no"]
["Family Kim Suk-won","Multi-generational",null,"Korea","","no"]
["Family Kim Woo-choong","Multi-generational",null,"Korea","","no"]
["Family Knauf","Multi-generational","Domestic","Germany","Knauf Westdeutsche Gipswerke","yes"]
["Family Koo Cha-kyung","Multi-generational",null,"Korea","","no"]
["Family Larragoiti","Multi-generational",null,"Brazil","","no"]
["Family Lee","Multi-generational","Domestic","Singapore","Hysan Development ","yes"]
["Family Lee Hong Chiu","Multi-generational","Domestic","Hong Kong","Hysan Development ","yes"]
["Family Leibbrand","Multi-generational","Domestic","Germany","Various (Supermarkets, real estate)","yes"]
["Family Lemos","Multi-generational",null,"Greece","","no"]
["Family Lo Ying Shek","Multi-generational","Domestic","Hong Kong","Great Eagle Company","yes"]
["Family Matter","Multi-generational",null,"Chile","","no"]
["Family McCaw","Multi-generational","Domestic","United States","McCaw Cellular","yes"]
["Family Merck","Multi-generational","International","Germany","Merck group","yes"]
["Family Moores","Multi-generational","International","United Kingdom","Intel","yes"]
["Family Otani","Multi-generational","Domestic","Japan","Otani Hotels","yes"]
["Family Peugeot","Multi-generational","International","France","Peugeot","yes"]
["Family Porsche","Multi-generational","International","Germany","Porsche","yes"]
["Family Quek Leng Chan","Multi-generational",null,"Malaysia","","no"]
["Family Reimann","Multi-generational","International","Germany","Reckitt Benckiser","yes"]
["Family Rossi di Montelera","Multi-generational","International","Italy","Martini & Rossi","yes"]
["Family Rothschild","Multi-generational",null,"France/UK","","no"]
["Family Schickedanz","Multi-generational","Domestic","Germany","Quelle GmbH","yes"]
["Family Shi Wen-long","Multi-generational",null,"Taiwan","","no"]
["Family Simon","Multi-generational","International","Germany","Simon Property Group, Indiana Pacers basketball team","yes"]
["Family Stroeher","Multi-generational","International","Germany","Wella","yes"]
["Family Strwher","Multi-generational","Domestic","Germany","Various","yes"]
["Family Suharto",null,null,"Indonesia","","no"]
["Family Verspieren","Multi-generational","International","France","Legrand, Lloyd Continental","yes"]
["Family von Siemens","Multi-generational","International","Germany","Siemens","yes"]
["Family Werhahn","Multi-generational","Domestic","Germany","Werhahn KG","yes"]
["Family Wonowidjojo","Multi-generational",null,"Indonesia","","no"]
["Family Yaw Teck-seng","Self-made",null,"Malaysia","","no"]
["Fan Zhaoxia","Self-made","Domestic","China","Beijing Jingyuntong Technology","yes"]
["Fang Tonghua","Self-made","Domestic","China","Heilongjiang ZBD Pharmaceutical","yes"]
["Fang Wei","Self-made","Domestic","China","Fangda Group","yes"]
["Farhad Moshiri","Self-made","International","United Kingdom","Metalloinvest","yes"]
["Farkhad Akhmedov","Self-made","Domestic","Russia","Nortgas","yes"]
["Farris Wilks","Self-made","Domestic","United States","Frac Tech","yes"]
["Faruk Eczacibasi","Multi-generational","Domestic","Turkey","Eczacibasi Holding","yes"]
["Faruk Yalcin","Self-made","Domestic","Turkey","Makayal Group","yes"]
["Fatma Yazici","Multi-generational","Domestic","Turkey","Diler Holding","yes"]
["Fawaz Alhokair","Self-made",null,"Saudi Arabia","","no"]
["Fawzi Al-Kharafi","",null,"Kuwait","","no"]
["Fayez Sarofim","Multi-generational","Domestic","United States","Fayez Sarofim & Co","yes"]
["Femi Otedola","Self-made",null,"Nigeria","","no"]
["Feng Hailiang","Self-made","Domestic","China","Cooper processing","yes"]
["Fentener van Vlissingen & Family","Multi-generational","International","United Kingdom","Makro","yes"]
["Ferdinand and Family Piech",null,null,"Austria","","no"]
["Ferit Faik Sahenk","Multi-generational","Domestic","Turkey","Dogus Holding","yes"]
["Ferit Sahenk & Family","Multi-generational","Domestic","Turkey","Dogus Holding","yes"]
["Fernando Roberto Moreira Salles","",null,"Brazil","","no"]
["Fernando Roig","Multi-generational","Domestic","Spain","Mercadona","yes"]
["Fidel Castro",null,null,"Cuba","","no"]
["Filaret Galchev","Self-made","Domestic","Russia","Eurocement Group","yes"]
["Filiz Sahenk","Multi-generational","Domestic","Turkey","Dogus Holding","yes"]
["Finn Rausing","",null,"Sweden","","no"]
["Fiona Geminder","",null,"Australia","","no"]
["Florentino Perez","Self-made","International","Spain","Grupo ACS","yes"]
["Folorunsho Alakija","",null,"Nigeria","","no"]
["Forrest Mars Jr","Multi-generational","International","United States","Mars","yes"]
["Forrest Preston","Self-made","Domestic","United States","Life Care Centers of America","yes"]
["Frances Koshland Geballe","Multi-generational","International","United States","Levi Strauss & Co","yes"]
["Francesco Gaetano Caltagirone","Self-made","Domestic","Italy","Caltagirone holding","yes"]
["Francesco Micheli","Self-made","Domestic","Italy","GENEXTRA S.p.A","yes"]
["Francesco Saverio Salini","Multi-generational","International","Italy","Salini Impregilo","yes"]
["Francis Choi","Self-made","Domestic","Hong Kong","Early Light International (Holdings) Ltd.","yes"]
["Francis Yeoh & Family",null,null,"Malaysia","","no"]
["Francisco Ivens de Sa Dias Branco","",null,"Brazil","","no"]
["Francisco Jose Riberas Mera","Multi-generational","International","Spain","Corporacion Gestamp SL","yes"]
["Francois Pinault & Family","Self-made","International","France","Kering","yes"]
["Frank (Vasile) Timis",null,null,"Romania","","no"]
["Frank Batten Sr","Self-made","Domestic","United States","Landmark Media Enterprises","yes"]
["Frank Fertitta III","Multi-generational","Domestic","United States","Station Casinos","yes"]
["Frank Hasenfratz","Self-made",null,"Canada","","no"]
["Frank Levinson","Self-made","Domestic","United States","Finisar ","yes"]
["Frank Lowy","",null,"Australia","","no"]
["Frank Stronach","",null,"Canada","","no"]
["Frank Wang","Self-made","International","China","SZ Dajiang Innovation Technology (DJI)","yes"]
["Franklin Booth Jr","Self-made","Domestic","United States","Berkshire Hathaway","yes"]
["Fred Chang","Self-made","Domestic","United States","Newegg","yes"]
["Zelimkhan Mutsoev","Self-made","Domestic","Russia","Regions Group","yes"]
["Fred Lennon","Self-made","International","United States","Swagelok","yes"]
["Frederick Field","Self-made","Domestic","United States","Marshall Field and Company, Interscope Communications","yes"]
["Frederick Smith","Self-made","International","United States","FedEx","yes"]
["Frederick Woodruff Field","Multi-generational","Domestic","United States","Interscope Communications","yes"]
["Frederik G.H. Meijer","Multi-generational","Domestic","United States","Meijer Marketplace","yes"]
["Frederik Paulsen","",null,"Sweden","","no"]
["Fredrik Lundberg","",null,"Sweden","","no"]
["Friede Springer","Multi-generational","International","Germany","Axle Springer Ag","yes"]
["Friederike Braun-Luedicke","Multi-generational","International","Germany","B. Braun Melsungen AG","yes"]
["Friedhelm Loh","Self-made","Domestic","Germany","Loh Group","yes"]
["Friedrich Flick Jr","Multi-generational","International","Germany","Daimler-Benz","yes"]
["Friedrich Knapp","Self-made","International","Germany","New Yorker GmbH","yes"]
["Frits Goldschmeding","",null,"Netherlands","","no"]
["Fritz Draexlmaier","Multi-generational","International","Germany","Draexlmaier Group","yes"]
["Fu Guangming & Family","Self-made","Domestic","China","Fujian Sunner Development","yes"]
["Fu Kwan","Self-made","Domestic","China","Macrolink Group","yes"]
["Fu Liquan & Family","Self-made","International","China","Dahua","yes"]
["Fu Meicheng & Family","Self-made","Domestic","China","Zhejiang Huace Film and TV","yes"]
["Fukuzo Iwasaki","Self-made","Domestic","Japan","Iwasaki Sangyo","yes"]
["G. M. Rao","Self-made","International","India"," GMR Group","yes"]
["G.V. Krishna Reddy","Self-made","Domestic","India","GVK","yes"]
["Anne Cox Chambers","Multi-generational","Domestic","United States","Cox Enterprises","yes"]
["Gabe Newell","Self-made","International","United States","Valve Corporation","yes"]
["Gabriel Escarrer","Self-made","Domestic","Spain","Melia Hotels International","yes"]
["Gad Rausing & Family","Multi-generational",null,"Sweden","Tetra Lavak","no"]
["Gail Miller","Self-made","Domestic","United States","Larry H. Miller Group of Companies","yes"]
["Galen Weston & Family","Multi-generational",null,"Canada","","no"]
["Gao Dekang & Family","Self-made","Domestic","China","Bosideng International Holdings","yes"]
["Gao Tianguo","Self-made","Domestic","China","Shanghai Guo Zhi Jie Investment Development","yes"]
["Garibaldi Thohir",null,null,"Indonesia","","no"]
["Garrett Camp","Self-made","International","United States","Uber Technologies Inc.","yes"]
["Garry Weston","Self-made","Domestic","United Kingdom","George Weston Limited food","yes"]
["Chen Tianqiao","Self-made","Domestic","China","Shanda Games","yes"]
["Gary Comer","Self-made","Domestic","United States","Land's End","yes"]
["Gary Fegel","Self-made","International","Switzerland","Glencore","yes"]
["Gary Magness","Multi-generational","Domestic","United States","Tele-Communications Inc.","yes"]
["Gary Michelson","Self-made","Domestic","United States","Medtronic","yes"]
["Gary Rollins","Multi-generational","Domestic","United States","Orkin","yes"]
["Gary Winnick","Self-made","International","United States","Global Crossing","yes"]
["Gaston Vidigal",null,null,"Brazil","","no"]
["Gautam Adani","Self-made","Domestic","India","Adani Group","yes"]
["Gautam Thapar","Multi-generational","Domestic","India","Avantha Group","yes"]
["Gavril Yushvaev","Self-made","Domestic","Russia","Trinity, Wimm-Bill-Dann","yes"]
["Gay Simplot","Multi-generational","International","United States","JR Simplot Company","yes"]
["Gayle Cook","Self-made","International","United States","Cook Group Inc.","yes"]
["Geng Jianming","Self-made","Domestic","China","RiseSun Real Estate Development,","yes"]
["Gennady Kozovoy","Self-made","Domestic","Russia","Raspadskaya","yes"]
["Gennady Timchenko","Self-made","International","Russia","Gunvor Group","yes"]
["Georg Schaeffler","Multi-generational","International","Germany","Schaeffler, Continental","yes"]
["Georg Thyssen-Bornemisza","Multi-generational","International","Switzerland","ThyssenKrupp","yes"]
["Georg von Opel","Multi-generational","International","Germany","Opel","yes"]
["George Argyros","Self-made","Domestic","United States","Arnel & Affiliates","yes"]
["George Bishop","Self-made","Domestic","United States","GeoSouthern","yes"]
["George Economou",null,null,"Greece","","no"]
["George Hearst Jr","Multi-generational","Domestic","United States","Hearst Communications","yes"]
["George Joseph","Self-made","International","United States","Mercury General","yes"]
["George Kaiser","Multi-generational","Domestic","United States","BOK Financial Cooperation","yes"]
["George Lindemann & Family","Multi-generational","International","United States","Permalens","yes"]
["George Lucas","Self-made","International","United States","Lucasfilm","yes"]
["George Marcus","Self-made","Domestic","United States","Marcus & Millichap","yes"]
["George Mitchell","Self-made","Domestic","United States","Mitchell Energy & Development Corp.","yes"]
["George Roberts","Self-made","International","United States","KKR & Co.","yes"]
["George Soros","Self-made","Domestic","United States","Soros Fund Management","yes"]
["George Steinbrenner III","Self-made","Domestic","United States","American Ship Building Company","yes"]
["George Ty & Family","Self-made",null,"Philippines","Metropolitan Bank and Trust Company","no"]
["George Wong","Self-made","Domestic","Hong Kong","Chyau Fwu Corp","yes"]
["George Ying Chow Lien","Self-made","International","Singapore","Overseas Chinese Union Bank ","yes"]
["Gerald Cadogan","Multi-generational","Domestic","United Kingdom","Cardogan","yes"]
["Gerald Cavendish Grosvenor & Family","Multi-generational","Domestic","United Kingdom","Grosvenor Group","yes"]
["Gerald Harvey",null,null,"Australia","","no"]
["Gerald J. Ford","Self-made","Domestic","United States","Gold State Bank Corporation","yes"]
["Gerald Schwartz","",null,"Canada","","no"]
["Gérard Louis-Dreyfus & Family","Multi-generational","International","France","Louis Dreyfus Company","yes"]
["Gerard Mulliez & Family","Self-made","International","France","Auchan","yes"]
["Gerard Wertheimer","Multi-generational","International","France","Chanel","yes"]
["Gerd Brachmann","Self-made","International","Germany","Medion AG","yes"]
["Gerhard Schmid","self-made","Domestic","Germany","Mobilcom AG","yes"]
["Germain Lamonde",null,null,"Canada","","no"]
["German Khan","Self-made","Domestic","Russia","Alfa Group","yes"]
["German Larrea Mota Velasco & Family","Multi-generational",null,"Mexico","","no"]
["Gernot Langes-Swarovski & Family","",null,"Austria","","no"]
["Gerry Harvey","",null,"Australia","","no"]
["Gian Marco Moratti","Multi-generational","Domestic","Italy","Saras","yes"]
["Giancarlo Franceso Civita","",null,"Brazil","","no"]
["Gianluigi & Rafaela Aponte","Self-made","International","Switzerland","MSC (Mediterranian Shipping)","yes"]
["Gil Shwed","",null,"Israel","","no"]
["Gilberto Benetton","Self-made","International","Italy","Benetton Group","yes"]
["Gilles Martin","Self-made","International","France","Eurofins Scientific","yes"]
["Gina Rinehart","Multi-generational",null,"Australia","","no"]
["Giorgio Armani","Self-made","International","Italy","Armani Group","yes"]
["Giovanni Agnelli","Multi-generational","International","Italy","Fiat","yes"]
["Giuliana Benetton","Self-made","International","Italy","Benetton Group","yes"]
["Giuseppe De'Longhi","Multi-generational","International","Italy","DeLonghi","yes"]
["Gjert Wilhelmsen","Multi-generational",null,"Norway","","no"]
["Gleb Fetisov","Self-made","International","Russia","Vimpelcom (Veon)","yes"]
["Glen Taylor","Self-made","International","United States","Taylor Corp","yes"]
["Glenn Dubin","Self-made","International","United States","Highbridge Capital Management","yes"]
["Gloria von Thurn und Taxis","Multi-generational","Domestic","Germany","Owners of breweries and former builders of castles","yes"]
["God Nisanov","Self-made","Domestic","Russia","Various (real estate)","yes"]
["Goh Cheng Liang","Self-made","International","Singapore","Nippon Paint","yes"]
["Goh Peng Ooi","",null,"Malaysia","","no"]
["Goh Tong Lim","Self-made",null,"Malaysia","","no"]
["Gong Hongjia & Family","Self-made","Domestic","Hong Kong","Hikvision","yes"]
["Gordon Getty","Multi-generational","International","United States","Getty Oil Company","yes"]
["Gordon Moore","Self-made","International","United States","Intel","yes"]
["James Clark","Self-made","International","United States","Netscape Communications","yes"]
["Goroemon Yoshimoto","Self-made","Domestic","Japan","Various (real estate)","yes"]
["Graeme Hart","",null,"New Zealand","","no"]
["Graham Kirkham","Self-made","Domestic","United Kingdom","Northern Upholstery","yes"]
["Graham Weston","Self-made","International","United States","Rackspace","yes"]
["Gregorio Perez Companc","Self-made",null,"Argentina","","no"]
["Gu Wei","Self-made","International","China","Shenzhen MTC","yes"]
["Gudrun Heine","Multi-generational","Domestic","Germany","Storz Endoskop","yes"]
["Guenter Herz & Family","Multi-generational","International","Germany","Maxingvest","yes"]
["Guenther Fielmann & Family","Self-made","International","Germany","Fielmann","yes"]
["Guenther Lehmann","Multi-generational","International","Germany","Dm-drogerie","yes"]
["Guido Barilla","Multi-generational","International","Italy","Barilla","yes"]
["Guilherme Paulus",null,null,"Brazil","","no"]
["Guilherme Peirao Leal","Self-made",null,"Brazil","","no"]
["Guo Guangchang","Self-made","Domestic","China","Fosun Group","yes"]
["Jiang Ning","Self-made","Domestic","China","Beijing Xinwei Telecom","yes"]
["Gururaj, E. Deshpande","Self-made","Domestic","United States","Sycamore Networks","yes"]
["Gustaf Douglas","",null,"Sweden","","no"]
["Gustav Magnar Witzoe",null,null,"Norway","","no"]
["Gustavo Cisneros & Family","Self-made",null,"Venezuela","Cisneros Group","no"]
["Gustavo Denegri","Self-made","Domestic","Italy","Investimenti e Partecipazioni","yes"]
["Guy Laliberte","",null,"Canada","","no"]
["Gwendolyn Sontheim Meyer","Multi-generational","International","United States","Cargill Inc.","yes"]
["H. Fisk Johnson","Multi-generational","International","United States","SC Johnson","yes"]
["H. Ross Perot Jr","Multi-generational","International","United States","Electronic Data System","yes"]
["H. Ross Perot Sr","Self-made","International","United States","Electronic Data System / Perot System","yes"]
["H. Wayne Huizenga","Self-made","Domestic","United States","Waste Management Inc","yes"]
["Habil Khorakiwala","Self-made","International","India","Wockhardt","yes"]
["Hafez Al-Assad President","Self-made","Domestic","United States","Various","yes"]
["Haim Saban","Self-made","Domestic","United States","Saban Entertainment","yes"]
["Hajime Satomi","Self-made","International","Japan","Sega Sammy Holdings","yes"]
["Hal Jackman","Self-made",null,"Canada","","no"]
["Hamad bin Khalifa Al Thani",null,null,"Qatar","","no"]
["Hamdi Akin","Self-made","Domestic","Turkey","Akfen Holding","yes"]
["Hamdi Ulukaya","Self-made","Domestic","Turkey","Chobani","yes"]
["Hamilton James","Self-made","Domestic","United States","DLJ Merchant Bankin","yes"]
["Han Chang-Woo & Family","Self-made","Domestic","Japan","Maruhan","yes"]
["Han Junliang","Self-made","Domestic","China","Sinovel Wind Group","yes"]
["Han Tao","Self-made","Domestic","China","Goldenmax International Technology","yes"]
["Hank & Doug Meijer","Multi-generational","Domestic","United States","Meijer","yes"]
["Hanni Toosbuy Kasprzak","",null,"Denmark","","no"]
["Hans Georg Naeder","Multi-generational","International","Germany","OttoBock Group","yes"]
["Hans Joachim Langmann","Self-made","International","Germany","Merck group","yes"]
["Hans Melchers","",null,"Netherlands","","no"]
["Hans Peter Wild","Multi-generational","Domestic","Germany","Wild Flavors GmbH","yes"]
["Hans Rausing","",null,"Sweden","","no"]
["Hans Riegel","Self-made","International","Germany","Haribo","yes"]
["Hans Strothoff","Self-made","Domestic","Germany","MHK Group","yes"]
["Hansjoerg Wyss","Self-made","International","Switzerland","Synthes ","yes"]
["Hans-Werner Hector","Self-made","International","Germany","SAP","yes"]
["Harindarpal Banga","Self-made","International","India","Noble Group","yes"]
["Harjo Sutanto","",null,"Indonesia","","no"]
["Harold F Lenfest","Self-made","Domestic","United States","Lenfest Communications ","yes"]
["Harold Fitzgerald Lenfest","Self-made","Domestic","United States","Lenfest Communications ","yes"]
["Harold Hamm","Self-made","Domestic","United States","Continental Resources","yes"]
["Harold Simmons","Self-made","Domestic","United States","Contran Corp","yes"]
["Harrison McCain",null,null,"Canada","","no"]
["Harry and Family Oppenheimer","Multi-generational",null,"South Africa","","no"]
["Harry Brakemann Helmsley","self-made","Domestic","United States","Helmsley-Spear","yes"]
["Harry Stine","Self-made","Domestic","United States","The Stine Seed","yes"]
["Harry Triguboff","",null,"Australia","","no"]
["Harsh Goenka","Multi-generational","Domestic","India","RPG Group","yes"]
["Harsh Mariwala","Multi-generational","Domestic","India","Marico","yes"]
["Harvey Chaplin & Family","self-made","Domestic","United States","Southern Wine & Spirits","yes"]
["Hary Tanoesoedibjo","",null,"Indonesia","","no"]
["Hasan Colakoglu","Multi-generational","Domestic","Turkey","TEB bank","yes"]
["Hasmukh Chudgar","Self-made","Domestic","India","Intas Pharmaceuticals","yes"]
["Hasso Plattner","Self-made","International","Germany","SAP","yes"]
["He Jinming","Self-made","Domestic","China","Renrenle Commercial Group","yes"]
["He Qiaonv & Family","Self-made","Domestic","China","Beijing Orient Landscape","yes"]
["He Xiangjian","Self-made","International","China","Midea","yes"]
["He Xuechu","Self-made","International","Hong Kong","Honbridge Holdings","yes"]
["He Yamin","Self-made","Domestic","China","Chengdu Leejun Industrial","yes"]
["He Zhiping","Self-made","Domestic","China","RAAS Blood Products","yes"]
["He Zhusheng & Family","Self-made","Domestic","China","Houying Group","yes"]
["Hedda Brahm Droege","Self-made","International","Germany","Droege International Group","yes"]
["Heidi Horten","",null,"Austria","","no"]
["Heikki Kyostila",null,null,"Finland","","no"]
["Heinrich Deichmann","Multi-generational","International","Germany","Deichmann","yes"]
["Heinz Bauer","Multi-generational","International","Germany","Bauer Media Group","yes"]
["Heinz Hermann Thiele & Family","Self-made","International","Germany","Knorr-Bremse","yes"]
["Heinz-Georg Baus","Self-made","International","Germany","Bauhaus","yes"]
["Heinz-Horst Deichmann & Family","Multi-generational","International","Germany","Deichmann","yes"]
["Helen Johnson-Leipold","Multi-generational","International","United States","SC Johnson","yes"]
["Helen Walton","Multi-generational","International","United States","Walmart","yes"]
["Helena Revoredo","Self-made","International","Spain","Prosegur","yes"]
["Helmut Sohmen","",null,"Austria","","no"]
["Heloise Waislitz","",null,"Australia","","no"]
["Henadiy Boholyubov","",null,"Ukraine","","no"]
["Henri and Eric Andre","Multi-generational","International","Switzerland","Andr & Cie","yes"]
["Henri Beaufour","Multi-generational","International","France","Ipsen","yes"]
["Henrique Constantino",null,null,"Brazil","","no"]
["Henry C. Yuen","Self-made","Domestic","United States","Gemstar-TV Guide International","yes"]
["Henry Engelhardt","Self-made","International","United States","Admiral Group","yes"]
["Henry Fok","Self-made","Domestic","Hong Kong","Various (metals, weapons)","yes"]
["Henry Fong Yun Wah","Self-made","Domestic","Hong Kong","Hip Shing Hong Group","yes"]
["Henry Hillman","Multi-generational","Domestic","United States","Calgon Carbon","yes"]
["Henry Kravis","Self-made","International","United States","KKR & Co.","yes"]
["Henry Nicholas III","Self-made","International","United States","Broadcom","yes"]
["Henry Samueli","Self-made","International","United States","Broadcom","yes"]
["Henry Swieca","Self-made","Domestic","United States","Talpion Fund Management","yes"]
["Henry Sy & Family","Self-made",null,"Philippines","SM investments&SM Prime Holdings","no"]
["Henry Zachry Jr","Self-made","International","United States","H.B. Zachry Company","yes"]
["Herb Chambers","Self-made","Domestic","United States","The Herb Chambers Companies","yes"]
["Herbert Allen Jr & Family","Multi-generational","Domestic","United States","Allen & Co.","yes"]
["Herbert Kohler Jr & Family","Multi-generational","Domestic","United States","Kohler Co.","yes"]
["Mehmet Emin Karamehmet","Self-made","International","Turkey","Turkcell","yes"]
["Herbert Sandler","Self-made","Domestic","United States","Golden West Financial Corporation,","yes"]
["Herbert Siegel","Self-made","Domestic","United States","Chris-Craft","yes"]
["Herbert Simon","Self-made","Domestic","United States","Melvin Simon & Associates","yes"]
["Herman Langness","Multi-generational","Domestic","Germany","Bela Group","yes"]
["Hermann Schnabel","Self-made","International","Germany","Helm AG","yes"]
["Hideo Morita & Family","Multi-generational","International","Japan","Sony","yes"]
["Hideyuki Busujima","Multi-generational","Domestic","Japan","Sankyo","yes"]
["Hiew King Tiong",null,null,"Malaysia","","no"]
["Hilton Schlosberg","Self-made","International","United Kingdom","Monster Beverage","yes"]
["Hind Hariri",null,null,"Lebanon","","no"]
["Hinduja Brothers","Multi-generational","International","United Kingdom","Hinduja Group","yes"]
["Hiroko Takei & Family","Multi-generational","Domestic","Japan","TFK Corp","yes"]
["Hiroshi Mikitani","Self-made","International","Japan","Rakuten","yes"]
["Hiroshi Takei","Multi-generational","Domestic","Japan","TFK Corp","yes"]
["Hiroshi Tane","Self-made","International","Japan","Paris Miki Holdings Inc","yes"]
["Hiroshi Yamauchi","Multi-generational","International","Japan","Nintendo","yes"]
["Hisakazu Yamaguchi","Multi-generational","Domestic","Japan","Daiwa Can","yes"]
["Hisakichi Yamaguchi","Self-made","Domestic","Japan","Daiwa Can","yes"]
["Hoang Kieu","Self-made","Domestic","United States","RAAS Blood Products","yes"]
["Hoffmann and Sacher families Oeri","Multi-generational","International","Switzerland","Roche, F. Hoffmann-La Roche SA","yes"]
["Hon Chiu Lee","Self-made","Domestic","Hong Kong","Hysan Development ","yes"]
["Hong Leong Oei","Multi-generational","Domestic","Singapore","Sinar Mas Group","yes"]
["Hong Ra-Hee","",null,"South Korea","","no"]
["Hong Seok-Joh",null,null,"South Korea","","no"]
["Aydin Dogan","Self-made","Domestic","Turkey","Dogan Group","yes"]
["Hope Hill Van Beuren","Multi-generational","International","United States","Campbell Soup Company","yes"]
["Nicholas Woodman","Self-made","International","United States","GoPro","yes"]
["Horst Julius Pudwill","Self-made","Domestic","Germany","Techtronic Industries","yes"]
["Horst Paulmann & Family","",null,"Chile","","no"]
["Horst Wortmann","Self-made","International","Germany","Wortmann KG","yes"]
["Hortensia Herrero","Multi-generational","Domestic","Spain","Mercadona","yes"]
["Howard Jenkins","Multi-generational","Domestic","United States","Publix Super Markets","yes"]
["Howard Marks","Self-made","International","United States","Oaktree Capital Management","yes"]
["Howard Schultz","Self-made","Domestic","United States","Starbucks","yes"]
["Hu Kaijun","Self-made","Domestic","China","China Grand Enterprises","yes"]
["Hua Bangsong","Self-made","Domestic","China","Wison Engineering","yes"]
["Hua Xuande","Self-made","Domestic","China","Zhejiang Jiuzhou Pharmaceutical","yes"]
["Hua Yong","Self-made","Domestic","China","Hangzhou Shunwang Technology","yes"]
["Huang Bingwen",null,null,"Australia","","no"]
["Huang Bingwen & Family","",null,"Australia","","no"]
["Huang Chulong","Self-made","Domestic","China","Galaxy Group","yes"]
["Huang Hongyun","Self-made","Domestic","China","Jinke Property Group","yes"]
["Huang Hongyun & Family","Self-made","Domestic","China","Jinke Property Group","yes"]
["Huang Li","Self-made","Domestic","China","Wuhan Guide Infrared","yes"]
["Huang Maoru & Family",null,null,"Belize","","no"]
["Huang Qiaoling","Self-made","Domestic","China","Songcheng Performance Development","yes"]
["Huang Qisen","Self-made","Domestic","China","Thaihot Group","yes"]
["Huang Rulun","Self-made","Domestic","China","Century Golden Resources Group","yes"]
["Huang Shaowu","Self-made","Domestic","China","Shenzhen Aisidi","yes"]
["Huang Shih Tsai","Self-made","Domestic","Hong Kong","Great China International Investment Group","yes"]
["Huang Wei","Self-made","Domestic","China","Xinhu Zhongbao","yes"]
["Huang Wei & Family","Self-made","Domestic","China","Xinhu Zhongbao","yes"]
["Ryan Kavanaugh","Self-made","Domestic","United States","Relativity Media","yes"]
["Huang Wenji","Self-made","Domestic","China","China Jicheng Holdings","yes"]
["Huang Wenzai","Self-made","Domestic","China","Guangzhou Hongyu Group Co.,Ltd","yes"]
["Huang Yi","Self-made","Domestic","Hong Kong","Zhongsheng Group","yes"]
["Huang Zelan","Self-made","Domestic","China","Chongyi Zhangyuan Tunsten","yes"]
["Huang Zhenda & Family","Self-made","Domestic","China","Chongyi Zhangyuan Tunsten ","yes"]
["Hubert Burda","Multi-generational","International","Germany","Hubert Burda Media","yes"]
["Wang Qinghui","Self-made","Domestic","China","Beijing Xinwei Telecom Technology Group","yes"]
["Hubertus Benteler","Multi-generational","International","Germany","Benteler AG","yes"]
["Hugo Mann & Family","Self-made","Domestic","Germany","Wertkauf, Mobilia furniture and real estate","yes"]
["Hugo Ribeiro","Multi-generational",null,"Brazil","","no"]
["Hui Ka Yan","Self-made","Domestic","China","Evergrande Real Estate Group","yes"]
["Hui Lin Chit","Self-made","Domestic","China","Hengan International","yes"]
["Hui Wing Mau","Self-made","Domestic","Hong Kong","Shimao Property Holdings","yes"]
["Hung Yau Lit","Self-made","Domestic","China","Regina Miracle International","yes"]
["Huo Qinghua","Self-made","Domestic","China","China Kingho Group","yes"]
["Hur Young-In",null,null,"South Korea","","no"]
["Husain Djojonegoro","Multi-generational",null,"Indonesia","","no"]
["Husnu Ozyegin","Self-made","Domestic","Turkey","Fiba and Fina Holding, Finansbank","yes"]
["Hussain Sajwani",null,null,"United Arab Emirates","","no"]
["Ian & Richard Livingstone","Self-made","Domestic","United Kingdom","London & Regional Properties (Optika Clulow Group is the intial sold company but not main source of wealth)","yes"]
["Ian Wood & Family","Multi-generational","International","United Kingdom","Wood Group","yes"]
["Idan Ofer","",null,"Israel","","no"]
["Igor Altushkin","Self-made","International","Russia","Russian Copper Company","yes"]
["Igor Kesaev","Self-made","International","Russia","Mercury Company","yes"]
["Igor Makarov","Self-made","Domestic","Russia","Itera","yes"]
["Igor Olenicoff","Self-made","Domestic","United States","Olen Properties","yes"]
["Igor Yakovlev","Self-made","International","Russia","Home appliance, Eldorado","yes"]
["Igor Zyuzin","Self-made","Domestic","Russia","Mechel","yes"]
["Ihor Kolomoyskyy","",null,"Ukraine","","no"]
["Ikuo Ogiwara","Self-made","Domestic","Japan","Various","yes"]
["Ilkka Herlin","",null,"Finland","","no"]
["Ilona Herlin","",null,"Finland","","no"]
["Imogene Powers Johnson","Multi-generational","International","United States","SC Johnson","yes"]
["Indu Jain","Multi-generational","Domestic","India","Bennett, Coleman & Co. Ltd (The Times Group)","yes"]
["Wang Yongping","Self-made","Domestic","China","Xinwei Telecom Technology Group","yes"]
["Ingvar Kamprad & Family","Self-made",null,"Sweden","IKEA","no"]
["Ioan Niculae","",null,"Romania","","no"]
["Ion Tiriac","Self-made",null,"Romania","","no"]
["Ira Rennert","Self-made","Domestic","United States","The Renco Group","yes"]
["Iris Fontbona & Family","Multi-generational",null,"Chile","","no"]
["Irwin Jacobs","Self-made","International","United States","Qualcomm","yes"]
["Isaac Larian","Self-made","Domestic","United States","MGA Entertainment","yes"]
["Isaac Perlmutter","Self-made","International","United States","Marvel Comics","yes"]
["Isaac Saba Raffoul & Family","Multi-generational",null,"Mexico","","no"]
["Isabel dos Santos","",null,"Angola","","no"]
["Isak Andic & Family","Self-made","International","Spain","Mango","yes"]
["Ishibashi Kanichiro","Self-made","International","Japan","Bridgestone Group ","yes"]
["Isidoro Alvarez","Multi-generational","International","Spain","El Corte Ingles","yes"]
["Iskander Makhmudov","Self-made","International","Russia","Urals Mining and Metals Company","yes"]
["Israel Asper",null,null,"Canada","","no"]
["Israel Englander","Self-made","Domestic","United States","Millennium Management LLC","yes"]
["Issad Rebrab","",null,"Algeria","","no"]
["Itamar Locks","Multi-generational",null,"Brazil","","no"]
["Itoyama Eitaro","Multi-generational","International","Japan","Japan Airlines","yes"]
["Ivan Glasenberg","Self-made","International","Switzerland","Glencore","yes"]
["J DeLeon",null,null,"Gibraltar","","no"]
["J. Christopher Flowers","Self-made","Domestic","United States","J.C. Flowers & Co.","yes"]
["J. Christopher Reyes","Self-made","International","United States","Reyes Holding","yes"]
["J. Joe Ricketts","Self-made","Domestic","United States","TD Ameritrade","yes"]
["J. Michael Pearson","Self-made",null,"Canada","","no"]
["J. Tomilson Hill","Self-made","International","United States","Lehman & Blackstone","yes"]
["Jack Cowin","Self-made",null,"Australia","","no"]
["Jack Dangermond","Self-made","International","United States","Environmental System Research Institute","yes"]
["Jack Dorsey","Self-made","International","United States","Twitter","yes"]
["Jack Ma","Self-made","Domestic","China","Alibaba","yes"]
["Jack Taylor & Family","Self-made","International","United States","Enterprise Rent-A Car","yes"]
["Jackson Stephens","Self-made","International","United States","Stephens Group","yes"]
["Jacky Xu","",null,"St. Kitts and Nevis","","no"]
["Jacob (Kobi) & Yehudith (Jud) Richter",null,null,"Israel","","no"]
["Jacqueline Desmarais & Family","Multi-generational",null,"Canada","","no"]
["Jacqueline Mars","Multi-generational","International","United States","Mars","yes"]
["Jacques D'Amours","Self-made",null,"Canada","","no"]
["Wang Zhongjun","Self-made","Domestic","China","Huayi Brothers Media","yes"]
["Jacques Saade & Family","Self-made","International","France","CMA CGM","yes"]
["Jacques Servier","self-made","International","France","Laboratoires Servier","yes"]
["Jaime Botin","Multi-generational","International","Spain","Santander","yes"]
["Jaime Gilinski Bacal","",null,"Colombia","","no"]
["Jaime Said Demarfa",null,null,"Chile","","no"]
["Jaime Zobel de Ayala & Family","Multi-generational",null,"Philippines","","no"]
["Jaiprakash Gaur","Self-made","Domestic","India"," Jaypee Group","yes"]
["James & Arthur Irving","Multi-generational",null,"Canada","","no"]
["James Balsillie",null,null,"Canada","","no"]
["James C. Kennedy","Multi-generational","Domestic","United States","Cox Enterprises","yes"]
["James Cargill II","Multi-generational","International","United States","Cargill Inc.","yes"]
["James Cayne","Self-made","International","United States","Bear Stearnes","yes"]
["James Chambers","Multi-generational","Domestic","United States","Cox Enterprises","yes"]
["Alberto Cortina","Self-made","Domestic","Spain","Banco Zaragozano","yes"]
["James Coulter","Self-made","Domestic","United States","TPG Capital","yes"]
["James Dinan","Self-made","Domestic","United States","York Capital Management","yes"]
["James Dyson","Self-made","International","United Kingdom","Dyson","yes"]
["James France","Multi-generational","Domestic","United States","Nascar","yes"]
["James Goodnight","Self-made","International","United States","SAS institute","yes"]
["James Irsay","Multi-generational","Domestic","United States","Indianapolis Colts","yes"]
["James Irving","",null,"Canada","","no"]
["James Jannard","Self-made","Domestic","United States","Oakley","yes"]
["James Kim & Family","Multi-generational","International","United States","Amkor","yes"]
["James Leininger","Self-made","International","United States","Kinetic Concepts (KCI)","yes"]
["James Leprino","Multi-generational","Domestic","United States","Leprino food","yes"]
["James Moran","Self-made","Domestic","United States","JM Family Enterprises","yes"]
["James Packer","",null,"Australia","","no"]
["James Ratcliffe","Self-made","International","United Kingdom","Ineos Group Limited","yes"]
["James Simons","Self-made","Domestic","United States","Rentec","yes"]
["James Sorenson","Self-made","Domestic","United States","Sorenson Companies","yes"]
["Jamshyd Godrej & Family","Multi-generational","Domestic","India","Godrej Group","yes"]
["Jan Koum","Self-made","International","United States","WhatsApp","yes"]
["Jan Kulczyk","Self-made",null,"Poland","","no"]
["Jane Lauder","Multi-generational","International","United States","Estee Lauder","yes"]
["Jane Yan","Self-made","Domestic","China","Venustech","yes"]
["Jaran Chiaravanont",null,null,"Thailand","","no"]
["Jasminder Singh","Self-made","Domestic","United Kingdom","Edwardian Group","yes"]
["Jason Chang","Self-made","Domestic","Singapore","Advanced Semiconductor Engineering","yes"]
["Jason Jiang","Self-made","Domestic","China","Focus Media","yes"]
["Jassim Al-Kharafi","Multi-generational",null,"Kuwait","","no"]
["Jay Arthur Pritzker","Multi-generational","International","United States","Hyatt Hotels","yes"]
["Jay Paul","Self-made","Domestic","United States","Jay Paul Company","yes"]
["Jay Robert (J.B.) Pritzker","Multi-generational","International","United States","Hyatt Hotels","yes"]
["Jay S. Walker","Self-made","Domestic","United States","Walker Digital","yes"]
["Jay Van Andel","Self-made","International","United States","Amway","yes"]
["Jay Y. Lee","",null,"South Korea","","no"]
["Jayme Garfinkel & Family","",null,"Brazil","","no"]
["Jean (Gigi) Pritzker","Multi-generational","Domestic","United States","Marmot","yes"]
["Jean Burelle","Multi-generational","International","France","Burelle SA","yes"]
["Leonid Simanovsky","Self-made","Domestic","Russia","Novatek","yes"]
["Jean Coutu","",null,"Canada","","no"]
["Jean Pierre Cayard","Multi-generational","International","France","La Martiniquaise","yes"]
["Andreas Pohl","Multi-generational","Domestic","Germany","Deutsche Vermoegensberatung AG","yes"]
["Jean-Claude Decaux & Family","Self-made","International","France","JCDecaux","yes"]
["Reinfried Pohl","Self-made","Domestic","Germany","Deutsche Vermögensverwaltung","yes"]
["Jean-Louis Dumas & Family","Multi-generational","International","France","Hermes","yes"]
["Jean-Michel Besnier","Multi-generational","Domestic","France","Lactalis","yes"]
["Jeff Bezos","Self-made","International","United States","Amazon","yes"]
["Jeff Greene","Self-made","Domestic","United States","Various (real estate)","yes"]
["Jeff Rothschild","Self-made","International","United States","Facebook","yes"]
["Jeff Sutton","Self-made","Domestic","United States","Wharton Properties","yes"]
["Jeffery Hildebrand","Self-made","Domestic","United States","Hilcorp Energy","yes"]
["Jeffrey Gundlach","Self-made","Domestic","United States","DoubleLine Capital","yes"]
["Jeffrey Katzenberg","Self-made","International","United States","DreamWorks SKG","yes"]
["Jeffrey Koo Jr","Multi-generational","Domestic","Japan","CTBC Bank","yes"]
["Jeffrey Koo Sr","Self-made",null,"Taiwan","","no"]
["Jeffrey Lorberbaum","Multi-generational","International","United States","Mohawk Industries","yes"]
["Jeffrey Lurie","Self-made","Domestic","United States","Chestnut Hill Productions","yes"]
["Jeffrey Skoll","Self-made","International","United States","Ebay","yes"]
["Jennifer Pritzker","Multi-generational","Domestic","United States","Marmon Group","yes"]
["Jeremy Jacobs Sr","Multi-generational","International","United States","Delaware North Companies","yes"]
["Jerome Kohlberg Jr","Self-made","Domestic","United States","Kohlberg & Company","yes"]
["Jeronimo Arango & Family","Self-made",null,"Mexico","","no"]
["Jerry Jones","Self-made","Domestic","United States","Dallas Cowboys","yes"]
["Jerry Reinsdorf","Self-made","Domestic","United States","Chicago Bulls & Chicago White Sox","yes"]
["Jerry Speyer","Self-made","International","United States","Tishman Spreyer","yes"]
["Jerry Yang","Self-made","International","United States","Yahoo","yes"]
["Jerry Zucker","Self-made","International","United States","InterTech","yes"]
["Jess Jackson","Self-made","Domestic","United States","Jackson Family Wines","yes"]
["Jesse Robinson","Self-made","Domestic","United States","Various (banking)","yes"]
["Jesus de Polanco","Self-made","Domestic","Spain"," Prisa group","yes"]
["Ji Changqun","Self-made","Domestic","China","Fullshare Holdings","yes"]
["Jia Yueting","Self-made","International","China","Sinotel","yes"]
["Jiang Bin","Self-made","Domestic","China","GoerTek","yes"]
["Richard Chilton Jr","Self-made","Domestic","United States","Chilton Investment Company, LLC","yes"]
["Jiang Rensheng & Family","Self-made","Domestic","China","Chongqing Zhifei Biological Products","yes"]
["Jiang Wei","Self-made","Domestic","China","Guizhou Bailing Group Pharmaceutical","yes"]
["Jiang Weiping","Self-made","Domestic","China","Sichuan Tianqi Lithium Industries","yes"]
["Jiang Zhaobai","Self-made","Domestic","China","Shanghai Pengxin Group","yes"]
["Jim Breyer","Self-made","International","United States","Facebook","yes"]
["Jim Davis","Self-made","International","United States","New Balance","yes"]
["Jim Davis & Family","Self-made","International","United States","New Balance","yes"]
["Jim Justice II","Multi-generational","Domestic","United States","Bluestone Coal Corp.","yes"]
["Jim Pattison","",null,"Canada","","no"]
["Jim Thompson","Self-made","International","United States","Crown Worldwide","yes"]
["Jim Walton","Multi-generational","International","United States","Walmart","yes"]
["Jimmy Haslam","Multi-generational","Domestic","United States","Pilot Flying J","yes"]
["Jin Sook & Do Won Chang","Self-made","International","United States","Forever 21","yes"]
["Jitendra Virwani","Multi-generational","Domestic","India","Embassy Property Developments","yes"]
["Joachim Herz","Multi-generational","International","Germany","Tchibo","yes"]
["Joan Beverly Kroc","Multi-generational","International","United States","McDonald's","yes"]
["Joan Tisch","Multi-generational","Domestic","United States","Loews Corporation","yes"]
["Joanne (JK) Rowling","Self-made","International","United Kingdom","Various (novelist)","yes"]
["Joao Alves de Queiroz Filho","",null,"Brazil","","no"]
["Joao Moreira Salles","",null,"Brazil","","no"]
["Joao Roberto Marinho","",null,"Brazil","","no"]
["Joaquim Constantino Neto",null,null,"Brazil","","no"]
["Joaquin Guzman Loera",null,null,"Mexico","","no"]
["Joaquín Rivero","Self-made","Domestic","Spain","BAMI","yes"]
["Joe Gebbia","Self-made","International","United States","Airbnb","yes"]
["Joe Lewis","Multi-generational","International","United Kingdom","Tavistock Group","yes"]
["Joe Mansueto","Self-made","Domestic","United States","Morningstar Inc.","yes"]
["Reinfried Pohl Jr","Multi-generational","Domestic","Germany","Deutsche Vermoegensberatung AG","yes"]
["Johan Johannson","",null,"Norway","","no"]
["Johann Graf","",null,"Austria","","no"]
["Johann Rupert & Family","",null,"South Africa","","no"]
["Johanna Braun","Multi-generational","International","Germany","B. Braun Melsungen AG","yes"]
["Roustam Tariko","Self-made","International","Russia","Russian Standard Vodka, Russian Standard Bank","yes"]
["Johannes Karcher","Multi-generational","International","Germany","Alfred Kärcher GmbH","yes"]
["John A Fentener van Vlissingen",null,null,"Netherlands","","no"]
["John A. Sobrato & Family","Self-made","Domestic","United States","Sobrato Development Cos.","yes"]
["John Abele","Self-made","International","United States","Boston Scientific","yes"]
["John Anderson","Self-made","Domestic","United States","Topa Equities","yes"]
["John Arnold","Self-made","Domestic","United States","Centaurus Advisors","yes"]
["John Arrillaga","Self-made","Domestic","United States","Peery Arrillaga","yes"]
["John Bloor","Self-made","International","United Kingdom","Triumph/ Bloor Homes","yes"]
["John Brown","Self-made","Domestic","United States","Stryker Corp.","yes"]
["John Calamos","Self-made","Domestic","United States","Calamos Asset Management ","yes"]
["John Catsimatidis","Self-made","Domestic","United States","Gristedes Foods","yes"]
["John Caudwell","Self-made","Domestic","United Kingdom","Phones4U","yes"]
["John Coates","Self-made","International","United Kingdom","Bet365","yes"]
["John de Mol","",null,"Netherlands","","no"]
["John Doerr","Self-made","Domestic","United States","Kleiner Perkins Caufiled & Byers","yes"]
["John Dorrance III","Multi-generational","International","Ireland","Campbell Soup Company","no"]
["John Edson","Self-made","International","United States","Bayliner","yes"]
["John Farber","Multi-generational","International","United States","ICC Industries","yes"]
["John Fisher","Multi-generational","International","United States","Gap","yes"]
["John Fredriksen","Self-made",null,"Cyprus","","no"]
["John Gandel","",null,"Australia","","no"]
["John Gokongwei Jr","Self-made",null,"Philippines","JG Summit","no"]
["John Grayken",null,null,"Ireland","","no"]
["John Hargreaves & Family","Self-made","Domestic","United Kingdom","Matalan","yes"]
["John Henry","Self-made","Domestic","United States","Boston Red Sox","yes"]
["John Jahr & Family","Self-made","International","Germany","Gruner + Jahr","yes"]
["John Kapoor","Self-made","Domestic","United States","Lypho Med","yes"]
["John Kluge","Self-made","Domestic","United States","Metromedia","yes"]
["John Krehbiel Jr","Multi-generational","Domestic","United States","Molex","yes"]
["John Latsis","Self-made",null,"Greece","","no"]
["John MacMillan","Multi-generational","International","United States","Cargill","yes"]
["John MacMillan III","Multi-generational","International","United States","Cargill","yes"]
["John Malone","Self-made","Domestic","United States","Tele-Communication Inc.","yes"]
["John Mars","Multi-generational","International","United States","Mars","yes"]
["John Martin","Self-made","International","United States","Gilead","yes"]
["John McCaw Jr","Multi-generational","Domestic","United States","McCaw Cellular","yes"]
["John Menard Jr","Self-made","Domestic","United States","Menards","yes"]
["John Middleton","Multi-generational","Domestic","United States","John Middleton Inc","yes"]
["John Morgridge","Self-made","International","United States","Cisco Systems","yes"]
["John Morris","Self-made","Domestic","United States","Bass Pro Shops","yes"]
["John Overdeck","Self-made","Domestic","United States","Two Sigma Investments","yes"]
["John Paul DeJoria","Self-made","Domestic","United States","Paul Mitchell","yes"]
["John Paulson","Self-made","Domestic","United States","Paulson & Co","yes"]
["John Pritzker","Multi-generational","International","United States","Hyatt Hotels","yes"]
["John Reece","Self-made","International","United Kingdom","Ineos Group Limited","yes"]
["John Sall","Self-made","International","United States","SAS institute","yes"]
["John Simplot & Family","Self-made","International","United States","Simplot Company","yes"]
["John Sperling","Self-made","Domestic","United States","Apollo Group","yes"]
["John Stanton","Self-made","Domestic","United States","Western Wireless","yes"]
["John Todd & Family",null,null,"New Zeeland","","no"]
["John Tu","Self-made","International","United States","Kingston Technology Corporation","yes"]
["John Tyson","Multi-generational","Domestic","United States","Tyson Foods","yes"]
["John Van Lieshout","",null,"Australia","","no"]
["John Walton","Multi-generational","International","United States","WalMart","yes"]
["John Whittaker","Multi-generational","Domestic","United Kingdom","The Peel Group","yes"]
["John Willard (Bill) Marriott Jr","Multi-generational","International","United States","Marriott","yes"]
["Johnelle Hunt","Self-made","Domestic","United States","J.B. Hunt Transport Services","yes"]
["Susan Hirt Hagen","Multi-generational","Domestic","United States","Erie Indemnity","yes"]
["Jon Stryker","Multi-generational","Domestic","United States","Stryker Corp.","yes"]
["Jon Yarbrough","Self-made","International","United States","Video Gaming Technologies","yes"]
["Jonas Kamprad",null,null,"Sweden","","no"]
["Jonathan Gray","Self-made","International","United States","Blackstone Group","yes"]
["Jonathan Harmsworth","Multi-generational","Domestic","United Kingdom","Daily Mail & General Trust","yes"]
["Jonathan Nelson","Self-made","International","United States","Providence Equity Partners","yes"]
["Alan Auerbach","Self-made","Domestic","United States","Puma Biotechnology","yes"]
["Joop van den Ende","",null,"Netherlands","","no"]
["Jorge Larrea",null,null,"Mexico","","no"]
["Jorge Moll Filho","",null,"Brazil","","no"]
["Jorge Paulo Lemann","Self-made",null,"Brazil","","no"]
["Jorge Perez","Self-made","Domestic","United States","The Related Companies","yes"]
["Jorge Rodriguez Rodriguez","",null,"Peru","","no"]
["Jorgen Clausen & Family",null,null,"Denmark","","no"]
["Jorgen Philip-Sorensen","self-made","International","United Kingdom","Group 4","yes"]
["Jorn Rausing","",null,"Sweden","","no"]
["Jose & Francisco Jose Calderon Rojas","",null,"Mexico","","no"]
["Jose and Family Cutrale",null,null,"Brazil","","no"]
["Jose And Jaime Said",null,null,"Chile","","no"]
["Jose Berardo",null,null,"Portugal","","no"]
["Jose Ermirio de Moraes Neto","",null,"Brazil","","no"]
["Jose Isaac Peres & Family","",null,"Brazil","","no"]
["Jose Llado Fernandez-Urrutia","Self-made","Domestic","Spain","Tecnicas Reunidas","yes"]
["Jose Luis Cutrale","Multi-generational",null,"Brazil","","no"]
["José Manuel Loureda","self-made","Domestic","Spain","Sacyr","yes"]
["Jose Maria Aristrain","Multi-generational","International","Spain","Arcelor","yes"]
["Jose Mendes Nogueira & Family","",null,"Brazil","","no"]
["Jose Roberto Ermirio de Moraes","",null,"Brazil","","no"]
["Jose Roberto Marinho","",null,"Brazil","","no"]
["Josef Boquoi","Multi-generational","Domestic","Germany","Boforst","yes"]
["Joseph & Moise Safra",null,null,"Brazil","","no"]
["Joseph Craft & Family","Self-made","Domestic","United States","Mapco","yes"]
["Joseph Grendys","Self-made","International","United States","Koch Foods","yes"]
["Joseph Lau","Multi-generational","Domestic","Hong Kong","Chinese Estate","yes"]
["Joseph Lewis","Self-made","Domestic","United Kingdom","Various (Tavistock Banqueting, FX trading)","yes"]
["Joseph Safra","Self-made",null,"Brazil","","no"]
["Joseph Tsai","",null,"Canada","","no"]
["Josephine Haas","Multi-generational","International","United States","Levi Strauss & Co","yes"]
["Alfred Mann","Self-made","International","United States","Spectrolab","yes"]
["Joshua Harris","Self-made","Domestic","United States","Apollo Global Management","yes"]
["Jost Hellmann","Multi-generational","International","Germany","Hellmann Worldwide Logistics","yes"]
["JosT Said Saffie",null,null,"Chile","","no"]
["Joy Alukkas","Multi-generational","International","India","Joyalukkas","yes"]
["Christa Gelpke","Multi-generational","International","Germany","Corange Ltd.; BASF","yes"]
["Juan & Carlos March","Self-made","Domestic","Spain","Corporación Financiera Alba","yes"]
["Juan Abello","Multi-generational","Domestic","Spain","Abello laboratories ( ALK-Abelló)","yes"]
["Juan Carlos Escotet","",null,"Venezuela","","no"]
["Juan Cuneo Solari & Family",null,null,"Chile","","no"]
["Juan Fernando Belmont Anderson","",null,"Peru","","no"]
["Juan Gallardo Thurlow",null,null,"Mexico","","no"]
["Juan Maria Riberas Mera","Multi-generational","International","Spain","Corporacion Gestamp SL","yes"]
["Juan Roig","Multi-generational","Domestic","Spain","Mercadona","yes"]
["Juan-Miguel Villar Mir","Self-made","Domestic","Spain","Obrascon Huarte Lain S.A.","yes"]
["Jude Reyes","Self-made","International","United States","Reyes Holding","yes"]
["Judy Faulkner","Self-made","Domestic","United States","Epic Systems","yes"]
["Julia Oetker","Multi-generational","International","Germany","Oetker Group","yes"]
["Julian Robertson Jr","Self-made","Domestic","United States","Tiger Mangement","yes"]
["Julio Bozano","Self-made",null,"Brazil","","no"]
["Julio Mario Santo Domingo","Multi-generational",null,"Colombia","","no"]
["Julio Mario Santo Domingo III","Multi-generational","Domestic","United States","Bavaria","yes"]
["Julio Ponce","",null,"Chile","","no"]
["Junichi Murata","Self-made","Domestic","Japan","Various (facsimile equipment)","yes"]
["Jurgen Blickle","Multi-generational","International","Germany","SEW-Eurodrive","yes"]
["Ju-yung and Family Chung","Self-made",null,"Korea","","no"]
["K. Anji Reddy & Family","Self-made","Domestic","India","Dr. Reddy's Laboratories","yes"]
["K. Dinesh & Family","Self-made","International","India","Infosys","yes"]
["K. Rai Sahi","",null,"Canada","","no"]
["Kagemasa Kozuki","Self-made","International","Japan","Konami","yes"]
["Kalanithi Maran","Self-made","International","India","Sun Group","yes"]
["Kamil Yazici","Self-made","Domestic","Turkey","Anadolu Group","yes"]
["Kapil & Rahul Bhatia","Self-made","International","India","Inter Globe Aviation","yes"]
["Karel Komarek","",null,"Czech Republic","","no"]
["Barbara Carlson Gage","Multi-generational","International","United States","Carlson Companies","yes"]
["Karen Pritzker","Multi-generational","Domestic","United States","Marmon Group","yes"]
["Karl & Family Ehlerding","Self-made","Domestic","Germany","WCM","yes"]
["Che Fengsheng","Self-made","Domestic","China","Sihuan Pharmaceutical Holdings","yes"]
["Karl Diehl","Multi-generational","Domestic","Germany","Various","yes"]
["Karl Friedrich Braun","Multi-generational","International","Germany","B. Braun Melsungen AG","yes"]
["Karl Gerhard Schmidt","Multi-generational","Domestic","Germany","SchmidtBank","yes"]
["Karl Scheufele III","Self-made","International","Switzerland","Chopard","yes"]
["Karl Wlaschek","",null,"Austria","","no"]
["Karl-Heinz Kipp","Self-made","International","Germany","Massa-Märkte (Metro)","yes"]
["Karl-Johan Persson","Multi-generational",null,"Sweden","H&M","no"]
["Karsanbhai Patel","Self-made","Domestic","India","Nirma","yes"]
["Katharina Andresen",null,null,"Norway","","no"]
["Katharine Rayner","Multi-generational","Domestic","United States","Cox Enterprises","yes"]
["Katherine Tanner","Multi-generational","International","United States","Cargill","yes"]
["Kathryn McCurry Albertson","Self-made","Domestic","United States","Albertsons","yes"]
["Katsuhiro Kinoshita","Multi-generational","Domestic","Japan","Maruito Group","yes"]
["Katsumi Tada","Self-made","Domestic","Japan","Daito Trust Construction","yes"]
["Kavitark Ram Shriram","Self-made","International","United States","Google","yes"]
["Kazuo Inamori & Family","Self-made","Domestic","Japan","Kyocera","yes"]
["Kazuo Matsuda","Self-made","Domestic","Japan","Tsutaya","yes"]
["Kazuo Okada & Family","Self-made","Domestic","Japan","Universal Entertainment Corporation","yes"]
["Ke Xiping & Family","Self-made","Domestic","China","Hengxing Gold Holding","yes"]
["Ke Zunhong","Self-made","Domestic","China","Chengdu Kanghong Pharmaceutical Group","yes"]
["Keeree Kanjanapas","",null,"Thailand","","no"]
["Kei Hoi Pang","Self-made","Domestic","China","Logan Property Holdings","yes"]
["Keiichiro Takahara","Self-made","International","Japan","Unicharm","yes"]
["Keith Rupert Murdoch & Family","Self-made","International","United States","News Corporation","yes"]
["Keith W. McCaw","Multi-generational","Domestic","United States","McCaw Cellular (AT&T Wireless Services)","yes"]
["Keizo Saji","Multi-generational","International","Japan","Suntory","yes"]
["Kelcy Warren","Self-made","Domestic","United States","Energy Transfer Partners","yes"]
["Kemal Uzan & Family","Self-made","Domestic","Turkey","Uzan Group","yes"]
["Ken Fisher","Self-made","Domestic","United States","Fisher Investments","yes"]
["Ken Grossman","Self-made","Domestic","United States","Sierra Nevada","yes"]
["Kenichi Mabuchi & Family","Self-made","Domestic","Japan","Mabuchi Motor Company ","yes"]
["Kenichi Sekiya","Multi-generational","Domestic","Japan","Disco Corporation","yes"]
["Kenichiro Sato","Self-made","International","Japan","ROHM","yes"]
["Kenji Ikemori","Self-made","Domestic","Japan","FANCL","yes"]
["Kenji Kasahara","Self-made","Domestic","Japan","Mixi","yes"]
["Kenji Kimura","Self-made","Domestic","Japan","Various","yes"]
["Kenkichi Nakajima","Self-made","Domestic","Japan","Heiwa","yes"]
["Kenneth Adams Jr","Self-made","Domestic","United States","Adams Resources & Energy","yes"]
["Kenneth C. Griffin","Self-made","Domestic","United States","Citadel LLC","yes"]
["Kenneth Feld & Family","Multi-generational","Domestic","United States","Feld Entertainment","yes"]
["Kenneth Hendricks","Self-made","Domestic","United States","ABC Supply","yes"]
["Kenneth Langone","Self-made","Domestic","United States","Invemed Associates ","yes"]
["Kenneth Lo","Self-made","Domestic","United Kingdom","Crystal Group","yes"]
["Kenneth Morrison","Multi-generational","Domestic","United Kingdom","Morrisons","yes"]
["Kenneth Thomson & Family","Multi-generational",null,"Canada","","no"]
["Kenneth Tuchman","Self-made","International","United States","Teletech","yes"]
["Kenny Troutt","Self-made","Domestic","United States","Excel Communications","yes"]
["Kenshin Oshima","Self-made","Domestic","Japan","SFCG","yes"]
["Kerr Neilson","",null,"Australia","","no"]
["Kerry Packer","Multi-generational",null,"Australia","","no"]
["Kerry Stokes","",null,"Australia","","no"]
["Keshub Mahindra","Multi-generational","International","India","Mahindra Group","yes"]
["Kevin Plank","Self-made","Domestic","United States","Under Armour","yes"]
["Khalaf Al Habtoor",null,null,"United Arab Emirates","","no"]
["Khaled, Hayat, Hutham, Lubna & Mary Olayan",null,null,"Saudi Arabia","","no"]
["Khalid Bin Mahfouz & Family","Multi-generational",null,"Saudi Arabia","","no"]
["Khoo Teck Puat","Self-made","International","Singapore","Goodwood Group","yes"]
["Kiat Chiaravanont","Multi-generational",null,"Thailand","","no"]
["Kiki Barki",null,null,"Indonesia","","no"]
["Kim Beom-su","Self-made",null,"South Korea","KakaoTalk","no"]
["Kim Jung-Ju","",null,"South Korea","","no"]
["Kim Jun-Ki",null,null,"South Korea","","no"]
["Kim Magness","Multi-generational","Domestic","United States","TCI","yes"]
["Kim Nam-Jung",null,null,"South Korea","","no"]
["Kim Tack-Jin",null,null,"South Korea","","no"]
["Kim Taek-Jin","",null,"South Korea","","no"]
["King Bhumibol Adulyadej",null,null,"Thailand","","no"]
["King Faud Bin Abdul Aziz Alsaud",null,null,"Saudi Arabia","","no"]
["King Pak Fu","Self-made","International","Hong Kong","Oriental Ginza Holdings","yes"]
["Clifford Illig","Self-made","International","United States","Cerner","yes"]
["Kirill Pisarev","Self-made","Domestic","Russia","PIK Group","yes"]
["Kirill Shamalov","Self-made","Domestic","Russia","Sibur Holding","yes"]
["G.V. Prasad","Multi-generational","Domestic","India","Dr. Reddy's Laboratories","yes"]
["Kirsten Rausing","",null,"Sweden","","no"]
["Kishore Mariwala","Multi-generational","Domestic","India","Marico","yes"]
["Kjeld Kirk Kristiansen","Multi-generational",null,"Denmark","The Lego Group","no"]
["Kjell Inge Rokke","",null,"Norway","","no"]
["Klaus Hellmann","Multi-generational","International","Germany","Hellmann Worldwide Logistics","yes"]
["Klaus Jacobs","Multi-generational","Domestic","Switzerland","Jacobs Holding AG","yes"]
["Klaus Oberwelland","Multi-generational","International","Germany","Storck GmbH","yes"]
["Kiran Mazumdar-Shaw","Self-made","International","India","Biocon Ltd.","yes"]
["Klaus-Michael Kuehne","Multi-generational","International","Germany","Kühne + Nagel","yes"]
["Klaus-Peter Schulenberg","Self-made","Domestic","Germany","CTS Eventim","yes"]
["Koh Wee Meng","Self-made","International","Singapore","Fragrance Group","yes"]
["Kommer Damen","Multi-generational",null,"Netherlands","","no"]
["Kong Jian Min","Self-made","Domestic","China","KWG Property Holding","yes"]
["Kirk Kerkorian","Self-made","Domestic","United States","Tracinda Corporation","yes"]
["Konstantin Nikolaev","Self-made","Domestic","Russia","N-Trans Group","yes"]
["Koo Bon-Joon",null,null,"South Korea","","no"]
["Koo Bon-Moo","",null,"South Korea","","no"]
["Koo Bon-Neung","",null,"South Korea","","no"]
["Koo Bon-Sik",null,null,"South Korea","","no"]
["Koos Bekker","",null,"South Africa","","no"]
["Kostyantin Zhevago","",null,"Ukraine","","no"]
["KP Singh","Multi-generational","Domestic","India","DLF Limited","yes"]
["Krit Ratanarak","Multi-generational",null,"Thailand","","no"]
["Kuan Kam Hon",null,null,"Malaysia","","no"]
["Kuang-piu (K.P.) Chao","Self-made","International","Hong Kong","Dragonair","yes"]
["Kuldip Singh & Gurbachan Singh Dhingra","Self-made","Domestic","India","Berger Paints India","yes"]
["Kumar Birla","Multi-generational","International","India","Aditya Birla Group","yes"]
["Kun-Hee Lee & Family",null,null,"South Korea","","no"]
["Kunio Busujima & Family","Self-made","Domestic","Japan","Sankyo","yes"]
["Kuok Khoon Hong","Multi-generational","International","Singapore","Wilmar International","yes"]
["Kurt Krieger","Self-made","Domestic","Germany","Hoeffner Group","yes"]
["Kushal Pal Singh","Multi-generational","Domestic","India","DLF Limited","yes"]
["Kutayba Alghanim","",null,"Kuwait","","no"]
["Kwee brothers","Multi-generational","Domestic","Singapore","Pontiac Land","yes"]
["Kwek Leng Beng & Family","Multi-generational","Domestic","Singapore","Hong Leong Group","yes"]
["Kwon Hyuk-Bin","Self-made",null,"South Korea","","no"]
["Kyosuke Kinoshita","Multi-generational","Domestic","Japan","Acom Co., Ltd","yes"]
["L Lowry Mays","Self-made","Domestic","United States","Clear Channel Communication","yes"]
["Lachhman Das Mittal","Self-made","International","India","Sonalika Group","yes"]
["Lakshmi Mittal","Multi-generational","International","India","ArcelorMittal","yes"]
["Lam Kong","Self-made","Domestic","China","China Medical Systems","yes"]
["Lam Wai Ying","Self-made","Domestic","Hong Kong","Biel Crystal Manufactory","yes"]
["Lang Walker","",null,"Australia","","no"]
["Larry Page","Self-made","International","United States","Google","yes"]
["Larry Robbins","Self-made","Domestic","United States","Glenview Capital Management","yes"]
["Larry Rong Zhijian","Self-made","Domestic","China","Citic Pacific","yes"]
["Larry Yung","Self-made","Domestic","China","Citic Pacific","yes"]
["Lars Larsen","",null,"Denmark","","no"]
["Lau Cho Kun","Multi-generational",null,"Malaysia","","no"]
["Laurance Rockefeller","Multi-generational","Domestic","United States","Rockefeller Brothers Fund","yes"]
["Laurence Alan Tisch","Self-made","Domestic","United States","Loews Corporation","yes"]
["Laurence Graff & Family","Self-made","International","United Kingdom","Graff Diamonds","yes"]
["Laurene Powell Jobs & Family","Multi-generational","International","United States","Apple","yes"]
["Laurent Burelle","Multi-generational","International","France","Burelle SA","yes"]
["Law Kar Po","Multi-generational","International","Hong Kong","Park Hotel Group","yes"]
["Lawrence Ellison","Self-made","International","United States","Oracle","yes"]
["Lawrence Ho","Multi-generational","Domestic","Hong Kong","Melco International","yes"]
["Lawrence Jr. Flinn","Self-made","Domestic","United States","Video Satellite Group","yes"]
["Lawrence Stroll","",null,"Canada","","no"]
["Leandro Rizzuto & Family","Self-made","International","United States","Conair Corporation","yes"]
["Lee Bass","Multi-generational","International","United States","ExxonMobil ","yes"]
["Lee Boo-Jin","",null,"South Korea","","no"]
["Lee Hae-Jin","",null,"South Korea","","no"]
["Lee Ho-Jin","Multi-generational",null,"South Korea","","no"]
["Lee Hwa-Kyung","",null,"South Korea","","no"]
["Lee Jay-Hyun","",null,"South Korea","","no"]
["Lee Jay-Yong",null,null,"South Korea","","no"]
["Lee Joong-Keun","",null,"South Korea","","no"]
["Lee Kun-Hee","Multi-generational",null,"South Korea","Samsung Group","no"]
["Lee Man Tat","Multi-generational","Domestic","Hong Kong","Lee Kum Kee","yes"]
["Lee Myung-Hee","",null,"South Korea","","no"]
["Lee Seng Wee & Family","Multi-generational","Domestic","Singapore","Oversea-Chinese Banking Corp","yes"]
["Lee Seo-Hyun","",null,"South Korea","","no"]
["Lee Shau Kee","Self-made","Domestic","Hong Kong","Sun Hung Kai","yes"]
["Lee Shin Cheng","",null,"Malaysia","","no"]
["Lee, Sid And Perry Bass","Multi-generational","Domestic","United States","Various (oil, real estate)","yes"]
["Leena Tewari","Multi-generational","International","India","USV","yes"]
["Lei Jufang","Self-made","Domestic","China","Tibet Cheezheng Tibetan Medicine","yes"]
["Lei Jun","Self-made","International","China","Xiaomi","yes"]
["Len Ainsworth","",null,"Australia","","no"]
["Leng Chan Quek",null,null,"Malaysia","","no"]
["Leo Kirch & Family","Self-made","Domestic","Germany","Kirch Group","yes"]
["Leon Black","Self-made","Domestic","United States","Apollo Global Management","yes"]
["Leon Charney","Self-made","Domestic","United States","Various (real estate)","yes"]
["Leon Feffer","Self-made",null,"Brazil","","no"]
["Leon G. Cooperman","Self-made","Domestic","United States","Omega Advisors","yes"]
["Leon Levine & Family","Self-made","Domestic","United States","Family Dollar","yes"]
["Leona Helmsley","Multi-generational","Domestic","United States","Hemsley hotels","yes"]
["Leonard Blavatnik","Self-made","Domestic","United States","Access-Renova, Warner Music Group","yes"]
["Leonard Buckeridge",null,null,"Australia","","no"]
["Leonard Lauder","Multi-generational","International","United States","Estée Lauder","yes"]
["Leonard Schleifer","Self-made","International","United States","Regeneron","yes"]
["Leonard Stern","Multi-generational","Domestic","United States","Hartz Group","yes"]
["Leonardo Del Vecchio","Self-made","International","Italy","Luxottica","yes"]
["Leonid Boguslavsky","Self-made","Domestic","Russia","RTP Ventures","yes"]
["Leonid Fedun","Self-made","International","Russia","Lukoil","yes"]
["Leonid Mikhelson","Self-made","Domestic","Russia","Sibur","yes"]
["Leonid Nevzlin","Self-made","Domestic","Russia"," Group Menatep, Yukos Oil","yes"]
["Li Yihai","Self-made","Domestic","China","Jiminkexin Group","yes"]
["Leonore Annenberg","Multi-generational","Domestic","United States","Annenberg Foundation","yes"]
["Leslie Alexander","Self-made","Domestic","United States","The Alexander Group","yes"]
["Leslie Gonda","Self-made","International","United States","International Lease out","yes"]
["Leslie L. And Louis L. Gonda","Self-made","Domestic","United States"," International Lease Finance Corporation","yes"]
["Leslie Lampton","Self-made","Domestic","United States","Ergon ","yes"]
["Leslie Wexner","Self-made","Domestic","United States","L Brands (formerly limited brands)","yes"]
["Lester Crown & Family","Multi-generational","International","United States","General Dynamics","yes"]
["Leszek Czarnecki","",null,"Poland","","no"]
["Lev Kvetnoi","Self-made","International","Russia","Metalloinvest","yes"]
["Lev Leviev","",null,"Israel","","no"]
["Li Fuchao","Self-made","Domestic","China","Guilin Fuda","yes"]
["Li Fucheng","Self-made","Domestic","China","Fucheng Group","yes"]
["Li Guoqiang","Self-made","Domestic","China","Hongsheng Group","yes"]
["Li Hejun","Self-made","Domestic","China","Hanergy Holding Group","yes"]
["Li Hongxin & Family","Self-made","International","China","Sun Paper Industry","yes"]
["Li Jinyuan","Self-made","International","China","Tiens Group","yes"]
["Li Ka-shing","Self-made","Domestic","Hong Kong","Cheung Kong","yes"]
["Li Li & Family","Multi-generational","International","China","Shenzhen Hepalink Pharmaceutical","yes"]
["Li Liufa","Self-made","Domestic","China","Tianrui Group","yes"]
["Li San Yim","Self-made","Domestic","China","Longkin Holdings","yes"]
["Li Shufu","Self-made","Domestic","China","Zhejiang Geely Holding Group","yes"]
["Li Shuirong","Self-made","Domestic","China","Zhejiang Rongsheng Holding Group","yes"]
["Li Sze Lim","Self-made","Domestic","Hong Kong","R&F Properties","yes"]
["Li Tan","Self-made","International","China","Shenzhen Hepalink Pharmaceutical","yes"]
["Li Wa","Self-made","Domestic","Hong Kong","Excellence Group","yes"]
["Li Weiwei","Self-made","Domestic","China","Wuhu Shunrong Sanqi Interactive Entertainment Network Technology","yes"]
["Liu Dianbo","Self-made","Domestic","China","Luye Pharmaceutical Group","yes"]
["Li Yong","Self-made","Domestic","China","CEFC China Energy Company","yes"]
["Malvinder & Shivinder Singh","Multi-generational","Domestic","India","Ranbaxy Laboratories","yes"]
["Li Zhaohui","Self-made","Domestic","China","Shanxi Haixin Iron & Steel Group","yes"]
["Li Zhen","Self-made","International","China","Hefei Guoxuan High-Tech Power Energy","yes"]
["Li Zhenjiang","Self-made","Domestic","China","Shineway Pharmaceutical Group","yes"]
["Li Zhongchu","Self-made","Domestic","China","Beijing Shiji Information Technology","yes"]
["Lia Maria Aguiar","",null,"Brazil","","no"]
["Liang Guangwei","Self-made","Domestic","China","Shenzhen Huaqiang Holdings","yes"]
["Liang Qingde","Self-made","International","China","Galanz Group","yes"]
["Liang Wengen","Self-made","International","China","Sany Heavy Industry","yes"]
["Liang Xinjun","Self-made","Domestic","China","Fosun International","yes"]
["Liang Yunchao","Self-made","Domestic","China","Guandong By-health","yes"]
["Marilyn Carlson Nelson","Multi-generational","International","United States","Carlson Companies","yes"]
["Liao Long-Shing","",null,"Taiwan","","no"]
["Lilian Werninghaus","",null,"Brazil","","no"]
["Liliane Bettencourt & Family","Multi-generational","International","France","L'Oreal","yes"]
["Lily Safra","",null,"Brazil","","no"]
["Lim Goh Tong",null,null,"Malaysia","","no"]
["Lim Hariyanto Wijaya Sarwono","",null,"Indonesia","","no"]
["Lim Oon Kuin","Self-made","International","Singapore","Hin Leong Trading","yes"]
["Lim Sung-Ki",null,null,"South Korea","","no"]
["Lin Bin","Self-made","International","China","Xiaomi","yes"]
["Lin Jianhua","Self-made","Domestic","China","Hangzhou First PV Material","yes"]
["Lin Li","Self-made","Domestic","China","Shenzhen Liye Group","yes"]
["Lin Ming-cheng & Family",null,null,"Taiwan","","no"]
["Lin Ming-Hsiung","",null,"Taiwan","","no"]
["Lin Rong San","",null,"Taiwan","","no"]
["Lin Tianfu","Self-made","Domestic","Hong Kong","Guirenniao","yes"]
["Lin Xiucheng & Family","Self-made","Domestic","China","Sanan Optoelectronics","yes"]
["Lin Yu-lin","",null,"Taiwan","","no"]
["Lina Maria Aguiar","",null,"Brazil","","no"]
["Linda Pritzker","Multi-generational","Domestic","United States","Marmon Group","yes"]
["Lindsay Fox","",null,"Australia","","no"]
["Lirio Parisotto","",null,"Brazil","","no"]
["Liselott Persson","",null,"Sweden","","no"]
["Liu Baolin","Self-made","Domestic","China","Jointown Pharmaceutical Group","yes"]
["Liu Changqing","Self-made","Domestic","China","Liaoning Julong Financial Equipment Corp.","yes"]
["Jeanine Dick","Multi-generational","International","France","Virbac","yes"]
["Liu Gexin","Self-made","Domestic","China","Sichuan Kelun Pharmaceutica","yes"]
["Liu Ming Chung","",null,"Brazil","","no"]
["Michael Jaharis","Self-made","International","United States","Key Pharmaceuticals","yes"]
["Liu Qiangdong","Self-made","Domestic","China","JD.com","yes"]
["Liu Shaoxi","Self-made","International","China","Guangdong Yihua Timber","yes"]
["Liu Xiaodong","Self-made","Domestic","China","Shanghai Bairun Flavor & Fragrance","yes"]
["Satish Reddy","Multi-generational","Domestic","India","Dr. Reddy's Laboratories","yes"]
["Liu Yiqian","Self-made","Domestic","China","Sunline Group","yes"]
["Liu Yonghao & Family","Self-made","Domestic","China","New Hope Group","yes"]
["Liu Yongxing","Self-made","Domestic","China","East Hope Group","yes"]
["Liu Zaiwang & Family","Self-made","Domestic","China","Beijing Jangho Curtain Wall","yes"]
["Liu Zhenguo","Self-made","Domestic","China","Beijing Originwater Technology","yes"]
["Liu Zhiqiang","Self-made","Domestic","Hong Kong","Heung Kong Group","yes"]
["Liu Zhongtian & Family","Self-made","Domestic","China","China Zhongwang Holdings","yes"]
["Lloyd Dorfman","Self-made","International","United Kingdom","Travelex","yes"]
["Lo Siu Yu","Self-made","Domestic","Hong Kong","Chongqing Doyen (Holdings) Limited","yes"]
["Lo Siu-tong","Self-made","Domestic","Hong Kong","Yu Tai Hing Co.","yes"]
["Lord Rothermere","Multi-generational","Domestic","United Kingdom","The Daily Mail","yes"]
["Lorenzo & Family Rossi Di Montelera","Multi-generational","International","Italy","Martini & Rossi","yes"]
["Lorenzo Fertitta","Multi-generational","Domestic","United States","Station Casinos","yes"]
["Lorenzo Mendoza & Family","Multi-generational",null,"Venezuela","Empresas Polar","no"]
["Lorenzo Zambrano & Family","Multi-generational",null,"Mexico","","no"]
["Loretta Robinson",null,null,"Canada","","no"]
["Lottie Tham","Multi-generational",null,"Sweden","H&M","no"]
["Zhu Jiman","Self-made","Domestic","China","Harbin Gloria Pharmaceuticals","yes"]
["Louis Bacon","Self-made","Domestic","United States","Moore Capital","yes"]
["Louis Gonda","Self-made","International","United States","International Lease out","yes"]
["Louis Le Duff","Self-made","Domestic","France","Le Duff","yes"]
["Low Tuck Kwong","",null,"Indonesia","","no"]
["Lu Di","Self-made","International","China","SZ Dajiang Innovation Technology (DJI)","yes"]
["Lu Feng","Self-made","Domestic","China","Wind Information","yes"]
["Lu Guanqiu","Self-made","International","China","Wanxiang Group","yes"]
["Lu Xiangyang","Self-made","Domestic","China","BYD","yes"]
["Lu Yonghua","Self-made","Domestic","China","Jiangsu Linyang Electronics","yes"]
["Lu Zhiqiang","Self-made","Domestic","China","China Oceanwide Group","yes"]
["Luca Barilla","Multi-generational","International","Italy","Barilla","yes"]
["Lucia Maggi","Multi-generational",null,"Brazil","","no"]
["Luciano Benetton & Family","Self-made","International","Italy","Benetton Group","yes"]
["Lucio & Susan Co",null,null,"Philippines","","no"]
["Lucio and Susan Co","Self-made",null,"Philippines","","no"]
["Lucio Tan & Family","Self-made",null,"Philippines","Lucio Tan group","no"]
["Lucy Stitzer","Multi-generational","International","United States","Cargill","yes"]
["Ludwig Merckle","Multi-generational","International","Germany","Merckle Group","yes"]
["Ludwig Theodor Braun","Multi-generational","International","Germany","B. Braun Melsungen AG","yes"]
["Lui Che Woo","Self-made","Domestic","Hong Kong","K Wah International, Galaxy Entertainment Group","yes"]
["Luigi Cremonini","Self-made","Domestic","Italy","Cremonini Group","yes"]
["Luigi Rovati","Self-made","Domestic","Italy","Rottapharm","yes"]
["Luis Carlos Sarmiento","Self-made",null,"Colombia","Grupo Aval Acciones y  Valores","no"]
["Luis del Rivero","Self-made","Domestic","Spain","Sacyr Vallehermoso","yes"]
["Luis Enrique Yarur Rey","",null,"Chile","","no"]
["Luis Portillo","Multi-generational","Domestic","Spain","Sevilla construction","yes"]
["Luiz Alberto Garcia",null,null,"Brazil","","no"]
["Lukas Walton","Multi-generational","International","United States","Walmart","yes"]
["Luo Jye & Family","",null,"Taiwan","","no"]
["Lutz Mario Helmig","Self-made","Domestic","Germany","Helios Hospital Group","yes"]
["Airat Shaimiev","Self-made","Domestic","Russia","TAIF Group","yes"]
["Lv Yongxiang","Self-made","Domestic","China","Jilin Yongda","yes"]
["Lynn Schusterman","Multi-generational","International","United States","Samson Investment Comapny","yes"]
["M.A. Yusuff Ali","Self-made","International","India","Lulu Group","yes"]
["Ma Hong","Self-made","Domestic","China","Dongguan Souyute Fashion","yes"]
["Ma Huateng","Self-made","Domestic","China","Tencent","yes"]
["Ma Jianrong & Family","Self-made","Domestic","China","Shenzhou International","yes"]
["Ma Xingtian","Self-made","Domestic","China","Kangmei Pharmaceutical","yes"]
["Ma Xingtian & Family","Self-made","Domestic","China","Kangmei Pharmaceutical","yes"]
["Maan Al-Sanea",null,null,"Saudi Arabia","","no"]
["Madeleine Olsson Ericksson","",null,"Sweden","","no"]
["Madeleine Schickedanz","Multi-generational","Domestic","Germany","Arcandor AG","yes"]
["Maersk Mc-Kinney Moller","Multi-generational",null,"Denmark","","no"]
["Magdalena Martullo-Blocher","Multi-generational","International","Switzerland","Ems-Chemie","yes"]
["Maggie Magerko","Multi-generational","Domestic","United States","84 Lumber","yes"]
["Mahdi Al-Tajir","Self-made","International","United Kingdom","Park Tower Holding Establishment","yes"]
["Maja Oeri","Multi-generational","International","Switzerland","Roche","yes"]
["Majid Al Futtaim","",null,"United Arab Emirates","","no"]
["Makhtoum bin Rashid Al-Maktoum",null,null,"Dubai","","no"]
["Malcolm Glazer & Family","Self-made","International","United States","First allied","yes"]
["Malcolm Green III Chace","Multi-generational","Domestic","United States","Berkshire Hathaway","yes"]
["Malone Mitchell III","Self-made","Domestic","United States","SandRidge Energy","yes"]
["Albert Shigaboutdinov","Self-made","Domestic","Russia","TAIF Group","yes"]
["Manfred Lautenschlager","Self-made","Domestic","Germany"," MLP, Manfred Lautenschläger","yes"]
["Mangal Prabhat Lodha","Self-made","Domestic","India","Lodha Group","yes"]
["Manny Mashouf & Family","Self-made","International","United States","Bebe Stores","yes"]
["Manoj Bhargava","Self-made","Domestic","United States","Innovations Ventures LLC ","yes"]
["Mansour bin Zayed Al Nahayan",null,null,"United Arab Emirates","","no"]
["Manuel Jove","Self-made","Domestic","Spain","Faseda Inmobiliaria","yes"]
["Manuel Lao Hernandez","Self-made","Domestic","Spain","Cirsa","yes"]
["Manuel Manrique","Self-made","Domestic","Spain","Sacyr Vallehermoso","yes"]
["Manuel Moroun & Family","Multi-generational","Domestic","United States","Ambassador Bridge","yes"]
["Manuel Villar","Self-made",null,"Philippines","","no"]
["Mao Zhongwu","Self-made","International","China","Sany Heavy Industry, Sany Heavy Equipment International","yes"]
["Marc Benioff","Self-made","International","United States","Salesforce.com","yes"]
["Marc Coucke","Self-made",null,"Belgium","","no"]
["Marc Ladreit de Lacharriere","Self-made","Domestic","France","Fimalac","yes"]
["Marc Lasry","Self-made","International","United States","Avenue Capital","yes"]
["Marc Rich","Self-made","International","United States","Glencore","yes"]
["Marc Rowan","Self-made","Domestic","United States","Apollo Global Management","yes"]
["Johanna Quandt","Multi-generational","International","Germany","BMW","yes"]
["Marcel Adams","",null,"Canada","","no"]
["Marcel Erni","Self-made","International","Switzerland","Partners Group","yes"]
["Marcel Herrmann Telles","Self-made",null,"Brazil","","no"]
["Marcel Telles",null,null,"Brazil","","no"]
["Marco Tronchetti Provera","Self-made","Domestic","Italy","Marco Tronchetti Provera & C. S.p.A.","yes"]
["Marcos Antonio Molina dos Santos",null,null,"Brazil","","no"]
["Margaret Cargill","Multi-generational","International","United States","Cargill Inc.","yes"]
["Margaret Magerko","Multi-generational","Domestic","United States","84 Lumber","yes"]
["Margaret Whitman","Self-made","International","United States","Hewlett Packard/Ebay","yes"]
["Margaretta Taylor","Multi-generational","Domestic","United States","Cox Enterprises","yes"]
["Margarita Louis-Dreyfus","Multi-generational","International","Switzerland","Louis Dreyfus SAS","yes"]
["Marguerite Harbert","Multi-generational","Domestic","United States","Harbert Corporation","yes"]
["Maria Asuncion Aramburuzabala & Family","",null,"Mexico","","no"]
["Maria de Lourdes Egydio Villela","Multi-generational",null,"Brazil","","no"]
["Maria Del Pino y Calvo-Sotelo","Multi-generational","International","Spain","Ferrovial S.A.","yes"]
["Maria Franca Fissolo","Multi-generational","Domestic","Italy","Ferrero SpA","yes"]
["Maria Helena Moraes Scripilliti","",null,"Brazil","","no"]
["Maria Ines de Lafuente Lacroze & Family","",null,"Argentina","","no"]
["Maria Luisa Solari Falabella & Family","",null,"Chile","","no"]
["Maria-Elisabeth Schaeffler","Multi-generational","International","Germany","Schaeffler, Continental","yes"]
["Marianne Liebmann","Multi-generational","International","United States","Cargill Inc.","yes"]
["Marie Besnier Beauvalot","Multi-generational","Domestic","France","Lactalis","yes"]
["Anu Aga","Multi-generational","International","India","Thermax","yes"]
["Bhadresh Shah","Self-made","Domestic","India","AIA Engineering","yes"]
["Marina Prada","Multi-generational","International","Italy","Prada","yes"]
["Mario Brescia Cafferata & Family",null,null,"Peru","","no"]
["Mario Gabelli","Self-made","Domestic","United States","Gamco Investors","yes"]
["Mario Lopez Estrada","Self-made",null,"Guatemala","","no"]
["Mario Moretti Polegato","Self-made","International","Italy","Geox","yes"]
["Marion MacMillan Pictet","Multi-generational","International","United States","Cargill Inc.","yes"]
["Marion Sandler","Self-made","Domestic","United States","Golden West Financial Corporation","yes"]
["Maritsa Lazari","Multi-generational","Domestic","United Kingdom","Lazari Investments","yes"]
["Marius Nacht","",null,"Israel","","no"]
["Mark Coombs","Self-made","Domestic","United Kingdom","Ashmore Group","yes"]
["Mark Cuban","Self-made","International","United States","broadcast.com","yes"]
["Mark Dixon","Self-made","International","United Kingdom","Regus","yes"]
["Mark McCormack","Self-made","International","United States","International Management Group","yes"]
["Mark Pincus","Self-made","International","United States","Zynga","yes"]
["Mark Scheinberg","Self-made",null,"Canada","","no"]
["Mark Shoen","Multi-generational","Domestic","United States","U-Haul","yes"]
["Mark Stevens","Self-made","International","United States","Sequoia Capital","yes"]
["Mark Vadon","Self-made","Domestic","United States","Blue Nile","yes"]
["Mark Walter","Self-made","International","United States","Guggenheim Partners & Liberty Hampshire","yes"]
["Mark Zuckerberg","Self-made","International","United States","Facebook","yes"]
["Markus Persson","Self-made",null,"Sweden","","no"]
["Marli Pissollo","Multi-generational",null,"Brazil","","no"]
["Martha Ford","Multi-generational","International","United States","Ford, Detroit Lions","yes"]
["Martha Ingram & Family","Multi-generational","Domestic","United States","Ingram Industries","yes"]
["Martha MacMillan","Multi-generational","International","United States","Cargill","yes"]
["Martha Robinson Rivers Ingram","Multi-generational","Domestic","United States","Ingram Industries","yes"]
["Martha Stewart","Self-made","Domestic","United States","Martha Stewart Living Omnimedia","yes"]
["Martin & Olivier Bouygues","Multi-generational","Domestic","France","Bouygues Group","yes"]
["Martin Ebner","Self-made","Domestic","Switzerland","Patinex","yes"]
["Martin Haefner","Multi-generational","Domestic","Switzerland","Careal Holding","yes"]
["Martin Hilti","Self-made",null,"Liechtenstein","","no"]
["Martin Moller Nielsen",null,null,"Denmark","","no"]
["Martin Naughton","",null,"Ireland","","no"]
["Martin Selig","Self-made","International","United States","Martin Selig Real Estate","yes"]
["Martin Viessmann","Multi-generational","International","Germany","Viessmann Group","yes"]
["Martua Sitorus","",null,"Indonesia","","no"]
["Marvin Davis","Multi-generational","Domestic","United States","Davis Oil Company","yes"]
["Marvin Herb","Self-made","Domestic","United States","Coca-Cola bottling","yes"]
["Brijmohan Lall Munjal","Self-made","Domestic","India","Hero MotoCorp","yes"]
["Mary Alice Dorrance Malone","Multi-generational","International","United States","Campbell Soup","yes"]
["Mary Anselmo","Self-made","Domestic","United States","PanAmSat","yes"]
["Mary Janet Cargill","Multi-generational","International","United States","Cargill Inc.","yes"]
["Masafumi Miyamoto","Self-made","International","Japan"," Square","yes"]
["Masahiro Miki","Self-made","International","Japan","ABC-Mart","yes"]
["Masahiro Noda","Self-made","Domestic","Japan","Obic","yes"]
["Masahiro Ohga","Multi-generational","Domestic","Japan","Various (media)","yes"]
["Masahito Otsuka","Self-made","Domestic","Japan","Otsuka Pharmaceutical","yes"]
["Masakazu Shiiki","Self-made","Domestic","Japan","Sanyo Shinpan","yes"]
["Masakuni Osano","Self-made","Domestic","Japan","Kokusai Kogyo group ","yes"]
["Masao Morita","Multi-generational","International","Japan","Sony","yes"]
["Masatoshi Ito","Self-made","Domestic","Japan","Seven & I","yes"]
["Masayoshi Son","Self-made","International","Japan","SoftBank","yes"]
["Massimiliana Landini Aleotti","Multi-generational","Domestic","Italy","Menarini","yes"]
["Massimo Moratti","Multi-generational","Domestic","Italy","Saras","yes"]
["Mathias Kamprad",null,null,"Sweden","","no"]
["Matt & Dan Walsh","Multi-generational","Domestic","United States","Walsh Group","yes"]
["Matthew Bucksbaum & Family","Self-made","Domestic","United States","General Growth Property","yes"]
["Matthias Reimann-Andersen","Multi-generational","Domestic","Germany","JAB Holding Company","yes"]
["Matthias Reinhart","Self-made","Domestic","Germany","VZ Holding","yes"]
["Maurice Alter","Self-made",null,"Australia","","no"]
["Maurice Greenberg","Self-made","International","United States","AIG","yes"]
["Maurizio Billi","Multi-generational",null,"Brazil","","no"]
["Max Michel Suberville","",null,"Mexico","","no"]
["Max Turnauer","",null,"Austria","","no"]
["Maxim Nogotkov","Self-made","Domestic","Russia","Svyaznoy","yes"]
["Cheung Yan","Self-made","Domestic","China","Nine Dragons Paper","yes"]
["Megdet Rahimkulov","Self-made","Domestic","Russia","Gazprom","yes"]
["Mehmet Aydinlar","Self-made","Domestic","Turkey","Acibadem Healthcare Group","yes"]
["Ahsen Ozokur","Multi-generational","Domestic","Turkey","Yildiz Holding","yes"]
["Mehmet Hattat","Self-made","Domestic","Turkey","Hattat Holding","yes"]
["Mehmet Nazif Gunal","Self-made","Domestic","Turkey","MNG Holding","yes"]
["Mehmet Omer Koc","Multi-generational","Domestic","Turkey","Koc Holding","yes"]
["Mehmet Rustu Basaran","Multi-generational","Domestic","Turkey","Habas Medical and Industrial Gasses","yes"]
["Mehmet Sepil","Self-made","International","Turkey","Genel Energy","yes"]
["Mehmet Sinan Tara","Multi-generational","International","Turkey","Enka Group of Companies","yes"]
["Melinda Esterhazy",null,null,"Austria","","no"]
["Melker Schorling","",null,"Sweden","","no"]
["Melvin Simon","Self-made","Domestic","United States","Simon Property Group","yes"]
["Meng Qingshan & Family","Self-made","Domestic","China","Meihua Holdings Group","yes"]
["Mian Muhammad Mansha",null,null,"Pakistan","","no"]
["Miao Shouliang","Self-made","Domestic","China","Shenzhen Fuyuan Group","yes"]
["Michael & Marian Ilitch & Family","Self-made","International","United States","Little Caesar's Pizza","yes"]
["Michael & Rainer Schmidt-Ruthenbeck & Family","Multi-generational","International","Germany","Metro","yes"]
["Michael Ashcroft","Self-made","International","United Kingdom","ADT","yes"]
["Michael Ashley","Self-made","Domestic","United Kingdom","Sports Direct","yes"]
["Michael Birck","Self-made","Domestic","United States","Tellabs Inc","yes"]
["Michael Bloomberg","Self-made","International","United States","Bloomberg","yes"]
["Michael Chiang",null,null,"Taiwan","","no"]
["Michael DeGroote","Self-made",null,"Canada","","no"]
["Michael Dell","Self-made","International","United States","Dell","yes"]
["Michael Federmann & Family",null,null,"Israel","","no"]
["Michael Hartono","",null,"Indonesia","","no"]
["Michael Heisley Sr","Self-made","International","United States","Heico Companies","yes"]
["Michael Herz","Multi-generational","International","Germany","Maxingvest","yes"]
["Michael Hilti & Family",null,null,"Liechtenstein","","no"]
["Michael Hintze","",null,"Australia","","no"]
["Chu Jinfu","Self-made","Domestic","China","Henan Senyuan Electric","yes"]
["Michael Jordan","Self-made","International","United States","Nike (Jordan Brand)","yes"]
["Michael Kadoorie & Family","Multi-generational","Domestic","Hong Kong","CLP Holdings","yes"]
["Michael Klein","",null,"Brazil","","no"]
["Michael Krasny","Self-made","Domestic","United States","CDW","yes"]
["Michael Lee-Chin",null,null,"Canada","","no"]
["Dmitry Mazepin","Self-made","International","Russia","Uralchem","yes"]
["Michael Milken","Self-made","Domestic","United States","Silver Rock Financial","yes"]
["Michael Moritz","Self-made","International","United States","Sequoia Capital","yes"]
["Michael Novogratz","Self-made","Domestic","United States","Fortress Investment Group","yes"]
["Michael Otto & Family","Multi-generational","International","Germany","Otto Group","yes"]
["Michael Pieper","Multi-generational","Domestic","Switzerland","Artemis Group","yes"]
["Michael Platt","Self-made","Domestic","United Kingdom","BlueCrest Capital Management","yes"]
["Michael Price","Self-made","Domestic","United States","Heine Securities","yes"]
["Michael Rubin","Self-made","International","United States","Kynetic","yes"]
["Michael Steinhardt","Self-made","International","United States","Steinhardt Partners","yes"]
["Michael Stoschek & Family","Multi-generational","Domestic","Germany","Borse Fahrzeugteile","yes"]
["Michael Strauss & Family",null,null,"Israel","","no"]
["Michael Ying","Self-made","International","Hong Kong","Esprit Holdings limited","yes"]
["Michal Solowow","",null,"Poland","","no"]
["Michel Chalhoub & Family","Self-made","International","France","Chalhoub Group","yes"]
["Michel David-Weill","Multi-generational","International","France","Lazard Freres","yes"]
["Michel Fribourg","Multi-generational","International","United States","Continental Grain, ContiFinancial","yes"]
["Michel Leclercq & Family","Self-made","International","France","Decathlon","yes"]
["Michele Ferrero & Family","Multi-generational","Domestic","Italy","Ferrero SpA","yes"]
["Micky Arison","Self-made","International","United States","Carnival Corporation","yes"]
["Micky Jagtiani","Self-made","Domestic","India","Landmark International","yes"]
["Miguel Fluxa Rossello","Multi-generational","Domestic","Spain","Iberostar","yes"]
["Miguel Krigsner","",null,"Brazil","","no"]
["Miguel McKelvey","Self-made","International","United States","WeWork","yes"]
["Mikail Shishkhanov","Multi-generational","Domestic","Russia","B&N Bank","yes"]
["Mike Adenuga","",null,"Nigeria","","no"]
["Mike Cannon-Brookes","Self-made",null,"Australia","","no"]
["Mike Lazaridis",null,null,"Canada","","no"]
["Mikhail Abyzov","Self-made","Domestic","Russia","E4 Group","yes"]
["Jon Huntsman","Self-made","International","United States","Huntsman Corporation","yes"]
["Mikhail Brudno","Self-made","Domestic","Russia","Yukos","yes"]
["Mikhail Fedyaev","Self-made","Domestic","Russia","Sibirskiy Delovoy Soyuz","yes"]
["Mikhail Fridman","Self-made","Domestic","Russia","Alfa Group","yes"]
["Mikhail Goutseriev","Self-made","Domestic","Russia","Safmar group (BIN Group), RussNeft","yes"]
["Mikhail Gutseriev","Self-made","Domestic","Russia","Safmar group (BIN Group), RussNeft","yes"]
["Mikhail Khodorkovsky","Self-made","Domestic","Russia","Menatep group, Menatep bank","yes"]
["Mikhail Prokhorov","Self-made","International","Russia","Norilsk Nickel /Onexim","yes"]
["Milane Frantz","Multi-generational","Domestic","United States","Enterprise Products","yes"]
["Miloud Chaabi","",null,"Morocco","","no"]
["Min Kao","Self-made","International","United States","Garmin Corporation","yes"]
["Ming Hsieh","Self-made","Domestic","United States","Cogent Systems","yes"]
["Minoru Mori","Multi-generational","Domestic","Japan","Mori Building","yes"]
["Miriam Baumann-Blocher","Multi-generational","International","Switzerland","Ems-Chemie","yes"]
["Mitchell Goldhar","",null,"Canada","","no"]
["Mitchell Jacobson","Multi-generational","Domestic","United States","MSC Direct","yes"]
["Mitchell Rales","Self-made","Domestic","United States","Danahar Corporation","yes"]
["Miuccia Prada","Multi-generational","International","Italy","Prada","yes"]
["Mo Tianquan","Self-made","Domestic","China","SouFun","yes"]
["Mochtar Riady & Family","Self-made",null,"Indonesia","Lippo Group","no"]
["Mofatraj Munot","Self-made","Domestic","India","Kalpataru Constructions","yes"]
["Mohamed (Bob) Hasan",null,null,"Indonesia","","no"]
["Mohamed A Al-Bahar",null,null,"Kuwait","","no"]
["Mohamed Al Fayed","",null,"Egypt","","no"]
["Mohamed Bin Issa Al Jaber",null,null,"Saudi Arabia","","no"]
["Mohamed Mansour","",null,"Egypt","","no"]
["Mohammed Al Amoudi","Self-made",null,"Saudi Arabia","","no"]
["Mohammed Al Barwani","",null,"Oman","","no"]
["Mohammed Al Fahim",null,null,"UAE","","no"]
["Mohammed Al Issa","",null,"Saudi Arabia","","no"]
["Mohammed Al Rajhi",null,null,"Saudi Arabia","","no"]
["Mohammed Dewji","Multi-generational",null,"Tanzania","","no"]
["Mohammed Ibrahim","Self-made","International","United Kingdom","Celtel International","yes"]
["Mohammed Jameel & Family","Self-made",null,"Saudi Arabia","","no"]
["Mohannad Al-Kharafi","",null,"Kuwait","","no"]
["Mohed Altrad","Self-made","International","France","Altrad group","yes"]
["Moise Safra",null,null,"Brazil","","no"]
["Mokhzani Mahathir","",null,"Malaysia","","no"]
["Monika Schoeller","Multi-generational","International","Germany","Verlagsgruppe Holzbrink","yes"]
["Monique Louis-Dreyfus","Multi-generational","International","France","Louis Dreyfus SAS","yes"]
["Jacques Merceron-Vicat & Family","Multi-generational","International","France","Vicat","yes"]
["Montri Jiaravanont",null,null,"Thailand","","no"]
["Mori Arkin","",null,"Israel","","no"]
["Morris Kahn","",null,"Israel","","no"]
["Mortimer Zuckerman","Self-made","International","United States","Boston Properties","yes"]
["Mikhail Balakin","Self-made","Domestic","Russia","SU-155","yes"]
["Mukesh & Anil Ambani","Multi-generational","Domestic","India","Reliance Industries","yes"]
["Mukesh Ambani","Multi-generational","Domestic","India","Reliance Industries","yes"]
["Muneaki Masuda","Self-made","Domestic","Japan","Tsutaya","yes"]
["Murali Divi","Self-made","Domestic","India","Divi's Laboratories","yes"]
["Murat Ulker","Multi-generational","Domestic","Turkey","Yildiz Holding","yes"]
["Murat Vargi","Self-made","International","Turkey","Turkcell","yes"]
["Murdaya Poo","",null,"Indonesia","","no"]
["Mustafa Kucuk","Self-made","International","Turkey","LC Waikiki","yes"]
["Mustafa Latif Topbas","Self-made","International","Turkey","BIM","yes"]
["Mustafa Rahmi Koc","Multi-generational","Domestic","Turkey","Koc Holding","yes"]
["David McMurtry","Self-made","Domestic","United Kingdom","Renishaw","yes"]
["Myung-Hee Lee",null,null,"South Korea","","no"]
["N Murray Edwards",null,null,"Canada","","no"]
["N. Murray Edwards","",null,"Canada","","no"]
["N.R. Narayana Murthy & Family","Self-made","International","India","Infosys","yes"]
["Nadhmi Auchi","Self-made","International","United Kingdom","General Mediterranean Holdings (GMH)","yes"]
["Nadir Godrej","Multi-generational","Domestic","India","Godrej Group","yes"]
["Naguib Sawiris","",null,"Egypt","","no"]
["Najib Mikati","",null,"Lebanon","","no"]
["Nan Cunhui","Self-made","Domestic","China","Zhejiang Chint Electrics","yes"]
["Nancy Lerner Beck","Multi-generational","Domestic","United States","MBNA","yes"]
["Nancy Walton Laurie","Multi-generational","International","United States","Walmart","yes"]
["Nandan Nilekani & Family","Self-made","International","India","Infosys","yes"]
["Naresh Goyal","Self-made","International","United Kingdom","Jet Airways","yes"]
["Naruatsu Baba","Self-made","International","Japan","Colopl","yes"]
["Nassef Sawiris","",null,"Egypt","","no"]
["Nasser Al-Kharafi & Family",null,null,"Kuwait","","no"]
["Nasser Khalili","Self-made","Domestic","United Kingdom","Khalili Collections","yes"]
["Nathan Blecharczyk","Self-made","International","United States","Airbnb","yes"]
["Nathan Kirsh","",null,"Swaziland","","no"]
["Nazek Hariri","Multi-generational","International","France","Saudi Oger","yes"]
["Neal Patterson","Self-made","International","United States","Cerner","yes"]
["Neide Helena de Moraes","",null,"Brazil","","no"]
["Neil Bluhm","Self-made","Domestic","United States","JMB Realty","yes"]
["Neil Shen","Self-made","International","Hong Kong","Sequoia Capital China","yes"]
["Nelson Peltz","Self-made","Domestic","United States","Trian Fund Management. L.P.","yes"]
["Nerijus Numavicius","",null,"Lithuania","","no"]
["Nevaldo Rocha & Family","",null,"Brazil","","no"]
["Nezih Barut","Multi-generational","International","Turkey","Abdi Ibrahim Pharmaceutical","yes"]
["Ng Teng Fong & Family","Self-made","Domestic","Singapore","Far East Organization and Sino Group","yes"]
["Ni Zhaoxing","Self-made","Domestic","China","Zhongrong International Holdings Group","yes"]
["Ni Zugen","Self-made","Domestic","China","Kingclean Electronic","yes"]
["Nicholas Pritzker II","Multi-generational","International","United States","Hyatt Hotels","yes"]
["Qiu Jianping","Self-made","Domestic","China","Hangzhou Great Star Industrial","yes"]
["Nicky Oppenheimer & Family","",null,"South Africa","","no"]
["Nicola Bulgari","Multi-generational","International","Italy","Bulgari","yes"]
["Nicola Leibinger-Kammueller","Multi-generational","Domestic","Germany","Trumpf GmbH","yes"]
["Nicolas Berggruen","Self-made","Domestic","United States","Berggruen Holdings","yes"]
["Nicolas Hayek","Self-made","International","Switzerland","Swatch Group","yes"]
["Nicolas Puech","Multi-generational","International","France","Hermes","yes"]
["Niels Peter Louis-Hansen","",null,"Denmark","","no"]
["Nihat Ozdemir","Self-made","Domestic","Turkey","Limak Holding","yes"]
["Nikita Mishin","Self-made","Domestic","Russia","N-Trans Group","yes"]
["Niklas Herlin","",null,"Finland","","no"]
["Radik Shaimiev","Self-made","Domestic","Russia","TAIF Group","yes"]
["Robert Stiller","Self-made","Domestic","United States","Keurig Green Mountain","yes"]
["Nikolai Sarkisov","Self-made","Domestic","Russia","RESO-Garantiya","yes"]
["Rustem Sulteev","Self-made","Domestic","Russia","TAIF Group","yes"]
["Nina Wang","Self-made","Domestic","Hong Kong","Chinachem","yes"]
["Niranjan Hiranandani","Self-made","Domestic","India","Hiranandani Group","yes"]
["Nirav Modi","Self-made","International","India","Firestar Diamond","yes"]
["Noam Gottesman","Self-made","International","United States","GLG Partners","yes"]
["Nobutada Saji","Multi-generational","International","Japan","Suntory Holdings","yes"]
["Nobutoshi Shimamura & Family","Self-made","Domestic","Japan","Shimamura Co.","yes"]
["Nochi Dankner",null,null,"Israel","","no"]
["Norbert Dentressangle","Self-made","International","France","Norbert Dentressangle","yes"]
["Norberto Odebrecht","self-made",null,"Brazil","","no"]
["Norma Lerner","Multi-generational","Domestic","United States","MBNA","yes"]
["Norman Braman","Self-made","Domestic","United States","Braman Motorcars","yes"]
["Norman W. Waitt","Self-made","Domestic","United States","Waitt Media, Gold Circle Film","yes"]
["NR Narayana Murthy","Self-made","International","India","Infosys","yes"]
["Nurzhan Subkhanberdin",null,null,"Kazakhstan","","no"]
["O. Francis Biondi","Self-made","Domestic","United States","King Street Capital Management","yes"]
["Odd Reitan","",null,"Norway","","no"]
["Olav Thon",null,null,"Norway","","no"]
["Oleg Bakhmatyuk",null,null,"Ukraine","","no"]
["Oleg Boyko","Self-made","International","Russia","Finstar","yes"]
["Oleg Deripaska","Self-made","International","Russia","RUSAL","yes"]
["Sun Shangchuan & wife","Self-made","Domestic","China","Shenzhen Tat fook Technology","yes"]
["Ollen Bruton Smith","Self-made","Domestic","United States","Speedway Motorsports","yes"]
["Om Jindal","Multi-generational","Domestic","India","Jindal Steel and Power","yes"]
["Omer Dinckok","Multi-generational","Domestic","Turkey","Akkok Group","yes"]
["Omer Sabanci","Multi-generational","Domestic","Turkey","Sabanci Holding","yes"]
["Omid Kordestani","Self-made","International","United States","Google","yes"]
["Onsi Sawiris","",null,"Egypt","","no"]
["Oprah Winfrey","Self-made","Domestic","United States","Oprah Winfrey Network","yes"]
["Or Wai Sheun","Multi-generational","Domestic","Hong Kong","Kowloon Development","yes"]
["Orion Hindawi","Self-made","Domestic","United States","Tanium","yes"]
["Othman Benjelloun","",null,"Morocco","","no"]
["Otto Beisheim","Self-made","International","Germany","Metro","yes"]
["Otto Happel","Multi-generational","International","Germany","GEA Group","yes"]
["Otto Philipp Braun","Multi-generational","International","Germany","B. Braun Melsungen AG","yes"]
["Sun Weijie","Self-made","International","China","Yantai Jereh Oilfield Services Group","yes"]
["Ou Zongrong","Self-made","Domestic","China","Zhenro Group","yes"]
["P.N.C. Menon","",null,"Oman","","no"]
["P.V. Ramprasad Reddy","Self-made","Domestic","India","Aurobindo Pharma","yes"]
["Pallonji Mistry","Multi-generational",null,"Ireland","","no"]
["Pan Sutong","Self-made","International","Hong Kong","Goldin Financial Holdings","yes"]
["Pan Weiming","Self-made","Domestic","China","Fullsun Group","yes"]
["Pan Zhengmin & Family","Self-made","Domestic","China","AAC Technologies","yes"]
["Pang Kang","Self-made","International","China","Foshan Haitian Flavoring & Food","yes"]
["Pang Qinghua","Self-made","Domestic","China","Power Diversity Automobile Trade","yes"]
["Pankaj Patel","Multi-generational","Domestic","India","Cadila Healthcare","yes"]
["Pansy Ho","Multi-generational","Domestic","Hong Kong","Shun Tak Group","yes"]
["Paolo & Gianfelice Mario Rocca","Multi-generational","International","Italy","Techint Group","yes"]
["Paolo Barilla","Multi-generational","International","Italy","Barilla","yes"]
["Paolo Bulgari","Multi-generational","International","Italy","Bulgari","yes"]
["Park Hyeon-Joo","",null,"South Korea","","no"]
["Pat Stryker","Multi-generational","Domestic","United States","Stryker Corp.","yes"]
["Patokh Chodiev","",null,"Belgium","","no"]
["Patrice Motsepe","",null,"South Africa","","no"]
["Patricia A. Short","Multi-generational","Domestic","United States","various","yes"]
["Patricia Angelini Rossi","",null,"Chile","","no"]
["Patricia Matte","",null,"Chile","","no"]
["Patrick Bowlen & Family","Multi-generational","Domestic","United States","Regent Resources, Denver Bronco","yes"]
["Patrick Drahi","Self-made","International","France","Altice","yes"]
["Patrick Guerrand-Hermès","Multi-generational","International","France","Hermes","yes"]
["Patrick Lee","Self-made","Domestic","Hong Kong","Lee & Man Paper Manufacturing","yes"]
["Patrick McGovern","Self-made","International","United States","International Data Group","yes"]
["Patrick Ryan","Self-made","International","United States","Aon","yes"]
["Patrick Soon-Shiong","Self-made","Domestic","United States","Abraxis BioScience, American Pharmaceutical Partners","yes"]
["Patrick Wang & Family","Self-made","International","Hong Kong","Johnson Electric","yes"]
["Patrizio Bertelli","Multi-generational","International","Italy","Prada","yes"]
["Paul Allen","Self-made","International","United States","Microsoft","yes"]
["Paul Desmarais",null,null,"Canada","","no"]
["Paul Fireman","Self-made","Domestic","United States","Reebok","yes"]
["Paul Foster","Self-made","Domestic","United States","Western Refining","yes"]
["Paul Mellon","Multi-generational","International","United States","The Bank of New York Mellon","yes"]
["Paul Milstein & Family","Multi-generational","Domestic","United States","Milstein Brothers (MB) Realt Estate, Milford Management","yes"]
["Paul Ramsay","",null,"Australia","","no"]
["Paul Raymond","Self-made","Domestic","United Kingdom","Paul Raymond Publications","yes"]
["Paul Riegel","Multi-generational","International","Germany","Haribo","yes"]
["Paul Singer","Self-made","Domestic","United States","Elliott Management","yes"]
["Paul Tudor Jones II","Self-made","Domestic","United States","Tudor Investment Corporation","yes"]
["Pauline MacMillan Keinath","Multi-generational","International","United States","Cargill Inc.","yes"]
["Paul-Louis Halley","Self-made","International","France","Carrefour (Promodès)","yes"]
["Pavel Tykac","",null,"Czech Republic","","no"]
["Pedro Moreira Salles","",null,"Brazil","","no"]
["Peng Jianhu","Self-made","Domestic","China","New Century Cruise","yes"]
["Penny Pritzker","Multi-generational","International","United States","Hyatt Hotels","yes"]
["Perenna Kei & Family","Multi-generational","Domestic","Hong Kong","Logan Property Holdings","yes"]
["Perry Bass","Self-made","Domestic","United States","Sid Richardson Energy Services","yes"]
["Peter Alfond","Multi-generational","Domestic","United States","Dexter Shoe Company","yes"]
["Peter and Family Livanos","Multi-generational",null,"Greece","","no"]
["Peter Briger Jr","Self-made","Domestic","United States","Fortress Investment Group","yes"]
["Peter Buck","Self-made","International","United States","Subway Restaurants","yes"]
["Peter Gilgan","",null,"Canada","","no"]
["Peter Hargreaves","Self-made","Domestic","United Kingdom","Hargreaves Lansdown","yes"]
["Peter Jr. Haas","Multi-generational","International","United States","Levi Strauss & Co","yes"]
["Peter Kamprad",null,null,"Sweden","","no"]
["Peter Kellogg","Multi-generational","International","United States","Spear, Leeds & Kellogg","yes"]
["Peter Leibinger","Multi-generational","Domestic","Germany","Trumpf GmbH","yes"]
["Peter Lewis","Multi-generational","Domestic","United States","Progressive","yes"]
["Peter Lim","Self-made","Domestic","Singapore","Rowsley","yes"]
["Peter Nicholas","Self-made","International","United States","Boston Scientific","yes"]
["Peter Peterson","Self-made","International","United States","Blackstone","yes"]
["Peter Sondakh","",null,"Indonesia","","no"]
["Peter Sperling","Multi-generational","Domestic","United States","Apollo Group","yes"]
["Peter Spuhler","Multi-generational","Domestic","Switzerland","Stadler Rail","yes"]
["Peter Sr. Haas","Multi-generational","International","United States","Levi Strauss & Co","yes"]
["Peter Thiel","Self-made","International","United States","PayPal","yes"]
["Peter Unger","Self-made","International","Germany","Actuant Corp (ATU)","yes"]
["Peter Woo & Family","Multi-generational","International","Hong Kong","Wheelock and Company Limited","yes"]
["Petr Kellner","",null,"Czech Republic","","no"]
["Petro Poroshenko","",null,"Ukraine","","no"]
["Petter Stordalen","",null,"Norway","","no"]
["Pham Nhat Vuong","",null,"Vietnam","","no"]
["Philip & Cristina Green","Self-made","International","United Kingdom","Arcadia Group (Burton, Dorothy Perkins, Evans, Miss Selfridge, Outfit, Topshop/Topman and Wallis)","yes"]
["Philip Anschutz","Self-made","International","United States","Anschutz Entertainment Group","yes"]
["Philip Falcone","Self-made","Domestic","United States","Harbinger Capital Partners","yes"]
["Philip Hampson Knight","Self-made","Domestic","United States","Nike","yes"]
["Philip Niarchos","Multi-generational",null,"Greece","","no"]
["Philippe Bouriez","Self-made","International","France","Louis Delhaize Group","yes"]
["Philippe Foriel-Destezet","Self-made","International","France","Adecco","yes"]
["Phillip Frost","Self-made","International","United States","Opko Health","yes"]
["Phillip Ragon","Self-made","International","United States","InterSystems","yes"]
["Phillip Ruffin","Self-made","Domestic","United States","Treasure Island Resort & Casino","yes"]
["Phillipe Foriel-Destezet","self-made","International","France","Adecco","yes"]
["Phoebe Hearst Cooke","Multi-generational","Domestic","United States","Hearst corporation","yes"]
["Phyllis Taylor","Multi-generational","International","United States","Taylor Energy","yes"]
["Pier Luigi Loro Piana","Multi-generational","International","Italy","Loro Piana","yes"]
["Piero Ferrari","Multi-generational","International","Italy","Ferrari SpA","yes"]
["Piero Solari Donaggio & Family",null,null,"Chile","","no"]
["Pierre Bellon & Family","Self-made","International","France","Sodexo","yes"]
["Tu Jianhua","Self-made","Domestic","China","Loncin Motor, Chongqing Rural Commercial Bank","yes"]
["Pierre Chen","Self-made",null,"Taiwan","","no"]
["Pierre Landolt & Family","Multi-generational","International","Switzerland","Sandoz","yes"]
["Pierre Omidyar","Self-made","International","United States","Ebay","yes"]
["Pierre Papillaud","Self-made","Domestic","France","Alma (Cristaline, Roxane, Mont Blanc)","yes"]
["Pincus Green","Self-made","International","United States","Glencore International","yes"]
["Piya Bhirombhakdi","self-made",null,"Thailand","","no"]
["Platon Lebedev","Self-made","Domestic","Russia","Menatep group, Menatep bank","yes"]
["Pollyanna Chu","Multi-generational","International","Hong Kong","Kingston Financial Group ","yes"]
["Polys Haji-Ioannou","",null,"Cyprus","","no"]
["Prachai Leophairatana","Self-made",null,"Thailand","","no"]
["Prajogo Pangestu","Self-made",null,"Indonesia","","no"]
["Prasert Prasarttong-Osoth","",null,"Thailand","","no"]
["Preston Tisch","Self-made","Domestic","United States","Loews Corporation","yes"]
["Prince Alwaleed Bin Talal Alsaud","Self-made",null,"Saudi Arabia","","no"]
["Prince Sultan bin Mohammed bin Saud Al Kabeer","",null,"Saudi Arabia","","no"]
["Purnomo Prawiro","Multi-generational",null,"Indonesia","","no"]
["Putera Sampoerna","Multi-generational",null,"Indonesia","","no"]
["Pyotr Aven","Self-made","Domestic","Russia","Alfa Banking Group","yes"]
["Pyotr Kondrashev","Self-made","International","Russia","Silvinit","yes"]
["Qi Jinxing","Self-made","Domestic","China","Binjiang Real Estate Group","yes"]
["Qi Shi","Self-made","Domestic","China","Eastmoney Information","yes"]
["Qi Xiangdong","Self-made","International","China","Qihoo 360 Technology","yes"]
["Qin Yinglin","Self-made","Domestic","China","Muyuan Foodstuff","yes"]
["Qiu Guanghe & Family","Self-made","Domestic","China","Zhejiang Semir Garment","yes"]
["Wang Haipeng","Self-made","Domestic","China","MYS Environmental Protection & Technology","yes"]
["Que Wenbin & Family","Self-made","Domestic","China","Gansu Duyiwei Biological Pharmaceutical","yes"]
["Quek Leng Chan","",null,"Malaysia","","no"]
["R Allen Stanford","Multi-generational","Domestic","United States","Stanford Financial","yes"]
["R. Budi Hartono","Multi-generational",null,"Indonesia","","no"]
["Rachman Halim & Family",null,null,"Indonesia","","no"]
["Radhe Shyam Agarwal","Self-made","Domestic","India","Emami Group","yes"]
["Radhe Shyam Goenka","Self-made","Domestic","India","Emami Group","yes"]
["Wang Xicheng","Self-made","Domestic","China","Shandong Linglong Tire","yes"]
["Radovan Vitek","",null,"Czech Republic","","no"]
["Rafael Del Pino","Self-made","International","Spain","Ferrovial S.A.","yes"]
["Rafael Del Pino y Calvo-Sotelo","Multi-generational","International","Spain","Ferrovial S.A.","yes"]
["Rafik Al-Hariri & Family","Self-made",null,"Lebanon","","no"]
["Raghuvinder Kataria","Self-made","Domestic","United Kingdom","Kataria Holdings","yes"]
["Ra-Hee Hong",null,null,"South Korea","","no"]
["Rahel Blocher","Multi-generational","International","Switzerland","Ems-Chemie","yes"]
["Rahmi Koc & Family","Self-made","Domestic","Turkey","Koc Holding","yes"]
["Rahul Bajaj","Multi-generational","Domestic","India","Bajaj Group","yes"]
["Rainer Blickle","Multi-generational","International","Germany","SEW-Eurodrive","yes"]
["Raj Kumar & Kishin RK","Multi-generational","International","Singapore","Royal Holdings/RB Capital","yes"]
["Raj Rajaratnam","Self-made","Domestic","United States","Galleon Group","yes"]
["Wang Yong & Family","Self-made","Domestic","China","Xiwang Group","yes"]
["Rajan Raheja & Family","Self-made","Domestic","India","Rajan Raheja Group","yes"]
["Rakesh Gangwal","Self-made","International","United States","IndiGo","yes"]
["Rakesh Jhunjhunwala","Self-made","Domestic","India","Rare Enterprises","yes"]
["Rakesh Wadhawan & Family","Multi-generational","Domestic","India","Dewan Housing & Finance,","yes"]
["Ralph Dommermuth","Self-made","Domestic","Germany","United Internet","yes"]
["Ralph Lauren","Self-made","International","United States","Polo Ralph Lauren","yes"]
["Ralph Sonnenberg & Family","",null,"Netherlands","","no"]
["Rama Prasad Goenka","Self-made","Domestic","India","RPG Group","yes"]
["Ramesh Chandra","Self-made","Domestic","India","Unitech","yes"]
["Randa Williams","Multi-generational","Domestic","United States","Enterprise Products","yes"]
["Randal Kirk","Self-made","Domestic","United States","Intrexon","yes"]
["Randal Nardone","Self-made","Domestic","United States","Fortress Investment Group","yes"]
["Randall Rollins","Multi-generational","Domestic","United States","Orkin","yes"]
["Randolph Apperson Hearst","Multi-generational","Domestic","United States","Hearst corporation","yes"]
["Randolph Lerner","Multi-generational","Domestic","United States","MBNA","yes"]
["Ranjan Pai","Multi-generational","International","India","Manipal Education & Medical Group","yes"]
["Ravi Jaipuria","Multi-generational","International","India","RJ Corp","yes"]
["Ravi Pillai","Self-made","International","India","RP group","yes"]
["Ray Dalio","Self-made","Domestic","United States","Bridgewater Associates","yes"]
["Ray Davis","Self-made","Domestic","United States","ETP,ETE","yes"]
["Ray Dolby","Self-made","International","United States","Dolby Laboratories","yes"]
["Wei Qi","Self-made","Domestic","China","Tianhe Chemicals Group","yes"]
["Ray Lee Hunt","Multi-generational","International","United States","Hunt Oil Co.","yes"]
["Reed Hastings","Self-made","International","United States","Netflix","yes"]
["Reese McIntosh Rowling","Self-made","Domestic","United States","Tana Oil & Gas","yes"]
["Regina de Camargo Pires Oliveira Dias","",null,"Brazil","","no"]
["Regine Leibinger","Multi-generational","Domestic","Germany","Trumpf GmbH","yes"]
["Reid Hoffman","Self-made","Domestic","United States","Greylock Partners","yes"]
["You Xiaoping","Self-made","International","China","Huafeng Group","yes"]
["Zhou Mingjie","Self-made","Domestic","China","Ocean's King Lighting Science & Technology","yes"]
["Reinhard Mohn & Family","Multi-generational","International","Germany","Bretelsmann","yes"]
["Reinhold Schmieding","Self-made","Domestic","United States","Arthrex","yes"]
["Reinhold Würth","Multi-generational","Domestic","Germany","Würth ","yes"]
["Reinold Geiger","",null,"Austria","","no"]
["Reji Abraham","Multi-generational","Domestic","India","Aban Offshore.","yes"]
["Rem Vyakhirev","Self-made","Domestic","Russia","Gazprom","yes"]
["Remo Ruffini","Self-made","International","Italy","Moncler","yes"]
["Ren Jianhua","Self-made","Domestic","China","Hangzhou Robam Appliances","yes"]
["Ren Yuanlin","Self-made","Domestic","China","Yangzijiang Shipbuilding","yes"]
["Ren Zhengfei","Self-made","International","China","Huawei Technologies Co.","yes"]
["Renata de Camargo Nascimento","",null,"Brazil","","no"]
["Renate Reimann-Haas","Multi-generational","International","Germany","Benckiser","yes"]
["Renato Soru","Self-made","Domestic","Italy","Tiscali","yes"]
["Renichi Takenaka","Multi-generational","Domestic","Japan","Takenaka Corporation","yes"]
["Renzo Rosso","Self-made","International","Italy","Diesel","yes"]
["Ricardo Constantino",null,null,"Brazil","","no"]
["Ricardo Martin Bringas",null,null,"Mexico","","no"]
["Ricardo Salinas Pliego & Family","Self-made",null,"Mexico","Grupo Salinas","no"]
["Richard Alexander Manoogian","Multi-generational","Domestic","United States","Masco","yes"]
["Richard Branson","Self-made","Domestic","United Kingdom","Virgin Group (owning 400 companies)","yes"]
["Richard Chandler","",null,"New Zealand","","no"]
["Richard Chang","",null,"Taiwan","","no"]
["Ziyad Manasir","Self-made","Domestic","Russia","Stroygazconsulting","yes"]
["Richard Desmond","Self-made","Domestic","United Kingdom","Northern & Shell","yes"]
["Richard DeVos","Self-made","International","United States","Amway","yes"]
["Richard Egan","Self-made","International","United States","EMC Corporation","yes"]
["Daniel Mate","Self-made","International","Spain","Glencore International","yes"]
["Richard Farmer","Self-made","Domestic","United States","Cintas Corporation","yes"]
["Richard Goldman","Self-made","Domestic","United States","Goldman Insurance and Risk Management","yes"]
["Richard Hayne","Self-made","International","United States","Urban Outfitters","yes"]
["Richard Kinder","Self-made","Domestic","United States","Kinder Morgan Energy Partner","yes"]
["Richard LeFrak & Family","Multi-generational","Domestic","United States","LeFrak","yes"]
["Richard Li","Self-made","International","Hong Kong","PCCW Limited","yes"]
["Richard Marriott","Multi-generational","International","United States","Marriott Hotels & Restorts","yes"]
["Richard Oetker","Multi-generational","International","Germany","Oetker Group","yes"]
["Richard Peery","Self-made","Domestic","United States","Perry and Arrillaga","yes"]
["Richard Pratt",null,null,"Australia","","no"]
["Jean Claude Gandur","Self-made","International","Switzerland","Addax Petroleum","yes"]
["Richard Scaife","Multi-generational","International","United States","The Bank of New York Mellon","yes"]
["Richard Schulze","Self-made","Domestic","United States","Best Buy","yes"]
["Richard Tsai","Multi-generational",null,"Taiwan","Fubon Financial Holdings","no"]
["Richard Yuengling Jr","Multi-generational","Domestic","United States","D.G. Yuengling & Son","yes"]
["Rick Caruso","Self-made","Domestic","United States","Caruso Affiliated","yes"]
["Riley Bechtel","Multi-generational","International","United States","Bechtel Corporation","yes"]
["Rinat Akhmetov","Self-made",null,"Ukraine","","no"]
["Rinji Shino","Self-made","Domestic","Japan","Meiko Group","yes"]
["Rishad Naoroji","Multi-generational","Domestic","India","Godrej Group","yes"]
["Robert & Family Oatley",null,null,"Australia","","no"]
["Robert & Philip Ng","Multi-generational","Domestic","Singapore","Sino Group","yes"]
["Robert Bass","Multi-generational","Domestic","United States","Oak Hill Capital Partners","yes"]
["Robert Bosch Jr & Family","Multi-generational","International","Germany","Robert Bosch GmbH","yes"]
["Robert Citrone","Self-made","Domestic","United States","Discovery Capital management","yes"]
["Robert Coyiuto Jr","",null,"Philippines","","no"]
["Robert Day","Multi-generational","International","United States","Trust Company of the West","yes"]
["Robert Douglas Haas","Multi-generational","International","United States","Levi Strauss & Co","yes"]
["Robert Drayton McLane Jr","Multi-generational","Domestic","United States","McLane Group","yes"]
["Robert Duggan","Self-made","International","United States","Pharmacyclics","yes"]
["Robert Ell","",null,"Australia","","no"]
["Robert Fisher","Multi-generational","International","United States","Gap","yes"]
["Robert Friedland","Self-made","Domestic","United States","Ivanhoe Capital","yes"]
["Robert Galvin","Multi-generational","International","United States","Motorola","yes"]
["Robert Henry Dedman","Self-made","Domestic","United States","ClubCorp","yes"]
["Robert Holding","Self-made","Domestic","United States","Sinclair Oil Corporation","yes"]
["Robert Ingham","",null,"Australia","","no"]
["Robert Johnson","Self-made","Domestic","United States","BET, RLJ Companies","yes"]
["Robert Kauffman","Self-made","Domestic","United Kingdom","Fortress Investment Group","yes"]
["Robert Kraft","Self-made","International","United States","The Kraft Group","yes"]
["Robert Kuok","Self-made",null,"Malaysia","Kuok Group","no"]
["Robert McNair","Self-made","Domestic","United States","Cogen Technologies","yes"]
["Robert Miller","Self-made","International","United Kingdom","DFS, Search Investment Group","yes"]
["Robert Miller","",null,"Canada","DFS/Search Investment Group","no"]
["Robert Mouawad","Multi-generational",null,"Lebanon","","no"]
["Robert Naify","Self-made","Domestic","United States","United Artist","yes"]
["Robert Pera","Self-made","Domestic","United States","Ubiquiti Networks Inc.","yes"]
["Richard Elman","Self-made","International","United Kingdom","Noble Group","yes"]
["Robert Pritzker","Multi-generational","Domestic","United States","Marmon Group","yes"]
["Robert Rich Jr","Multi-generational","International","United States","Rich Products Corporation","yes"]
["Robert Rich Sr","Self-made","International","United States","Rich Products Corporation","yes"]
["Robert Rowling","Multi-generational","International","United States","TRT Holdings","yes"]
["Robert Smith","Self-made","Domestic","United States","Vista Equity Partners","yes"]
["Alex Beard","Self-made","International","United Kingdom","Glencore International","yes"]
["Robert Toennies","Multi-generational","International","Germany","Toennies Lebensmittel","yes"]
["Robert Ziff","Multi-generational","Domestic","United States","Ziff Davis LLC","yes"]
["Roberta Anamaria Civita","",null,"Brazil","","no"]
["Roberto and Gabriel Andrade","Self-made",null,"Brazil","","no"]
["Roberto Angelini Rossi","",null,"Chile","","no"]
["Roberto Civita & Family",null,null,"Brazil","","no"]
["Roberto Gonzalez Barrera & Family","Self-made",null,"Mexico","","no"]
["Roberto Hernandez Ramirez","",null,"Mexico","","no"]
["Roberto Irineu Marinho",null,null,"Brazil","","no"]
["Roberto Marinho","Self-made",null,"Brazil","","no"]
["Roberto Ongpin",null,null,"Philippines","","no"]
["Roberto Rocca","Self-made",null,"Argentina","","no"]
["Robin Li","Self-made","Domestic","China","Baidu","yes"]
["Rochling Family","Multi-generational","International","Germany","Rheinmetall","yes"]
["Rodney Lewis","Self-made","Domestic","United States","Lewis Energy","yes"]
["Rodney Sacks","Self-made","International","United States","Monster Beverage","yes"]
["Roger Milliken","Self-made","International","United States","Milliken & Company","yes"]
["Roger Penske","Self-made","Domestic","United States","Penske Corporation","yes"]
["Roger W. Sant","Self-made","International","United States","AES (Applied Energy Services)","yes"]
["Roger Wang","Self-made","Domestic","United States","Golden Eagle International Group","yes"]
["Roland Arnall","Self-made","Domestic","United States","Ameriques","yes"]
["Rolf Gerling","Multi-generational","International","Germany","Gerling Konzern","yes"]
["Romain Zaleski","Self-made","Domestic","Italy","Carlo Tassara ","yes"]
["Roman Abramovich","Self-made","Domestic","Russia","Evraz","yes"]
["Roman Avdeev","Self-made","Domestic","Russia","Credit Bank of Moscow","yes"]
["Roman Karkosik",null,null,"Poland","","no"]
["Romesh T. Wadhwani","Self-made","Domestic","United States","Symphony Technology Group","yes"]
["Ron & Fred Mannix",null,null,"Canada","","no"]
["Ron Baron","Self-made","Domestic","United States","Baron Capital","yes"]
["Ron Mannix",null,null,"Canada","","no"]
["Marie-Jeanne Meyer","Multi-generational","International","France","Louis Dreyfus Holdings","yes"]
["Ronald Burkle","Self-made","Domestic","United States","The Yucaipa Companies","yes"]
["Ronald Joyce","",null,"Canada","","no"]
["Ronald Lauder","Multi-generational","International","United States","Estée Lauder","yes"]
["Ronald McAulay","Multi-generational","International","Hong Kong","Hongkong & Shanghai Hotels","yes"]
["Ronald Perelman","Self-made","Domestic","United States","MacAndrews & Forbes","yes"]
["Ronald Southern","",null,"Canada","","no"]
["Ronald Wanek","Self-made","International","United States","Ashley Furniture","yes"]
["Ronda Stryker","Multi-generational","Domestic","United States","Stryker Corp.","yes"]
["Rosa Anna Magno Garavoglia & Family","Multi-generational","International","Italy","Campari Group","yes"]
["Rosa Brescia Cafferata","",null,"Peru","","no"]
["Rosa Evangelina Marcondes Penido Dalla Vecchia",null,null,"Brazil","","no"]
["Rosalia Mera","Self-made","International","Spain","Inditex","yes"]
["Rosely Schweizer","Multi-generational","International","Germany","Oetker Group","yes"]
["Rossana Camargo de Arruda Botelho","",null,"Brazil","","no"]
["Rostam Azizi","",null,"Tanzania","","no"]
["Monique Roosmale Nepveu","Multi-generational","International","France","Louis Dreyfus Holdings","yes"]
["Roy Disney","Multi-generational","International","United States","The Walt Disney Company","yes"]
["Ru Jiyong","Self-made","Domestic","China","Der Future Science & Technology Holding Group","yes"]
["Ruan Shuilong","Self-made","Domestic","China","Zhejiang Longsheng Group","yes"]
["Rubens Menin Teixeira de Souza","",null,"Brazil","","no"]
["Rubens Ometto Silveira Mello","",null,"Brazil","","no"]
["Rudolf August Oetker & Family","Multi-generational","International","Germany","Oetker Group","yes"]
["Rudolf Maag","Self-made","International","Switzerland","Stratec Medical / Synthes","yes"]
["Rufino Vigil Gonzalez","",null,"Mexico","","no"]
["Run Run Shaw","Self-made","Domestic","Hong Kong","Television Broadcasts Ltd","yes"]
["Rupert Johnson Jr","Multi-generational","International","United States","Franklin Resources","yes"]
["Russ Weiner","Self-made","International","United States","Rockstar","yes"]
["Claude Dauphin","Self-made","International","France","Trafigura","yes"]
["Ruth Parasol",null,null,"Gibraltar","","no"]
["Ryan Graves","Self-made","International","United States","Uber","yes"]
["Mubariz Gurbanoglu","Self-made","International","Turkey","Palmali Group","yes"]
["Ryoichi Jinnai","Self-made","Domestic","Japan","Promise","yes"]
["Ryusuke Kimura","Self-made","Domestic","Japan","various","yes"]
["S.D. Shibulal","Self-made","International","India","Infosys","yes"]
["S.D. Shibulal & Family","Self-made","International","India","Infosys","yes"]
["Saad Halim","Self-made",null,"Malaysia","","no"]
["Saad Hariri","",null,"Lebanon","","no"]
["Saban Cemil Kazanci","Multi-generational","Domestic","Turkey","Kazanci Holding","yes"]
["Sachin Bansal","Self-made","Domestic","India","Flipkart","yes"]
["Saddam Hussein",null,null,"Iraq","","no"]
["Saif Al Ghurair & Family","",null,"United Arab Emirates","","no"]
["Sait-Salam Gutseriev","Self-made","Domestic","Russia","Safmar group (BIN Group)","yes"]
["Sakip Sabanci & Family","Multi-generational","Domestic","Turkey","Sabanci Holding","yes"]
["Saleh bin Abdul Aziz Al Rajhi",null,null,"Saudi Arabia","","no"]
["Saleh Kamel","Self-made","Domestic","Saudi Arabia","Dallah Albaraka","no"]
["Salman Alhokair","Self-made",null,"Saudi Arabia","","no"]
["Sam Goi","Self-made","International","Singapore","Tee Yih Jia Foods","yes"]
["Sameer Gehlaut","Self-made","Domestic","India","Indiabulls Group","yes"]
["Samih Sawiris","",null,"Egypt","","no"]
["Sammy & Yuli Ofer","Self-made",null,"Israel","","no"]
["Samuel Curtis Johnson","Multi-generational","International","United States","SC Johnson","yes"]
["Samuel Irving Newhouse Jr.","Multi-generational","Domestic","United States","Advanced Publications","yes"]
["Samuel Jayson LeFrak","Multi-generational","Domestic","United States","LeFrak","yes"]
["Samuel Robson Walton","Multi-generational","International","United States","Walmart","yes"]
["Samuel Tak Lee","Multi-generational","International","Hong Kong","Langham Estate","yes"]
["Samuel Truett Cathy","Self-made","Domestic","United States","Chick-fil-A","yes"]
["Samuel Wyly","Self-made","Domestic","United States","University Computing Company","yes"]
["Samuel Yin","",null,"Taiwan","","no"]
["Samuel Zell","Self-made","Domestic","United States","Equity Investment Group","yes"]
["Samvel Karapetyan","Self-made","Domestic","Russia","Tashir Group","yes"]
["Sandra Ortega Mera & Family","Multi-generational","International","Spain","Zara, Inditex","yes"]
["Sandro Veronesi","Self-made","International","Italy","Calzedonia","yes"]
["Sanford Diller","Self-made","Domestic","United States","Prometheus Real Estate Group","yes"]
["Sanford Weill","Self-made","International","United States","Citigroup","yes"]
["Konstantin Grigorishin","Self-made","Domestic","Russia","Energy Standard Group","yes"]
["Sanjiv Goenka","Multi-generational","Domestic","India","RPG Group","yes"]
["Sanjiv Sidhu","Self-made","International","United States","JDA Software Group, Inc","yes"]
["Santosa Handojo",null,null,"Indonesia","","no"]
["Sara Blakely","Self-made","Domestic","United States","Spanx","yes"]
["Sarah Chaney","Multi-generational","International","United States","Cargill","yes"]
["Sarik Tara","Self-made","International","Turkey","Enka Group of Companies","yes"]
["Satish Mehta","Self-made","Domestic","India","Emcure Pharmaceuticals","yes"]
["Liu Ming Hui","Self-made","Domestic","Hong Kong","China Gas Holdings","yes"]
["Saud Abdul Aziz Algosaibi",null,null,"Saudi Arabia","","no"]
["Savitri Jindal & Family","Multi-generational","Domestic","India","Jindal Group","yes"]
["Scott Cook","Self-made","Domestic","United States","Nordstrom","yes"]
["Scott Duncan","Multi-generational","Domestic","United States","Enterprise Products","yes"]
["Scott Farquhar","Self-made",null,"Australia","","no"]
["Scott G. McNealy","Self-made","International","United States","Sun Microsystems","yes"]
["Scott Kriens","Self-made","International","United States","Juniper Networks","yes"]
["Scott Lin","Self-made",null,"Taiwan","","no"]
["Scott Simplot","Multi-generational","International","United States","JR Simplot Company","yes"]
["Sean Parker","Self-made","International","United States","Napster, Facebook","yes"]
["Sean Quinn & Family",null,null,"Ireland","","no"]
["Sebastian Pinera","",null,"Chile","","no"]
["Sefik Yilmaz Dizdar","Self-made","International","Turkey","LC Waikiki","yes"]
["Semahat Sevim Arsel","Multi-generational","Domestic","Turkey","Koc Holding","yes"]
["Senapathy Gopalakrishnan & Family","Self-made","International","India","Infosys","yes"]
["Seng Lee","Self-made","Domestic","Singapore","Oversea-Chinese Banking Corp","yes"]
["Seo Jung-Jin","",null,"South Korea","","no"]
["Serge Dassault & Family","Multi-generational","International","France","Dassault Aviation","yes"]
["Serge Godin","Self-made",null,"Canada","","no"]
["Serge Kampf","Self-made","International","France","Cap Gemini S.A","yes"]
["Sergei Galitsky","Self-made","Domestic","Russia","Magnit","yes"]
["Liu Xuejing & Family","Self-made","Domestic","China","GMK Holdings","yes"]
["Sergei Kislov","Self-made","Domestic","Russia","Yug Rusi","yes"]
["Sergei Petrov","Self-made","Domestic","Russia","Rolf Group of Companies","yes"]
["Sergei Popov","Self-made","Domestic","Russia","MDM Bank","yes"]
["Sergei Pugachev","Self-made","Domestic","Russia","International Industrial Bank","yes"]
["Sergei Sarkisov","Self-made","Domestic","Russia","RESO-Garantiya","yes"]
["Sergei Tsikalyuk","Self-made","Domestic","Russia","VSK Insurance","yes"]
["Sergey Brin","Self-made","International","United States","Google","yes"]
["Sergio Lins Andrade & Family","",null,"Brazil","","no"]
["Sergio Mantegazza","Multi-generational","Domestic","Switzerland","Globus","yes"]
["Serhiy Taruta",null,null,"Ukraine","","no"]
["Serhiy Tihipko","",null,"Ukraine","","no"]
["Nikolai Buinov","Self-made","Domestic","Russia","Irkutsk oil company","yes"]
["Seth Klarman","Self-made","Domestic","United States","Baupost Group","yes"]
["Sevil Sabanci Sabanci","Multi-generational","Domestic","Turkey","Sabanci Holding","yes"]
["Sevket Sabanci","Multi-generational","Domestic","Turkey","Sabancı Holding","yes"]
["Sezai Bacaksiz","Self-made","Domestic","Turkey","Limak Holding","yes"]
["Shahid Balwa","Self-made","Domestic","India","DB Realty, Etisalat DB Telecom","yes"]
["Shahid Khan","Self-made","Domestic","United States","Fley-N-Gate, Jacksonville Jaguars","yes"]
["Shalva Chigirinsky","Self-made","Domestic","Russia","S&T Group","yes"]
["Shao Genhuo","Self-made","Domestic","China","Beijing Dabeinong Technology Group","yes"]
["Shao Zhongyi","Self-made","Domestic","China","Shandong Sunrise Group","yes"]
["Shari Arison","",null,"Israel","","no"]
["Shashi & Ravi Ruia","Self-made","International","India","Essar Group","yes"]
["Shaul Shani","",null,"Israel","","no"]
["Sheikh Jaber Al-ahmed Al-jaber Al-sabah",null,null,"Kuwait","","no"]
["Sheikh Zayed Bin Sultan Al Nahyan",null,null,"United Arab Emirates","","no"]
["Sheldon Adelson","Self-made","Domestic","United States","Las Vegas Sands ","yes"]
["Sheldon Solow","Self-made","Domestic","United States","Solow Realty & Development","yes"]
["Shen Dongri","Self-made","Domestic","China","Lancy","yes"]
["Shen Guojun","Self-made","Domestic","China","Intime Retail","yes"]
["Shen Wenrong","Self-made","Domestic","China","Shagang Group","yes"]
["Nikolai Maximov & Family","Self-made","Domestic","Russia","Maxi-Group","yes"]
["Sheng Baijiao","Self-made","Domestic","China","Belle Holding","yes"]
["Sheryl Sandberg","Self-made","International","United States","Facebook","yes"]
["Shi Yuzhu","Self-made","Domestic","China","Giant Interactive","yes"]
["Shi Zhengrong","Self-made","International","China","Suntech Power","yes"]
["Shigefumi Wada","Self-made","Domestic","Japan","Obic Business Consulting","yes"]
["Shigenobu Nagamori","Self-made","International","Japan","Nidec Corporation","yes"]
["Shigeyoshi Kinoshita","Multi-generational","Domestic","Japan","Acom Co","yes"]
["Shi-hui Huang","Multi-generational",null,"Taiwan","","no"]
["Shin Chang-Jae","",null,"South Korea","","no"]
["Shin Dong-Bin","",null,"South Korea","","no"]
["Shin Dong-Joo","",null,"South Korea","","no"]
["Shin Kyuk-ho & Family","Self-made",null,"South Korea","","no"]
["Ray Irani","Self-made","International","United States","Oxy (Occidental Petroleum)","yes"]
["Shiv Nadar","Self-made","International","India","HCL Technologies","yes"]
["Shlomo Eliahu","",null,"Israel","","no"]
["Shoichiro Toyoda","Multi-generational","International","Japan","Toyota Motors","yes"]
["Shoji Uehara","Self-made","Domestic","Japan","Taisho Pharmaceuticals","yes"]
["Shosuke Idemitsu","Multi-generational","International","Japan","Idemitsu Kossan","yes"]
["Shoul Eisenberg","Self-made",null,"Israel","","no"]
["Shuai Fangwen","Self-made","Domestic","China","Hunan Er-kang Pharmaceutical","yes"]
["Sid Bass","Multi-generational","Domestic","United States","Bass Operating","yes"]
["Sanjay Singal","Multi-generational","Domestic","India","Bhushan Power & Steel","yes"]
["Sidney Frank","Self-made","Domestic","United States","Sidney Frank Importing Co","yes"]
["Sidney Kimmel","Self-made","Domestic","United States","Nine West Holdings (Jones group Apparel)","yes"]
["Siegfried Meister","Self-made","International","Germany","Rational AG","yes"]
["Silas Chou","Multi-generational","Domestic","Hong Kong","Novel Enterprises Limited","yes"]
["Silvio Berlusconi & Family","Self-made","Domestic","Italy","Fininvest","yes"]
["Silvio Santos",null,null,"Brazil","","no"]
["Silvio Scaglia","Self-made","Domestic","Italy","Fastweb S.p.A","yes"]
["Sim Daniel Abraham","Self-made","International","United States","Slim Fast","yes"]
["Simon Halabi","Multi-generational","Domestic","United Kingdom","Various (real estate)","yes"]
["Simon Xie","Self-made","Domestic","China","Alibaba","yes"]
["Simonpietro Salini","Multi-generational","International","Italy","Salini Impregilo","yes"]
["Sioe Liong Liem","Multi-generational",null,"Indonesia","","no"]
["Sir Anthony and Family Bamford","Multi-generational","International","United Kingdom","J.C. Bamford Excavators Limited","yes"]
["Sit Kwong Lam","Self-made","International","Hong Kong","Brightoil Petroleum Holdings","yes"]
["Sjamsul Nursalim","Self-made",null,"Indonesia","","no"]
["Smita Crishna-Godrej","Multi-generational","Domestic","India","Godrej Group","yes"]
["Socrates Kokkalis",null,null,"Greece","","no"]
["Soegiarto Adikoesoemo",null,null,"Indonesia","","no"]
["Soichiro Fukutake","Multi-generational","Domestic","Japan","Benesse Holdings","yes"]
["Solomon Lew","",null,"Australia","","no"]
["Somphote Ahunai","Self-made",null,"Thailand","","no"]
["Song Zuowen","Self-made","Domestic","China","Nanshan Group","yes"]
["Spiro Latsis & Family","",null,"Greece","","no"]
["Sri Prakash Lohia","",null,"Indonesia","","no"]
["Srichand, Gopichand Hinduja","Multi-generational","International","India","Hinduja group","yes"]
["Stanley Druckenmiller","Self-made","Domestic","United States","Duquesne Capital Management","yes"]
["Stanley Ho","Self-made","Domestic","Hong Kong","STDM (Sociedade de Jogos de Macau)","yes"]
["Stanley Perron","",null,"Australia","","no"]
["Stanley Stub Hubbard","Multi-generational","Domestic","United States","DirecTV","yes"]
["Stef Wertheimer & Family","Self-made","International","France","ISCAR Metalworking","yes"]
["Stefan Olsson","",null,"Sweden","","no"]
["Stefan Persson","Multi-generational",null,"Sweden","","no"]
["Stefan Quandt","Multi-generational","International","Germany","BMW","yes"]
["Stefan Reimann-Andersen","Multi-generational","International","Germany","Benckiser","yes"]
["Stefan Schörghuber","Multi-generational","Domestic","Germany","Schörghuber Unternehmensgruppe","yes"]
["Stefan von Holtzbrinck","Multi-generational","International","Germany","Verlagsgruppe Holzbrink","yes"]
["Stefano Gabbana","Self-made","International","Italy","Dolce & Gabbana","yes"]
["Stefano Pessina","Self-made","International","Italy","Alliance UniChem Group","yes"]
["Stein Erik Hagen",null,null,"Norway","","no"]
["Stein Erik Hagen & Family","",null,"Norway","","no"]
["Stelios Haji-Ioannou","",null,"Cyprus","","no"]
["Steno Marcegaglia & Family","Self-made","Domestic","Italy","Marcegaglia Spa","yes"]
["Stephan Schmidheiny","Multi-generational","Domestic","Switzerland","Swiss Eternit Group","yes"]
["Stephen Bechtel Jr","Multi-generational","International","United States","Bechtel Corporation","yes"]
["Stephen Bisciotti","Self-made","International","United States","Aerotek","yes"]
["Stephen Feinberg","Self-made","International","United States","Cerberus Capital Management","yes"]
["Stephen Jarislowsky","",null,"Canada","","no"]
["Stephen Lansdown","",null,"Guernsey","","no"]
["Stephen M. Ross","Self-made","Domestic","United States","The Related Companies","yes"]
["Stephen Mandel Jr","Self-made","Domestic","United States","Lone Pine Capital","yes"]
["Stephen Rubin","Multi-generational","Domestic","United Kingdom","Pentland group","yes"]
["Stephen Saad","",null,"South Africa","","no"]
["Stephen Schwarzman","Self-made","International","United States","Blackstone Group","yes"]
["Steve Ballmer","Self-made","International","United States","Mircosoft","yes"]
["Steve Case","Self-made","Domestic","United States","AOL","yes"]
["Steve Wynn","Self-made","Domestic","United States","Wynn Resorts","yes"]
["Steven A. Cohen","Self-made","Domestic","United States","SAC Capital Advisory","yes"]
["Steven Jobs","Self-made","International","United States","Apple","yes"]
["Steven Rales","Self-made","Domestic","United States","Danahar Corporation","yes"]
["Tor Peterson","Self-made","International","United States","Glencore","yes"]
["Steven Schonfeld","Self-made","Domestic","United States","Schonfeld Group","yes"]
["Steven Spielberg","Self-made","International","United States","Dreamworks Animation","yes"]
["Steven Udvar-Hazy","Self-made","International","United States","International Lease corp.","yes"]
["Stewart & Lynda Resnick","Self-made","Domestic","United States","Roll Global","yes"]
["Stewart Horejsi","Self-made","Domestic","United States","Berkshire Hathaway","yes"]
["Stewart Rahr","Multi-generational","Domestic","United States","Kinray","yes"]
["Su Weizhong","Self-made","Domestic","China","CEFC Anhui International Holding","yes"]
["Suat Gunsel","",null,"Cyprus","","no"]
["Subhash Chandra","Self-made","Domestic","India","Essel Group","yes"]
["Ingeburg Herz","Multi-generational","International","Germany","Maxingvest","yes"]
["Sudhir & Samir Mehta","Multi-generational","Domestic","India","Torrent Group","yes"]
["Sudhir Ruparelia","",null,"Uganda","","no"]
["Sudthida Ratanarak","Multi-generational",null,"Thailand","","no"]
["Suh Kyung-Bae","",null,"South Korea","","no"]
["Suhon Lin","",null,"Taiwan","","no"]
["Suhurto",null,null,"Indonesia","","no"]
["Sukanto Tanoto","",null,"Indonesia","","no"]
["Sulaiman Al Rajhi & Family","Self-made",null,"Saudi Arabia","","no"]
["Sulaiman Algosaibi",null,null,"Saudi Arabia","","no"]
["Suleiman Kerimov","Self-made","Domestic","Russia","Nafta Moskva","yes"]
["Suliman Olayan","Self-made",null,"Saudi Arabia","","no"]
["Sultan Hassanal Bolkiah",null,null,"Brunei","","no"]
["Sumet Jiaravanon",null,null,"Thailand","","no"]
["Summerfield Johnston Jr","Multi-generational","International","United States","Johnston Coca-Cola","yes"]
["Sumner Redstone","Self-made","Domestic","United States","National Amusements","yes"]
["Elisabeth Badinter & Family","Multi-generational","International","France","Publicis Groupe","yes"]
["Sun Guangxin","Self-made","Domestic","China","Xinjiang Guanghui Industry Investment Group","yes"]
["Sun Hongbin","Self-made","Domestic","United States","Sunac China Holdings","yes"]
["Sun Piaoyang","Self-made","International","China","Sun Piaoyang","yes"]
["Sun Qinghuan","Self-made","Domestic","China","MLS Co.","yes"]
["Joesoph Dahr Jamail Jr","Self-made","Domestic","United States","Joseph D. Jamail Centennial Chair in Law and Advocacy","yes"]
["Sun Shoukuan","Self-made","Domestic","China","Jiachen Group","yes"]
["Jonathan Oringer","Self-made","International","United States","Shutterstock","yes"]
["Sun Xishuang","Self-made","Domestic","China","Dalian Yifang Group","yes"]
["Suna Kirac","Multi-generational","Domestic","Turkey","Koc Holding","yes"]
["Sunil Mittal & Family","Self-made","International","India","Bharti Enterprises","yes"]
["Sunil Vaswani","Multi-generational","International","United Kingdom","Stallion Group","yes"]
["Sunny Varkey","Multi-generational","International","India","GEMS Education","yes"]
["Surang Prempree","Multi-generational",null,"Thailand","","no"]
["Surendra Hiranandani","Self-made","Domestic","India","House of Hiranandani","yes"]
["Surin Upatkoon","",null,"Thailand","","no"]
["Susan Alfond","Multi-generational","Domestic","United States","Dexter Shoe Company","yes"]
["Mustafa Vehbi Koc","Multi-generational","Domestic","Turkey","Koc Holding","yes"]
["Susan Thompson Buffett","Multi-generational","Domestic","United States","Berkshire Hathaway","yes"]
["Susanne Klatten","Multi-generational","International","Germany","BMW","yes"]
["Susanne Veltins","Multi-generational","Domestic","Germany","C. & A. Veltins","yes"]
["Susanne Zimmermann von Siefart ","Multi-generational","International","Germany","Alfred Kärcher GmbH","yes"]
["Rajan Raheja","Multi-generational","Domestic","India","Rajan Raheja Group","yes"]
["Swift Xie","Self-made","International","China","SZ Dajiang Innovation Technology (DJI)","yes"]
["Sybill Storz","Multi-generational","Domestic","Germany","Storz Endoskop","yes"]
["Sydell Miller","Self-made","Domestic","United States","Matrix Essentials","yes"]
["Syed Mokhtar AlBukhary","",null,"Malaysia","","no"]
["Sylvia Ströher","Multi-generational","International","Germany","Wella","yes"]
["Sze Man Bok","Self-made","Domestic","China","Hengan International","yes"]
["T Denny Sanford","Self-made","International","United States","First PREMIER Bank","yes"]
["T. Boone Pickens","Self-made","Domestic","United States","Mesa Petroleum","yes"]
["T.S. Kalyanaraman","Self-made","International","India","Kalyan Group","yes"]
["T.Y. Tsai","",null,"Taiwan","","no"]
["Tadahiro Yoshida","Multi-generational","International","Japan","YKK","yes"]
["Tadashi Yanai & Family","Self-made","International","Japan","Fast Retailing","yes"]
["Taha Mikati","",null,"Lebanon","","no"]
["Tahir","",null,"Indonesia","","no"]
["Taizo Son","Self-made","International","Japan","GungHo Online Entertainment","yes"]
["Tajudin Ramli","Self-made",null,"Malaysia","","no"]
["Takao Katayama","Self-made","International","Japan","Union Tool Co","yes"]
["Takao Yasuda","Self-made","Domestic","Japan","Don Quijote","yes"]
["Takemitsu Takizaki","Self-made","International","Japan","Keyence","yes"]
["Tamara Gustavson & Family","Multi-generational","Domestic","United States","Public Storage","yes"]
["Tamir Sapir","Self-made","Domestic","United States","Joy Lot","yes"]
["Tang Hsiang-chien","Self-made","International","Hong Kong","Meadville Technologies Group Limited","yes"]
["Tang Xiuguo","Self-made","International","China","Sany Heavy Industry Co","yes"]
["Tang Yiu","Self-made","Domestic","Hong Kong","Belle International","yes"]
["Tatiana Casiraghi","Multi-generational","Domestic","United States","Bavaria","yes"]
["Teck Puat Khoo","Self-made","International","Singapore","Goodwood Group","yes"]
["Ted Alfond","Multi-generational","Domestic","United States","Dexter Shoe Company","yes"]
["Ted Arison","Self-made",null,"Israel","","no"]
["Ted Forstmann","Self-made","Domestic","United States","Forstmann Little & Company","yes"]
["Ted Lerner","Self-made","Domestic","United States","Lerner Enterprises","yes"]
["Ted Schwartz","Self-made","Domestic","United States","APAC Teleservices","yes"]
["Ted Turner","Multi-generational","Domestic","United States","CNN","yes"]
["Teddy Sagi","",null,"Israel","","no"]
["Teh Hong Piow","Self-made","Domestic","Malaysia","Public Bank","no"]
["Terence (Terry) Matthews","Self-made","International","United Kingdom","Newbridge Networks","yes"]
["Teresa Matilde Solari Falabella & Family",null,null,"Chile","","no"]
["Terrence Pegula","Self-made","Domestic","United States","East Resources","yes"]
["Terry Gou","Self-made",null,"Taiwan","","no"]
["Tetsuro Funai","Self-made","International","Japan","Funai Electric","yes"]
["Thaksin Shinawatra & Family","Self-made",null,"Thailand","","no"]
["Tham Liselott",null,null,"Sweden","","no"]
["Theo & Karl Albrecht","Self-made","International","Germany","Aldi Nord, Trader Joe's","yes"]
["Theo Albrecht Jr & Family","Multi-generational","International","Germany","Aldi Nord, Trader Joe's","yes"]
["Theo Mueller","Multi-generational","International","Germany","Müller","yes"]
["Theodore Rachmat","",null,"Indonesia","","no"]
["Theodore Waitt","Self-made","International","United States","Gateway Inc.","yes"]
["Richard Rainwater","Self-made","Domestic","United States","Various (investment management, real estate)","yes"]
["Thomas & Raymond Kwok & Family","Multi-generational","Domestic","Hong Kong","Sun Hung Kai","yes"]
["Thomas Bailey","Self-made","International","United States","Janus","yes"]
["Thomas Barrack","Self-made","International","United States","Colony Capital","yes"]
["Thomas Bruch","Multi-generational","Domestic","Germany","Globus","yes"]
["Thomas Flatley","Self-made","Domestic","United States","Royal Crest Estates Apartment","yes"]
["Thomas Friedkin","Self-made","Domestic","United States","Gulf States Toyota Distributors","yes"]
["Thomas Frist Jr & Family","Self-made","International","United States","HCA","yes"]
["Thomas Haffa","self-made","Domestic","Germany","Constantin Medien AG","yes"]
["Thomas Hicks","Self-made","Domestic","United States","Atlas Architectural Metals","yes"]
["Thomas Hunter",null,null,"Scotland","","no"]
["Thomas Kaplan","Self-made","Domestic","United States","The Electrum Group","yes"]
["Thomas Lau","Multi-generational","Domestic","Hong Kong","Chinese Estates","yes"]
["Thomas Lee","Self-made","Domestic","United States","Lee Equity Partners","yes"]
["Thomas Meyer","Self-made","Domestic","Switzerland","Desigual","yes"]
["Thomas Peterffy","Self-made","International","United States","Interactive Brokers","yes"]
["Thomas Pritzker","Multi-generational","International","United States","Hyatt Hotels","yes"]
["Thomas Sandell","",null,"Sweden","","no"]
["Thomas Schmidheiny","Multi-generational","International","Switzerland","Holcim","yes"]
["Thomas Secunda","Self-made","International","United States","Bloomberg","yes"]
["Thomas Siebel","Self-made","International","United States","Siebel Systems","yes"]
["Thomas Steyer","Self-made","International","United States","Farallon Capital","yes"]
["Thomas Straumann","Multi-generational","International","Switzerland","Straumann Holding","yes"]
["Thomas Struengmann","Self-made","Domestic","Germany","Hexal","yes"]
["Thomas Tull","Self-made","International","United States","Legendary Entertainment","yes"]
["Thomas Wu","Multi-generational",null,"Taiwan","","no"]
["Thongma Vijitpongpun","",null,"Thailand","","no"]
["Thor Bjorgolfsson","Self-made",null,"Iceland","","no"]
["Tian Ming","Self-made","Domestic","China","Hefei Meiya Optoelectronic Technology","yes"]
["Tilman Fertitta","Self-made","Domestic","United States","Landry's","yes"]
["Timothy Blixseth","Self-made","Domestic","United States","Yellowstone Club","yes"]
["Timothy Boyle","Multi-generational","Domestic","United States","Columbia Sportswear","yes"]
["Timothy Headington","Self-made","Domestic","United States","Headington Oil","yes"]
["Timur Kulibaev","",null,"Kazakhstan","","no"]
["Tiong Hiew King","Self-made",null,"Malaysia","","no"]
["Tiong Lay Yeoh","Self-made",null,"Malaysia","","no"]
["Todd Wagner","Self-made","International","United States","Broadcast.com","yes"]
["Toichi Takenaka","Multi-generational","Domestic","Japan","Takenaka Corp","yes"]
["Tom & Judy Love","Self-made","Domestic","United States","Love's Travel Shops & Country Stores","yes"]
["Tom Benson","Self-made","Domestic","United States","Tom Benson Chevrolet","yes"]
["Tom Golisano","Self-made","Domestic","United States","Paychex","yes"]
["Tom Gores","Self-made","International","United States","Platinum Equity","yes"]
["Tom Morris","Self-made","Domestic","United Kingdom","TJ Morris","yes"]
["Tom Persson","Multi-generational",null,"Sweden","H&M","no"]
["Tom Ward","Self-made","Domestic","United States","SandRidge Energy","yes"]
["Tong Jinquan","Self-made","Domestic","China","Summit Property Development","yes"]
["Tony Chen","Self-made",null,"Taiwan","","no"]
["Tony Tan Caktiong & Family","",null,"Philippines","","no"]
["Serra Sabanci","Multi-generational","Domestic","Turkey","Sabancı Holding","yes"]
["Torbjorn Tornqvist","",null,"Sweden","","no"]
["Torsten Toeller","Self-made","International","Germany","Fressnapf","yes"]
["Suzan Sabanci Dincer","Multi-generational","Domestic","Turkey","Sabancı Holding","yes"]
["Tracy Krohn","Self-made","Domestic","United States","W&T Offshore","yes"]
["Traudl Engelhorn","Multi-generational","International","Germany","Corange Ltd.; BASF","yes"]
["Travis Kalanick","Self-made","International","United States","Uber Technologies Inc.","yes"]
["Trevor Rees-Jones","Self-made","Domestic","United States","Chief Oil and Gas","yes"]
["Trond Mohn","Multi-generational",null,"Norway","","no"]
["Tsai Cheng-da","",null,"Taiwan","","no"]
["Tsai Eng-Meng","",null,"Taiwan","","no"]
["Tsai Hong-tu","",null,"Taiwan","","no"]
["Tsai Ming-Kai","",null,"Taiwan","","no"]
["Tsai Wan Lin & Family","Self-made",null,"Taiwan","","no"]
["Tsai Wan-Tsai & Family","",null,"Taiwan","","no"]
["Tse Ping","Self-made","Domestic","China","Sino Biopharmaceutical","yes"]
["Tseng Shin-Yi","",null,"Taiwan","","no"]
["Zhang Hongwei","Self-made","International","China","United Energy Group Ltd","yes"]
["Tulsi Tanti","Self-made","International","India","Suzlon Energy","yes"]
["Tuncay Ozilhan","Multi-generational","International","Turkey","Efes Beverage Group","yes"]
["Tung Chee Hwa","Multi-generational","International","Hong Kong","Orient Overseas","yes"]
["Turgay Ciner","Self-made","Domestic","Turkey","Ciner Holding","yes"]
["Ty Warner","Self-made","International","United States","Ty Inc.","yes"]
["Uday Kotak","Self-made","International","India","Kotak Mahindra Bank","yes"]
["Udo & Harald Tschira","Multi-generational","International","Germany","SAP (inherited)","yes"]
["Uehara Shoji","Self-made","Domestic","Japan","Taisho Pharmaceuticals","yes"]
["Umberto Agnelli & Family","Multi-generational","International","Italy","Fiat","yes"]
["Ural Rakhimov","Self-made","Domestic","Russia","Bashkiria Capital","yes"]
["Urs Wietlisbach","Self-made","International","Switzerland","Partners Group","yes"]
["Ursula Engelhorn","Multi-generational","International","Germany","Corange Ltd.; BASF","yes"]
["V. Prem Watsa","Self-made",null,"Canada","","no"]
["Zhu Yicai","Self-made","Domestic","China","Yurun Food","yes"]
["Vadim Moshkovich","Self-made","Domestic","Russia","Rusagro","yes"]
["Vadim Novinsky","",null,"Ukraine","","no"]
["Vadim Yakunin","Self-made","Domestic","Russia","Protek PAO","yes"]
["Vagit Alekperov","Self-made","International","Russia","Lukoil","yes"]
["Valentin Bukhtoyarov","Self-made","Domestic","Russia","Sibuglemet","yes"]
["Valentin Gapontsev","Self-made","International","Russia","IPG Photonics","yes"]
["Valentin Gapontsev & Family","Self-made","International","Russia","IPG Photonics","yes"]
["Valery Kogan","Self-made","Domestic","Russia","Domodedovo Airport","yes"]
["Vanich Chaiyawan","",null,"Thailand","","no"]
["Vasily Anisimov","Self-made","International","Russia","Metalloinvest","yes"]
["Vasily Shakhnovsky","Self-made","Domestic","Russia","Menatep group","yes"]
["Adolf Alfred Taubman","Self-made","International","United States","Traubman Centers","yes"]
["Vichai Srivaddhanaprabha","",null,"Thailand","","no"]
["Victor Civita Neto","",null,"Brazil","","no"]
["Victor Fung","Multi-generational","International","United States","Li & Fung Group","yes"]
["Victor Gradin & Family",null,null,"Brazil","","no"]
["Victor Pinchuk","",null,"Ukraine","","no"]
["Vijay Mallya","Multi-generational","International","India","Diageo, United Breweries","yes"]
["Charles Cadogan & Family","Multi-generational","Domestic","United Kingdom","Cadogan Estates","yes"]
["Vikram Lal","Self-made","Domestic","India","Eicher Motors","yes"]
["Viktor Chernomyrdin","Self-made","Domestic","Russia","Gazprom","yes"]
["Viktor Kharitonin","Self-made","Domestic","Russia","Pharmstandard","yes"]
["Viktor Nusenkis","Self-made","Domestic","Russia","Energo Concern","yes"]
["Viktor Rashnikov","Self-made","Domestic","Russia","Magnitogorsk Iron & Steel Works","yes"]
["Viktor Vekselberg","Self-made","International","Russia","Renova Group","yes"]
["Vinay and Family Rai","Self-made","Domestic","India","Usha group","yes"]
["Vincent Bollore","Multi-generational","International","France","Bolloré Group","yes"]
["Vincent C. Smith","Self-made","Domestic","United States","Toba Capital","yes"]
["Vincent Lo","Multi-generational","Domestic","Hong Kong","Shui on Group","yes"]
["Vincent Tan","",null,"Malaysia","","no"]
["Vincent Viola","Self-made","International","United States","Virtu Financial","yes"]
["Vinod Goenka","Multi-generational","Domestic","India","DB Realty","yes"]
["Vinod Gupta","Multi-generational","International","India","Havells India","yes"]
["Vinod Khosla","Self-made","Domestic","United States","Khosla Ventures","yes"]
["Virendra Mhaiskar","Multi-generational","Domestic","India","IRB Infrastructure","yes"]
["Vitaliy Hayduk",null,null,"Ukraine","","no"]
["Vito Rodriguez Rodriguez","",null,"Peru","","no"]
["Vivek Chaand Sehgal","",null,"Australia","","no"]
["Vivek Chand Burman","Multi-generational","Domestic","India","Dabur","yes"]
["Vivian Wu","Multi-generational","Domestic","China","Yulon Motor","yes"]
["Vivien Chen","Multi-generational","Domestic","Hong Kong","Nan Fung Group","yes"]
["Vladimir Bogdanov","Self-made","Domestic","Russia","Surgutneftegas","yes"]
["Vladimir Dubov","Self-made","Domestic","Russia","Menatep group","yes"]
["Vladimir Gridin & Family","Self-made","Domestic","Russia","LLC Stroygazmontazh","yes"]
["Christos Lazari","Self-made","Domestic","United Kingdom","Lazari Investments","yes"]
["Vladimir Iorich","Self-made","Domestic","Germany","Mechel AOA","yes"]
["Vladimir Kim","",null,"Kazakhstan","","no"]
["Vladimir Lisin","Self-made","Domestic","Russia","Novolipetsk","yes"]
["Vladimir Melnichenko","Self-made","Domestic","Russia","Sibuglemet","yes"]
["Vladimir Potanin","Self-made","International","Russia","Interros","yes"]
["Vladimir Scherbakov","Self-made","Domestic","Russia","Avtotor Holding","yes"]
["Vladimir Yevtushenkov","Self-made","Domestic","Russia","AFK Sistema","yes"]
["Vyacheslav Kantor","Self-made","International","Russia","Acron group","yes"]
["Vyacheslav Sheremet","Self-made","Domestic","Russia","Gazprom","yes"]
["W. Barron Hilton","Multi-generational","International","United States","Hilton Hotels","yes"]
["W. Herbert Hunt","Multi-generational","International","United States","Petro-Hunt","yes"]
["Wallace McCain",null,null,"Canada","","no"]
["Walter Droege","Self-made","International","Germany","Droege International Group","yes"]
["Walter Faria","",null,"Brazil","","no"]
["Walter Frey","Multi-generational","Domestic","Switzerland","Emil Frey Group","yes"]
["Walter H Annenberg","Self-made","Domestic","United States","Philadelphia Inquirer, Daily Racing Form","yes"]
["Walter Haefner","Multi-generational","International","Switzerland","CA Technologies","yes"]
["Walter Kwok","Multi-generational","Domestic","Hong Kong","Sun Hung Kai","yes"]
["Walter Scott Jr","Self-made","Domestic","United States","MidAmerican Energy","yes"]
["Walter Shorenstein & Family","Self-made","Domestic","United States","Shorenstein Company","yes"]
["Walter, Thomas & Raymond Kwok","Multi-generational","Domestic","Hong Kong","Sun Hung Kai Properties","yes"]
["Walther Moreira Salles Junior","",null,"Brazil","","no"]
["Wan Lianbu","Self-made","Domestic","China","Shandong Kingenta Ecological Engineering","yes"]
["Wang Changtian","Self-made","Domestic","China","Beijing Enlight Media Co., Ltd.","yes"]
["Wang Chaobin","Self-made","Domestic","China","Zhonglu Group","yes"]
["Wang Chuanfu","Self-made","International","China","BYD Company","yes"]
["Chen Jinsong","Self-made","Domestic","Hong Kong","Shenzhen Worldunion","yes"]
["Wang Han","Multi-generational","Domestic","China","Juneyao Air","yes"]
["Wang Jianfeng","Self-made","International","China","Ningbo Joyson Electronic Corp","yes"]
["Wang Jianlin","Self-made","International","China","Wanda Group","yes"]
["Wang Jianyi","Self-made","Domestic","China","Futong Group","yes"]
["Wang Jing","Self-made","Domestic","China","Xinwei Telecom Enterprise Group","yes"]
["Wang Jinshu","Self-made","Domestic","China","Shandong Yuhuang Chemical Group","yes"]
["Wang Jiufang","Self-made","Domestic","China","Rongan Property","yes"]
["Wang Junhao","Self-made","Domestic","China","Three Circle Group","yes"]
["Wang Junjin","Self-made","Domestic","China","Juneyao Group","yes"]
["Wang Junmin","Self-made","Domestic","China","Haisco Pharmaceutical Group","yes"]
["Wang Kunxiao","Self-made","International","China","Yantai Jereh Oilfield Service Group","yes"]
["Wang Laichun","Self-made","International","China","Luxshare Precision Industry","yes"]
["Wang Laisheng","Self-made","International","China","Luxshare Precision Industry","yes"]
["Wang Muqing & Family","Self-made","Domestic","China","China ZhengTong Auto Services","yes"]
["Gordon Wu","Self-made","Domestic","Hong Kong","Hopewell Holdings Ltd","yes"]
["Wang Qingtao","Self-made","Domestic","China","Shandong Coking Group","yes"]
["Wang Wei","Self-made","International","China","S.F. Express","yes"]
["Wang Wenjing","Self-made","International","China","Yonyou Software","yes"]
["Wang Wenliang","Self-made","Domestic","China","China Rilin Construction Group","yes"]
["Wang Wenxue","Self-made","Domestic","China","China Fortune Land","yes"]
["Wang Wenyin","Self-made","Domestic","China","Amer International Group","yes"]
["Guo Wengui","Self-made","Domestic","China","Beijing Zenith Holdings Co","yes"]
["Wang Xing","Self-made","Domestic","China","Meituan","yes"]
["Wang Xingchun",null,null,"Belgium","","no"]
["Wang Yiting","Self-made","Domestic","China","Taixi Coal Group","yes"]
["Huang Wen Tsai","Self-made","Domestic","China","Star River Group","yes"]
["Lou Zhongfu","Self-made","International","China","Guangsha Holding Group","yes"]
["Wang Yue","Self-made","Domestic","China","Kingnet Technology","yes"]
["Wang Yung-Tsai","",null,"Taiwan","","no"]
["Wang Yusuo & Family","Self-made","Domestic","China","ENN Energy Holdings Limited","yes"]
["Wang Zhenghua","Self-made","International","China","Spring Airlines","yes"]
["Ou Zonghong","Self-made","Domestic","China","Rongxin (Fujian) Investment Group Co.,","yes"]
["Warren Buffett","Self-made","Domestic","United States","Berkshire Hathaway","yes"]
["Warren Stephens","Multi-generational","International","United States","Stephens Inc.","yes"]
["Wee Cho Yaw","Multi-generational","Domestic","Singapore","United Chinese Bank","yes"]
["Wei Ing-Chou","",null,"Taiwan","","no"]
["Wei Jianjun & Family","Self-made","Domestic","China","Great Wall Motors","yes"]
["Steven Roth","Self-made","Domestic","United States","Vornado Realty","yes"]
["Wei Shaojun","Self-made","Domestic","China","Longjitaihe","yes"]
["Wei Wenyuan","Self-made","Domestic","China","Sinovel Wind Group","yes"]
["Wei Yin-Chun","",null,"Taiwan","","no"]
["Wei Ying-Chiao","",null,"Taiwan","","no"]
["Wei Yin-Heng","",null,"Taiwan","","no"]
["Wen Jianping","Self-made","Domestic","China","Beijing Originwater Technology","yes"]
["Wen Long Shi & Family",null,null,"Taiwan","","no"]
["Wen Yibo & Family","Self-made","Domestic","China","Tus-Sound Environmental Resources Co Ltd ","yes"]
["Werner Voigt","",null,"Brazil","","no"]
["Wesley Edens","Self-made","Domestic","United States","Fortress Investment Group","yes"]
["Whitney MacMillan","Multi-generational","International","United States","Cargill Inc.","yes"]
["Wichai Thongtang","Self-made",null,"Thailand","","no"]
["Wichai Thongthan",null,null,"Thailand","","no"]
["Wilbur Ross Jr","Self-made","Domestic","United States","WL Ross & Co","yes"]
["Willi & Isolde Liebherr & Family","Multi-generational","Domestic","Switzerland","Liebherr","yes"]
["William Ackman","Self-made","Domestic","United States","Pershing Square ","yes"]
["William Berkley","Self-made","Domestic","United States","W.R. Berkley Corp.","yes"]
["William Boyd","Self-made","Domestic","United States","Boyd Gaming","yes"]
["William Connor","Multi-generational","International","United States","William E. Connor & Associates","yes"]
["William Conway Jr","Self-made","Domestic","United States","Carlyle Group","yes"]
["William Cook","Self-made","International","United States","Cook Group","yes"]
["William Davidson","Self-made","International","United States","Guardian Industries","yes"]
["William Ding","Self-made","Domestic","China","NetEase","yes"]
["William Erbey","Self-made","Domestic","United States","Ocwen Financial Corporation","yes"]
["William F. Austin","Self-made","International","United States","Starkey Hearing Technologies","yes"]
["William Fisher","Multi-generational","International","United States","Gap","yes"]
["William Ford Sr","Multi-generational","International","United States","Ford","yes"]
["William France Jr","Multi-generational","Domestic","United States","NASCAR","yes"]
["William Fung","Multi-generational","International","Hong Kong","Li & Fung Group","yes"]
["William Hearst III","Multi-generational","Domestic","United States","Hearst Corporation","yes"]
["William Heinecke","Self-made",null,"Thailand","","no"]
["William Kellogg","Self-made","Domestic","United States","Kohl's","yes"]
["William Koch","Multi-generational","International","United States","Koch industries","yes"]
["William Lauder","Multi-generational","International","United States","Estee Lauder","yes"]
["William Macaulay","Self-made","International","United States","First Reverse","yes"]
["William MacMillan","Multi-generational","International","United States","Cargill Inc.","yes"]
["William Moncrief Jr","Multi-generational","International","United States","Moncrief Oil","yes"]
["William Morean","Self-made",null,"United States","Jabil Circuit","no"]
["William Pulte","Self-made","Domestic","United States","Pulte Homes","yes"]
["William Redington Hewlett","Self-made","International","United States"," Hewlett-Packard Company (HP)","yes"]
["William S. Levine","Multi-generational","Domestic","United States","Outdoor Systems","yes"]
["William Stone","Self-made","International","United States","SS&C Technologies","yes"]
["William Wrigley Jr","Multi-generational","Domestic","United States","Wm. Wrigley Jr. Company","yes"]
["William Young","Self-made","International","United States","Plastipak","yes"]
["Willibert Krueger","Multi-generational","International","Germany","Krüger GmbH & Co. KG","yes"]
["Willy Michel","Self-made","Domestic","Switzerland","Disetronic, Ypsomed, Armin Strom","yes"]
["Wilma Tisch","Multi-generational","Domestic","United States","Loews Corp.","yes"]
["Wim Van Der Leegte","Multi-generational",null,"Netherlands","","no"]
["Winnie Johnson-Marquart","Multi-generational","International","United States","SC Johnson","yes"]
["Winthrop Paul Rockefeller","Multi-generational","Domestic","United States","Rockefeller Brothers Fund","yes"]
["Wolfgang Herz","Multi-generational","International","Germany","Maxingvest","yes"]
["Wolfgang Leitner","",null,"Austria","","no"]
["Wolfgang Marguerre","Self-made","International","Germany","Octapharma","yes"]
["Wolfgang Reimann","Multi-generational","International","Germany","Benckiser","yes"]
["Wong Kwong Yu & Family","Self-made","Domestic","China","Gome Electrical Appliances Holding","yes"]
["Wong Luen Hei","Self-made","Domestic","China","China Liansu Group","yes"]
["Wong Man Li","Self-made","Domestic","Hong Kong","Man Wah Holdings","yes"]
["Woo-choong And Family Kim",null,null,"Korea","","no"]
["Woods Staton",null,null,"Colombia","","no"]
["Wu Chung-Yi","",null,"Taiwan","","no"]
["Wu Gang","Self-made","Domestic","China","Beijing Tongchuang Jiuding Investment Management","yes"]
["Wu Guangming & Family","Self-made","Domestic","China","Jiangsu Yuyue Medical Equipment Inc.","yes"]
["Wu Jianlong","Self-made","Domestic","Hong Kong","Zhejiang Sunflower Light Energy ","yes"]
["Wu Jianshu","Self-made","International","Hong Kong","Ningbo Tuopu Group","yes"]
["Wu Xushun","Self-made","Domestic","China","Wuhu Shunrong Sanqi Interactive Entertainment Network Technology","yes"]
["Wu Yajun & Family","Self-made","Domestic","China","Longfor","yes"]
["Wu Yiling & Family","Self-made","Domestic","China","Yiling Pharmaceutical","yes"]
["Wu Zhigang","Self-made","Domestic","China","Shenyang Toly Bread","yes"]
["Xavier Niel","Self-made","Domestic","France","Iliad","yes"]
["Subhash Runwal","Self-made","Domestic","India","Runwal Group","yes"]
["Xian Yang","Self-made","Domestic","China","Hidili Industry International Development","yes"]
["Xiang Wenbo","Self-made","International","China","Sany Heavy Industry, Sany group","yes"]
["Thian Poh Chua","Self-made","International","Singapore","Ho Bee Land","yes"]
["Xiao Wenge","Self-made","International","China","DMG Entertainment","yes"]
["Xiaofeng Peng","Self-made","International","China","LDK","yes"]
["Xiong Xuqiang & Family","Self-made","Domestic","Hong Kong","Yinyi Real Estate","yes"]
["Xiu Laigui","Self-made","Domestic","China","Xiuzheng Pharmaceuticals","yes"]
["Xiu Li Hawken","Self-made","Domestic","United Kingdom","Renhe Commercial Holdings","yes"]
["Xu Chuanhua & Family","Self-made","Domestic","China","Transfar Group","yes"]
["Xu Jingren & Family","Self-made","Domestic","China","Yangtze River Pharmaceutical Group","yes"]
["Xu Shihui","Self-made","Domestic","China","Dali Foods Group","yes"]
["Xu Ziquan","Self-made","Domestic","China","Beijing Jetsen Technology","yes"]
["Xue Xiangdong & Family","Self-made","Domestic","China","DHC Software","yes"]
["Yahaya Ahmad","Self-made",null,"Malaysia","","no"]
["Yan Zhi","Self-made","Domestic","China","Zall Development","yes"]
["Yang Huiyan","Multi-generational","International","China","Country Garden","yes"]
["Yang Kai","Self-made","Domestic","China","Huishan Dairy Holding","yes"]
["Yang Keng","Self-made","Domestic","China","Sichuan Languang Development","yes"]
["Vikas Oberoi","Self-made","Domestic","India","Oberoi Realty","yes"]
["Yang Zhimao","Self-made","International","China","Guangdong Golden Dragon Development","yes"]
["Yao Juhuo & Family","Self-made","Domestic","China","Shanxi Meijin Energy","yes"]
["Yao Xinyi","Self-made","International","China","Dunan Artificial Environment","yes"]
["Yao Zhenhua","Self-made","Domestic","China","Baoneng Group","yes"]
["Yasseen Mansour","",null,"Egypt","","no"]
["Yasuhiro Fukushima","Self-made","International","Japan","Square Enix","yes"]
["Yasumitsu Shigeta","Self-made","Domestic","Japan","Hikari Tsushin","yes"]
["Yasuo Takei & Family","Self-made","Domestic","Japan","Takefuji Corporation","yes"]
["Yasuyuki Nambu","Self-made","Domestic","Japan","Pasona Group","yes"]
["YC Wang","Self-made",null,"Taiwan","","no"]
["Ye Cheng","Self-made","International","China","Landbridge Group","yes"]
["Ye Chenghai & Family","Self-made","Domestic","Hong Kong","Shenzhen Salubris Pharmaceuticals","yes"]
["Ye Yuanxi & Family","Self-made","Domestic","China","Shenzhen Grandland Decoration Group","yes"]
["Yeoh Tiong Lay","",null,"Malaysia","","no"]
["Yeung Kin-man","Self-made","Domestic","Hong Kong","Biel Crystal Manufactory","yes"]
["Yi Zheng","Self-made","Domestic","China","Hithink RoyalFlush Information","yes"]
["Yildirim Ali Koc","Multi-generational","Domestic","Turkey","Koc Holding","yes"]
["Yin Xingman","Self-made","Domestic","China","Xinzhi Motor","yes"]
["Yiren & Family Rong","Self-made","Domestic","China","Citic Limited","yes"]
["Yitzhak Tshuva","",null,"Israel","","no"]
["Yong Keu Cha","Self-made","Domestic","United Kingdom","Kazakhmys ","yes"]
["Yonghao Liu Yongxing","Self-made","Domestic","China","East Hope Group","yes"]
["Yoshiaki Tsutsumi","Multi-generational","Domestic","Japan","Seibu Corporation","yes"]
["Yoshikazu Tanaka","Self-made","Domestic","Japan","GREE, Inc.","yes"]
["Yoshiko Mori","Multi-generational","Domestic","Japan","Mori Buildings","yes"]
["Yoshitaka Fukuda & Family","Self-made","Domestic","Japan","AIFUL Corporation","yes"]
["Yoshiyuki Sankai","Self-made","Domestic","Japan","Cyberdyne","yes"]
["Klaus Tschira","Self-made","International","Germany","SAP","yes"]
["Youssef Mansour","",null,"Egypt","","no"]
["Aneel Bhusri","Self-made","Domestic","United States","Greylock","yes"]
["Yu Minhong & Family","Self-made","Domestic","China","New Oriental Education & Technology Group  Inc.","yes"]
["Yu Peidi","Self-made","Domestic","Hong Kong","Greattown Holdings","yes"]
["Yu Tan","Self-made",null,"Philippines","","no"]
["Yu Yong","Self-made","International","China","Cathay Fortune Investment Ltd.","yes"]
["Yuan Fugen","Self-made","Domestic","China","Suzhou Dongshan Precision Manufacturing","yes"]
["Yuan Yafei","Self-made","Domestic","China","Sanpower Group","yes"]
["Yuli and Sammy Ofer",null,null,"Israel","","no"]
["Alexander Samwer","Self-made","International","Germany","Rocket Internet","yes"]
["Yuri Kovalchuk","Self-made","Domestic","Russia","Rossiya Bank","yes"]
["Yuri Milner","Self-made","International","Russia","Digital Sky Technologies","yes"]
["Yuri Shefler","Self-made","International","Russia","S.P.I. Group","yes"]
["Yuri Zhukov","Self-made","Domestic","Russia","PIK Group","yes"]
["Yuriy Kosiuk","",null,"Ukraine","","no"]
["Yusaku Maezawa","Self-made","Domestic","Japan","Zozotown","yes"]
["Yusuf Hamied","Multi-generational","International","India","Cipla","yes"]
["Yvonne Bauer & Family","Multi-generational","International","Germany","Bauer Media Group","yes"]
["Zadik Bino","",null,"Israel","","no"]
["Zan Shengda","Self-made","Domestic","China","Jiangsu Zongyi","yes"]
["Zarakh Iliev","Self-made","Domestic","Russia","Various real estate","yes"]
["Zdenek Bakala","",null,"Czech Republic","","no"]
["Marc Samwer","Self-made","International","Germany","Rocket Internet","yes"]
["Zeng Kaitian","Self-made","Domestic","China","Sanqi Interactive Entertainment Shanghai Technology","yes"]
["Zhai Meiqin","Self-made","Domestic","Hong Kong","Heung Kong Group","yes"]
["Zhang Bangxin","Self-made","Domestic","China","TAL Education Group","yes"]
["Zhang Changhong","Self-made","Domestic","China","DZH International","yes"]
["Zhang Cheng Fei","Self-made","Domestic","China","Nine Dragons Paper","yes"]
["Zhang Desheng","Self-made","Domestic","China","Zhejiang Wanma","yes"]
["Zhang Guiping & Family","Self-made","Domestic","China","Suning Universal","yes"]
["Oliver Samwer","Self-made","International","Germany","Rocket Internet","yes"]
["Zhang Jindong","Self-made","Domestic","China","Suning Commerce Group","yes"]
["Zhang Kaiyuan","Self-made","Domestic","China","SPC Environment Protection Tech","yes"]
["Zhang Keqiang","Self-made","Domestic","China","Poly Real Estate Group","yes"]
["Zhang Li","Self-made","International","China","Guangzhou R&F Properties","yes"]
["Zhang Shiping & Family","Self-made","Domestic","China","China Hongqiao","yes"]
["Zhang Wanzhen","Self-made","Domestic","China","Three Circle Group","yes"]
["Zhang Xin & Family","Self-made","Domestic","China","Soho China","yes"]
["Zhang Zhangsun","Self-made","Domestic","China","Guorui Properties","yes"]
["Zhang Zhidong","Self-made","Domestic","China","Tencent","yes"]
["Zhang Zhirong","Self-made","Domestic","Hong Kong","Glorious Properties","yes"]
["Zhang Zhixiang","Self-made","Domestic","China","Jianlong Heavy Industry Group Co","yes"]
["Zhang Zhongneng & Family","Self-made","Domestic","China","HEC Technology Holding","yes"]
["Zhao Xiaoqiang","Self-made","Domestic","China","Meisheng Cultural","yes"]
["Zheng Jianjiang","Self-made","Domestic","China","Ningbo Sanxing Electric","yes"]
["Zheng Xiaodong","Self-made","International","China","Tofflon Science and Technology","yes"]
["Zheng Yuewen","Self-made","Domestic","China","Creat Group Company Limited","yes"]
["Zhengrong Shi","Self-made","International","China","Suntech Power","yes"]
["Zhong Sheng Jian","Self-made","Domestic","Singapore","Yanlord Land","yes"]
["Zhou Chengjian","Self-made","Domestic","China","Shanghai Metersbonwe Fashion & Accessories","yes"]
["Zhou Furen","Self-made","Domestic","China"," Xiyang Group","yes"]
["Zhou Guohui","Self-made","Domestic","China","Eternal Asia Supply Chain Management","yes"]
["Zhou Hongyi","Self-made","International","China","Qihoo 360 Technology","yes"]
["Zhou Jianping","Self-made","Domestic","China","Heilan Home","yes"]
["Gary Burrell","Self-made","International","United States","Garmin Corporation","yes"]
["Zhou Qunfei","Self-made","Domestic","Hong Kong","Lens Technology","yes"]
["Zhou Yahui","Self-made","International","China","Beijing Kunlun Tech Co","yes"]
["Zhou Yaoting","Self-made","Domestic","China","Hongdou Group","yes"]
["Zhou Yifeng","Self-made","Domestic","China","Hongda Xingye Group","yes"]
["Zhu Baoguo & Family","Self-made","Domestic","China","Joincare Pharmaceutical Group","yes"]
["Zhu Chongyun","Self-made","Domestic","China","Shenzhen Marisfrolg Fashion","yes"]
["Zhu Gongshan","Self-made","International","China","GCL-Poly Energy Holdings","yes"]
["Michael Lynch","Self-made","International","United Kingdom","Autonomy Corporation","yes"]
["Zhu Qingyi","Self-made","Domestic","China","Zhujiang Investment","yes"]
["Zhu Xingliang","Self-made","Domestic","China","Gold Mantis ","yes"]
["Sun Deliang","Self-made","Domestic","China","Zhejiang NetSun Co.","yes"]
["Zhuang Min","Self-made","Domestic","China","Jiangsu Protruly Vision Technology Group","yes"]
["Xia Shudong","Self-made","Domestic","China","China TransInfo Technology Corp","yes"]
["Ziyaudin Magomedov","Self-made","Domestic","Russia","Summa Group","yes"]
["Zong Qinghou","Self-made","Domestic","China","Hangzhou Wahaha Group","yes"]
["Zygmunt Solorz-Zak","",null,"Poland","","no"]
["Juan Francisco Beckmann Vidal","",null,"Mexico",null,"no"]
["Suhail Bahwan","",null,"Oman",null,"no"]
["Julio Ponce Lerou","",null,"Chile",null,"no"]
["Sebastian Piñera","",null,"Chile",null,"no"]
["Carlos Ardila Lülle","",null,"Colombia",null,"no"]
["Svein Stole","",null,"Norway",null,"no"]
["Demetrio Carceller Coll","",null,"Portugal",null,"no"]
["Daniel Kretinsky","",null,"Czech Republic",null,"no"]
["Wu Xu","",null,"St. Kitts and Nevis",null,"no"]
["Yakir Gabay","",null,"Cyprus",null,"no"]
["Georg Stumpf","",null,"Austria",null,"no"]
["Ramon Ang","",null,"Philippines",null,"no"]
["Mika Anttonen","",null,"Finland",null,"no"]
["Lesley Bamberger","",null,"Netherlands",null,"no"]
["Robert Defares","",null,"Netherlands",null,"no"]
["Jean Salata","",null,"Chile",null,"no"]
["Manny Stul","",null,"Australia",null,"no"]
["Jorge Horacio Brito","",null,"Argentina",null,"no"]
["Bruce Flatt","",null,"Canada",null,"no"]
["Thomas Prinzhorn","",null,"Austria",null,"no"]
["Eduardo Cojuangco","",null,"Philippines",null,"no"]
["Carl Douglas","",null,"Sweden",null,"no"]
["Eric Douglas","",null,"Sweden",null,"no"]
["Archie Hwang","",null,"Taiwan",null,"no"]
["Nguyen Thi Phuong Thao","",null,"Vietnam",null,"no"]
["Rit Thirakomen","",null,"Thailand",null,"no"]
["Jun-Hyuk Bang","",null,"South Korea",null,"no"]
["Ivan Chrenko","",null,"Slovakia",null,"no"]
["John Collison","",null,"Ireland",null,"no"]
["Patrick Collison","",null,"Ireland",null,"no"]
["Louise Lindh","",null,"Sweden",null,"no"]
["Harald Link","",null,"Thailand",null,"no"]
["Prayudh Mahagitsiri","",null,"Thailand",null,"no"]
["Katarina Martinson","",null,"Sweden",null,"no"]
["Judith Neilson","",null,"Australia",null,"no"]
["Liora Ofer","",null,"Israel",null,"no"]
["Mohammed Serafi","",null,"Saudi Arabia",null,"no"]
["Mohammed Bahwan","",null,"Oman",null,"no"]
["Eduardo Costantini","",null,"Argentina",null,"no"]
["Marcos Galperin","",null,"Argentina",null,"no"]
["Torstein Hagen","",null,"Norway",null,"no"]
["Hoi Kin Hong","",null,"Macau",null,"no"]
["Lee Sang-Hyuk","",null,"South Korea",null,"no"]
["Desmond Lim Siew Choon","",null,"Malaysia",null,"no"]
["Jannie Mouton","",null,"South Africa",null,"no"]
["Erik Paulsson","",null,"Sweden",null,"no"]
["Pierre Karl Péladeau","",null,"Canada",null,"no"]
["Edgar Sia","",null,"Philippines",null,"no"]
["Terry Snow","",null,"Australia",null,"no"]
["Charles Johnson","Multi-generational","International","United States","Franklin Resources","yes"]
["Zhao Tao","Multi-generational","Domestic","Singapore","Shandong Buchang Pharmaceuticals","yes"]
["Xu Bo","Self-made","International","China","Guangzhou Duoyi Network","yes"]
["Yu Huijiao","Self-made","International","China","YTO Express Group","yes"]
["Bajaj brothers","Multi-generational","Domestic","India","Bajaj Group","yes"]
["Nusli Wadia","Multi-generational","Domestic","India","Wadia Group","yes"]
["Nie Tengyun","Self-made","Domestic","China","Yunda Holding","yes"]
["Pawan Munjal","Multi-generational","Domestic","India","Hero MotoCorp","yes"]
["Clifford Asness","Self-made","Domestic","United States","AQR Capital","yes"]
["Allan Goldman","Multi-generational","Domestic","United States","Solil Management","yes"]
["Jane Goldman","Multi-generational","Domestic","United States","Solil Management","yes"]
["Amy Goldman Fowler","Multi-generational","Domestic","United States","Solil Management","yes"]
["Diane Kemper","Multi-generational","Domestic","United States","Solil Management","yes"]
["Meisong Lai","Self-made","Domestic","China","ZTO Express","yes"]
["Zhang Fan","Self-made","International","China","Goodix","yes"]
["Zhang Xiaojuan","Self-made","International","China","YTO Express Group","yes"]
["Charles Cohen","Multi-generational","Domestic","United States","Cohen Brothers Realty","yes"]
["Jen-Hsun Huang","Self-made","International","United States","Nvidia","yes"]
["Rita Tong Liu","Self-made","Domestic","Hong Kong","Gale Well Group","yes"]
["Zhang Jing","Self-made","Domestic","China","Cedar Holdings","yes"]
["Acharya Balkrishna","Self-made","Domestic","India","Patanjali Ayurved","yes"]
["Li Gaiteng","Self-made","Domestic","China","Shanghai Flyco Electrical Appliance","yes"]
["Nick Caporella","Self-made","Domestic","United States","National Beverage Co.","yes"]
["Radhakishan Damani","Self-made","Domestic","India","DMart","yes"]
["Bernard Lewis","Self-made","International","United Kingdom","River Island","yes"]
["Chen Dongsheng","Self-made","Domestic","China","Taikang Life Insurance","yes"]
["Todd Christopher","Self-made","International","United States","Vogue International","yes"]
["Ong Beng Seng and Christina Ong","Self-made","International","Singapore","COMO Hotels & Resorts","yes"]
["Xie Zhikun","Self-made","Domestic","China","Zhongzhi Enterprise Group","yes"]
["Zhao Yan","Self-made","International","China","Bloomage BioTechnology","yes"]
["Osman Kibar","Self-made","Domestic","United States"," Samumed","yes"]
["Eric Smidt","Self-made","Domestic","United States","Harbor Freight Tools","yes"]
["Wu Lanlan","Self-made","Domestic","China","Shenzhen Yuto Packaging","yes"]
["Gu Yuhua","Self-made","International","China","Jason Furniture Hangzhou Co Ltd:","yes"]
["Thomas Hagen","Multi-generational","Domestic","United States","Erie Indemnity","yes"]
["Sarah MacMillan","Multi-generational","International","United States","Cargill Inc","yes"]
["Wu Guangming","Self-made","Domestic","China","Jiangsu Yuyue Medical Equipment & Supply","yes"]
["Cai Wensheng","Self-made","International","China","Meitu","yes"]
["Chen Dejun","Self-made","International","China","STO Express","yes"]
["Kerry Stokes","Self-made","International","Australia","Seven Group Holdings","no"]
["Arvind Tiku","Self-made","International","India","AT Holdings","yes"]
["Chen Xiaoying","Self-made","International","China","STO Express","yes"]
["He Simo","Self-made","International","China","Guangdong East Power","yes"]
["Masateru Uno","Self-made","Domestic","Japan","Cosmos Pharmaceutical","yes"]
["Christine Volkmann","Multi-generational","International","Germany","Brose","yes"]
["Xiao Yongming","Self-made","Domestic","China","Jinguyuan Holding","yes"]
["Chen Xueli","Self-made","Domestic","China","Weigao Holding Company","yes"]
["Philippe Ginestet","Self-made","Domestic","France","Gifi","yes"]
["Christian Latouche","Self-made","International","France","Fiducial SA","yes"]
["Thai Lee","Self-made","International","United States","SHI International Corp","yes"]
["Gabriele Stoschek","Multi-generational","International","Germany","Brose","yes"]
["Su Suyu","Self-made","Domestic","China","Luenmei Quantum","yes"]
["Alan N. Trefler","Self-made","International","United States","Pegasystems","yes"]
["Roman Trotsenko","Self-made","Domestic","Russia","Aeon Corporation","yes"]
["Wen Pengcheng","Self-made","Domestic","China","Wen's Foodstuffs ","yes"]
["Chen Liying","Self-made","International","China","Yunda Express","yes"]
["Chen Qixing","Self-made","Domestic","China","Shenzhen Everwin Precision Technology","yes"]
["Jean-Paul Clozel","Self-made","International","Switzerland","Actelion","yes"]
["Sergei Gordeev","Self-made","Domestic","Russia","Rosbuilding, PIK Group","yes"]
["Jiang Xuefei","Self-made","Domestic","China","Suntak Circuit Technology","yes"]
["Li Zongsong","Self-made","Domestic","China","JiangSu Bicon Pharmaceutical Listed Co","yes"]
["Wang Miaotong","Self-made","Domestic","China","Zhejiang Century Huatong Group","yes"]
["Zhang Jingzhang","Self-made","Domestic","China","Ningbo Haitian Precision Machinery","yes"]
["Chen Dakui","Self-made","Domestic","China","Zhongcheng Packing Material","yes"]
["Chen Nianci","Self-made","Domestic","China","Sanjiang Shopping Club","yes"]
["Chua Thian Poh","Self-made","Domestic","Singapore","Ho Bee Land","yes"]
["Fu Mingkang","Self-made","Domestic","China","Riyue Heavy Industry","yes"]
["Ji Qi","Self-made","Domestic","China","China Lodging Group","yes"]
["Jiang Yehua","Self-made","Domestic","China","Chongqing Huayu Group","yes"]
["Liu Bing","Self-made","Domestic","China","Chengdu Fusen Noble House Industrial","yes"]
["Rajju Shroff","Self-made","International","India","UPL","yes"]
["Wu Daohong","Self-made","Domestic","China","Beijing Shenwu Environment","yes"]
["Bao Hongxing","Self-made","Domestic","China","Twins Group","yes"]
["Bo Shijiu","Self-made","Domestic","China","Beijing Changjiu Logistics","yes"]
["Alexander Klyachin","Self-made","Domestic","Russia","Nerl","yes"]
["Liu Fuhai","Self-made","Domestic","China","Shandong Dahai Group","yes"]
["Liu Ruopeng","Self-made","Domestic","China","Zhejiang Longsheng Auto Parts","yes"]
["Ma Xiuhui","Self-made","International","China","Opple Lighting","yes"]
["Vincent McMahon","Self-made","International","United States","World Wrestling Entertainment (WWE)","yes"]
["Vijay Shekhar Sharma","Self-made","Domestic","India","Paytm","yes"]
["Bryan Sheffield","Multi-generational","Domestic","United States","Parsley Energy","yes"]
["Julia Stoschek","Multi-generational","International","Germany","Brose","yes"]
["Maximilian Stoschek","Multi-generational","International","Germany","Brose","yes"]
["Satoshi Suzuki","Multi-generational","Domestic","Japan","Pola Orbis","yes"]
["Shamsheer Vayalil","Self-made","International","India","VPS Healthcare","yes"]
["Xu Qiming","Self-made","Domestic","China","China Xulong Group","yes"]
["Chi Yufeng","Self-made","International","China","Perfect World","yes"]
["Cui Genliang","Self-made","Domestic","China","Hengtong Group","yes"]
["Masayuki Ishihara","Self-made","Domestic","Japan","Heiwa","yes"]
["Li Denghai","Self-made","Domestic","China","Denghai Seeds","yes"]
["Li Rucheng","Self-made","Domestic","China","Youngor Group","yes"]
["Mahendra Prasad","Self-made","International","India","Aristo Pharmaceuticals","yes"]
["Chris Sacca","Self-made","Domestic","United States","Lowercase Capital","yes"]
["Analjit Singh","Multi-generational","Domestic","India","Ranbaxy Laboratories","yes"]
["Kevin Systrom","Self-made","International","United States","Facebook","yes"]
["Tang Jianfang","Self-made","Domestic","China","Zhou Hei Ya International Holdings Company","yes"]
["Oleg Tinkov","Self-made","Domestic","Russia","Tinkoff","yes"]
["Wang Yaohai","Self-made","International","China","Opple Lighting","yes"]
["Zhang Anqiang","Self-made","Domestic","Hong Kong","Nanjing Doron Technology","yes"]
["Zhang Xinghai","Self-made","Domestic","China","Chongqing Sokon Industry Group","yes"]
["Zhang Xiugen","Self-made","Domestic","China","Hawtai Motor","yes"]
["Zhang Yue","Self-made","International","China","Broad Air Condition","yes"]
["Zhu Wenchen","Self-made","Domestic","China","Furen Pharmaceutical Group Industry","yes"]
["Markus Blocher","Multi-generational","Domestic","Switzerland","Dottikon ES Holding","yes"]
["Chen Xiaxin","Self-made","Domestic","China","Baida Group","yes"]
["Chen Zuyuan","Self-made","Domestic","China","Shenzhen Anyuan Holding Group","yes"]
["Arnold Clark","Self-made","Domestic","United Kingdom","Arnold Clark Automobiles","yes"]
["Sol Daurella","Multi-generational","International","Spain","Coca Cola European Partners PLC","yes"]
["Dominique Desseigne","Multi-generational","International","France","Groupe Lucien Barrière","yes"]
["Jamie Dimon","Self-made","International","United States","JPMorgan Chase","yes"]
["Ding Yuhua","Self-made","International","China","Triangle Tyre","yes"]
["Dong Fan","Self-made","Domestic","China","Jafron Biomedical","yes"]
["Hon Kwok Lung","Self-made","International","Hong Kong","Citychamp Watch and Jewellery Group","yes"]
["Hu Baifan","Self-made","Domestic","China","Zhejiang NHU","yes"]
["Thomas James","Multi-generational","International","United States","Raymond James","yes"]
["Jin Huiming","Self-made","International","China","Dahua Group","yes"]
["Rana Kapoor","Self-made","Domestic","India","Yes Bank","yes"]
["Martin Lau","Self-made","Domestic","Hong Kong","Tencent","yes"]
["Li Dongjun","Self-made","International","China","JC TRANS Co.","yes"]
["Lin Yi","Self-made","Domestic","China","Shanghai Shenglong Investment Group","yes"]
["Lo Ka Shui","Multi-generational","Domestic","Hong Kong","Great Eagle","yes"]
["Lu Jonathan","Self-made","Domestic","China","Alibaba Group","yes"]
["Ma Yunsheng","Self-made","Domestic","China","Shandong Chambroad Holding","yes"]
["Georg Nemetschek","Self-made","International","Germany","Nemetschek Group","yes"]
["Lucy Peng","Self-made","Domestic","China","Ant Financial Services","yes"]
["Shang Jiyong","Self-made","International","China","Wanda Group","yes"]
["Yoshiko Shinohara","Self-made","Domestic","Japan","Temp Holdings","yes"]
["Samprada Singh","Self-made","Domestic","India","Alkem Laboratories","yes"]
["Sun Yinhuan","Self-made","Domestic","China","Yida China Holdings","yes"]
["Wang Liping","Self-made","Domestic","China","Jiangsu Hengli Highpressure Oil Cylinder","yes"]
["Wang Zhenhua","Self-made","Domestic","China","Future Land","yes"]
["Xia Dinghu","Self-made","Domestic","China","Anhui Zhongding Sealing Parts","yes"]
["Xiao Chunhong","Self-made","Domestic","China","Homnicen Group","yes"]
["Xu Xiong","Self-made","Domestic","China","Eastern Driving School","yes"]
["Yao Liangsong","Self-made","International","China","Oppein Home Group","yes"]
["Zhang Daocai","Self-made","International","China","Sanhua Holding Group","yes"]
["Zhao Weiguo","Self-made","Domestic","China","Tsinghua Unigroup","yes"]
["Zhou Yunjie","Self-made","Domestic","China","ORG Packaging Co.","yes"]
["Marc Andreessen","Self-made","Domestic","United States","Andreessen Horowitz","yes"]
["Saket Burman","Multi-generational","Domestic","United Kingdom","Dabur","yes"]
["Yvon Chouinard","Self-made","International","United States","Patagonia","yes"]
["Philip Day","Self-made","Domestic","United Kingdom","Trump Enterprises","yes"]
["David Kabiller","Self-made","Domestic","United States","AQR Capital","yes"]
["Liao Chang","Self-made","Domestic","China","Site rice company","yes"]
["John Liew","Self-made","Domestic","United States","AQR Capital","yes"]
["Liu Canglong","Self-made","Domestic","China","Sichuan Hongda Group of Chin","yes"]
["Liu Hanyuan","Self-made","Domestic","China","Tongwei Group","yes"]
["Liu Jianjun","Self-made","Domestic","China","Tibet Huayu Mining","yes"]
["Liu Zhendong","Self-made","Domestic","China","Liando Group","yes"]
["Mi Enhua","Self-made","Domestic","China","Xinjiang Hualing Industry & Trade","yes"]
["Lowell Milken","Self-made","International","United States","Heron International","yes"]
["Simon Nixon","Self-made","Domestic","United Kingdom","MoneySuperMarket","yes"]
["Kentaro Ogawa","Self-made","Domestic","Japan","Zensho","yes"]
["John Schnatter","Self-made","International","United States","Papa John's restaurant","yes"]
["Eric Ya Shen","Self-made","Domestic","China","Vipshop","yes"]
["Axel Stawski","Self-made","Domestic","United States","Stawski Partners","yes"]
["Tang Shing-bor","Self-made","Domestic","Hong Kong","ETS Group Limited","yes"]
["Wang Qunbin","Self-made","Domestic","China","Fosun Group","yes"]
["David Shou-Yeh Wong","Self-made","Domestic","Hong Kong","Dah Sing Group","yes"]
["Zhou Yifeng","Self-made","Domestic","China","Hongda Xingye Group","yes"]

{"sheet":"Analysis","index":1,"n_rows":39,"n_cols":18,"rows_kept":39,"cut":false,"hidden":false,"merged":[[3,6,3,7],[3,8,3,9],[3,13,3,14],[3,15,3,16],[23,6,23,7],[23,8,23,9]]}
["In-Scope","yes"]
[]
["Count of Company Name","Source of Co wealth"]
["Countries","Domestic","International","Grand Total",null,"Countries","Domestic",null,"International",null,"Grand Total",null,"Countries","Domestic",null,"International",null,"Grand Total"]
["China",346,83,429,null,"China",346,{"$f":"G5/K5","v":0.80652680652680653},83,{"$f":"I5/K5","v":0.19347319347319347},429,null,"China",346,{"$f":"N5/$N$19","v":0.2404447533009034},83,{"$f":"P5/$P$19","v":8.8770053475935834E-2},429]
["France",14,56,70,null,"France",14,{"$f":"G6/K6","v":0.2},56,{"$f":"I6/K6","v":0.8},70,null,"France",14,{"$f":"N6/$N$19","v":9.7289784572619879E-3},56,{"$f":"P6/$P$19","v":5.9893048128342244E-2},70]
["Germany",60,136,196,null,"Germany",60,0.30612244897959184,136,0.69387755102040816,196,null,"Germany",60,4.1695621959694229E-2,136,0.14545454545454545,196]
["Hong Kong",69,24,93,null,"Hong Kong",69,0.74193548387096775,24,0.25806451612903225,93,null,"Hong Kong",69,4.794996525364837E-2,24,2.5668449197860963E-2,93]
["India",94,51,145,null,"India",94,0.64827586206896548,51,0.35172413793103446,145,null,"India",94,6.5323141070187635E-2,51,5.4545454545454543E-2,145]
["Italy",20,41,61,null,"Italy",20,0.32786885245901637,41,0.67213114754098358,61,null,"Italy",20,1.3898540653231411E-2,41,4.3850267379679148E-2,61]
["Japan",66,29,95,null,"Japan",66,0.69473684210526321,29,0.30526315789473685,95,null,"Japan",66,4.5865184155663652E-2,29,3.1016042780748664E-2,95]
["Russia",124,38,162,null,"Russia",124,0.76543209876543206,38,0.23456790123456789,162,null,"Russia",124,8.6170952050034749E-2,38,4.0641711229946524E-2,162]
["Singapore",15,14,29,null,"Singapore",15,0.51724137931034486,14,0.48275862068965519,29,null,"Singapore",15,1.0423905489923557E-2,14,1.4973262032085561E-2,29]
["Spain",23,19,42,null,"Spain",23,0.54761904761904767,19,0.45238095238095238,42,null,"Spain",23,1.5983321751216122E-2,19,2.0320855614973262E-2,42]
["Switzerland",16,32,48,null,"Switzerland",16,0.33333333333333331,32,0.66666666666666663,48,null,"Switzerland",16,1.1118832522585128E-2,32,3.4224598930481284E-2,48]
["Turkey",46,14,60,null,"Turkey",46,0.76666666666666672,14,0.23333333333333334,60,null,"Turkey",46,3.1966643502432245E-2,14,1.4973262032085561E-2,60]
["United Kingdom",53,40,93,null,"United Kingdom",53,0.57608695652173914,40,0.43478260869565216,92,null,"United Kingdom",53,3.683113273106324E-2,40,4.2780748663101602E-2,92]
["United States",493,358,851,null,"United States",493,0.57931844888366624,358,0.42068155111633371,851,null,"United States",493,0.34259902710215429,358,0.38288770053475935,851]
["Grand Total",1439,935,2374,null,"Grand Total",1439,0.60614995787700088,935,0.39385004212299918,2374,null,"Grand Total",1439,1,935,1,2374]
[]
[]
["In-Scope","yes"]
[]
["Source of co wealth","Count of Company Name",null,null,null,"Countries","Domestic",null,"International",null,"Grand Total"]
["Domestic",1439,{"$f":"GETPIVOTDATA(\"Company Name\",$A$24,\"Source of Wealth Type\n1) Domestic\n2) International\",\"Domestic\")/GETPIVOTDATA(\"Company Name\",$A$24)","v":0.60614995787700088},null,null,"China",346,{"$f":"G25/$K$39","v":0.14574557708508845},83,{"$f":"I25/$K$39","v":3.4962089300758212E-2},429]
["International",935,{"$f":"GETPIVOTDATA(\"Company Name\",$A$24,\"Source of Wealth Type\n1) Domestic\n2) International\",\"International\")/GETPIVOTDATA(\"Company Name\",$A$24)","v":0.39385004212299918},null,null,"France",14,5.8972198820556026E-3,56,2.358887952822241E-2,70]
["Grand Total",2374,null,null,null,"Germany",60,2.5273799494524012E-2,136,5.7287278854254421E-2,196]
[null,null,null,null,null,"Hong Kong",69,2.9064869418702611E-2,24,1.0109519797809604E-2,93]
[null,null,null,null,null,"India",94,3.9595619208087615E-2,51,2.1482729570345409E-2,145]
["In-Scope","yes",null,null,null,"Italy",20,8.4245998315080027E-3,41,1.7270429654591406E-2,61]
[null,null,null,null,null,"Japan",66,2.780117944397641E-2,29,1.2215669755686605E-2,95]
["Row Labels","Count of Company Name",null,null,null,"Russia",124,5.2232518955349617E-2,38,1.6006739679865205E-2,162]
["Multi-generational",730,null,null,null,"Singapore",15,6.3184498736310029E-3,14,5.8972198820556026E-3,29]
["Domestic",364,{"$f":"GETPIVOTDATA(\"Company Name\",$A$32,\"Source of Wealth\",\"Multi-generational\",\"Source of Wealth Type\n1) Domestic\n2) International\",\"Domestic\")/GETPIVOTDATA(\"Company Name\",$A$32,\"Source of Wealth\",\"Multi-generational\")","v":0.49863013698630138},null,null,"Spain",23,9.6882898062342036E-3,19,8.0033698399326024E-3,42]
["International",366,{"$f":"GETPIVOTDATA(\"Company Name\",$A$32,\"Source of Wealth\",\"Multi-generational\",\"Source of Wealth Type\n1) Domestic\n2) International\",\"International\")/GETPIVOTDATA(\"Company Name\",$A$32,\"Source of Wealth\",\"Multi-generational\")","v":0.50136986301369868},null,null,"Switzerland",16,6.7396798652064023E-3,32,1.3479359730412805E-2,48]
["Self-made",1644,null,null,null,"Turkey",46,1.9376579612468407E-2,14,5.8972198820556026E-3,60]
["Domestic",1075,{"$f":"GETPIVOTDATA(\"Company Name\",$A$32,\"Source of Wealth\",\"Self-made\",\"Source of Wealth Type\n1) Domestic\n2) International\",\"Domestic\")/GETPIVOTDATA(\"Company Name\",$A$32,\"Source of Wealth\",\"Self-made\")","v":0.65389294403892939},null,null,"United Kingdom",53,2.2325189553496209E-2,40,1.6849199663016005E-2,92]
["International",569,{"$f":"GETPIVOTDATA(\"Company Name\",$A$32,\"Source of Wealth\",\"Self-made\",\"Source of Wealth Type\n1) Domestic\n2) International\",\"International\")/GETPIVOTDATA(\"Company Name\",$A$32,\"Source of Wealth\",\"Self-made\")","v":0.34610705596107055},null,null,"United States",493,0.2076663858466723,358,0.15080033698399326,851]
["Grand Total",2374,null,null,null,"Grand Total",1439,0.60614995787700088,935,0.39385004212299918,2374]

{"sheet":"ForbesDataAuto","index":2,"n_rows":3231,"n_cols":12,"rows_kept":3231,"cut":false,"hidden":false,"merged":[]}
[]
["Formated Name","Name","Forbes 2017 rank","Net worth M-1 2017","Age","Source of wealth","Forbes Self-Made Score","Residence","Citizenship","Marital Status","Children","Education"]
["a-jerrold-perenchio","A. Jerrold Perenchio","#717","$2.8B ",86,"television, Univision, Self Made",8,"Bel Air, California","United States","Married",3,"Bachelor of Arts / Science, University of California, Los Angeles"]
["abdul-al-rahman-al-jeraisy"]
["abdul-aziz-al-ghurair","Abdul Aziz Al Ghurair & family","#401","$2.9B ",62,"banking","United Arab Emirates","Married",5,"California State Polytechnical University"]
["abdul-majeed-alhokair","Abdul Majeed Alhokair","#1'678","$1.2B ",47,"retail, real estate, Self Made","Riyadh, Saudi Arabia","Saudi Arabia"]
["abdul-rasyid","Abdul Rasyid","#37","$810M ",59,"timber, palm oil, Self Made","Singapore, Singapore","Indonesia","Married"]
["abdulaziz-bin-hamad-algosaibi"]
["abdulla-al-futtaim","Abdulla Al Futtaim","#427","$4.1B ","auto dealers, investments","Dubai, United Arab Emirates","United Arab Emirates","Married"]
["abdulla-bin-ahmad-al-ghurair","Abdulla bin Ahmad Al Ghurair & family","#202","$6.8B ","diversified","Dubai, United Arab Emirates","United Arab Emirates"]
["abdullah-al-rajhi","Abdullah Al Rajhi & family","#1'098","$1.9B ","banking","Riyadh, Saudi Arabia","Saudi Arabia","Married"]
["abdulsamad-rabiu","Abdulsamad Rabiu","#1'577","$1.1B ",56,"cement, sugar","Lagos, Nigeria","Nigeria","Married"]
["abhay-firodia","Abhay Firodia","#1'098","$1.9B ",72,"automobiles","Pune, India","India","Married",4]
["abigail-johnson","Abigail Johnson","#75","$14.4B ",55,"money management",3,"Milton, Massachusetts","United States","Married",2,"Bachelor of Arts / Science, Hobart and William Smith; Master of Business Administration, Harvard Business School"]
["abilio-dos-santos-diniz","Abilio dos Santos Diniz","#581","$3.3B ",80,"retail","Sao Paulo, Brazil","Brazil","Married",6,"Bachelor of Arts / Science, Fundacao Getulio Vargas"]
["achal-bakeri","Achal Bakeri","#1'567","$1.3B ",57,"air coolers, Self Made","Ahmedabad, India",2,"India","Married",2,"Master of Business Administration, Marshall School of Business"]
["achille-maramotti"]
["achmad-hamami","Achmad Hamami & family","#38","$800M ",86,"heavy equipment, Self Made","Jakarta, Indonesia","Indonesia","Married",4]
["adam-neumann","Adam Neumann","#814","$2.5B ",38,"WeWork, Self Made","New York, New York","Israel","Married",4,"City University of New York Baruch"]
["adi-godrej","Adi Godrej","#814","$2.5B ",75,"consumer goods","Mumbai, India","India","Widowed",3,"Bachelor of Arts / Science, Massachusetts Institute of Technology; Master of Science, Massachusetts Institute of Technology"]
["karl-albrecht-sr"]
["adolf-merckle"]
["adrian-swire"]
["aerin-lauder-zinterhofer","Aerin Lauder Zinterhofer","#1'290","$1.6B ",46,"cosmetics",2,"New York, New York","United States","Married",2]
["ahmed-ali-kanoo"]
["ahmet-calik","Ahmet Calik","#1'468","$1.4B ",59,"energy, banking, construction, Self Made","Istanbul, Turkey","Turkey","Married",4]
["ahmet-nazif-zorlu","Ahmet Nazif Zorlu","#1'567","$1.3B ",72,"diversified, Self Made","Istanbul, Turkey","Turkey","Married",3,"Drop Out, High School"]
["pierre-castel","Pierre Castel & family","#125","$9.9B ",90,"wine, Self Made","Geneva, Switzerland","France","Married"]
["alexander-lutsenko","Alexander Lutsenko & family","#1'638","$1.1B ",55,"agribusiness, Self Made","Kaliningrad","Russia","Married",2]
["ajay-kalsi","Ajay Kalsi","#1'678","$1.2B ",56,"oil & gas, Self Made","Delhi, India","India","Married","Bachelor of Arts / Science, London School of Economics; Master of Science, University of Cambridge"]
["ajay-piramal","Ajay Piramal","#501","$3.7B ",61,"pharmaceuticals","Mumbai, India","India","Married",2,"Bachelor of Arts / Science, Bombay University; Master of Business Administration, Bombay University"]
["akihiko-otsuka"]
["akio-morita"]
["akio-nitori","Akio Nitori","#13","$3.3B ",73,"home furnishings, Self Made","Hokkaido, Japan","Japan","Married"]
["akira-mori","Akira Mori & family","#7","$4.4B ",80,"real estate","Tokyo, Japan","Japan","Married",3]
["alain-bouchard","Alain Bouchard","#581","$3.3B ",68,"retail, Self Made","Montreal, Canada","Canada","Married",4]
["alain-merieux","Alain Merieux & family","#441","$4B ",79,"pharmaceuticals","Lyon, France","France","Married",3]
["alain-taravella","Alain Taravella","#1'376","$1.5B ",69,"real estate, Self Made","Paris, France","France"]
["alain-wertheimer","Alain Wertheimer","#112","$11.8B ",68,"Chanel","New York, New York","France","Married",3]
["alexei-bogachev","Alexei Bogachev","#1'940","$1B ",46,"retail, banking, Self Made","Moscow, Russia","Russia","Married",2,"Bachelor of Arts / Science, Moscow State University for Design and Technologies"]
["alan-casden","Alan Casden","#1'015","$1.2B ",71,"real estate, Self Made","Beverly Hills, CA","United States","Married",5,"Bachelor of Arts / Science, University of Southern California"]
["alan-gerry","Alan Gerry","#1'376","$1.5B ",87,"cable television, Self Made","Liberty, New York","United States","Married",3,"Drop Out, High School"]
["alan-howard","Alan Howard","#1'468","$1.4B ",53,"hedge funds, Self Made","Geneva, Switzerland",3,"United Kingdom","Married",4,"Master of Science, Imperial College London"]
["alan-rydge","Alan Rydge","#1'795","$1.1B ",64,"entertainment, Self Made","Sydney, Australia","Australia","Married"]
["albert-berner","Albert Berner & family","#1'376","$1.5B ",81,"fasteners, Self Made","Kuenzelsau, Germany","Germany","Married",4]
["albert-blokker","Albert Blokker","#1'210",null,71,"retail","Belgium"]
["albert-frere","Albert Frere","#334","$4.9B ",91,"investments, Self Made","Charleroi, Belgium","Belgium","Married",3,"Drop Out, High School"]
["albert-gubay","Albert Gubay","#880",null,89,"real estate","Stanton, Isle of Man, United Kingdom","United Kingdom","Married",2]
["albert-lee-ueltschi"]
["amit-burman","Amit Burman","#1'712",null,47,"consumer goods","Delhi, India","India","Married",2,"Master of Business Administration, Judge Business School; Bachelor of Arts / Science, Lehigh University; Master of Science, Columbia University"]
["albert-ueltschi"]
["albert-von-thurn-und-taxis","Albert von Thurn und Taxis","#1'092","$1.6B ",33,"diversified","Regensburg, Germany","Germany","Single","Master of Arts, University of Edinburgh; Bachelor of Arts / Science, University of Edinburgh"]
["albert-yeung","Albert Yeung","#1'376","$1.5B ",74,"real estate, retail, Self Made","Hong Kong, Hong Kong","Hong Kong","Married",5]
["alberto-alcocer","Alberto Alcocer","#1'678","$1.2B ",74,"investments, Self Made","Madrid, Spain","Spain","Married",5,"Doctor of Jurisprudence, Universidad Complutense de Madrid"]
["alberto-bailleres-gonzalez","Alberto Bailleres Gonzalez & family","#123","$10.8B ",85,"mining","Mexico City, Mexico","Mexico","Married",4]
["alberto-benavides","Alberto Benavides & family","#736",null,"mining, Self Made","Peru",5,"Master of Science, Harvard University"]
["alberto-bombassei","Alberto Bombassei","#1'121","$1.6B ",76,"automotive brakes, Self Made","Bergamo, Italy","Italy","Married",2]
["mary-&-douglas-perkins"]
["alberto-prada","Alberto Prada","#1'468","$1.4B ","luxury goods","Milan, Italy",2,"Italy"]
["alberto-roemmers","Alberto Roemmers","#1'030","$2B ",90,"pharmaceuticals","Buenos Aires, Argentina","Argentina","Married",4]
["alberto-vilar"]
["albrecht-and-henkel-family-woeste"]
["aldo-bensadoun","Aldo Bensadoun","#1'940","$1B ",78,"shoes, Self Made","Montreal, Canada","Canada","Married",3]
["alec-gores","Alec Gores","#973","$2.1B ",64,"private equity, Self Made",9,"Beverly Hills, California","United States","Divorced",5,"Bachelor of Arts / Science, Western Michigan University"]
["alejandro-santo-domingo-davila","Alejandro Santo Domingo","#348","$4.7B ",40,"beer",3,"New York, New York",2,"United States","Married","Bachelor of Arts / Science, Harvard University"]
["alejo-peralta"]
["c-james-koch","Jim Koch","#1'415","$1.3B ",67,"beer, Self Made","Newton, MA","United States","Married",4,"Bachelor of Arts / Science, Harvard University; Master of Business Administration, Harvard University; Doctor of Jurisprudence, Harvard University"]
["alexander-abramov","Alexander Abramov","#367","$4.5B ",58,"steel, mining, Self Made","Moscow, Russia","Russia","Married",3,"Bachelor of Arts / Science, Moscow Institute of Physics and Technology"]
["alexander-dzhaparidze","Alexander Dzhaparidze","#1'567","$1.3B ",61,"oil services, Self Made","Moscow, Russia","Russia","Married",5,"Master of Science, Gubkin Institute of Petrochemicals and Natural Gas"]
["alexander-frolov","Alexander Frolov","#1'161","$1.8B ",52,"mining, steel, Self Made","Moscow, Russia","Russia","Married",1,"Doctorate, Moscow Institute of Physics and Technology"]
["alexander-girda","Alexander Girda","#1'140",null,55,"retail, Self Made","London, United Kingdom","Russia","Bachelor of Science in Engineering, Riga Institute of Civil Aviation"]
["alexander-karp","Alexander Karp","#1'290","$1.6B ",49,"software firm, Self Made","Palo Alto, California","United States","Single","Doctor of Jurisprudence, Stanford University; Bachelor of Arts / Science, Haverford College"]
["alexander-knaster","Alexander Knaster","#302","$2.1B ",58,"oil, telecom, banking, Self Made",8,"London, United Kingdom","United States","Married",4,"Doctorate, Russian Academy of Economics; Master of Business Administration, Harvard University; Bachelor of Arts / Science, Carnegie Mellon University"]
["alexander-lebedev","Alexander Lebedev","#1'075","$1.1B ",57,"investments, banking, Self Made","Russia","Married",2,"Bachelor of Arts / Science, Moscow Institute of International Relations"]
["charles-butt","Charles Butt & family","#44","$10.7B ",79,"supermarkets",5,"San Antonio, TX","United States","Single","Bachelor of Arts / Science, University of Pennsylvania Wharton School"]
["alexander-lutsenko","Alexander Lutsenko & family","#1'638","$1.1B ",55,"agribusiness, Self Made","Kaliningrad","Russia","Married",2]
["alexander-machkevich","Alexander Machkevich","#1'098","$1.9B ",63,"mining, metals, Self Made","Almaty, Kazakhstan","Israel","Married",2]
["alexander-mamut","Alexander Mamut","#814","$2.5B ",57,"investments, Self Made","Moscow, Russia","Russia","Widowed",5,"LLB, Moscow State University"]
["alexander-mashkevich"]
["alexander-nesis","Alexander Nesis","#867","$2.4B ",54,"metals, banking, fertilizers, Self Made","Moscow, Russia","Russia","Married",4,"Bachelor of Arts / Science, Leningrad Technological Institute"]
["alexander-ponomarenko","Alexander Ponomarenko","#660","$3B ",52,"ports, Self Made","Moscow, Russia","Russia","Married",3,"Bachelor of Arts / Science, Simferopol State University; Master of Science, Russian State Academy of Management"]
["alexander-putilov","Alexander Putilov","#1'372","$1.2B ",64,"oil, Self Made","Moscow, Russia","Russia","Married",2,"Bachelor of Arts / Science, Tyumen Industrial Institute"]
["alexander-rovt","Alexander Rovt","#1'567","$1.3B ",64,"fertilizer, real estate, Self Made","New York, New York","United States","Married",2,"Doctorate, Lvov Institute of Trade & Economics"]
["bill-adderley","Bill Adderley & family","#1'054","$1.8B ",69,"home furnishings, Self Made","Leicester, United Kingdom","United Kingdom","Married",2]
["alexander-shchukin","Alexander Shchukin","#692",null,66,"coal, Self Made","Novokuznetsk, Russia","Russia","Married",1,"Bachelor of Science in Engineering, Moscow Institute of Mining"]
["alexander-shnaider","Alexander Shnaider","#773",null,48,"steel, Self Made","Toronto, Canada","Canada","Married",3,"Bachelor of Arts / Science, York University"]
["alexander-skorobogatko","Alexander Skorobogatko","#660","$3B ",49,"ports, Self Made","Moscow, Russia","Russia","Married",3,"Master of Science, Plekhanov Russian University of Economics"]
["alexander-spanos","Alexander Spanos & family","#867","$2.4B ",93,"real estate, San Diego Chargers, Self Made","Stockton, California","United States","Married",4,"Bachelor of Arts / Science, University of the Pacific"]
["alexander-svetakov","Alexander Svetakov","#581","$3.3B ",49,"banking, real estate, Self Made","Moscow, Russia","Russia","Divorced",4,"Bachelor of Science in Engineering, Moscow Institute of Electronic Technology"]
["alexander-tedja","Alexander Tedja","#1'940","$1B ",71,"real estate, Self Made","Jakarta, Indonesia","Indonesia","Married",4]
["alexander-vagin","Alexander Vagin","#938",null,58,"coal, Self Made","Mezhdurechensk, Russia","Russia","Married",2,"Bachelor of Arts / Science, Kuzbass Polytechnic Institute"]
["alexander-vik","Alexander Vik","#1'940","$1B ",62,"investments","Monaco, Monaco","Norway","Married",4,"Bachelor of Arts / Science, Harvard University"]
["alexandra-andresen","Alexandra Andresen","#1'678","$1.2B ",20,"investments","Oslo, Norway","Norway","Single"]
["alexandra-daitch","Alexandra Daitch","#1'098","$1.9B ",54,"Cargill",1,"Old Lyme, Connecticut","United States"]
["alexandra-schörghuber"]
["alexandre-grendene-bartelle","Alexandre Grendene Bartelle","#1'030","$2B ",67,"shoes, Self Made","Porto Alegre, Brazil","Brazil","Single",7]
["alexandre-soares-dos-santos","Alexandre Soares dos Santos & family","#745","$2.7B ",82,"supermarkets","Lisbon, Portugal","Portugal","Married",7]
["alexei-ananyev","Alexei Ananyev","#1'468","$1.4B ",52,"banking, IT, real estate, Self Made","Moscow, Russia","Russia","Married",3,"Master of Business Administration, University of Chicago"]
["dai-deming","Dai Deming","#1'712","$1.05B ","auto distribution, Self Made","Wuhan, China","China"]
["alexei-kuzmichev","Alexei Kuzmichev","#194","$7.2B ",54,"oil, banking, telecom, Self Made","London, United Kingdom","Russia","Married",1,"Bachelor of Arts / Science, Moscow Institute of Steel and Alloys"]
["alexei-semin"]
["alexey-mordashov"]
["alfonso-romo-garza"]
["alfred-gantner"]
["alfred-heineken"]
["alfred-james-clark"]
["alfred-lerner"]
["donald-hall"]
["alfred-oetker"]
["alfred-von-oppenheim"]
["alfred-west-jr"]
["alfredo-egydio-arruda-villela-filho"]
["alfredo-harp-helu"]
["ali-ibrahim-agaoglu"]
["ali-metin-kazanci"]
["alice-walton"]
["alicia-koplowitz"]
["alijan-ibragimov"]
["aliko-dangote"]
["alisher-usmanov"]
["allan-gray"]
["allan-slaight"]
["allan-wong"]
["aloke-lohia"]
["aloys-wobben"]
["aloysio-de-andrade-faria"]
["alvaro-noboa"]
["alvaro-saieh-bendeck"]
["amalia-lacroze-de-fortabat"]
["amancio-ortega"]
["amar-bose"]
["americo-amorim"]
["edward-stack"]
["amos-hostetter-jr"]
["amy-wyss"]
["an-kang"]
["ana-lucia-de-mattos-barretto-villela"]
["ana-maria-brescia-cafferata"]
["ana-maria-marcondes-penido-sant'anna"]
["anacleto-angelini"]
["anand-burman"]
["anand-jain"]
["anand-mahindra"]
["ananda-krishnan"]
["anas-sefrioui"]
["anatoly-lomakin"]
["anatoly-sedykh"]
["anatoly-skurov"]
["anders-holch-povlsen"]
["andre-esteves"]
["andré-kudelski"]
["andrea-della-valle"]
["andrea-reimann-ciardelli"]
["andreas-halvorsen"]
["fred-deluca"]
["andreas-struengmann"]
["andreas-von-bechtolsheim"]
["andrei-bokarev"]
["andrei-borodin"]
["andrei-filatov"]
["andrei-guriev"]
["andrei-klyamko"]
["andrei-komarov"]
["andrei-kosogov"]
["andrei-kozitsyn"]
["andrei-kuzyaev"]
["andrei-molchanov"]
["andrei-rappoport"]
["andrei-rogachev"]
["andrei-skoch"]
["andrej-babis"]
["andres-santo-domingo"]
["andrew-&-peggy-cherng"]
["andrew-beal"]
["andrew-currie"]
["andrew-forrest"]
["andrew-gotianun"]
["andrew-mckelvey"]
["andrew-tan"]
["andrey-melnichenko"]
["andrey-verevskiy"]
["andronico-luksic"]
["herbert-louis"]
["angela-bennett"]
["angela-leong"]
["anil-agarwal"]
["anil-ambani"]
["anita-zucker"]
["ann-walton-kroenke"]
["anna-maria-braun"]
["anne-beaufour"]
["hong-xiaobo"]
["anne-gittinger"]
["anne-windfohr-marion"]
["anneliese-brost"]
["anthony-bamford"]
["anthony-langley"]
["anthony-o'reilly"]
["anthony-pratt"]
["anthony-pritzker"]
["anton-kathrein-jr"]
["anton-rupert"]
["anton-schlecker"]
["antonia-johnson"]
["antonio-champalimaud"]
["antonio-del-valle-ruiz"]
["antonio-ermirio-de-moraes"]
["antonio-jose-carneiro"]
["antonio-luiz-seabra"]
["antony-ressler"]
["antti-aarnio-wihuri"]
["antti-herlin"]
["benedicta-chamberlain"]
["anurag-dikshit"]
["ao-xiaoqiang"]
["aras-agalarov"]
["archie-aldis-emmerson"]
["aristotelis-mistakidis"]
["arkady-rotenberg"]
["arkady-volozh"]
["arne-wilhelmsen"]
["arnon-milchan"]
["arthur-blank"]
["arthur-irving"]
["arthur-rock"]
["arthur-williams-jr"]
["arturo-moreno"]
["ashwin-dani"]
["asim-kibar"]
["asok-kumar-hiranandani"]
["aubrey-mcclendon"]
["august-oetker"]
["august-von-finck"]
["augusto-&-giorgio-perfetti"]
["austen-cargill-ii"]
["austin-hearst"]
["axel-oberwelland"]
["jean-charles-naouri"]
["ayhan-sahenk"]
["ayman-asfari"]
["ayman-hariri"]
["azad-moopen"]
["azim-premji"]
["aziz-akhannouch"]
["b-wayne-hughes"]
["b-wayne-hughes-jr"]
["br-shetty"]
["bramalinga-raju"]
["baba-kalyani"]
["bachtiar-karim"]
["bahaa-hariri"]
["bakhytbek-baiseitov"]
["baldwin-and-nikolaus-knauf"]
["balkrishan-goenka"]
["banyong-lamsam"]
["josephine-louis"]
["barbara-cox-anthony"]
["barbara-davis"]
["barbara-piasecka-johnson"]
["baron-hans-heinrich-thyssen-bornesmisza"]
["barry-(pai-li)-lin"]
["barry-diller"]
["barry-lam"]
["bassam-alghanim"]
["bautista-soler"]
["beate-heister-&-karl-albrecht-jr"]
["beatrix-queen"]
["joyce-raley-teel"]
["belmiro-de-azevedo"]
["ben-silbermann"]
["karen-johnson-boyd"]
["benjamin-de-rothschild"]
["bennett-dorrance"]
["benny-subianto"]
["bent-jensen"]
["benu-gopal-bangur"]
["beny-steinmetz"]
["bergit-douglas"]
["bernard-(barry)-sherman"]
["bernard-arnault"]
["bernard-broermann"]
["bernard-ecclestone"]
["bernard-fraisse"]
["bernard-marcus"]
["bernard-osher"]
["bernard-saul-ii"]
["bernardo-garza-sada"]
["bernardo-matte"]
["bernd-freier"]
["bernhard-braun-luedicke"]
["bertil-hult"]
["beda-diethelm"]
["bharat-desai"]
["bhupendra-kumar-modi"]
["bidzina-ivanishvili"]
["david-sainsbury"]
["bill-alfond"]
["bill-gates"]
["bill-gross"]
["bill-haslam"]
["billy-joe-(red)-mccombs"]
["billy-kan"]
["binny-bansal"]
["binod-chaudhary"]
["birgit-rausing"]
["bjorgolfur-thor-bjorgolfsson"]
["blair-parry-okeden"]
["blairo-maggi"]
["blase-golisano"]
["bob-ell"]
["bob-parsons"]
["bobby-murphy"]
["boonchai-bencharongkul"]
["boonsong-asavabhokhin"]
["boris-berezovsky"]
["boris-mints"]
["boris-rotenberg"]
["brad-kelley"]
["brandt-louie"]
["brian-acton"]
["brian-chesky"]
["brian-higgins"]
["brian-roberts"]
["brian-sheth"]
["brij-bhushan-singal"]
["li-yongjun"]
["bruce-cheng"]
["bruce-halle"]
["bruce-karsh"]
["bruce-kovner"]
["bruce-mccaw"]
["bruce-nordstrom"]
["bruce-wasserstein"]
["liang-zhaoxian"]
["bruno-schroder"]
["bruno-steinhoff"]
["bubba-cathy"]
["bulat-utemuratov"]
["bulent-eczacibasi"]
["c-dean-metropoulos"]
["lv-dalong"]
["cf-chan"]
["cai-dongqing"]
["cai-kui"]
["cai-xiaoru"]
["calisto-tanzi"]
["calvin-ayre"]
["cameron-mackintosh"]
["cao-kejian"]
["cao-longxiang"]
["caprotti-bernardo"]
["cargill-macmillan"]
["cargill-macmillan-iii"]
["carl-bennet"]
["carl-berg"]
["carl-cook"]
["carl-ferdinand-oetker"]
["carl-icahn"]
["carl-lindner-jr"]
["carl-pohlad"]
["carlo-benetton"]
["carlo-de-benedetti"]
["carlo-fidani"]
["carlos-&-alejandro-bulgheroni"]
["carlos-alberto-sicupira"]
["carlos-ardila-lulle"]
["carlos-francisco-ribeiro-jereissati"]
["carlos-hank-rhon"]
["carlos-martins"]
["carlos-peralta"]
["carlos-rodriguez-pastor"]
["carlos-sanchez"]
["carlos-sicupira"]
["carlos-slim-helu"]
["carol-jenkins-barnett"]
["caroline-hagen-kjos"]
["carolus-nolet-sr"]
["carrie-perrodo"]
["catherine-lozick"]
["cesar-mata-pires"]
["chaijudh-karnasuta"]
["chairul-tanjung"]
["chaleo-yoovidhya"]
["chan-laiwa"]
["chan-tan-ching-fen"]
["chanchai-ruayrungruang"]
["chandru-raheja"]
["chang-pyung-soon"]
["chang-yun-chung"]
["chang-yung-fa"]
["chao-teng-hsiung"]
["charlene-de-carvalho-heineken"]
["charles-and-rupert-johnson"]
["charles-bartlett-johnson"]
["charles-brandes"]
["charles-bronfman"]
["horst-brandstaetter"]
["hubert-d'ornano"]
["charles-dolan"]
["charles-dunstone"]
["charles-edelstenne"]
["charles-ergen"]
["charles-gates-jr"]
["charles-koch"]
["charles-munger"]
["charles-schwab"]
["charles-simonyi"]
["charles-sirois"]
["charles-zegar"]
["charlotte-colket-weber"]
["charlotte-soderstrom"]
["charoen-sirivadhanabhakdi"]
["chase-coleman-iii"]
["chatri-sophonpanich"]
["meg-whitman"]
["che-jianxin"]
["che-jianxing"]
["chee-chen-tung"]
["chen-bang"]
["chen-baozhen"]
["chen-din-hwa"]
["chen-fashu"]
["chen-hua"]
["chen-jiancheng"]
["chen-jiangtao"]
["chen-jianhua"]
["chen-jianqiang"]
["chen-jinshi"]
["brunello-cucinelli"]
["chen-jinxia"]
["chen-lip-keong"]
["chen-miaolin"]
["chen-qingzhou"]
["nikolai-tsvetkov"]
["chen-yansheng"]
["chen-yihong"]
["chen-yung-tai"]
["chen din-hwa"]
["chen-fu-koo"]
["cheng-wei"]
["cheng-xianfeng"]
["cheng-xue"]
["cheng-yu-tung"]
["cher-wang-wenchi-chen"]
["chris-dawson"]
["chey-ki-won"]
["chey-tae-won"]
["chin-jong-hwa"]
["chip-wilson"]
["chirayu-amin"]
["cho-chang-gul"]
["cho-jung-ho"]
["cho-tak-wong"]
["cho-yang-rai"]
["choo-chong-ngen"]
["choy-kam-lok"]
["robert-piccinini"]
["chris-wallin"]
["ron-sim"]
["christian-&-olivier-courtin-clarins"]
["christian-oetker"]
["christoffel-wiese"]
["christoph-blocher"]
["christoph-henkel"]
["christoph-zeller"]
["christopher-burch"]
["christopher-chandler"]
["christopher-cline"]
["christopher-goldsbury"]
["christopher-hohn"]
["sergei-katsiev"]
["christy-walton"]
["shen-ya"]
["chu-lam-yiu"]
["chu-mang-yee"]
["chung-eui-sun"]
["chung-mong-joon"]
["chung-mong-koo"]
["chung-yong-jin"]
["cigdem-sabanci-bilen"]
["ciputra"]
["shishir-bajaj"]
["clayton-mathile"]
["clayton-riddell"]
["clelia-haji-ioannou"]
["clemens-toennies"]
["clement-fayat"]
["clemmie-spangler-jr"]
["sidharth-burman"]
["clive-calder"]
["conrad-prebys"]
["constantino-de-oliveira-jr"]
["craig-mccaw"]
["cui-lijie"]
["cui-zhixiang"]
["curt-engelhorn"]
["curtis-leroy-carlson"]
["cyrus-poonawalla"]
["d-leopoldo-del-pino-y-calvo-sotelo"]
["dagmar-dolby"]
["tory-burch"]
["daisy-igel"]
["dan-cathy"]
["dan-duncan"]
["dan-friedkin"]
["dan-gertler"]
["dan-olsson"]
["dan-snyder"]
["dan-wilks"]
["daniel-d'aniello"]
["daniel-gilbert"]
["daniel-harrison-iii"]
["daniel-hirschfeld"]
["daniel-loeb"]
["vg-siddhartha"]
["daniel-och"]
["daniel-pritzker"]
["daniel-roullier"]
["daniel-servitje-montull"]
["daniel-tsai"]
["daniel-ziff"]
["daniela-herz"]
["danil-khachaturov"]
["dannine-avara"]
["danny-tan-chee-sing"]
["dariusz-milek"]
["darwin-deason"]
["daryl-katz"]
["david-&-frederick-barclay"]
["david-&-simon-reuben"]
["david-and-cliff-lede"]
["david-azrieli"]
["david-bonderman"]
["david-booth"]
["david-bromilow"]
["david-cheriton"]
["david-chow"]
["david-consunji"]
["david-copley"]
["david-davidovich"]
["david-duffield"]
["david-einhorn"]
["david-filo"]
["david-geffen"]
["david-gottesman"]
["david-green"]
["david-hains"]
["david-harding"]
["david-hearst-jr"]
["david-hindawi"]
["david-koch"]
["david-lichtenstein"]
["venugopal-dhoot"]
["david-murdock"]
["david-nahmad"]
["david-penaloza-alanis"]
["david-penaloza-sandoval"]
["david-rich"]
["david-rockefeller-sr"]
["david-rubenstein"]
["vladimir-gruzdev"]
["david-shaw"]
["david-siegel"]
["david-sun"]
["david-teoh"]
["david-tepper"]
["david-thomson"]
["david-walentas"]
["david-william-grainger"]
["david-yakobashvili"]
["dean-white"]
["den-fujita"]
["denis-defforey"]
["denis-o'brien"]
["denise-coates"]
["denise-york"]
["deniz-sahenk"]
["dennis-albaugh"]
["dennis-bakke"]
["dennis-washington"]
["dermot-desmond"]
["desh-bandhu-gupta"]
["desmond-sacco"]
["devendra-jain"]
["dhanin-chearavanont"]
["dhirubhai-ambani"]
["diane-hendricks"]
["didier-primat"]
["diego-della-valle"]
["dieter-schaub"]
["dieter-schnabel"]
["dieter-schwarz"]
["dieter-von-holtzbrinck"]
["dietmar-hopp"]
["dietrich-mateschitz"]
["dilek-sabanci"]
["dilip-shanghvi"]
["dinara-kulibaeva"]
["ding-shijia"]
["ding-shizhong"]
["dinu-patriciu"]
["dirce-navarro-de-camargo"]
["dirk-rossmann"]
["dirk-ziff"]
["djoko-susanto"]
["djuhar-sutanto"]
["dmitry-ananyev"]
["dmitry-kamenshchik"]
["dmitry-korzhev"]
["xiao-fen"]
["dmitry-pumpyansky"]
["dmitry-rybolovlev"]
["dmitry-troitsky"]
["domenico-dolce"]
["dominika-&-sebastian-kulczyk"]
["don-gao"]
["don-hankey"]
["don-simplot"]
["dona-bertarelli"]
["donald-bren"]
["donald-fisher"]
["donald-friese"]
["donald-gordon"]
["yang-yuanqing"]
["donald-horton"]
["donald-l-bren"]
["donald-l-sturm"]
["donald-newhouse"]
["donald-schneider"]
["donald-sterling"]
["donald-trump"]
["doris-fisher"]
["dorothea-steinbruch"]
["dorrance-hamilton"]
["dou-zhenggang"]
["douglas-fregin"]
["douglas-hsu"]
["douglas-leone"]
["drew-houston"]
["du-jiangtao"]
["du-jiangtao"]
["du-shuanghua"]
["dulce-pugliese-de-godoy-bueno"]
["dustin-moskovitz"]
["dwight-schar"]
["e-joe-shoen"]
["e-pierce-marshall"]
["e-stanley-kroenke"]
["eddie-&-sol-zakay"]
["eddy-kusnadi-sariaatmadja"]
["edgar-bronfman-sr"]
["edgar-de-picciotto"]
["edir-macedo"]
["edmond-safra"]
["edmund-ansin"]
["edmund-wattis-littlefield"]
["edouard-carmignac"]
["edson-de-godoy-bueno"]
["eduard-shifrin"]
["eduardo-belmont-anderson"]
["eduardo-eurnekian"]
["eduardo-hochschild"]
["eduardo-saverin"]
["edward-bass"]
["edward-debartolo-jr"]
["edward-johnson-iii"]
["edward-lampert"]
["edward-lewis-gaylord"]
["edward-rogers"]
["edward-roski-jr"]
["yu-awu"]
["edwin-leong"]
["edwin-soeryadjaya"]
["eggon-da-silva"]
["eike-batista"]
["eitaro-itoyama"]
["eka-tjipta-widjaja"]
["elaine-tettemer-marshall"]
["elaine-wynn"]
["elena-baturina"]
["eli-broad"]
["elie-horn"]
["eliezer-steinbruch"]
["eliodoro-matte"]
["yuri-gushchin"]
["elisio-alexandre-soares-dos-santos"]
["elizabeth-holmes"]
["elizabeth-mohn"]
["elizabeth-wiskemann"]
["elon-musk"]
["els-blokker"]
["emanuele-(lino)-saputo"]
["emanuella-barilla"]
["emilio-azcarraga-jean"]
["emilio-botín"]
["emilio-gnutti"]
["emmanuel-besnier"]
["ennio-doris"]
["enric-bernat"]
["enrique-banuelos"]
["enrique-razon-jr"]
["eric-lefkofsky"]
["eric-schmidt"]
["erich-kellerhals"]
["erik-selin"]
["erika-pohl-ströher"]
["erivan-haub"]
["erman-ilicak"]
["ermirio-pereira-de-moraes"]
["ernest-gallo"]
["ernest-rady"]
["ernest-stempel"]
["ernestina-herrera-de-noble"]
["ernesto-bertarelli"]
["erol-sabanci"]
["erwin-franz-mueller"]
["esther-grether"]
["esther-koplowitz"]
["eugen-viehof"]
["eugene-kaspersky"]
["eugene-melnyk"]
["eugene-wu"]
["eugenio-garza-laguera"]
["eugenio-lopez"]
["eva-gonda-de-rivera"]
["eva-maria-braun-luedicke"]
["eva-maria-bucher-haefner"]
["evan-sharp"]
["evan-spiegel"]
["evan-williams"]
["evelyn-danzig-haas"]
["evgeny-(eugene)-shvidler"]
["eyal-ofer"]
["ezra-nahmad"]
["fabio-bertarelli"]
["fahd-hariri"]
["faisal-bin-qassim-al-thani"]
["families-brost"]
["families-funke-&-brost"]
["families-seydoux/schlumberger"]
["family-al-rajhi"]
["family-aramburuzabala"]
["family-autrey"]
["family-bemberg"]
["family-boehringer"]
["family-bombardier"]
["family-brenninkmeyer"]
["family-brescia"]
["family-camargo"]
["family-cargill"]
["family-chey-jong-hyon"]
["family-conle"]
["family-freudenberg"]
["family-goulandris"]
["family-haas"]
["family-haindl"]
["family-haniel"]
["family-hearst"]
["family-henkel"]
["family-hinduja"]
["family-isono"]
["family-iwasaki"]
["family-juffali"]
["family-kim-suk-won"]
["family-kim-woo-choong"]
["family-knauf"]
["family-koo-cha-kyung"]
["family-larragoiti"]
["family-lee"]
["family-lee-hong-chiu"]
["family-leibbrand"]
["family-lemos"]
["family-lo-ying-shek"]
["family-matter"]
["family-mccaw"]
["family-merck"]
["family-moores"]
["family-otani"]
["family-peugeot"]
["family-porsche"]
["family-quek-leng-chan"]
["family-reimann"]
["family-rossi-di-montelera"]
["family-rothschild"]
["family-schickedanz"]
["family-shi-wen-long"]
["family-simon"]
["family-stroeher"]
["family-strwher"]
["family-suharto"]
["family-verspieren"]
["family-von-siemens"]
["family-werhahn"]
["family-wonowidjojo"]
["family-yaw-teck-seng"]
["fan-zhaoxia"]
["fang-tonghua"]
["fang-wei"]
["farhad-moshiri"]
["farkhad-akhmedov"]
["farris-wilks"]
["faruk-eczacibasi"]
["faruk-yalcin"]
["fatma-yazici"]
["fawaz-alhokair"]
["fawzi-al-kharafi"]
["fayez-sarofim"]
["femi-otedola"]
["feng-hailiang"]
["fentener-van-vlissingen"]
["ferdinand-and-family-piech"]
["ferit-faik-sahenk"]
["ferit-sahenk"]
["fernando-roberto-moreira-salles"]
["fernando-roig"]
["fidel-castro"]
["filaret-galchev"]
["filiz-sahenk"]
["finn-rausing"]
["fiona-geminder"]
["florentino-perez"]
["folorunsho-alakija"]
["forrest-mars-jr"]
["forrest-preston"]
["frances-koshland-geballe"]
["francesco-gaetano-caltagirone"]
["francesco-micheli"]
["francesco-saverio-salini"]
["francis-choi"]
["francis-yeoh"]
["francisco-ivens-de-sa-dias-branco"]
["francisco-jose-riberas-mera"]
["francois-pinault"]
["frank-(vasile)-timis"]
["frank-batten-sr"]
["frank-fertitta-iii"]
["frank-hasenfratz"]
["frank-levinson"]
["frank-lowy"]
["frank-stronach"]
["frank-wang"]
["franklin-booth-jr"]
["fred-chang"]
["zelimkhan-mutsoev"]
["fred-lennon"]
["frederick-field"]
["frederick-smith"]
["frederick-woodruff-field"]
["frederik-gh-meijer"]
["frederik-paulsen"]
["fredrik-lundberg"]
["friede-springer"]
["friederike-braun-luedicke"]
["friedhelm-loh"]
["friedrich-flick-jr"]
["friedrich-knapp"]
["frits-goldschmeding"]
["fritz-draexlmaier"]
["fu-guangming"]
["fu-kwan"]
["fu-liquan"]
["fu-meicheng"]
["fukuzo-iwasaki"]
["g-m-rao"]
["gv-krishna-reddy"]
["anne-cox-chambers"]
["gabe-newell"]
["gabriel-escarrer"]
["gad-rausing"]
["gail-miller"]
["galen-weston"]
["gao-dekang"]
["gao-tianguo"]
["garibaldi-thohir"]
["garrett-camp"]
["garry-weston"]
["chen-tianqiao"]
["gary-comer"]
["gary-fegel"]
["gary-magness"]
["gary-michelson"]
["gary-rollins"]
["gary-winnick"]
["gaston-vidigal"]
["gautam-adani"]
["gautam-thapar"]
["gavril-yushvaev"]
["gay-simplot"]
["gayle-cook"]
["geng-jianming"]
["gennady-kozovoy"]
["gennady-timchenko"]
["georg-schaeffler"]
["georg-thyssen-bornemisza"]
["georg-von-opel"]
["george-argyros"]
["george-bishop"]
["george-economou"]
["george-hearst-jr"]
["george-joseph"]
["george-kaiser"]
["george-lindemann"]
["george-lucas"]
["george-marcus"]
["george-mitchell"]
["george-roberts"]
["george-soros"]
["george-steinbrenner-iii"]
["george-ty"]
["george-wong"]
["george-ying-chow-lien"]
["gerald-cadogan"]
["gerald-cavendish-grosvenor"]
["gerald-harvey"]
["gerald-j-ford"]
["gerald-schwartz"]
["gérard-louis-dreyfus"]
["gerard-mulliez"]
["gerard-wertheimer"]
["gerd-brachmann"]
["gerhard-schmid"]
["germain-lamonde"]
["german-khan"]
["german-larrea-mota-velasco"]
["gernot-langes-swarovski"]
["gerry-harvey"]
["gian-marco-moratti"]
["giancarlo-franceso-civita"]
["gianluigi-&-rafaela-aponte"]
["gil-shwed"]
["gilberto-benetton"]
["gilles-martin"]
["gina-rinehart"]
["giorgio-armani"]
["giovanni-agnelli"]
["giuliana-benetton"]
["giuseppe-de'longhi"]
["gjert-wilhelmsen"]
["gleb-fetisov"]
["glen-taylor"]
["glenn-dubin"]
["gloria-von-thurn-und-taxis"]
["god-nisanov"]
["goh-cheng-liang"]
["goh-peng-ooi"]
["goh-tong-lim"]
["gong-hongjia"]
["gordon-getty"]
["gordon-moore"]
["james-clark"]
["goroemon-yoshimoto"]
["graeme-hart"]
["graham-kirkham"]
["graham-weston"]
["gregorio-perez-companc"]
["gu-wei"]
["gudrun-heine"]
["guenter-herz"]
["guenther-fielmann"]
["guenther-lehmann"]
["guido-barilla"]
["guilherme-paulus"]
["guilherme-peirao-leal"]
["guo-guangchang"]
["jiang-ning"]
["gururaj,-e-deshpande"]
["gustaf-douglas"]
["gustav-magnar-witzoe"]
["gustavo-cisneros"]
["gustavo-denegri"]
["guy-laliberte"]
["gwendolyn-sontheim-meyer"]
["h-fisk-johnson"]
["h-ross-perot-jr"]
["h-ross-perot-sr"]
["h-wayne-huizenga"]
["habil-khorakiwala"]
["hafez-al-assad-president"]
["haim-saban"]
["hajime-satomi"]
["hal-jackman"]
["hamad-bin-khalifa-al-thani"]
["hamdi-akin"]
["hamdi-ulukaya"]
["hamilton-james"]
["han-chang-woo"]
["han-junliang"]
["han-tao"]
["hank-&-doug-meijer"]
["hanni-toosbuy-kasprzak"]
["hans-georg-naeder"]
["hans-joachim-langmann"]
["hans-melchers"]
["hans-peter-wild"]
["hans-rausing"]
["hans-riegel"]
["hans-strothoff"]
["hansjoerg-wyss"]
["hans-werner-hector"]
["harindarpal-banga"]
["harjo-sutanto"]
["harold-f-lenfest"]
["harold-fitzgerald-lenfest"]
["harold-hamm"]
["harold-simmons"]
["harrison-mccain"]
["harry-and-family-oppenheimer"]
["harry-brakemann-helmsley"]
["harry-stine"]
["harry-triguboff"]
["harsh-goenka"]
["harsh-mariwala"]
["harvey-chaplin"]
["hary-tanoesoedibjo"]
["hasan-colakoglu"]
["hasmukh-chudgar"]
["hasso-plattner"]
["he-jinming"]
["he-qiaonv"]
["he-xiangjian"]
["he-xuechu"]
["he-yamin"]
["he-zhiping"]
["he-zhusheng"]
["hedda-brahm-droege"]
["heidi-horten"]
["heikki-kyostila"]
["heinrich-deichmann"]
["heinz-bauer"]
["heinz-hermann-thiele"]
["heinz-georg-baus"]
["heinz-horst-deichmann"]
["helen-johnson-leipold"]
["helen-walton"]
["helena-revoredo"]
["helmut-sohmen"]
["heloise-waislitz"]
["henadiy-boholyubov"]
["henri-and-eric-andre"]
["henri-beaufour"]
["henrique-constantino"]
["henry-c-yuen"]
["henry-engelhardt"]
["henry-fok"]
["henry-fong-yun-wah"]
["henry-hillman"]
["henry-kravis"]
["henry-nicholas-iii"]
["henry-samueli"]
["henry-swieca"]
["henry-sy"]
["henry-zachry-jr"]
["herb-chambers"]
["herbert-allen-jr"]
["herbert-kohler-jr"]
["mehmet-emin-karamehmet"]
["herbert-sandler"]
["herbert-siegel"]
["herbert-simon"]
["herman-langness"]
["hermann-schnabel"]
["hideo-morita"]
["hideyuki-busujima"]
["hiew-king-tiong"]
["hilton-schlosberg"]
["hind-hariri"]
["hinduja-brothers"]
["hiroko-takei"]
["hiroshi-mikitani"]
["hiroshi-takei"]
["hiroshi-tane"]
["hiroshi-yamauchi"]
["hisakazu-yamaguchi"]
["hisakichi-yamaguchi"]
["hoang-kieu"]
["hoffmann-and-sacher-families-oeri"]
["hon-chiu-lee"]
["hong-leong-oei"]
["hong-ra-hee"]
["hong-seok-joh"]
["aydin-dogan"]
["hope-hill-van-beuren"]
["nicholas-woodman"]
["horst-julius-pudwill"]
["horst-paulmann"]
["horst-wortmann"]
["hortensia-herrero"]
["howard-jenkins"]
["howard-marks"]
["howard-schultz"]
["hu-kaijun"]
["hua-bangsong"]
["hua-xuande"]
["hua-yong"]
["huang-bingwen"]
["huang-bingwen"]
["huang-chulong"]
["huang-hongyun"]
["huang-hongyun"]
["huang-li"]
["huang-maoru"]
["huang-qiaoling"]
["huang-qisen"]
["huang-rulun"]
["huang-shaowu"]
["huang-shih-tsai"]
["huang-wei"]
["huang-wei"]
["ryan-kavanaugh"]
["huang-wenji"]
["huang-wenzai"]
["huang-yi"]
["huang-zelan"]
["huang-zhenda"]
["hubert-burda"]
["wang-qinghui"]
["hubertus-benteler"]
["hugo-mann"]
["hugo-ribeiro"]
["hui-ka-yan"]
["hui-lin-chit"]
["hui-wing-mau"]
["hung-yau-lit"]
["huo-qinghua"]
["hur-young-in"]
["husain-djojonegoro"]
["husnu-ozyegin"]
["hussain-sajwani"]
["ian-&-richard-livingstone"]
["ian-wood"]
["idan-ofer"]
["igor-altushkin"]
["igor-kesaev"]
["igor-makarov"]
["igor-olenicoff"]
["igor-yakovlev"]
["igor-zyuzin"]
["ihor-kolomoyskyy"]
["ikuo-ogiwara"]
["ilkka-herlin"]
["ilona-herlin"]
["imogene-powers-johnson"]
["indu-jain"]
["wang-yongping"]
["ingvar-kamprad"]
["ioan-niculae"]
["ion-tiriac"]
["ira-rennert"]
["iris-fontbona"]
["irwin-jacobs"]
["isaac-larian"]
["isaac-perlmutter"]
["isaac-saba-raffoul"]
["isabel-dos-santos"]
["isak-andic"]
["ishibashi-kanichiro"]
["isidoro-alvarez"]
["iskander-makhmudov"]
["israel-asper"]
["israel-englander"]
["issad-rebrab"]
["itamar-locks"]
["itoyama-eitaro"]
["ivan-glasenberg"]
["j-deleon"]
["j-christopher-flowers"]
["j-christopher-reyes"]
["j-joe-ricketts"]
["j-michael-pearson"]
["j-tomilson-hill"]
["jack-cowin"]
["jack-dangermond"]
["jack-dorsey"]
["jack-ma"]
["jack-taylor"]
["jackson-stephens"]
["jacky-xu"]
["jacob-(kobi)-&-yehudith-(jud)-richter"]
["jacqueline-desmarais"]
["jacqueline-mars"]
["jacques-d'amours"]
["wang-zhongjun"]
["jacques-saade"]
["jacques-servier"]
["jaime-botin"]
["jaime-gilinski-bacal"]
["jaime-said-demarfa"]
["jaime-zobel-de-ayala"]
["jaiprakash-gaur"]
["james-&-arthur-irving"]
["james-balsillie"]
["james-c-kennedy"]
["james-cargill-ii"]
["james-cayne"]
["james-chambers"]
["alberto-cortina"]
["james-coulter"]
["james-dinan"]
["james-dyson"]
["james-france"]
["james-goodnight"]
["james-irsay"]
["james-irving"]
["james-jannard"]
["james-kim"]
["james-leininger"]
["james-leprino"]
["james-moran"]
["james-packer"]
["james-ratcliffe"]
["james-simons"]
["james-sorenson"]
["jamshyd-godrej"]
["jan-koum"]
["jan-kulczyk"]
["jane-lauder"]
["jane-yan"]
["jaran-chiaravanont"]
["jasminder-singh"]
["jason-chang"]
["jason-jiang"]
["jassim-al-kharafi"]
["jay-arthur-pritzker"]
["jay-paul"]
["jay-robert-(jb)-pritzker"]
["jay-s-walker"]
["jay-van-andel"]
["jay-y-lee"]
["jayme-garfinkel"]
["jean-(gigi)-pritzker"]
["jean-burelle"]
["leonid-simanovsky"]
["jean-coutu"]
["jean-pierre-cayard"]
["andreas-pohl"]
["jean-claude-decaux"]
["reinfried-pohl"]
["jean-louis-dumas"]
["jean-michel-besnier"]
["jeff-bezos"]
["jeff-greene"]
["jeff-rothschild"]
["jeff-sutton"]
["jeffery-hildebrand"]
["jeffrey-gundlach"]
["jeffrey-katzenberg"]
["jeffrey-koo-jr"]
["jeffrey-koo-sr"]
["jeffrey-lorberbaum"]
["jeffrey-lurie"]
["jeffrey-skoll"]
["jennifer-pritzker"]
["jeremy-jacobs-sr"]
["jerome-kohlberg-jr"]
["jeronimo-arango"]
["jerry-jones"]
["jerry-reinsdorf"]
["jerry-speyer"]
["jerry-yang"]
["jerry-zucker"]
["jess-jackson"]
["jesse-robinson"]
["jesus-de-polanco"]
["ji-changqun"]
["jia-yueting"]
["jiang-bin"]
["richard-chilton-jr"]
["jiang-rensheng"]
["jiang-wei"]
["jiang-weiping"]
["jiang-zhaobai"]
["jim-breyer"]
["jim-davis"]
["jim-davis"]
["jim-justice-ii"]
["jim-pattison"]
["jim-thompson"]
["jim-walton"]
["jimmy-haslam"]
["jin-sook-&-do-won-chang"]
["jitendra-virwani"]
["joachim-herz"]
["joan-beverly-kroc"]
["joan-tisch"]
["joanne-(jk)-rowling"]
["joao-alves-de-queiroz-filho"]
["joao-moreira-salles"]
["joao-roberto-marinho"]
["joaquim-constantino-neto"]
["joaquin-guzman-loera"]
["joaquín-rivero"]
["joe-gebbia"]
["joe-lewis"]
["joe-mansueto"]
["reinfried-pohl-jr"]
["johan-johannson"]
["johann-graf"]
["johann-rupert"]
["johanna-braun"]
["roustam-tariko"]
["johannes-karcher"]
["john-a-fentener-van-vlissingen"]
["john-a-sobrato"]
["john-abele"]
["john-anderson"]
["john-arnold"]
["john-arrillaga"]
["john-bloor"]
["john-brown"]
["john-calamos"]
["john-catsimatidis"]
["john-caudwell"]
["john-coates"]
["john-de-mol"]
["john-doerr"]
["john-dorrance-iii"]
["john-edson"]
["john-farber"]
["john-fisher"]
["john-fredriksen"]
["john-gandel"]
["john-gokongwei-jr"]
["john-grayken"]
["john-hargreaves"]
["john-henry"]
["john-jahr"]
["john-kapoor"]
["john-kluge"]
["john-krehbiel-jr"]
["john-latsis"]
["john-macmillan"]
["john-macmillan-iii"]
["john-malone"]
["john-mars"]
["john-martin"]
["john-mccaw-jr"]
["john-menard-jr"]
["john-middleton"]
["john-morgridge"]
["john-morris"]
["john-overdeck"]
["john-paul-dejoria"]
["john-paulson"]
["john-pritzker"]
["john-reece"]
["john-sall"]
["john-simplot"]
["john-sperling"]
["john-stanton"]
["john-todd"]
["john-tu"]
["john-tyson"]
["john-van-lieshout"]
["john-walton"]
["john-whittaker"]
["john-willard-(bill)-marriott-jr"]
["johnelle-hunt"]
["susan-hirt-hagen"]
["jon-stryker"]
["jon-yarbrough"]
["jonas-kamprad"]
["jonathan-gray"]
["jonathan-harmsworth"]
["jonathan-nelson"]
["alan-auerbach"]
["joop-van-den-ende"]
["jorge-larrea"]
["jorge-moll-filho"]
["jorge-paulo-lemann"]
["jorge-perez"]
["jorge-rodriguez-rodriguez"]
["jorgen-clausen"]
["jorgen-philip-sorensen"]
["jorn-rausing"]
["jose-&-francisco-jose-calderon-rojas"]
["jose-and-family-cutrale"]
["jose-and-jaime-said"]
["jose-berardo"]
["jose-ermirio-de-moraes-neto"]
["jose-isaac-peres"]
["jose-llado-fernandez-urrutia"]
["jose-luis-cutrale"]
["josé-manuel-loureda"]
["jose-maria-aristrain"]
["jose-mendes-nogueira"]
["jose-roberto-ermirio-de-moraes"]
["jose-roberto-marinho"]
["josef-boquoi"]
["joseph-&-moise-safra"]
["joseph-craft"]
["joseph-grendys"]
["joseph-lau"]
["joseph-lewis"]
["joseph-safra"]
["joseph-tsai"]
["josephine-haas"]
["alfred-mann"]
["joshua-harris"]
["jost-hellmann"]
["jost-said-saffie"]
["joy-alukkas"]
["christa-gelpke"]
["juan-&-carlos-march"]
["juan-abello"]
["juan-carlos-escotet"]
["juan-cuneo-solari"]
["juan-fernando-belmont-anderson"]
["juan-gallardo-thurlow"]
["juan-maria-riberas-mera"]
["juan-roig"]
["juan-miguel-villar-mir"]
["jude-reyes"]
["judy-faulkner"]
["julia-oetker"]
["julian-robertson-jr"]
["julio-bozano"]
["julio-mario-santo-domingo"]
["julio-mario-santo-domingo-iii"]
["julio-ponce"]
["junichi-murata"]
["jurgen-blickle"]
["ju-yung-and-family-chung"]
["k-anji-reddy"]
["k-dinesh"]
["k-rai-sahi"]
["kagemasa-kozuki"]
["kalanithi-maran"]
["kamil-yazici"]
["kapil-&-rahul-bhatia"]
["karel-komarek"]
["barbara-carlson-gage"]
["karen-pritzker"]
["karl-ehlerding"]
["che-fengsheng"]
["karl-diehl"]
["karl-friedrich-braun"]
["karl-gerhard-schmidt"]
["karl-scheufele-iii"]
["karl-wlaschek"]
["karl-heinz-kipp"]
["karl-johan-persson"]
["karsanbhai-patel"]
["katharina-andresen"]
["katharine-rayner"]
["katherine-tanner"]
["kathryn-mccurry-albertson"]
["katsuhiro-kinoshita"]
["katsumi-tada"]
["kavitark-ram-shriram"]
["kazuo-inamori"]
["kazuo-matsuda"]
["kazuo-okada"]
["ke-xiping"]
["ke-zunhong"]
["keeree-kanjanapas"]
["kei-hoi-pang"]
["keiichiro-takahara"]
["keith-rupert-murdoch"]
["keith-w-mccaw"]
["keizo-saji"]
["kelcy-warren"]
["kemal-uzan"]
["ken-fisher"]
["ken-grossman"]
["kenichi-mabuchi"]
["kenichi-sekiya"]
["kenichiro-sato"]
["kenji-ikemori"]
["kenji-kasahara"]
["kenji-kimura"]
["kenkichi-nakajima"]
["kenneth-adams-jr"]
["kenneth-c-griffin"]
["kenneth-feld"]
["kenneth-hendricks"]
["kenneth-langone"]
["kenneth-lo"]
["kenneth-morrison"]
["kenneth-thomson"]
["kenneth-tuchman"]
["kenny-troutt"]
["kenshin-oshima"]
["kerr-neilson"]
["kerry-packer"]
["kerry-stokes"]
["keshub-mahindra"]
["kevin-plank"]
["khalaf-al-habtoor"]
["khaled,-hayat,-hutham,-lubna-&-mary-olayan"]
["khalid-bin-mahfouz"]
["khoo-teck-puat"]
["kiat-chiaravanont"]
["kiki-barki"]
["kim-beom-su"]
["kim-jung-ju"]
["kim-jun-ki"]
["kim-magness"]
["kim-nam-jung"]
["kim-tack-jin"]
["kim-taek-jin"]
["king-bhumibol-adulyadej"]
["king-faud-bin-abdul-aziz-alsaud"]
["king-pak-fu"]
["clifford-illig"]
["kirill-pisarev"]
["kirill-shamalov"]
["gv-prasad"]
["kirsten-rausing"]
["kishore-mariwala"]
["kjeld-kirk-kristiansen"]
["kjell-inge-rokke"]
["klaus-hellmann"]
["klaus-jacobs"]
["klaus-oberwelland"]
["kiran-mazumdar-shaw"]
["klaus-michael-kuehne"]
["klaus-peter-schulenberg"]
["koh-wee-meng"]
["kommer-damen"]
["kong-jian-min"]
["kirk-kerkorian"]
["konstantin-nikolaev"]
["koo-bon-joon"]
["koo-bon-moo"]
["koo-bon-neung"]
["koo-bon-sik"]
["koos-bekker"]
["kostyantin-zhevago"]
["kp-singh"]
["krit-ratanarak"]
["kuan-kam-hon"]
["kuang-piu-(kp)-chao"]
["kuldip-singh-&-gurbachan-singh-dhingra"]
["kumar-birla"]
["kun-hee-lee"]
["kunio-busujima"]
["kuok-khoon-hong"]
["kurt-krieger"]
["kushal-pal-singh"]
["kutayba-alghanim"]
["kwee-brothers"]
["kwek-leng-beng"]
["kwon-hyuk-bin"]
["kyosuke-kinoshita"]
["l-lowry-mays"]
["lachhman-das-mittal"]
["lakshmi-mittal"]
["lam-kong"]
["lam-wai-ying"]
["lang-walker"]
["larry-page"]
["larry-robbins"]
["larry-rong-zhijian"]
["larry-yung"]
["lars-larsen"]
["lau-cho-kun"]
["laurance-rockefeller"]
["laurence-alan-tisch"]
["laurence-graff"]
["laurene-powell-jobs"]
["laurent-burelle"]
["law-kar-po"]
["lawrence-ellison"]
["lawrence-ho"]
["lawrence-jr-flinn"]
["lawrence-stroll"]
["leandro-rizzuto"]
["lee-bass"]
["lee-boo-jin"]
["lee-hae-jin"]
["lee-ho-jin"]
["lee-hwa-kyung"]
["lee-jay-hyun"]
["lee-jay-yong"]
["lee-joong-keun"]
["lee-kun-hee"]
["lee-man-tat"]
["lee-myung-hee"]
["lee-seng-wee"]
["lee-seo-hyun"]
["lee-shau-kee"]
["lee-shin-cheng"]
["lee,-sid-and-perry-bass"]
["leena-tewari"]
["lei-jufang"]
["lei-jun"]
["len-ainsworth"]
["leng-chan-quek"]
["leo-kirch"]
["leon-black"]
["leon-charney"]
["leon-feffer"]
["leon-g-cooperman"]
["leon-levine"]
["leona-helmsley"]
["leonard-blavatnik"]
["leonard-buckeridge"]
["leonard-lauder"]
["leonard-schleifer"]
["leonard-stern"]
["leonardo-del-vecchio"]
["leonid-boguslavsky"]
["leonid-fedun"]
["leonid-mikhelson"]
["leonid-nevzlin"]
["li-yihai"]
["leonore-annenberg"]
["leslie-alexander"]
["leslie-gonda"]
["leslie-l-and-louis-l-gonda"]
["leslie-lampton"]
["leslie-wexner"]
["lester-crown"]
["leszek-czarnecki"]
["lev-kvetnoi"]
["lev-leviev"]
["li-fuchao"]
["li-fucheng"]
["li-guoqiang"]
["li-hejun"]
["li-hongxin"]
["li-jinyuan"]
["li-ka-shing"]
["li-li"]
["li-liufa"]
["li-san-yim"]
["li-shufu"]
["li-shuirong"]
["li-sze-lim"]
["li-tan"]
["li-wa"]
["li-weiwei"]
["liu-dianbo"]
["li-yong"]
["malvinder-&-shivinder-singh"]
["li-zhaohui"]
["li-zhen"]
["li-zhenjiang"]
["li-zhongchu"]
["lia-maria-aguiar"]
["liang-guangwei"]
["liang-qingde"]
["liang-wengen"]
["liang-xinjun"]
["liang-yunchao"]
["marilyn-carlson-nelson"]
["liao-long-shing"]
["lilian-werninghaus"]
["liliane-bettencourt"]
["lily-safra"]
["lim-goh-tong"]
["lim-hariyanto-wijaya-sarwono"]
["lim-oon-kuin"]
["lim-sung-ki"]
["lin-bin"]
["lin-jianhua"]
["lin-li"]
["lin-ming-cheng"]
["lin-ming-hsiung"]
["lin-rong-san"]
["lin-tianfu"]
["lin-xiucheng"]
["lin-yu-lin"]
["lina-maria-aguiar"]
["linda-pritzker"]
["lindsay-fox"]
["lirio-parisotto"]
["liselott-persson"]
["liu-baolin"]
["liu-changqing"]
["jeanine-dick"]
["liu-gexin"]
["liu-ming-chung"]
["michael-jaharis"]
["liu-qiangdong"]
["liu-shaoxi"]
["liu-xiaodong"]
["satish-reddy"]
["liu-yiqian"]
["liu-yonghao"]
["liu-yongxing"]
["liu-zaiwang"]
["liu-zhenguo"]
["liu-zhiqiang"]
["liu-zhongtian"]
["lloyd-dorfman"]
["lo-siu-yu"]
["lo-siu-tong"]
["lord-rothermere"]
["lorenzo-rossi-di-montelera"]
["lorenzo-fertitta"]
["lorenzo-mendoza"]
["lorenzo-zambrano"]
["loretta-robinson"]
["lottie-tham"]
["zhu-jiman"]
["louis-bacon"]
["louis-gonda"]
["louis-le-duff"]
["low-tuck-kwong"]
["lu-di"]
["lu-feng"]
["lu-guanqiu"]
["lu-xiangyang"]
["lu-yonghua"]
["lu-zhiqiang"]
["luca-barilla"]
["lucia-maggi"]
["luciano-benetton"]
["lucio-&-susan-co"]
["lucio-and-susan-co"]
["lucio-tan"]
["lucy-stitzer"]
["ludwig-merckle"]
["ludwig-theodor-braun"]
["lui-che-woo"]
["luigi-cremonini"]
["luigi-rovati"]
["luis-carlos-sarmiento"]
["luis-del-rivero"]
["luis-enrique-yarur-rey"]
["luis-portillo"]
["luiz-alberto-garcia"]
["lukas-walton"]
["luo-jye"]
["lutz-mario-helmig"]
["airat-shaimiev"]
["lv-yongxiang"]
["lynn-schusterman"]
["ma-yusuff-ali"]
["ma-hong"]
["ma-huateng"]
["ma-jianrong"]
["ma-xingtian"]
["ma-xingtian"]
["maan-al-sanea"]
["madeleine-olsson-ericksson"]
["madeleine-schickedanz"]
["maersk-mc-kinney-moller"]
["magdalena-martullo-blocher"]
["maggie-magerko"]
["mahdi-al-tajir"]
["maja-oeri"]
["majid-al-futtaim"]
["makhtoum-bin-rashid-al-maktoum"]
["malcolm-glazer"]
["malcolm-green-iii-chace"]
["malone-mitchell-iii"]
["albert-shigaboutdinov"]
["manfred-lautenschlager"]
["mangal-prabhat-lodha"]
["manny-mashouf"]
["manoj-bhargava"]
["mansour-bin-zayed-al-nahayan"]
["manuel-jove"]
["manuel-lao-hernandez"]
["manuel-manrique"]
["manuel-moroun"]
["manuel-villar"]
["mao-zhongwu"]
["marc-benioff"]
["marc-coucke"]
["marc-ladreit-de-lacharriere"]
["marc-lasry"]
["marc-rich"]
["marc-rowan"]
["johanna-quandt"]
["marcel-adams"]
["marcel-erni"]
["marcel-herrmann-telles"]
["marcel-telles"]
["marco-tronchetti-provera"]
["marcos-antonio-molina-dos-santos"]
["margaret-cargill"]
["margaret-magerko"]
["margaret-whitman"]
["margaretta-taylor"]
["margarita-louis-dreyfus"]
["marguerite-harbert"]
["maria-asuncion-aramburuzabala"]
["maria-de-lourdes-egydio-villela"]
["maria-del-pino-y-calvo-sotelo"]
["maria-franca-fissolo"]
["maria-helena-moraes-scripilliti"]
["maria-ines-de-lafuente-lacroze"]
["maria-luisa-solari-falabella"]
["maria-elisabeth-schaeffler"]
["marianne-liebmann"]
["marie-besnier-beauvalot"]
["anu-aga"]
["bhadresh-shah"]
["marina-prada"]
["mario-brescia-cafferata"]
["mario-gabelli"]
["mario-lopez-estrada"]
["mario-moretti-polegato"]
["marion-macmillan-pictet"]
["marion-sandler"]
["maritsa-lazari"]
["marius-nacht"]
["mark-coombs"]
["mark-cuban"]
["mark-dixon"]
["mark-mccormack"]
["mark-pincus"]
["mark-scheinberg"]
["mark-shoen"]
["mark-stevens"]
["mark-vadon"]
["mark-walter"]
["mark-zuckerberg"]
["markus-persson"]
["marli-pissollo"]
["martha-ford"]
["martha-ingram"]
["martha-macmillan"]
["martha-robinson-rivers-ingram"]
["martha-stewart"]
["martin-&-olivier-bouygues"]
["martin-ebner"]
["martin-haefner"]
["martin-hilti"]
["martin-moller-nielsen"]
["martin-naughton"]
["martin-selig"]
["martin-viessmann"]
["martua-sitorus"]
["marvin-davis"]
["marvin-herb"]
["brijmohan-lall-munjal"]
["mary-alice-dorrance-malone"]
["mary-anselmo"]
["mary-janet-cargill"]
["masafumi-miyamoto"]
["masahiro-miki"]
["masahiro-noda"]
["masahiro-ohga"]
["masahito-otsuka"]
["masakazu-shiiki"]
["masakuni-osano"]
["masao-morita"]
["masatoshi-ito"]
["masayoshi-son"]
["massimiliana-landini-aleotti"]
["massimo-moratti"]
["mathias-kamprad"]
["matt-&-dan-walsh"]
["matthew-bucksbaum"]
["matthias-reimann-andersen"]
["matthias-reinhart"]
["maurice-alter"]
["maurice-greenberg"]
["maurizio-billi"]
["max-michel-suberville"]
["max-turnauer"]
["maxim-nogotkov"]
["cheung-yan"]
["megdet-rahimkulov"]
["mehmet-aydinlar"]
["ahsen-ozokur"]
["mehmet-hattat"]
["mehmet-nazif-gunal"]
["mehmet-omer-koc"]
["mehmet-rustu-basaran"]
["mehmet-sepil"]
["mehmet-sinan-tara"]
["melinda-esterhazy"]
["melker-schorling"]
["melvin-simon"]
["meng-qingshan"]
["mian-muhammad-mansha"]
["miao-shouliang"]
["michael-&-marian-ilitch"]
["michael-&-rainer-schmidt-ruthenbeck"]
["michael-ashcroft"]
["michael-ashley"]
["michael-birck"]
["michael-bloomberg"]
["michael-chiang"]
["michael-degroote"]
["michael-dell"]
["michael-federmann"]
["michael-hartono"]
["michael-heisley-sr"]
["michael-herz"]
["michael-hilti"]
["michael-hintze"]
["chu-jinfu"]
["michael-jordan"]
["michael-kadoorie"]
["michael-klein"]
["michael-krasny"]
["michael-lee-chin"]
["dmitry-mazepin"]
["michael-milken"]
["michael-moritz"]
["michael-novogratz"]
["michael-otto"]
["michael-pieper"]
["michael-platt"]
["michael-price"]
["michael-rubin"]
["michael-steinhardt"]
["michael-stoschek"]
["michael-strauss"]
["michael-ying"]
["michal-solowow"]
["michel-chalhoub"]
["michel-david-weill"]
["michel-fribourg"]
["michel-leclercq"]
["michele-ferrero"]
["micky-arison"]
["micky-jagtiani"]
["miguel-fluxa-rossello"]
["miguel-krigsner"]
["miguel-mckelvey"]
["mikail-shishkhanov"]
["mike-adenuga"]
["mike-cannon-brookes"]
["mike-lazaridis"]
["mikhail-abyzov"]
["jon-huntsman"]
["mikhail-brudno"]
["mikhail-fedyaev"]
["mikhail-fridman"]
["mikhail-goutseriev"]
["mikhail-gutseriev"]
["mikhail-khodorkovsky"]
["mikhail-prokhorov"]
["milane-frantz"]
["miloud-chaabi"]
["min-kao"]
["ming-hsieh"]
["minoru-mori"]
["miriam-baumann-blocher"]
["mitchell-goldhar"]
["mitchell-jacobson"]
["mitchell-rales"]
["miuccia-prada"]
["mo-tianquan"]
["mochtar-riady"]
["mofatraj-munot"]
["mohamed-(bob)-hasan"]
["mohamed-a-al-bahar"]
["mohamed-al-fayed"]
["mohamed-bin-issa-al-jaber"]
["mohamed-mansour"]
["mohammed-al-amoudi"]
["mohammed-al-barwani"]
["mohammed-al-fahim"]
["mohammed-al-issa"]
["mohammed-al-rajhi"]
["mohammed-dewji"]
["mohammed-ibrahim"]
["mohammed-jameel"]
["mohannad-al-kharafi"]
["mohed-altrad"]
["moise-safra"]
["mokhzani-mahathir"]
["monika-schoeller"]
["monique-louis-dreyfus"]
["jacques-merceron-vicat"]
["montri-jiaravanont"]
["mori-arkin"]
["morris-kahn"]
["mortimer-zuckerman"]
["mikhail-balakin"]
["mukesh-&-anil-ambani"]
["mukesh-ambani"]
["muneaki-masuda"]
["murali-divi"]
["murat-ulker"]
["murat-vargi"]
["murdaya-poo"]
["mustafa-kucuk"]
["mustafa-latif-topbas"]
["mustafa-rahmi-koc"]
["david-mcmurtry"]
["myung-hee-lee"]
["n-murray-edwards"]
["n-murray-edwards"]
["nr-narayana-murthy"]
["nadhmi-auchi"]
["nadir-godrej"]
["naguib-sawiris"]
["najib-mikati"]
["nan-cunhui"]
["nancy-lerner-beck"]
["nancy-walton-laurie"]
["nandan-nilekani"]
["naresh-goyal"]
["naruatsu-baba"]
["nassef-sawiris"]
["nasser-al-kharafi"]
["nasser-khalili"]
["nathan-blecharczyk"]
["nathan-kirsh"]
["nazek-hariri"]
["neal-patterson"]
["neide-helena-de-moraes"]
["neil-bluhm"]
["neil-shen"]
["nelson-peltz"]
["nerijus-numavicius"]
["nevaldo-rocha"]
["nezih-barut"]
["ng-teng-fong"]
["ni-zhaoxing"]
["ni-zugen"]
["nicholas-pritzker-ii"]
["qiu-jianping"]
["nicky-oppenheimer"]
["nicola-bulgari"]
["nicola-leibinger-kammueller"]
["nicolas-berggruen"]
["nicolas-hayek"]
["nicolas-puech"]
["niels-peter-louis-hansen"]
["nihat-ozdemir"]
["nikita-mishin"]
["niklas-herlin"]
["radik-shaimiev"]
["robert-stiller"]
["nikolai-sarkisov"]
["rustem-sulteev"]
["nina-wang"]
["niranjan-hiranandani"]
["nirav-modi"]
["noam-gottesman"]
["nobutada-saji"]
["nobutoshi-shimamura"]
["nochi-dankner"]
["norbert-dentressangle"]
["norberto-odebrecht"]
["norma-lerner"]
["norman-braman"]
["norman-w-waitt"]
["nr-narayana-murthy"]
["nurzhan-subkhanberdin"]
["o-francis-biondi"]
["odd-reitan"]
["olav-thon"]
["oleg-bakhmatyuk"]
["oleg-boyko"]
["oleg-deripaska"]
["sun-shangchuan-&-wife"]
["ollen-bruton-smith"]
["om-jindal"]
["omer-dinckok"]
["omer-sabanci"]
["omid-kordestani"]
["onsi-sawiris"]
["oprah-winfrey"]
["or-wai-sheun"]
["orion-hindawi"]
["othman-benjelloun"]
["otto-beisheim"]
["otto-happel"]
["otto-philipp-braun"]
["sun-weijie"]
["ou-zongrong"]
["pnc-menon"]
["pv-ramprasad-reddy"]
["pallonji-mistry"]
["pan-sutong"]
["pan-weiming"]
["pan-zhengmin"]
["pang-kang"]
["pang-qinghua"]
["pankaj-patel"]
["pansy-ho"]
["paolo-&-gianfelice-mario-rocca"]
["paolo-barilla"]
["paolo-bulgari"]
["park-hyeon-joo"]
["pat-stryker"]
["patokh-chodiev"]
["patrice-motsepe"]
["patricia-a-short"]
["patricia-angelini-rossi"]
["patricia-matte"]
["patrick-bowlen"]
["patrick-drahi"]
["patrick-guerrand-hermès"]
["patrick-lee"]
["patrick-mcgovern"]
["patrick-ryan"]
["patrick-soon-shiong"]
["patrick-wang"]
["patrizio-bertelli"]
["paul-allen"]
["paul-desmarais"]
["paul-fireman"]
["paul-foster"]
["paul-mellon"]
["paul-milstein"]
["paul-ramsay"]
["paul-raymond"]
["paul-riegel"]
["paul-singer"]
["paul-tudor-jones-ii"]
["pauline-macmillan-keinath"]
["paul-louis-halley"]
["pavel-tykac"]
["pedro-moreira-salles"]
["peng-jianhu"]
["penny-pritzker"]
["perenna-kei"]
["perry-bass"]
["peter-alfond"]
["peter-and-family-livanos"]
["peter-briger-jr"]
["peter-buck"]
["peter-gilgan"]
["peter-hargreaves"]
["peter-jr-haas"]
["peter-kamprad"]
["peter-kellogg"]
["peter-leibinger"]
["peter-lewis"]
["peter-lim"]
["peter-nicholas"]
["peter-peterson"]
["peter-sondakh"]
["peter-sperling"]
["peter-spuhler"]
["peter-sr-haas"]
["peter-thiel"]
["peter-unger"]
["peter-woo"]
["petr-kellner"]
["petro-poroshenko"]
["petter-stordalen"]
["pham-nhat-vuong"]
["philip-&-cristina-green"]
["philip-anschutz"]
["philip-falcone"]
["philip-hampson-knight"]
["philip-niarchos"]
["philippe-bouriez"]
["philippe-foriel-destezet"]
["phillip-frost"]
["phillip-ragon"]
["phillip-ruffin"]
["phillipe-foriel-destezet"]
["phoebe-hearst-cooke"]
["phyllis-taylor"]
["pier-luigi-loro-piana"]
["piero-ferrari"]
["piero-solari-donaggio"]
["pierre-bellon"]
["tu-jianhua"]
["pierre-chen"]
["pierre-landolt"]
["pierre-omidyar"]
["pierre-papillaud"]
["pincus-green"]
["piya-bhirombhakdi"]
["platon-lebedev"]
["pollyanna-chu"]
["polys-haji-ioannou"]
["prachai-leophairatana"]
["prajogo-pangestu"]
["prasert-prasarttong-osoth"]
["preston-tisch"]
["prince-alwaleed-bin-talal-alsaud"]
["prince-sultan-bin-mohammed-bin-saud-al-kabeer"]
["purnomo-prawiro"]
["putera-sampoerna"]
["pyotr-aven"]
["pyotr-kondrashev"]
["qi-jinxing"]
["qi-shi"]
["qi-xiangdong"]
["qin-yinglin"]
["qiu-guanghe"]
["wang-haipeng"]
["que-wenbin"]
["quek-leng-chan"]
["r-allen-stanford"]
["r-budi-hartono"]
["rachman-halim"]
["radhe-shyam-agarwal"]
["radhe-shyam-goenka"]
["wang-xicheng"]
["radovan-vitek"]
["rafael-del-pino"]
["rafael-del-pino-y-calvo-sotelo"]
["rafik-al-hariri"]
["raghuvinder-kataria"]
["ra-hee-hong"]
["rahel-blocher"]
["rahmi-koc"]
["rahul-bajaj"]
["rainer-blickle"]
["raj-kumar-&-kishin-rk"]
["raj-rajaratnam"]
["wang-yong"]
["rajan-raheja"]
["rakesh-gangwal"]
["rakesh-jhunjhunwala"]
["rakesh-wadhawan"]
["ralph-dommermuth"]
["ralph-lauren"]
["ralph-sonnenberg"]
["rama-prasad-goenka"]
["ramesh-chandra"]
["randa-williams"]
["randal-kirk"]
["randal-nardone"]
["randall-rollins"]
["randolph-apperson-hearst"]
["randolph-lerner"]
["ranjan-pai"]
["ravi-jaipuria"]
["ravi-pillai"]
["ray-dalio"]
["ray-davis"]
["ray-dolby"]
["wei-qi"]
["ray-lee-hunt"]
["reed-hastings"]
["reese-mcintosh-rowling"]
["regina-de-camargo-pires-oliveira-dias"]
["regine-leibinger"]
["reid-hoffman"]
["you-xiaoping"]
["zhou-mingjie"]
["reinhard-mohn"]
["reinhold-schmieding"]
["reinhold-würth"]
["reinold-geiger"]
["reji-abraham"]
["rem-vyakhirev"]
["remo-ruffini"]
["ren-jianhua"]
["ren-yuanlin"]
["ren-zhengfei"]
["renata-de-camargo-nascimento"]
["renate-reimann-haas"]
["renato-soru"]
["renichi-takenaka"]
["renzo-rosso"]
["ricardo-constantino"]
["ricardo-martin-bringas"]
["ricardo-salinas-pliego"]
["richard-alexander-manoogian"]
["richard-branson"]
["richard-chandler"]
["richard-chang"]
["ziyad-manasir"]
["richard-desmond"]
["richard-devos"]
["richard-egan"]
["daniel-mate"]
["richard-farmer"]
["richard-goldman"]
["richard-hayne"]
["richard-kinder"]
["richard-lefrak"]
["richard-li"]
["richard-marriott"]
["richard-oetker"]
["richard-peery"]
["richard-pratt"]
["jean-claude-gandur"]
["richard-scaife"]
["richard-schulze"]
["richard-tsai"]
["richard-yuengling-jr"]
["rick-caruso"]
["riley-bechtel"]
["rinat-akhmetov"]
["rinji-shino"]
["rishad-naoroji"]
["robert-oatley"]
["robert-&-philip-ng"]
["robert-bass"]
["robert-bosch-jr"]
["robert-citrone"]
["robert-coyiuto-jr"]
["robert-day"]
["robert-douglas-haas"]
["robert-drayton-mclane-jr"]
["robert-duggan"]
["robert-ell"]
["robert-fisher"]
["robert-friedland"]
["robert-galvin"]
["robert-henry-dedman"]
["robert-holding"]
["robert-ingham"]
["robert-johnson"]
["robert-kauffman"]
["robert-kraft"]
["robert-kuok"]
["robert-mcnair"]
["robert-miller"]
["robert-miller"]
["robert-mouawad"]
["robert-naify"]
["robert-pera"]
["richard-elman"]
["robert-pritzker"]
["robert-rich-jr"]
["robert-rich-sr"]
["robert-rowling"]
["robert-smith"]
["alex-beard"]
["robert-toennies"]
["robert-ziff"]
["roberta-anamaria-civita"]
["roberto-and-gabriel-andrade"]
["roberto-angelini-rossi"]
["roberto-civita"]
["roberto-gonzalez-barrera"]
["roberto-hernandez-ramirez"]
["roberto-irineu-marinho"]
["roberto-marinho"]
["roberto-ongpin"]
["roberto-rocca"]
["robin-li"]
["rochling-family"]
["rodney-lewis"]
["rodney-sacks"]
["roger-milliken"]
["roger-penske"]
["roger-w-sant"]
["roger-wang"]
["roland-arnall"]
["rolf-gerling"]
["romain-zaleski"]
["roman-abramovich"]
["roman-avdeev"]
["roman-karkosik"]
["romesh-t-wadhwani"]
["ron-&-fred-mannix"]
["ron-baron"]
["ron-mannix"]
["marie-jeanne-meyer"]
["ronald-burkle"]
["ronald-joyce"]
["ronald-lauder"]
["ronald-mcaulay"]
["ronald-perelman"]
["ronald-southern"]
["ronald-wanek"]
["ronda-stryker"]
["rosa-anna-magno-garavoglia"]
["rosa-brescia-cafferata"]
["rosa-evangelina-marcondes-penido-dalla-vecchia"]
["rosalia-mera"]
["rosely-schweizer"]
["rossana-camargo-de-arruda-botelho"]
["rostam-azizi"]
["monique-roosmale-nepveu"]
["roy-disney"]
["ru-jiyong"]
["ruan-shuilong"]
["rubens-menin-teixeira-de-souza"]
["rubens-ometto-silveira-mello"]
["rudolf-august-oetker"]
["rudolf-maag"]
["rufino-vigil-gonzalez"]
["run-run-shaw"]
["rupert-johnson-jr"]
["russ-weiner"]
["claude-dauphin"]
["ruth-parasol"]
["ryan-graves"]
["mubariz-gurbanoglu"]
["ryoichi-jinnai"]
["ryusuke-kimura"]
["sd-shibulal"]
["sd-shibulal"]
["saad-halim"]
["saad-hariri"]
["saban-cemil-kazanci"]
["sachin-bansal"]
["saddam-hussein"]
["saif-al-ghurair"]
["sait-salam-gutseriev"]
["sakip-sabanci"]
["saleh-bin-abdul-aziz-al-rajhi"]
["saleh-kamel"]
["salman-alhokair"]
["sam-goi"]
["sameer-gehlaut"]
["samih-sawiris"]
["sammy-&-yuli-ofer"]
["samuel-curtis-johnson"]
["samuel-irving-newhouse-jr"]
["samuel-jayson-lefrak"]
["samuel-robson-walton"]
["samuel-tak-lee"]
["samuel-truett-cathy"]
["samuel-wyly"]
["samuel-yin"]
["samuel-zell"]
["samvel-karapetyan"]
["sandra-ortega-mera"]
["sandro-veronesi"]
["sanford-diller"]
["sanford-weill"]
["konstantin-grigorishin"]
["sanjiv-goenka"]
["sanjiv-sidhu"]
["santosa-handojo"]
["sara-blakely"]
["sarah-chaney"]
["sarik-tara"]
["satish-mehta"]
["liu-ming-hui"]
["saud-abdul-aziz-algosaibi"]
["savitri-jindal"]
["scott-cook"]
["scott-duncan"]
["scott-farquhar"]
["scott-g-mcnealy"]
["scott-kriens"]
["scott-lin"]
["scott-simplot"]
["sean-parker"]
["sean-quinn"]
["sebastian-pinera"]
["sefik-yilmaz-dizdar"]
["semahat-sevim-arsel"]
["senapathy-gopalakrishnan"]
["seng-lee"]
["seo-jung-jin"]
["serge-dassault"]
["serge-godin"]
["serge-kampf"]
["sergei-galitsky"]
["liu-xuejing"]
["sergei-kislov"]
["sergei-petrov"]
["sergei-popov"]
["sergei-pugachev"]
["sergei-sarkisov"]
["sergei-tsikalyuk"]
["sergey-brin"]
["sergio-lins-andrade"]
["sergio-mantegazza"]
["serhiy-taruta"]
["serhiy-tihipko"]
["nikolai-buinov"]
["seth-klarman"]
["sevil-sabanci-sabanci"]
["sevket-sabanci"]
["sezai-bacaksiz"]
["shahid-balwa"]
["shahid-khan"]
["shalva-chigirinsky"]
["shao-genhuo"]
["shao-zhongyi"]
["shari-arison"]
["shashi-&-ravi-ruia"]
["shaul-shani"]
["sheikh-jaber-al-ahmed-al-jaber-al-sabah"]
["sheikh-zayed-bin-sultan-al-nahyan"]
["sheldon-adelson"]
["sheldon-solow"]
["shen-dongri"]
["shen-guojun"]
["shen-wenrong"]
["nikolai-maximov"]
["sheng-baijiao"]
["sheryl-sandberg"]
["shi-yuzhu"]
["shi-zhengrong"]
["shigefumi-wada"]
["shigenobu-nagamori"]
["shigeyoshi-kinoshita"]
["shi-hui-huang"]
["shin-chang-jae"]
["shin-dong-bin"]
["shin-dong-joo"]
["shin-kyuk-ho"]
["ray-irani"]
["shiv-nadar"]
["shlomo-eliahu"]
["shoichiro-toyoda"]
["shoji-uehara"]
["shosuke-idemitsu"]
["shoul-eisenberg"]
["shuai-fangwen"]
["sid-bass"]
["sanjay-singal"]
["sidney-frank"]
["sidney-kimmel"]
["siegfried-meister"]
["silas-chou"]
["silvio-berlusconi"]
["silvio-santos"]
["silvio-scaglia"]
["sim-daniel-abraham"]
["simon-halabi"]
["simon-xie"]
["simonpietro-salini"]
["sioe-liong-liem"]
["sir-anthony-and-family-bamford"]
["sit-kwong-lam"]
["sjamsul-nursalim"]
["smita-crishna-godrej"]
["socrates-kokkalis"]
["soegiarto-adikoesoemo"]
["soichiro-fukutake"]
["solomon-lew"]
["somphote-ahunai"]
["song-zuowen"]
["spiro-latsis"]
["sri-prakash-lohia"]
["srichand,-gopichand-hinduja"]
["stanley-druckenmiller"]
["stanley-ho"]
["stanley-perron"]
["stanley-stub-hubbard"]
["stef-wertheimer"]
["stefan-olsson"]
["stefan-persson"]
["stefan-quandt"]
["stefan-reimann-andersen"]
["stefan-schörghuber"]
["stefan-von-holtzbrinck"]
["stefano-gabbana"]
["stefano-pessina"]
["stein-erik-hagen"]
["stein-erik-hagen"]
["stelios-haji-ioannou"]
["steno-marcegaglia"]
["stephan-schmidheiny"]
["stephen-bechtel-jr"]
["stephen-bisciotti"]
["stephen-feinberg"]
["stephen-jarislowsky"]
["stephen-lansdown"]
["stephen-m-ross"]
["stephen-mandel-jr"]
["stephen-rubin"]
["stephen-saad"]
["stephen-schwarzman"]
["steve-ballmer"]
["steve-case"]
["steve-wynn"]
["steven-a-cohen"]
["steven-jobs"]
["steven-rales"]
["tor-peterson"]
["steven-schonfeld"]
["steven-spielberg"]
["steven-udvar-hazy"]
["stewart-&-lynda-resnick"]
["stewart-horejsi"]
["stewart-rahr"]
["su-weizhong"]
["suat-gunsel"]
["subhash-chandra"]
["ingeburg-herz"]
["sudhir-&-samir-mehta"]
["sudhir-ruparelia"]
["sudthida-ratanarak"]
["suh-kyung-bae"]
["suhon-lin"]
["suhurto"]
["sukanto-tanoto"]
["sulaiman-al-rajhi"]
["sulaiman-algosaibi"]
["suleiman-kerimov"]
["suliman-olayan"]
["sultan-hassanal-bolkiah"]
["sumet-jiaravanon"]
["summerfield-johnston-jr"]
["sumner-redstone"]
["elisabeth-badinter"]
["sun-guangxin"]
["sun-hongbin"]
["sun-piaoyang"]
["sun-qinghuan"]
["joesoph-dahr-jamail-jr"]
["sun-shoukuan"]
["jonathan-oringer"]
["sun-xishuang"]
["suna-kirac"]
["sunil-mittal"]
["sunil-vaswani"]
["sunny-varkey"]
["surang-prempree"]
["surendra-hiranandani"]
["surin-upatkoon"]
["susan-alfond"]
["mustafa-vehbi-koc"]
["susan-thompson-buffett"]
["susanne-klatten"]
["susanne-veltins"]
["susanne-zimmermann von-siefart "]
["rajan-raheja"]
["swift-xie"]
["sybill-storz"]
["sydell-miller"]
["syed-mokhtar-albukhary"]
["sylvia-ströher"]
["sze-man-bok"]
["t-denny-sanford"]
["t-boone-pickens"]
["ts-kalyanaraman"]
["ty-tsai"]
["tadahiro-yoshida"]
["tadashi-yanai"]
["taha-mikati"]
["tahir"]
["taizo-son"]
["tajudin-ramli"]
["takao-katayama"]
["takao-yasuda"]
["takemitsu-takizaki"]
["tamara-gustavson"]
["tamir-sapir"]
["tang-hsiang-chien"]
["tang-xiuguo"]
["tang-yiu"]
["tatiana-casiraghi"]
["teck-puat-khoo"]
["ted-alfond"]
["ted-arison"]
["ted-forstmann"]
["ted-lerner"]
["ted-schwartz"]
["ted-turner"]
["teddy-sagi"]
["teh-hong-piow"]
["terence-(terry)-matthews"]
["teresa-matilde-solari-falabella"]
["terrence-pegula"]
["terry-gou"]
["tetsuro-funai"]
["thaksin-shinawatra"]
["tham-liselott"]
["theo-&-karl-albrecht"]
["theo-albrecht-jr"]
["theo-mueller"]
["theodore-rachmat"]
["theodore-waitt"]
["richard-rainwater"]
["thomas-&-raymond-kwok"]
["thomas-bailey"]
["thomas-barrack"]
["thomas-bruch"]
["thomas-flatley"]
["thomas-friedkin"]
["thomas-frist-jr"]
["thomas-haffa"]
["thomas-hicks"]
["thomas-hunter"]
["thomas-kaplan"]
["thomas-lau"]
["thomas-lee"]
["thomas-meyer"]
["thomas-peterffy"]
["thomas-pritzker"]
["thomas-sandell"]
["thomas-schmidheiny"]
["thomas-secunda"]
["thomas-siebel"]
["thomas-steyer"]
["thomas-straumann"]
["thomas-struengmann"]
["thomas-tull"]
["thomas-wu"]
["thongma-vijitpongpun"]
["thor-bjorgolfsson"]
["tian-ming"]
["tilman-fertitta"]
["timothy-blixseth"]
["timothy-boyle"]
["timothy-headington"]
["timur-kulibaev"]
["tiong-hiew-king"]
["tiong-lay-yeoh"]
["todd-wagner"]
["toichi-takenaka"]
["tom-&-judy-love"]
["tom-benson"]
["tom-golisano"]
["tom-gores"]
["tom-morris"]
["tom-persson"]
["tom-ward"]
["tong-jinquan"]
["tony-chen"]
["tony-tan-caktiong"]
["serra-sabanci"]
["torbjorn-tornqvist"]
["torsten-toeller"]
["suzan-sabanci-dincer"]
["tracy-krohn"]
["traudl-engelhorn"]
["travis-kalanick"]
["trevor-rees-jones"]
["trond-mohn"]
["tsai-cheng-da"]
["tsai-eng-meng"]
["tsai-hong-tu"]
["tsai-ming-kai"]
["tsai-wan-lin"]
["tsai-wan-tsai"]
["tse-ping"]
["tseng-shin-yi"]
["zhang-hongwei"]
["tulsi-tanti"]
["tuncay-ozilhan"]
["tung-chee-hwa"]
["turgay-ciner"]
["ty-warner"]
["uday-kotak"]
["udo-&-harald-tschira"]
["uehara-shoji"]
["umberto-agnelli"]
["ural-rakhimov"]
["urs-wietlisbach"]
["ursula-engelhorn"]
["v-prem-watsa"]
["zhu-yicai"]
["vadim-moshkovich"]
["vadim-novinsky"]
["vadim-yakunin"]
["vagit-alekperov"]
["valentin-bukhtoyarov"]
["valentin-gapontsev"]
["valentin-gapontsev"]
["valery-kogan"]
["vanich-chaiyawan"]
["vasily-anisimov"]
["vasily-shakhnovsky"]
["adolf-alfred-taubman"]
["vichai-srivaddhanaprabha"]
["victor-civita-neto"]
["victor-fung"]
["victor-gradin"]
["victor-pinchuk"]
["vijay-mallya"]
["charles-cadogan"]
["vikram-lal"]
["viktor-chernomyrdin"]
["viktor-kharitonin"]
["viktor-nusenkis"]
["viktor-rashnikov"]
["viktor-vekselberg"]
["vinay-and-family-rai"]
["vincent-bollore"]
["vincent-c-smith"]
["vincent-lo"]
["vincent-tan"]
["vincent-viola"]
["vinod-goenka"]
["vinod-gupta"]
["vinod-khosla"]
["virendra-mhaiskar"]
["vitaliy-hayduk"]
["vito-rodriguez-rodriguez"]
["vivek-chaand-sehgal"]
["vivek-chand-burman"]
["vivian-wu"]
["vivien-chen"]
["vladimir-bogdanov"]
["vladimir-dubov"]
["vladimir-gridin"]
["christos-lazari"]
["vladimir-iorich"]
["vladimir-kim"]
["vladimir-lisin"]
["vladimir-melnichenko"]
["vladimir-potanin"]
["vladimir-scherbakov"]
["vladimir-yevtushenkov"]
["vyacheslav-kantor"]
["vyacheslav-sheremet"]
["w-barron-hilton"]
["w-herbert-hunt"]
["wallace-mccain"]
["walter-droege"]
["walter-faria"]
["walter-frey"]
["walter-h-annenberg"]
["walter-haefner"]
["walter-kwok"]
["walter-scott-jr"]
["walter-shorenstein"]
["walter,-thomas-&-raymond-kwok"]
["walther-moreira-salles-junior"]
["wan-lianbu"]
["wang-changtian"]
["wang-chaobin"]
["wang-chuanfu"]
["chen-jinsong"]
["wang-han"]
["wang-jianfeng"]
["wang-jianlin"]
["wang-jianyi"]
["wang-jing"]
["wang-jinshu"]
["wang-jiufang"]
["wang-junhao"]
["wang-junjin"]
["wang-junmin"]
["wang-kunxiao"]
["wang-laichun"]
["wang-laisheng"]
["wang-muqing"]
["gordon-wu"]
["wang-qingtao"]
["wang-wei"]
["wang-wenjing"]
["wang-wenliang"]
["wang-wenxue"]
["wang-wenyin"]
["guo-wengui"]
["wang-xing"]
["wang-xingchun"]
["wang-yiting"]
["huang-wen-tsai"]
["lou-zhongfu"]
["wang-yue"]
["wang-yung-tsai"]
["wang-yusuo"]
["wang-zhenghua"]
["ou-zonghong"]
["warren-buffett"]
["warren-stephens"]
["wee-cho-yaw"]
["wei-ing-chou"]
["wei-jianjun"]
["steven-roth"]
["wei-shaojun"]
["wei-wenyuan"]
["wei-yin-chun"]
["wei-ying-chiao"]
["wei-yin-heng"]
["wen-jianping"]
["wen-long-shi"]
["wen-yibo"]
["werner-voigt"]
["wesley-edens"]
["whitney-macmillan"]
["wichai-thongtang"]
["wichai-thongthan"]
["wilbur-ross-jr"]
["willi-&-isolde-liebherr"]
["william-ackman"]
["william-berkley"]
["william-boyd"]
["william-connor"]
["william-conway-jr"]
["william-cook"]
["william-davidson"]
["william-ding"]
["william-erbey"]
["william-f-austin"]
["william-fisher"]
["william-ford-sr"]
["william-france-jr"]
["william-fung"]
["william-hearst-iii"]
["william-heinecke"]
["william-kellogg"]
["william-koch"]
["william-lauder"]
["william-macaulay"]
["william-macmillan"]
["william-moncrief-jr"]
["william-morean"]
["william-pulte"]
["william-redington-hewlett"]
["william-s-levine"]
["william-stone"]
["william-wrigley-jr"]
["william-young"]
["willibert-krueger"]
["willy-michel"]
["wilma-tisch"]
["wim-van-der-leegte"]
["winnie-johnson-marquart"]
["winthrop-paul-rockefeller"]
["wolfgang-herz"]
["wolfgang-leitner"]
["wolfgang-marguerre"]
["wolfgang-reimann"]
["wong-kwong-yu"]
["wong-luen-hei"]
["wong-man-li"]
["woo-choong-and-family-kim"]
["woods-staton"]
["wu-chung-yi"]
["wu-gang"]
["wu-guangming"]
["wu-jianlong"]
["wu-jianshu"]
["wu-xushun"]
["wu-yajun"]
["wu-yiling"]
["wu-zhigang"]
["xavier-niel"]
["subhash-runwal"]
["xian-yang"]
["xiang-wenbo"]
["thian-poh-chua"]
["xiao-wenge"]
["xiaofeng-peng"]
["xiong-xuqiang"]
["xiu-laigui"]
["xiu-li-hawken"]
["xu-chuanhua"]
["xu-jingren"]
["xu-shihui"]
["xu-ziquan"]
["xue-xiangdong"]
["yahaya-ahmad"]
["yan-zhi"]
["yang-huiyan"]
["yang-kai"]
["yang-keng"]
["vikas-oberoi"]
["yang-zhimao"]
["yao-juhuo"]
["yao-xinyi"]
["yao-zhenhua"]
["yasseen-mansour"]
["yasuhiro-fukushima"]
["yasumitsu-shigeta"]
["yasuo-takei"]
["yasuyuki-nambu"]
["yc-wang"]
["ye-cheng"]
["ye-chenghai"]
["ye-yuanxi"]
["yeoh-tiong-lay"]
["yeung-kin-man"]
["yi-zheng"]
["yildirim-ali-koc"]
["yin-xingman"]
["yiren-rong"]
["yitzhak-tshuva"]
["yong-keu-cha"]
["yonghao-liu yongxing"]
["yoshiaki-tsutsumi"]
["yoshikazu-tanaka"]
["yoshiko-mori"]
["yoshitaka-fukuda"]
["yoshiyuki-sankai"]
["klaus-tschira"]
["youssef-mansour"]
["aneel-bhusri"]
["yu-minhong"]
["yu-peidi"]
["yu-tan"]
["yu-yong"]
["yuan-fugen"]
["yuan-yafei"]
["yuli-and-sammy-ofer"]
["alexander-samwer"]
["yuri-kovalchuk"]
["yuri-milner"]
["yuri-shefler"]
["yuri-zhukov"]
["yuriy-kosiuk"]
["yusaku-maezawa"]
["yusuf-hamied"]
["yvonne-bauer"]
["zadik-bino"]
["zan-shengda"]
["zarakh-iliev"]
["zdenek-bakala"]
["marc-samwer"]
["zeng-kaitian"]
["zhai-meiqin"]
["zhang-bangxin"]
["zhang-changhong"]
["zhang-cheng-fei"]
["zhang-desheng"]
["zhang-guiping"]
["oliver-samwer"]
["zhang-jindong"]
["zhang-kaiyuan"]
["zhang-keqiang"]
["zhang-li"]
["zhang-shiping"]
["zhang-wanzhen"]
["zhang-xin"]
["zhang-zhangsun"]
["zhang-zhidong"]
["zhang-zhirong"]
["zhang-zhixiang"]
["zhang-zhongneng"]
["zhao-xiaoqiang"]
["zheng-jianjiang"]
["zheng-xiaodong"]
["zheng-yuewen"]
["zhengrong-shi"]
["zhong-sheng-jian"]
["zhou-chengjian"]
["zhou-furen"]
["zhou-guohui"]
["zhou-hongyi"]
["zhou-jianping"]
["gary-burrell"]
["zhou-qunfei"]
["zhou-yahui"]
["zhou-yaoting"]
["zhou-yifeng"]
["zhu-baoguo"]
["zhu-chongyun"]
["zhu-gongshan"]
["michael-lynch"]
["zhu-qingyi"]
["zhu-xingliang"]
["sun-deliang"]
["zhuang-min"]
["xia-shudong"]
["ziyaudin-magomedov"]
["zong-qinghou"]
["zygmunt-solorz-zak"]
["juan-francisco-beckmann-vidal"]
["suhail-bahwan"]
["julio-ponce-lerou"]
["sebastian-piñera"]
["carlos-ardila-lülle"]
["svein-stole"]
["demetrio-carceller-coll"]
["daniel-kretinsky"]
["wu-xu"]
["yakir-gabay"]
["georg-stumpf"]
["ramon-ang"]
["mika-anttonen"]
["lesley-bamberger"]
["robert-defares"]
["jean-salata"]
["manny-stul"]
["jorge-horacio-brito"]
["bruce-flatt"]
["thomas-prinzhorn"]
["eduardo-cojuangco"]
["carl-douglas"]
["eric-douglas"]
["archie-hwang"]
["nguyen-thi-phuong-thao"]
["rit-thirakomen"]
["jun-hyuk-bang"]
["ivan-chrenko"]
["john-collison"]
["patrick-collison"]
["louise-lindh"]
["harald-link"]
["prayudh-mahagitsiri"]
["katarina-martinson"]
["judith-neilson"]
["liora-ofer"]
["mohammed-serafi"]
["mohammed-bahwan"]
["eduardo-costantini"]
["marcos-galperin"]
["torstein-hagen"]
["hoi-kin-hong"]
["lee-sang-hyuk"]
["desmond-lim-siew-choon"]
["jannie-mouton"]
["erik-paulsson"]
["pierre-karl-péladeau"]
["edgar-sia"]
["terry-snow"]
["charles-johnson"]
["zhao-tao"]
["xu-bo"]
["yu-huijiao"]
["bajaj-brothers"]
["nusli-wadia"]
["nie-tengyun"]
["pawan-munjal"]
["clifford-asness"]
["allan-goldman"]
["jane-goldman"]
["amy-goldman-fowler"]
["diane-kemper"]
["meisong-lai"]
["zhang-fan"]
["zhang-xiaojuan"]
["charles-cohen"]
["jen-hsun-huang"]
["rita-tong-liu"]
["zhang-jing"]
["acharya-balkrishna"]
["li-gaiteng"]
["nick-caporella"]
["radhakishan-damani"]
["bernard-lewis"]
["chen-dongsheng"]
["todd-christopher"]
["ong-beng-seng-and-christina-ong"]
["xie-zhikun"]
["zhao-yan"]
["osman-kibar"]
["eric-smidt"]
["wu-lanlan"]
["gu-yuhua"]
["thomas-hagen"]
["sarah-macmillan"]
["wu-guangming"]
["cai-wensheng"]
["chen-dejun"]
["kerry-stokes"]
["arvind-tiku"]
["chen-xiaoying"]
["he-simo"]
["masateru-uno"]
["christine-volkmann"]
["xiao-yongming"]
["chen-xueli"]
["philippe-ginestet"]
["christian-latouche"]
["thai-lee"]
["gabriele-stoschek"]
["su-suyu"]
["alan-n-trefler"]
["roman-trotsenko"]
["wen-pengcheng"]
["chen-liying"]
["chen-qixing"]
["jean-paul-clozel"]
["sergei-gordeev"]
["jiang-xuefei"]
["li-zongsong"]
["wang-miaotong"]
["zhang-jingzhang"]
["chen-dakui"]
["chen-nianci"]
["chua-thian-poh"]
["fu-mingkang"]
["ji-qi"]
["jiang-yehua"]
["liu-bing"]
["rajju-shroff"]
["wu-daohong"]
["bao-hongxing"]
["bo-shijiu"]
["alexander-klyachin"]
["liu-fuhai"]
["liu-ruopeng"]
["ma-xiuhui"]
["vincent-mcmahon"]
["vijay-shekhar-sharma"]
["bryan-sheffield"]
["julia-stoschek"]
["maximilian-stoschek"]
["satoshi-suzuki"]
["shamsheer-vayalil"]
["xu-qiming"]
["chi-yufeng"]
["cui-genliang"]
["masayuki-ishihara"]
["li-denghai"]
["li-rucheng"]
["mahendra-prasad"]
["chris-sacca"]
["analjit-singh"]
["kevin-systrom"]
["tang-jianfang"]
["oleg-tinkov"]
["wang-yaohai"]
["zhang-anqiang"]
["zhang-xinghai"]
["zhang-xiugen"]
["zhang-yue"]
["zhu-wenchen"]
["markus-blocher"]
["chen-xiaxin"]
["chen-zuyuan"]
["arnold-clark"]
["sol-daurella"]
["dominique-desseigne"]
["jamie-dimon"]
["ding-yuhua"]
["dong-fan"]
["hon-kwok-lung"]
["hu-baifan"]
["thomas-james"]
["jin-huiming"]
["rana-kapoor"]
["martin-lau"]
["li-dongjun"]
["lin-yi"]
["lo-ka-shui"]
["lu-jonathan"]
["ma-yunsheng"]
["georg-nemetschek"]
["lucy-peng"]
["shang-jiyong"]
["yoshiko-shinohara"]
["samprada-singh"]
["sun-yinhuan"]
["wang-liping"]
["wang-zhenhua"]
["xia-dinghu"]
["xiao-chunhong"]
["xu-xiong"]
["yao-liangsong"]
["zhang-daocai"]
["zhao-weiguo"]
["zhou-yunjie"]
["marc-andreessen"]
["saket-burman"]
["yvon-chouinard"]
["philip-day"]
["david-kabiller"]
["liao-chang"]
["john-liew"]
["liu-canglong"]
["liu-hanyuan"]
["liu-jianjun"]
["liu-zhendong"]
["mi-enhua"]
["lowell-milken"]
["simon-nixon"]
["kentaro-ogawa"]
["john-schnatter"]
["eric-ya-shen"]
["axel-stawski"]
["tang-shing-bor"]
["wang-qunbin"]
["david-shou-yeh-wong"]
["zhou-yifeng"]

{"sheet":"ForbesDataAuto2","index":3,"n_rows":3231,"n_cols":12,"rows_kept":3231,"cut":false,"hidden":false,"merged":[]}
[]
["Formated Name","Name","Forbes 2017 rank","Net worth M-1 2017","Age","Source of wealth","Forbes Self-Made Score","Residence","Citizenship","Marital Status","Children","Education"]
["A. Jerrold Perenchio","A. Jerrold Perenchio","#717","$2.8B ",86,"television, Univision, Self Made",8,"Bel Air, California","United States","Married",3,"Bachelor of Arts / Science, University of California, Los Angeles"]
["Abdul Al Rahman Al Jeraisy","Customer Support"]
["Abdul Aziz Al Ghurair & Family",null,"#401","$2.9B ",62,"banking","United Arab Emirates","Married",5,"California State Polytechnical University"]
["Abdul Majeed Alhokair","Abdul Majeed Alhokair","#1'678","$1.2B ",47,"retail, real estate, Self Made","Riyadh, Saudi Arabia","Saudi Arabia"]
["Abdul Rasyid","Abdul Rasyid","#37","$810M ",59,"timber, palm oil, Self Made","Singapore, Singapore","Indonesia","Married"]
["Abdulaziz Bin Hamad Algosaibi & Family"]
["Abdulla Al Futtaim","Abdulla Al Futtaim","#427","$4.1B ","auto dealers, investments","Dubai, United Arab Emirates","United Arab Emirates","Married"]
["Abdulla bin Ahmad Al Ghurair & Family",null,null,null,null,"Dubai, United Arab Emirates","United Arab Emirates"]
["Abdullah Al Rajhi"]
["Abdulsamad Rabiu","Abdulsamad Rabiu","#1'577","$1.1B ",56,"cement, sugar","Lagos, Nigeria","Nigeria","Married"]
["Abhay Firodia","Abhay Firodia","#1'098","$1.9B ",72,"automobiles","Pune, India","India","Married",4]
["Abigail Johnson","Abigail Johnson","#75","$14.4B ",55,"money management",3,"Milton, Massachusetts","United States","Married",2,"Bachelor of Arts / Science, Hobart and William Smith; Master of Business Administration, Harvard Business School"]
["Abilio dos Santos Diniz","Abilio dos Santos Diniz","#581","$3.3B ",80,"retail","Sao Paulo, Brazil","Brazil","Married",6,"Bachelor of Arts / Science, Fundacao Getulio Vargas"]
["Achal Bakeri","Achal Bakeri","#1'567","$1.3B ",57,"air coolers, Self Made","Ahmedabad, India",2,"India","Married",2,"Master of Business Administration, Marshall School of Business"]
["Achille Maramotti","Trending Now"]
["Achmad Hamami & Family","Achmad Hamami & family","#38","$800M ",86,"heavy equipment, Self Made","Jakarta, Indonesia","Indonesia","Married",4]
["Adam Neumann","Adam Neumann","#814","$2.5B ",38,"WeWork, Self Made","New York, New York","Israel","Married",4,"City University of New York Baruch"]
["Adi Godrej & Family"]
["Karl Albrecht Sr."]
["Adolf Merckle"]
["Adrian Swire & Family","Early life[edit]"]
["Aerin Lauder Zinterhofer",null,"#1'290","$1.6B ",46,"cosmetics",2,"New York, New York","United States","Married",2]
["Ahmed Ali Kanoo"]
["Ahmet Calik","Ahmet Calik","#1'468","$1.4B ",59,"energy, banking, construction, Self Made","Istanbul, Turkey","Turkey","Married",4]
["Ahmet Nazif Zorlu"]
["Pierre Castel & Family","Pierre Castel & family","#125","$9.9B ",90,"wine, Self Made","Geneva, Switzerland","France","Married"]
["Alexander Lutsenko"]
["Ajay Kalsi","Ajay Kalsi","#1'678","$1.2B ",56,"oil & gas, Self Made","Delhi, India","India","Married","Bachelor of Arts / Science, London School of Economics; Master of Science, University of Cambridge"]
["Ajay Piramal","Ajay Piramal","#501","$3.7B ",61,"pharmaceuticals","Mumbai, India","India","Married",2,"Bachelor of Arts / Science, Bombay University; Master of Business Administration, Bombay University"]
["Akihiko Otsuka"]
["Akio Morita"]
["Akio Nitori","Akio Nitori","#13","$3.3B ",73,"home furnishings, Self Made","Hokkaido, Japan","Japan","Married"]
["Akira Mori & Family"]
["Alain Bouchard","Alain Bouchard","#581","$3.3B ",68,"retail, Self Made","Montreal, Canada","Canada","Married",4]
["Alain Merieux & Family","Alain Merieux & family","#441","$4B ",79,"pharmaceuticals","Lyon, France","France","Married",3]
["Alain Taravella","Alain Taravella","#1'376","$1.5B ",69,"real estate, Self Made","Paris, France","France"]
["Alain Wertheimer","Alain Wertheimer","#112","$11.8B ",68,"Chanel","New York, New York","France","Married",3]
["Alexei Bogachev","Alexei Bogachev","#1'940","$1B ",46,"retail, banking, Self Made","Moscow, Russia","Russia","Married",2,"Bachelor of Arts / Science, Moscow State University for Design and Technologies"]
["Alan Casden","Alan Casden","#1'015","$1.2B ",71,"real estate, Self Made","Beverly Hills, CA","United States","Married",5,"Bachelor of Arts / Science, University of Southern California"]
["Alan Gerry"]
["Alan Howard","Alan Howard","#1'468","$1.4B ",53,"hedge funds, Self Made","Geneva, Switzerland",3,"United Kingdom","Married",4,"Master of Science, Imperial College London"]
["Alan Rydge","Alan Rydge","#1'795","$1.1B ",64,"entertainment, Self Made","Sydney, Australia","Australia","Married"]
["Albert Berner","Albert Berner & family","#1'376","$1.5B ",81,"fasteners, Self Made","Kuenzelsau, Germany","Germany","Married",4]
["Albert Blokker","Albert Blokker","#1'210",null,71,"retail","Belgium"]
["Albert Frere","Albert Frere","#334","$4.9B ",91,"investments, Self Made","Charleroi, Belgium","Belgium","Married",3,"Drop Out, High School"]
["Albert Gubay"]
["Albert Lee Ueltschi"]
["Amit Burman","Amit Burman","#1'712",null,47,"consumer goods","Delhi, India","India","Married",2,"Master of Business Administration, Judge Business School; Bachelor of Arts / Science, Lehigh University; Master of Science, Columbia University"]
["Albert Ueltschi","Albert Ueltschi","#229","$2.1B ","FlightSafety, Self Made","United States",4,"Drop Out, University of Kentucky"]
["Albert von Thurn und Taxis","Albert von Thurn und Taxis","#1'092","$1.6B ",33,"diversified","Regensburg, Germany","Germany","Single","Master of Arts, University of Edinburgh; Bachelor of Arts / Science, University of Edinburgh"]
["Albert Yeung","Albert Yeung","#1'376","$1.5B ",74,"real estate, retail, Self Made","Hong Kong, Hong Kong","Hong Kong","Married",5]
["Alberto Alcocer","Alberto Alcocer","#1'678","$1.2B ",74,"investments, Self Made","Madrid, Spain","Spain","Married",5,"Doctor of Jurisprudence, Universidad Complutense de Madrid"]
["Alberto Bailleres Gonzalez & Family","Alberto Bailleres Gonzalez & family","#123","$10.8B ",85,"mining","Mexico City, Mexico","Mexico","Married",4]
["Alberto Benavides & Family","Alberto Benavides & family","#736",null,"mining, Self Made","Peru",5,"Master of Science, Harvard University"]
["Alberto Bombassei","Alberto Bombassei","#1'121","$1.6B ",76,"automotive brakes, Self Made","Bergamo, Italy","Italy","Married",2]
["Mary & Douglas Perkins","Mary & Douglas Perkins","#737","$2.5B ","retail, Self Made","Guernsey, United Kingdom","United Kingdom","Married"]
["Alberto Prada","Alberto Prada","#1'468","$1.4B ","luxury goods","Milan, Italy",2,"Italy"]
["Alberto Roemmers","Alberto Roemmers","#1'030","$2B ",90,"pharmaceuticals","Buenos Aires, Argentina","Argentina","Married",4]
["Alberto Vilar","Trending Now"]
["Albrecht and Henkel Family Woeste"]
["Aldo Bensadoun"]
["Alec Gores","Alec Gores","#973","$2.1B ",64,"private equity, Self Made",9,"Beverly Hills, California","United States","Divorced",5,"Bachelor of Arts / Science, Western Michigan University"]
["Alejandro Santo Domingo Davila & Family"]
["Alejo Peralta"]
["C. James Koch"]
["Alexander Abramov","Alexander Abramov","#367","$4.5B ",58,"steel, mining, Self Made","Moscow, Russia","Russia","Married",3,"Bachelor of Arts / Science, Moscow Institute of Physics and Technology"]
["Alexander Dzhaparidze","Alexander Dzhaparidze","#1'567","$1.3B ",61,"oil services, Self Made","Moscow, Russia","Russia","Married",5,"Master of Science, Gubkin Institute of Petrochemicals and Natural Gas"]
["Alexander Frolov","Alexander Frolov","#1'161","$1.8B ",52,"mining, steel, Self Made","Moscow, Russia","Russia","Married",1,"Doctorate, Moscow Institute of Physics and Technology"]
["Alexander Girda","Alexander Girda","#1'140",null,55,"retail, Self Made","London, United Kingdom","Russia","Bachelor of Science in Engineering, Riga Institute of Civil Aviation"]
["Alexander Karp"]
["Alexander Knaster"]
["Alexander Lebedev","Alexander Lebedev","#1'075","$1.1B ",57,"investments, banking, Self Made","Russia","Married",2,"Bachelor of Arts / Science, Moscow Institute of International Relations"]
["Charles Butt & Family"]
["Alexander Lutsenko & Family","Alexander Lutsenko & family","#1'638","$1.1B ",55,"agribusiness, Self Made","Kaliningrad","Russia","Married",2]
["Alexander Machkevich","Alexander Machkevich","#1'098","$1.9B ",63,"mining, metals, Self Made","Almaty, Kazakhstan","Israel","Married",2]
["Alexander Mamut","Alexander Mamut","#814","$2.5B ",57,"investments, Self Made","Moscow, Russia","Russia","Widowed",5,"LLB, Moscow State University"]
["Alexander Mashkevich","Alexander Machkevich","#1'098","$1.9B ",63,"mining, metals, Self Made","Almaty, Kazakhstan","Israel","Married",2]
["Alexander Nesis","Alexander Nesis","#867","$2.4B ",54,"metals, banking, fertilizers, Self Made","Moscow, Russia","Russia","Married",4,"Bachelor of Arts / Science, Leningrad Technological Institute"]
["Alexander Ponomarenko",null,null,null,null,"ports, Self Made","Moscow, Russia","Russia","Married",3,"Bachelor of Arts / Science, Simferopol State University; Master of Science, Russian State Academy of Management"]
["Alexander Putilov","Alexander Putilov","#1'372","$1.2B ",64,"oil, Self Made","Moscow, Russia","Russia","Married",2,"Bachelor of Arts / Science, Tyumen Industrial Institute"]
["Alexander Rovt","Alexander Rovt","#1'567","$1.3B ",64,"fertilizer, real estate, Self Made","New York, New York","United States","Married",2,"Doctorate, Lvov Institute of Trade & Economics"]
["Bill Adderley & Family","Bill Adderley & family","#1'054","$1.8B ",69,"home furnishings, Self Made","Leicester, United Kingdom","United Kingdom","Married",2]
["Alexander Shchukin","Alexander Shchukin","#692",null,66,"coal, Self Made","Novokuznetsk, Russia","Russia","Married",1,"Bachelor of Science in Engineering, Moscow Institute of Mining"]
["Alexander Shnaider"]
["Alexander Skorobogatko","Alexander Skorobogatko","#660","$3B ",49,"ports, Self Made","Moscow, Russia","Russia","Married",3,"Master of Science, Plekhanov Russian University of Economics"]
["Alexander Spanos & Family"]
["Alexander Svetakov","Alexander Svetakov","#581","$3.3B ",49,"banking, real estate, Self Made","Moscow, Russia","Russia","Divorced",4,"Bachelor of Science in Engineering, Moscow Institute of Electronic Technology"]
["Alexander Tedja"]
["Alexander Vagin","Alexander Vagin","#938",null,58,"coal, Self Made","Mezhdurechensk, Russia","Russia","Married",2,"Bachelor of Arts / Science, Kuzbass Polytechnic Institute"]
["Alexander Vik","Trending Now"]
["Alexandra Andresen","Alexandra Andresen","#1'678","$1.2B ",20,"investments","Oslo, Norway","Norway","Single"]
["Alexandra Daitch","Alexandra Daitch","#1'098","$1.9B ",54,"Cargill",1,"Old Lyme, Connecticut","United States"]
["Alexandra Schörghuber"]
["Alexandre Grendene Bartelle"]
["Alexandre Soares dos Santos & Family","Alexandre Soares dos Santos & family","#745","$2.7B ",82,"supermarkets","Lisbon, Portugal","Portugal","Married",7]
["Alexei Ananyev"]
["Dai Deming","Dai Deming","#1'712","$1.05B ","auto distribution, Self Made","Wuhan, China","China"]
["Alexei Kuzmichev"]
["Alexei Semin"]
["Alexey Mordashov"]
["Alfonso Romo Garza"]
["Alfred Gantner"]
["Alfred Heineken"]
["Alfred James Clark"]
["Alfred Lerner"]
["Donald Hall"]
["Alfred Oetker"]
["Alfred von Oppenheim"]
["Alfred West Jr"]
["Alfredo Egydio Arruda Villela Filho"]
["Alfredo Harp Helu & Family"]
["Ali Ibrahim Agaoglu"]
["Ali Metin Kazanci"]
["Alice Walton"]
["Alicia Koplowitz"]
["Alijan Ibragimov"]
["Aliko Dangote"]
["Alisher Usmanov"]
["Allan Gray"]
["Allan Slaight"]
["Allan Wong"]
["Aloke Lohia"]
["Aloys Wobben"]
["Aloysio de Andrade Faria"]
["Alvaro Noboa"]
["Alvaro Saieh Bendeck"]
["Amalia Lacroze de Fortabat"]
["Amancio Ortega"]
["Amar Bose"]
["Americo Amorim"]
["Edward Stack"]
["Amos Hostetter Jr"]
["Amy Wyss"]
["An Kang"]
["Ana Lucia de Mattos Barretto Villela"]
["Ana Maria Brescia Cafferata"]
["Ana Maria Marcondes Penido Sant'Anna"]
["Anacleto Angelini"]
["Anand Burman"]
["Anand Jain"]
["Anand Mahindra"]
["Ananda Krishnan"]
["Anas Sefrioui"]
["Anatoly Lomakin"]
["Anatoly Sedykh"]
["Anatoly Skurov"]
["Anders Holch Povlsen"]
["Andre Esteves"]
["André Kudelski"]
["Andrea Della Valle"]
["Andrea Reimann-Ciardelli"]
["Andreas Halvorsen"]
["Fred DeLuca"]
["Andreas Struengmann"]
["Andreas von Bechtolsheim"]
["Andrei Bokarev"]
["Andrei Borodin"]
["Andrei Filatov"]
["Andrei Guriev"]
["Andrei Klyamko"]
["Andrei Komarov"]
["Andrei Kosogov"]
["Andrei Kozitsyn"]
["Andrei Kuzyaev"]
["Andrei Molchanov"]
["Andrei Rappoport"]
["Andrei Rogachev"]
["Andrei Skoch"]
["Andrej Babis"]
["Andres Santo Domingo"]
["Andrew & Peggy Cherng"]
["Andrew Beal"]
["Andrew Currie"]
["Andrew Forrest"]
["Andrew Gotianun"]
["Andrew McKelvey"]
["Andrew Tan"]
["Andrey Melnichenko"]
["Andrey Verevskiy"]
["Andronico Luksic & Family"]
["Herbert Louis"]
["Angela Bennett"]
["Angela Leong"]
["Anil Agarwal"]
["Anil Ambani"]
["Anita Zucker"]
["Ann Walton Kroenke"]
["Anna Maria Braun"]
["Anne Beaufour"]
["Hong Xiaobo"]
["Anne Gittinger"]
["Anne Windfohr Marion"]
["Anneliese Brost"]
["Anthony Bamford"]
["Anthony Langley"]
["Anthony O'Reilly & Family"]
["Anthony Pratt"]
["Anthony Pritzker"]
["Anton Kathrein Jr"]
["Anton Rupert"]
["Anton Schlecker"]
["Antonia Johnson"]
["Antonio Champalimaud"]
["Antonio Del Valle Ruiz & Family"]
["Antonio Ermirio de Moraes & Family"]
["Antonio Jose Carneiro"]
["Antonio Luiz Seabra"]
["Antony Ressler"]
["Antti Aarnio-Wihuri"]
["Antti Herlin"]
["Benedicta Chamberlain"]
["Anurag Dikshit"]
["Ao Xiaoqiang"]
["Aras Agalarov"]
["Archie Aldis Emmerson"]
["Aristotelis Mistakidis"]
["Arkady Rotenberg"]
["Arkady Volozh"]
["Arne Wilhelmsen & Family"]
["Arnon Milchan"]
["Arthur Blank"]
["Arthur Irving"]
["Arthur Rock"]
["Arthur Williams Jr"]
["Arturo Moreno"]
["Ashwin Dani"]
["Asim Kibar"]
["Asok Kumar Hiranandani"]
["Aubrey McClendon"]
["August Oetker"]
["August von Finck & Family"]
["Augusto & Giorgio Perfetti"]
["Austen Cargill II"]
["Austin Hearst"]
["Axel Oberwelland"]
["Jean-Charles Naouri"]
["Ayhan Sahenk"]
["Ayman Asfari"]
["Ayman Hariri"]
["Azad Moopen"]
["Azim Premji"]
["Aziz Akhannouch & Family"]
["B. Wayne Hughes"]
["B. Wayne Hughes Jr"]
["B.R. Shetty"]
["B.Ramalinga Raju"]
["Baba Kalyani"]
["Bachtiar Karim"]
["Bahaa Hariri"]
["Bakhytbek Baiseitov"]
["Baldwin and Nikolaus Knauf"]
["Balkrishan Goenka"]
["Banyong Lamsam"]
["Josephine Louis & Family"]
["Barbara Cox Anthony"]
["Barbara Davis & Family"]
["Barbara Piasecka Johnson"]
["Baron Hans Heinrich Thyssen-Bornesmisza"]
["Barry (Pai-li) Lin"]
["Barry Diller"]
["Barry Lam"]
["Bassam Alghanim"]
["Bautista Soler"]
["Beate Heister & Karl Albrecht Jr."]
["Beatrix Queen"]
["Joyce Raley Teel"]
["Belmiro de Azevedo"]
["Ben Silbermann"]
["Karen Johnson Boyd"]
["Benjamin de Rothschild"]
["Bennett Dorrance"]
["Benny Subianto"]
["Bent Jensen"]
["Benu Gopal Bangur"]
["Beny Steinmetz"]
["Bergit Douglas"]
["Bernard (Barry) Sherman"]
["Bernard Arnault & Family"]
["Bernard Broermann"]
["Bernard Ecclestone & Family"]
["Bernard Fraisse"]
["Bernard Marcus"]
["Bernard Osher"]
["Bernard Saul II"]
["Bernardo Garza Sada"]
["Bernardo Matte"]
["Bernd Freier"]
["Bernhard Braun-Luedicke"]
["Bertil Hult"]
["Beda Diethelm"]
["Bharat Desai & Family"]
["Bhupendra Kumar Modi"]
["Bidzina Ivanishvili"]
["David Sainsbury"]
["Bill Alfond"]
["Bill Gates"]
["Bill Gross"]
["Bill Haslam"]
["Billy Joe (Red) McCombs"]
["Billy Kan"]
["Binny Bansal"]
["Binod Chaudhary & Family"]
["Birgit Rausing & Family"]
["Bjorgolfur Thor Bjorgolfsson"]
["Blair Parry-Okeden"]
["Blairo Maggi"]
["Blase Golisano"]
["Bob Ell"]
["Bob Parsons"]
["Bobby Murphy"]
["Boonchai Bencharongkul"]
["Boonsong Asavabhokhin"]
["Boris Berezovsky"]
["Boris Mints"]
["Boris Rotenberg"]
["Brad Kelley"]
["Brandt Louie"]
["Brian Acton"]
["Brian Chesky"]
["Brian Higgins"]
["Brian Roberts"]
["Brian Sheth"]
["Brij Bhushan Singal"]
["Li Yongjun"]
["Bruce Cheng"]
["Bruce Halle"]
["Bruce Karsh"]
["Bruce Kovner"]
["Bruce McCaw"]
["Bruce Nordstrom"]
["Bruce Wasserstein"]
["Liang Zhaoxian"]
["Bruno Schroder & Family"]
["Bruno Steinhoff"]
["Bubba Cathy"]
["Bulat Utemuratov"]
["Bulent Eczacibasi"]
["C. Dean Metropoulos"]
["Lv Dalong"]
["C.F. Chan"]
["Cai Dongqing"]
["Cai Kui"]
["Cai Xiaoru"]
["Calisto Tanzi"]
["Calvin Ayre"]
["Cameron Mackintosh"]
["Cao Kejian"]
["Cao Longxiang"]
["Caprotti Bernardo"]
["Cargill MacMillan"]
["Cargill MacMillan III"]
["Carl Bennet"]
["Carl Berg"]
["Carl Cook"]
["Carl Ferdinand Oetker"]
["Carl Icahn"]
["Carl Lindner Jr"]
["Carl Pohlad"]
["Carlo Benetton"]
["Carlo De Benedetti"]
["Carlo Fidani"]
["Carlos & Alejandro Bulgheroni"]
["Carlos Alberto Sicupira"]
["Carlos Ardila Lulle"]
["Carlos Francisco Ribeiro Jereissati & Family"]
["Carlos Hank Rhon & Family"]
["Carlos Martins"]
["Carlos Peralta & Family"]
["Carlos Rodriguez-Pastor"]
["Carlos Sanchez"]
["Carlos Sicupira"]
["Carlos Slim Helu & Family"]
["Carol Jenkins Barnett"]
["Caroline Hagen Kjos"]
["Carolus Nolet Sr"]
["Carrie Perrodo & Family"]
["Catherine Lozick"]
["Cesar Mata Pires"]
["Chaijudh Karnasuta"]
["Chairul Tanjung"]
["Chaleo Yoovidhya"]
["Chan Laiwa & Family"]
["Chan Tan Ching-fen"]
["Chanchai Ruayrungruang"]
["Chandru Raheja"]
["Chang Pyung-Soon"]
["Chang Yun Chung"]
["Chang Yung Fa & Family"]
["Chao Teng-Hsiung"]
["Charlene de Carvalho-Heineken"]
["Charles And Rupert Johnson"]
["Charles Bartlett Johnson"]
["Charles Brandes"]
["Charles Bronfman"]
["Horst Brandstaetter"]
["Hubert D'Ornano"]
["Charles Dolan & Family"]
["Charles Dunstone"]
["Charles Edelstenne"]
["Charles Ergen"]
["Charles Gates Jr"]
["Charles Koch"]
["Charles Munger"]
["Charles Schwab"]
["Charles Simonyi"]
["Charles Sirois"]
["Charles Zegar"]
["Charlotte Colket Weber"]
["Charlotte Soderstrom"]
["Charoen Sirivadhanabhakdi"]
["Chase Coleman III"]
["Chatri Sophonpanich"]
["Meg Whitman"]
["Che Jianxin"]
["Che Jianxing"]
["Chee Chen Tung & Family"]
["Chen Bang"]
["Chen Baozhen"]
["Chen Din Hwa"]
["Chen Fashu"]
["Chen Hua"]
["Chen Jiancheng"]
["Chen Jiangtao"]
["Chen Jianhua & Family"]
["Chen Jianqiang"]
["Chen Jinshi & Family"]
["Brunello Cucinelli"]
["Chen Jinxia"]
["Chen Lip Keong"]
["Chen Miaolin"]
["Chen Qingzhou"]
["Nikolai Tsvetkov"]
["Chen Yansheng"]
["Chen Yihong"]
["Chen Yung-Tai"]
["Chen Din Hwa"]
["Chen-fu Koo"]
["Cheng Wei"]
["Cheng Xianfeng"]
["Cheng Xue"]
["Cheng Yu-tung"]
["Cher Wang Wenchi Chen"]
["Chris Dawson"]
["Chey Ki-Won"]
["Chey Tae-Won"]
["Chin Jong Hwa"]
["Chip Wilson"]
["Chirayu Amin"]
["Cho Chang-Gul"]
["Cho Jung-Ho"]
["Cho Tak Wong & Family"]
["Cho Yang-Rai"]
["Choo Chong Ngen"]
["Choy Kam Lok & Family"]
["Robert Piccinini"]
["Chris Wallin"]
["Ron Sim"]
["Christian & Olivier Courtin-Clarins & Family"]
["Christian Oetker"]
["Christoffel Wiese"]
["Christoph Blocher"]
["Christoph Henkel"]
["Christoph Zeller"]
["Christopher Burch"]
["Christopher Chandler"]
["Christopher Cline"]
["Christopher Goldsbury"]
["Christopher Hohn"]
["Sergei Katsiev"]
["Christy Walton & Family"]
["Shen Ya"]
["Chu Lam Yiu"]
["Chu Mang Yee & Family"]
["Chung Eui-Sun"]
["Chung Mong-Joon"]
["Chung Mong-Koo"]
["Chung Yong-Jin"]
["Cigdem Sabanci Bilen"]
["Ciputra & Family"]
["Shishir Bajaj"]
["Clayton Mathile"]
["Clayton Riddell"]
["Clelia Haji-Ioannou"]
["Clemens Toennies"]
["Clement Fayat & Family"]
["Clemmie Spangler Jr"]
["Sidharth Burman"]
["Clive Calder"]
["Conrad Prebys"]
["Constantino de Oliveira Jr"]
["Craig McCaw"]
["Cui Lijie"]
["Cui Zhixiang"]
["Curt Engelhorn"]
["Curtis LeRoy Carlson"]
["Cyrus Poonawalla"]
["D. Leopoldo Del Pino y Calvo-Sotelo"]
["Dagmar Dolby & Family"]
["Tory Burch"]
["Daisy Igel"]
["Dan Cathy"]
["Dan Duncan"]
["Dan Friedkin"]
["Dan Gertler"]
["Dan Olsson"]
["Dan Snyder"]
["Dan Wilks"]
["Daniel D'Aniello"]
["Daniel Gilbert"]
["Daniel Harrison III"]
["Daniel Hirschfeld"]
["Daniel Loeb"]
["V.G. Siddhartha"]
["Daniel Och"]
["Daniel Pritzker"]
["Daniel Roullier & Family"]
["Daniel Servitje Montull & Family"]
["Daniel Tsai"]
["Daniel Ziff"]
["Daniela Herz"]
["Danil Khachaturov"]
["Dannine Avara"]
["Danny Tan Chee Sing"]
["Dariusz Milek"]
["Darwin Deason"]
["Daryl Katz"]
["David & Frederick Barclay"]
["David & Simon Reuben"]
["David and Cliff Lede"]
["David Azrieli & Family"]
["David Bonderman"]
["David Booth"]
["David Bromilow"]
["David Cheriton"]
["David Chow"]
["David Consunji"]
["David Copley"]
["David Davidovich"]
["David Duffield"]
["David Einhorn"]
["David Filo"]
["David Geffen"]
["David Gottesman"]
["David Green"]
["David Hains"]
["David Harding"]
["David Hearst Jr"]
["David Hindawi"]
["David Koch"]
["David Lichtenstein"]
["Venugopal Dhoot"]
["David Murdock"]
["David Nahmad"]
["David Penaloza Alanis"]
["David Penaloza Sandoval"]
["David Rich"]
["David Rockefeller Sr"]
["David Rubenstein"]
["Vladimir Gruzdev"]
["David Shaw"]
["David Siegel"]
["David Sun"]
["David Teoh"]
["David Tepper"]
["David Thomson & Family"]
["David Walentas"]
["David William Grainger"]
["David Yakobashvili"]
["Dean White"]
["Den Fujita & Family"]
["Denis Defforey & Family"]
["Denis O'Brien"]
["Denise Coates"]
["Denise York"]
["Deniz Sahenk"]
["Dennis Albaugh"]
["Dennis Bakke"]
["Dennis Washington"]
["Dermot Desmond"]
["Desh Bandhu Gupta"]
["Desmond Sacco"]
["Devendra Jain"]
["Dhanin Chearavanont & Family"]
["Dhirubhai Ambani & Family"]
["Diane Hendricks"]
["Didier Primat"]
["Diego Della Valle"]
["Dieter Schaub"]
["Dieter Schnabel"]
["Dieter Schwarz"]
["Dieter von Holtzbrinck"]
["Dietmar Hopp"]
["Dietrich Mateschitz"]
["Dilek Sabanci"]
["Dilip Shanghvi"]
["Dinara Kulibaeva"]
["Ding Shijia"]
["Ding Shizhong & Family"]
["Dinu Patriciu"]
["Dirce Navarro De Camargo & Family"]
["Dirk Rossmann"]
["Dirk Ziff"]
["Djoko Susanto"]
["Djuhar Sutanto"]
["Dmitry Ananyev"]
["Dmitry Kamenshchik"]
["Dmitry Korzhev"]
["Xiao Fen"]
["Dmitry Pumpyansky"]
["Dmitry Rybolovlev"]
["Dmitry Troitsky"]
["Domenico Dolce"]
["Dominika & Sebastian Kulczyk"]
["Don Gao"]
["Don Hankey"]
["Don Simplot"]
["Dona Bertarelli"]
["Donald Bren"]
["Donald Fisher"]
["Donald Friese"]
["Donald Gordon"]
["Yang Yuanqing"]
["Donald Horton"]
["Donald L. Bren"]
["Donald L. Sturm"]
["Donald Newhouse"]
["Donald Schneider"]
["Donald Sterling"]
["Donald Trump"]
["Doris Fisher"]
["Dorothea Steinbruch"]
["Dorrance Hamilton"]
["Dou Zhenggang"]
["Douglas Fregin"]
["Douglas Hsu & Family"]
["Douglas Leone"]
["Drew Houston"]
["Du Jiangtao"]
["Du Jiangtao & Family"]
["Du Shuanghua"]
["Dulce Pugliese de Godoy Bueno"]
["Dustin Moskovitz"]
["Dwight Schar"]
["E. Joe Shoen"]
["E. Pierce Marshall"]
["E. Stanley Kroenke"]
["Eddie & Sol Zakay"]
["Eddy Kusnadi Sariaatmadja"]
["Edgar Bronfman Sr"]
["Edgar de Picciotto"]
["Edir Macedo & Family"]
["Edmond Safra"]
["Edmund Ansin"]
["Edmund Wattis Littlefield"]
["Edouard Carmignac"]
["Edson de Godoy Bueno"]
["Eduard Shifrin"]
["Eduardo Belmont Anderson"]
["Eduardo Eurnekian"]
["Eduardo Hochschild"]
["Eduardo Saverin"]
["Edward Bass"]
["Edward DeBartolo Jr"]
["Edward Johnson III"]
["Edward Lampert"]
["Edward Lewis Gaylord"]
["Edward Rogers"]
["Edward Roski Jr"]
["Yu Awu"]
["Edwin Leong"]
["Edwin Soeryadjaya"]
["Eggon da Silva"]
["Eike Batista"]
["Eitaro Itoyama"]
["Eka Tjipta Widjaja"]
["Elaine Tettemer Marshall & Family"]
["Elaine Wynn"]
["Elena Baturina"]
["Eli Broad"]
["Elie Horn"]
["Eliezer Steinbruch & Family"]
["Eliodoro Matte"]
["Yuri Gushchin"]
["Elisio Alexandre Soares dos Santos & Family"]
["Elizabeth Holmes"]
["Elizabeth Mohn & Family"]
["Elizabeth Wiskemann"]
["Elon Musk"]
["Els Blokker"]
["Emanuele (Lino) Saputo"]
["Emanuella Barilla"]
["Emilio Azcarraga Jean"]
["Emilio Botín"]
["Emilio Gnutti"]
["Emmanuel Besnier"]
["Ennio Doris & Family"]
["Enric Bernat"]
["Enrique Banuelos"]
["Enrique Razon Jr"]
["Eric Lefkofsky"]
["Eric Schmidt"]
["Erich Kellerhals"]
["Erik Selin"]
["Erika Pohl-Ströher"]
["Erivan Haub & Family"]
["Erman Ilicak"]
["Ermirio Pereira de Moraes"]
["Ernest Gallo & Family"]
["Ernest Rady"]
["Ernest Stempel"]
["Ernestina Herrera de Noble"]
["Ernesto Bertarelli & Family"]
["Erol Sabanci"]
["Erwin Franz Mueller"]
["Esther Grether & Family"]
["Esther Koplowitz"]
["Eugen Viehof & Family"]
["Eugene Kaspersky"]
["Eugene Melnyk"]
["Eugene Wu"]
["Eugenio Garza Laguera & Family"]
["Eugenio Lopez"]
["Eva Gonda de Rivera & Family"]
["Eva Maria Braun-Luedicke"]
["Eva Maria Bucher-Haefner"]
["Evan Sharp"]
["Evan Spiegel"]
["Evan Williams"]
["Evelyn Danzig Haas"]
["Evgeny (Eugene) Shvidler"]
["Eyal Ofer"]
["Ezra Nahmad"]
["Fabio Bertarelli"]
["Fahd Hariri"]
["Faisal Bin Qassim Al Thani"]
["Families Brost"]
["Families Funke & Brost"]
["Families Seydoux/Schlumberger"]
["Family Al-Rajhi"]
["Family Aramburuzabala"]
["Family Autrey"]
["Family Bemberg"]
["Family Boehringer"]
["Family Bombardier"]
["Family Brenninkmeyer"]
["Family Brescia"]
["Family Camargo"]
["Family Cargill"]
["Family Chey Jong-hyon"]
["Family Conle"]
["Family Freudenberg"]
["Family Goulandris"]
["Family Haas"]
["Family Haindl"]
["Family Haniel"]
["Family Hearst"]
["Family Henkel"]
["Family Hinduja"]
["Family Isono"]
["Family Iwasaki"]
["Family Juffali"]
["Family Kim Suk-won"]
["Family Kim Woo-choong"]
["Family Knauf"]
["Family Koo Cha-kyung"]
["Family Larragoiti"]
["Family Lee"]
["Family Lee Hong Chiu"]
["Family Leibbrand"]
["Family Lemos"]
["Family Lo Ying Shek"]
["Family Matter"]
["Family McCaw"]
["Family Merck"]
["Family Moores"]
["Family Otani"]
["Family Peugeot"]
["Family Porsche"]
["Family Quek Leng Chan"]
["Family Reimann"]
["Family Rossi di Montelera"]
["Family Rothschild"]
["Family Schickedanz"]
["Family Shi Wen-long"]
["Family Simon"]
["Family Stroeher"]
["Family Strwher"]
["Family Suharto"]
["Family Verspieren"]
["Family von Siemens"]
["Family Werhahn"]
["Family Wonowidjojo"]
["Family Yaw Teck-seng"]
["Fan Zhaoxia"]
["Fang Tonghua"]
["Fang Wei"]
["Farhad Moshiri"]
["Farkhad Akhmedov"]
["Farris Wilks"]
["Faruk Eczacibasi"]
["Faruk Yalcin"]
["Fatma Yazici"]
["Fawaz Alhokair"]
["Fawzi Al-Kharafi"]
["Fayez Sarofim"]
["Femi Otedola"]
["Feng Hailiang"]
["Fentener van Vlissingen & Family"]
["Ferdinand and Family Piech"]
["Ferit Faik Sahenk"]
["Ferit Sahenk & Family"]
["Fernando Roberto Moreira Salles"]
["Fernando Roig"]
["Fidel Castro"]
["Filaret Galchev"]
["Filiz Sahenk"]
["Finn Rausing"]
["Fiona Geminder"]
["Florentino Perez"]
["Folorunsho Alakija"]
["Forrest Mars Jr"]
["Forrest Preston"]
["Frances Koshland Geballe"]
["Francesco Gaetano Caltagirone"]
["Francesco Micheli"]
["Francesco Saverio Salini"]
["Francis Choi"]
["Francis Yeoh & Family"]
["Francisco Ivens de Sa Dias Branco"]
["Francisco Jose Riberas Mera"]
["Francois Pinault & Family"]
["Frank (Vasile) Timis"]
["Frank Batten Sr"]
["Frank Fertitta III"]
["Frank Hasenfratz"]
["Frank Levinson"]
["Frank Lowy"]
["Frank Stronach"]
["Frank Wang"]
["Franklin Booth Jr"]
["Fred Chang"]
["Zelimkhan Mutsoev"]
["Fred Lennon"]
["Frederick Field"]
["Frederick Smith"]
["Frederick Woodruff Field"]
["Frederik G.H. Meijer"]
["Frederik Paulsen"]
["Fredrik Lundberg"]
["Friede Springer"]
["Friederike Braun-Luedicke"]
["Friedhelm Loh"]
["Friedrich Flick Jr"]
["Friedrich Knapp"]
["Frits Goldschmeding"]
["Fritz Draexlmaier"]
["Fu Guangming & Family"]
["Fu Kwan"]
["Fu Liquan & Family"]
["Fu Meicheng & Family"]
["Fukuzo Iwasaki"]
["G. M. Rao"]
["G.V. Krishna Reddy"]
["Anne Cox Chambers"]
["Gabe Newell"]
["Gabriel Escarrer"]
["Gad Rausing & Family"]
["Gail Miller"]
["Galen Weston & Family"]
["Gao Dekang & Family"]
["Gao Tianguo"]
["Garibaldi Thohir"]
["Garrett Camp"]
["Garry Weston"]
["Chen Tianqiao"]
["Gary Comer"]
["Gary Fegel"]
["Gary Magness"]
["Gary Michelson"]
["Gary Rollins"]
["Gary Winnick"]
["Gaston Vidigal"]
["Gautam Adani"]
["Gautam Thapar"]
["Gavril Yushvaev"]
["Gay Simplot"]
["Gayle Cook"]
["Geng Jianming"]
["Gennady Kozovoy"]
["Gennady Timchenko"]
["Georg Schaeffler"]
["Georg Thyssen-Bornemisza"]
["Georg von Opel"]
["George Argyros"]
["George Bishop"]
["George Economou"]
["George Hearst Jr"]
["George Joseph"]
["George Kaiser"]
["George Lindemann & Family"]
["George Lucas"]
["George Marcus"]
["George Mitchell"]
["George Roberts"]
["George Soros"]
["George Steinbrenner III"]
["George Ty & Family"]
["George Wong"]
["George Ying Chow Lien"]
["Gerald Cadogan"]
["Gerald Cavendish Grosvenor & Family"]
["Gerald Harvey"]
["Gerald J. Ford"]
["Gerald Schwartz"]
["Gérard Louis-Dreyfus & Family"]
["Gerard Mulliez & Family"]
["Gerard Wertheimer"]
["Gerd Brachmann"]
["Gerhard Schmid"]
["Germain Lamonde"]
["German Khan"]
["German Larrea Mota Velasco & Family"]
["Gernot Langes-Swarovski & Family"]
["Gerry Harvey"]
["Gian Marco Moratti"]
["Giancarlo Franceso Civita"]
["Gianluigi & Rafaela Aponte"]
["Gil Shwed"]
["Gilberto Benetton"]
["Gilles Martin"]
["Gina Rinehart"]
["Giorgio Armani"]
["Giovanni Agnelli"]
["Giuliana Benetton"]
["Giuseppe De'Longhi"]
["Gjert Wilhelmsen"]
["Gleb Fetisov"]
["Glen Taylor"]
["Glenn Dubin"]
["Gloria von Thurn und Taxis"]
["God Nisanov"]
["Goh Cheng Liang"]
["Goh Peng Ooi"]
["Goh Tong Lim"]
["Gong Hongjia & Family"]
["Gordon Getty"]
["Gordon Moore"]
["James Clark"]
["Goroemon Yoshimoto"]
["Graeme Hart"]
["Graham Kirkham"]
["Graham Weston"]
["Gregorio Perez Companc"]
["Gu Wei"]
["Gudrun Heine"]
["Guenter Herz & Family"]
["Guenther Fielmann & Family"]
["Guenther Lehmann"]
["Guido Barilla"]
["Guilherme Paulus"]
["Guilherme Peirao Leal"]
["Guo Guangchang"]
["Jiang Ning"]
["Gururaj, E. Deshpande"]
["Gustaf Douglas"]
["Gustav Magnar Witzoe"]
["Gustavo Cisneros & Family"]
["Gustavo Denegri"]
["Guy Laliberte"]
["Gwendolyn Sontheim Meyer"]
["H. Fisk Johnson"]
["H. Ross Perot Jr"]
["H. Ross Perot Sr"]
["H. Wayne Huizenga"]
["Habil Khorakiwala"]
["Hafez Al-Assad President"]
["Haim Saban"]
["Hajime Satomi"]
["Hal Jackman"]
["Hamad bin Khalifa Al Thani"]
["Hamdi Akin"]
["Hamdi Ulukaya"]
["Hamilton James"]
["Han Chang-Woo & Family"]
["Han Junliang"]
["Han Tao"]
["Hank & Doug Meijer"]
["Hanni Toosbuy Kasprzak"]
["Hans Georg Naeder"]
["Hans Joachim Langmann"]
["Hans Melchers"]
["Hans Peter Wild"]
["Hans Rausing"]
["Hans Riegel"]
["Hans Strothoff"]
["Hansjoerg Wyss"]
["Hans-Werner Hector"]
["Harindarpal Banga"]
["Harjo Sutanto"]
["Harold F Lenfest"]
["Harold Fitzgerald Lenfest"]
["Harold Hamm"]
["Harold Simmons"]
["Harrison McCain"]
["Harry and Family Oppenheimer"]
["Harry Brakemann Helmsley"]
["Harry Stine"]
["Harry Triguboff"]
["Harsh Goenka"]
["Harsh Mariwala"]
["Harvey Chaplin & Family"]
["Hary Tanoesoedibjo"]
["Hasan Colakoglu"]
["Hasmukh Chudgar"]
["Hasso Plattner"]
["He Jinming"]
["He Qiaonv & Family"]
["He Xiangjian"]
["He Xuechu"]
["He Yamin"]
["He Zhiping"]
["He Zhusheng & Family"]
["Hedda Brahm Droege"]
["Heidi Horten"]
["Heikki Kyostila"]
["Heinrich Deichmann"]
["Heinz Bauer"]
["Heinz Hermann Thiele & Family"]
["Heinz-Georg Baus"]
["Heinz-Horst Deichmann & Family"]
["Helen Johnson-Leipold"]
["Helen Walton"]
["Helena Revoredo"]
["Helmut Sohmen"]
["Heloise Waislitz"]
["Henadiy Boholyubov"]
["Henri and Eric Andre"]
["Henri Beaufour"]
["Henrique Constantino"]
["Henry C. Yuen"]
["Henry Engelhardt"]
["Henry Fok"]
["Henry Fong Yun Wah"]
["Henry Hillman"]
["Henry Kravis"]
["Henry Nicholas III"]
["Henry Samueli"]
["Henry Swieca"]
["Henry Sy & Family"]
["Henry Zachry Jr"]
["Herb Chambers"]
["Herbert Allen Jr & Family"]
["Herbert Kohler Jr & Family"]
["Mehmet Emin Karamehmet"]
["Herbert Sandler"]
["Herbert Siegel"]
["Herbert Simon"]
["Herman Langness"]
["Hermann Schnabel"]
["Hideo Morita & Family"]
["Hideyuki Busujima"]
["Hiew King Tiong"]
["Hilton Schlosberg"]
["Hind Hariri"]
["Hinduja Brothers"]
["Hiroko Takei & Family"]
["Hiroshi Mikitani"]
["Hiroshi Takei"]
["Hiroshi Tane"]
["Hiroshi Yamauchi"]
["Hisakazu Yamaguchi"]
["Hisakichi Yamaguchi"]
["Hoang Kieu"]
["Hoffmann and Sacher families Oeri"]
["Hon Chiu Lee"]
["Hong Leong Oei"]
["Hong Ra-Hee"]
["Hong Seok-Joh"]
["Aydin Dogan"]
["Hope Hill Van Beuren"]
["Nicholas Woodman"]
["Horst Julius Pudwill"]
["Horst Paulmann & Family"]
["Horst Wortmann"]
["Hortensia Herrero"]
["Howard Jenkins"]
["Howard Marks"]
["Howard Schultz"]
["Hu Kaijun"]
["Hua Bangsong"]
["Hua Xuande"]
["Hua Yong"]
["Huang Bingwen"]
["Huang Bingwen & Family"]
["Huang Chulong"]
["Huang Hongyun"]
["Huang Hongyun & Family"]
["Huang Li"]
["Huang Maoru & Family"]
["Huang Qiaoling"]
["Huang Qisen"]
["Huang Rulun"]
["Huang Shaowu"]
["Huang Shih Tsai"]
["Huang Wei"]
["Huang Wei & Family"]
["Ryan Kavanaugh"]
["Huang Wenji"]
["Huang Wenzai"]
["Huang Yi"]
["Huang Zelan"]
["Huang Zhenda & Family"]
["Hubert Burda"]
["Wang Qinghui"]
["Hubertus Benteler"]
["Hugo Mann & Family"]
["Hugo Ribeiro"]
["Hui Ka Yan"]
["Hui Lin Chit"]
["Hui Wing Mau"]
["Hung Yau Lit"]
["Huo Qinghua"]
["Hur Young-In"]
["Husain Djojonegoro"]
["Husnu Ozyegin"]
["Hussain Sajwani"]
["Ian & Richard Livingstone"]
["Ian Wood & Family"]
["Idan Ofer"]
["Igor Altushkin"]
["Igor Kesaev"]
["Igor Makarov"]
["Igor Olenicoff"]
["Igor Yakovlev"]
["Igor Zyuzin"]
["Ihor Kolomoyskyy"]
["Ikuo Ogiwara"]
["Ilkka Herlin"]
["Ilona Herlin"]
["Imogene Powers Johnson"]
["Indu Jain"]
["Wang Yongping"]
["Ingvar Kamprad & Family"]
["Ioan Niculae"]
["Ion Tiriac"]
["Ira Rennert"]
["Iris Fontbona & Family"]
["Irwin Jacobs"]
["Isaac Larian"]
["Isaac Perlmutter"]
["Isaac Saba Raffoul & Family"]
["Isabel dos Santos"]
["Isak Andic & Family"]
["Ishibashi Kanichiro"]
["Isidoro Alvarez"]
["Iskander Makhmudov"]
["Israel Asper"]
["Israel Englander"]
["Issad Rebrab"]
["Itamar Locks"]
["Itoyama Eitaro"]
["Ivan Glasenberg"]
["J DeLeon"]
["J. Christopher Flowers"]
["J. Christopher Reyes"]
["J. Joe Ricketts"]
["J. Michael Pearson"]
["J. Tomilson Hill"]
["Jack Cowin"]
["Jack Dangermond"]
["Jack Dorsey"]
["Jack Ma"]
["Jack Taylor & Family"]
["Jackson Stephens"]
["Jacky Xu"]
["Jacob (Kobi) & Yehudith (Jud) Richter"]
["Jacqueline Desmarais & Family"]
["Jacqueline Mars"]
["Jacques D'Amours"]
["Wang Zhongjun"]
["Jacques Saade & Family"]
["Jacques Servier"]
["Jaime Botin"]
["Jaime Gilinski Bacal"]
["Jaime Said Demarfa"]
["Jaime Zobel de Ayala & Family"]
["Jaiprakash Gaur"]
["James & Arthur Irving"]
["James Balsillie"]
["James C. Kennedy"]
["James Cargill II"]
["James Cayne"]
["James Chambers"]
["Alberto Cortina"]
["James Coulter"]
["James Dinan"]
["James Dyson"]
["James France"]
["James Goodnight"]
["James Irsay"]
["James Irving"]
["James Jannard"]
["James Kim & Family"]
["James Leininger"]
["James Leprino"]
["James Moran"]
["James Packer"]
["James Ratcliffe"]
["James Simons"]
["James Sorenson"]
["Jamshyd Godrej & Family"]
["Jan Koum"]
["Jan Kulczyk"]
["Jane Lauder"]
["Jane Yan"]
["Jaran Chiaravanont"]
["Jasminder Singh"]
["Jason Chang"]
["Jason Jiang"]
["Jassim Al-Kharafi"]
["Jay Arthur Pritzker"]
["Jay Paul"]
["Jay Robert (J.B.) Pritzker"]
["Jay S. Walker"]
["Jay Van Andel"]
["Jay Y. Lee"]
["Jayme Garfinkel & Family"]
["Jean (Gigi) Pritzker"]
["Jean Burelle"]
["Leonid Simanovsky"]
["Jean Coutu"]
["Jean Pierre Cayard"]
["Andreas Pohl"]
["Jean-Claude Decaux & Family"]
["Reinfried Pohl"]
["Jean-Louis Dumas & Family"]
["Jean-Michel Besnier"]
["Jeff Bezos"]
["Jeff Greene"]
["Jeff Rothschild"]
["Jeff Sutton"]
["Jeffery Hildebrand"]
["Jeffrey Gundlach"]
["Jeffrey Katzenberg"]
["Jeffrey Koo Jr"]
["Jeffrey Koo Sr"]
["Jeffrey Lorberbaum"]
["Jeffrey Lurie"]
["Jeffrey Skoll"]
["Jennifer Pritzker"]
["Jeremy Jacobs Sr"]
["Jerome Kohlberg Jr"]
["Jeronimo Arango & Family"]
["Jerry Jones"]
["Jerry Reinsdorf"]
["Jerry Speyer"]
["Jerry Yang"]
["Jerry Zucker"]
["Jess Jackson"]
["Jesse Robinson"]
["Jesus de Polanco"]
["Ji Changqun"]
["Jia Yueting"]
["Jiang Bin"]
["Richard Chilton Jr"]
["Jiang Rensheng & Family"]
["Jiang Wei"]
["Jiang Weiping"]
["Jiang Zhaobai"]
["Jim Breyer"]
["Jim Davis"]
["Jim Davis & Family"]
["Jim Justice II"]
["Jim Pattison"]
["Jim Thompson"]
["Jim Walton"]
["Jimmy Haslam"]
["Jin Sook & Do Won Chang"]
["Jitendra Virwani"]
["Joachim Herz"]
["Joan Beverly Kroc"]
["Joan Tisch"]
["Joanne (JK) Rowling"]
["Joao Alves de Queiroz Filho"]
["Joao Moreira Salles"]
["Joao Roberto Marinho"]
["Joaquim Constantino Neto"]
["Joaquin Guzman Loera"]
["Joaquín Rivero"]
["Joe Gebbia"]
["Joe Lewis"]
["Joe Mansueto"]
["Reinfried Pohl Jr"]
["Johan Johannson"]
["Johann Graf"]
["Johann Rupert & Family"]
["Johanna Braun"]
["Roustam Tariko"]
["Johannes Karcher"]
["John A Fentener van Vlissingen"]
["John A. Sobrato & Family"]
["John Abele"]
["John Anderson"]
["John Arnold"]
["John Arrillaga"]
["John Bloor"]
["John Brown"]
["John Calamos"]
["John Catsimatidis"]
["John Caudwell"]
["John Coates"]
["John de Mol"]
["John Doerr"]
["John Dorrance III"]
["John Edson"]
["John Farber"]
["John Fisher"]
["John Fredriksen"]
["John Gandel"]
["John Gokongwei Jr"]
["John Grayken"]
["John Hargreaves & Family"]
["John Henry"]
["John Jahr & Family"]
["John Kapoor"]
["John Kluge"]
["John Krehbiel Jr"]
["John Latsis"]
["John MacMillan"]
["John MacMillan III"]
["John Malone"]
["John Mars"]
["John Martin"]
["John McCaw Jr"]
["John Menard Jr"]
["John Middleton"]
["John Morgridge"]
["John Morris"]
["John Overdeck"]
["John Paul DeJoria"]
["John Paulson"]
["John Pritzker"]
["John Reece"]
["John Sall"]
["John Simplot & Family"]
["John Sperling"]
["John Stanton"]
["John Todd & Family"]
["John Tu"]
["John Tyson"]
["John Van Lieshout"]
["John Walton"]
["John Whittaker"]
["John Willard (Bill) Marriott Jr"]
["Johnelle Hunt"]
["Susan Hirt Hagen"]
["Jon Stryker"]
["Jon Yarbrough"]
["Jonas Kamprad"]
["Jonathan Gray"]
["Jonathan Harmsworth"]
["Jonathan Nelson"]
["Alan Auerbach"]
["Joop van den Ende"]
["Jorge Larrea"]
["Jorge Moll Filho"]
["Jorge Paulo Lemann"]
["Jorge Perez"]
["Jorge Rodriguez Rodriguez"]
["Jorgen Clausen & Family"]
["Jorgen Philip-Sorensen"]
["Jorn Rausing"]
["Jose & Francisco Jose Calderon Rojas"]
["Jose and Family Cutrale"]
["Jose And Jaime Said"]
["Jose Berardo"]
["Jose Ermirio de Moraes Neto"]
["Jose Isaac Peres & Family"]
["Jose Llado Fernandez-Urrutia"]
["Jose Luis Cutrale"]
["José Manuel Loureda"]
["Jose Maria Aristrain"]
["Jose Mendes Nogueira & Family"]
["Jose Roberto Ermirio de Moraes"]
["Jose Roberto Marinho"]
["Josef Boquoi"]
["Joseph & Moise Safra"]
["Joseph Craft & Family"]
["Joseph Grendys"]
["Joseph Lau"]
["Joseph Lewis"]
["Joseph Safra"]
["Joseph Tsai"]
["Josephine Haas"]
["Alfred Mann"]
["Joshua Harris"]
["Jost Hellmann"]
["JosT Said Saffie"]
["Joy Alukkas"]
["Christa Gelpke"]
["Juan & Carlos March"]
["Juan Abello"]
["Juan Carlos Escotet"]
["Juan Cuneo Solari & Family"]
["Juan Fernando Belmont Anderson"]
["Juan Gallardo Thurlow"]
["Juan Maria Riberas Mera"]
["Juan Roig"]
["Juan-Miguel Villar Mir"]
["Jude Reyes"]
["Judy Faulkner"]
["Julia Oetker"]
["Julian Robertson Jr"]
["Julio Bozano"]
["Julio Mario Santo Domingo"]
["Julio Mario Santo Domingo III"]
["Julio Ponce"]
["Junichi Murata"]
["Jurgen Blickle"]
["Ju-yung and Family Chung"]
["K. Anji Reddy & Family"]
["K. Dinesh & Family"]
["K. Rai Sahi"]
["Kagemasa Kozuki"]
["Kalanithi Maran"]
["Kamil Yazici"]
["Kapil & Rahul Bhatia"]
["Karel Komarek"]
["Barbara Carlson Gage"]
["Karen Pritzker"]
["Karl & Family Ehlerding"]
["Che Fengsheng"]
["Karl Diehl"]
["Karl Friedrich Braun"]
["Karl Gerhard Schmidt"]
["Karl Scheufele III"]
["Karl Wlaschek"]
["Karl-Heinz Kipp"]
["Karl-Johan Persson"]
["Karsanbhai Patel"]
["Katharina Andresen"]
["Katharine Rayner"]
["Katherine Tanner"]
["Kathryn McCurry Albertson"]
["Katsuhiro Kinoshita"]
["Katsumi Tada"]
["Kavitark Ram Shriram"]
["Kazuo Inamori & Family"]
["Kazuo Matsuda"]
["Kazuo Okada & Family"]
["Ke Xiping & Family"]
["Ke Zunhong"]
["Keeree Kanjanapas"]
["Kei Hoi Pang"]
["Keiichiro Takahara"]
["Keith Rupert Murdoch & Family"]
["Keith W. McCaw"]
["Keizo Saji"]
["Kelcy Warren"]
["Kemal Uzan & Family"]
["Ken Fisher"]
["Ken Grossman"]
["Kenichi Mabuchi & Family"]
["Kenichi Sekiya"]
["Kenichiro Sato"]
["Kenji Ikemori"]
["Kenji Kasahara"]
["Kenji Kimura"]
["Kenkichi Nakajima"]
["Kenneth Adams Jr"]
["Kenneth C. Griffin"]
["Kenneth Feld & Family"]
["Kenneth Hendricks"]
["Kenneth Langone"]
["Kenneth Lo"]
["Kenneth Morrison"]
["Kenneth Thomson & Family"]
["Kenneth Tuchman"]
["Kenny Troutt"]
["Kenshin Oshima"]
["Kerr Neilson"]
["Kerry Packer"]
["Kerry Stokes"]
["Keshub Mahindra"]
["Kevin Plank"]
["Khalaf Al Habtoor"]
["Khaled, Hayat, Hutham, Lubna & Mary Olayan"]
["Khalid Bin Mahfouz & Family"]
["Khoo Teck Puat"]
["Kiat Chiaravanont"]
["Kiki Barki"]
["Kim Beom-su"]
["Kim Jung-Ju"]
["Kim Jun-Ki"]
["Kim Magness"]
["Kim Nam-Jung"]
["Kim Tack-Jin"]
["Kim Taek-Jin"]
["King Bhumibol Adulyadej"]
["King Faud Bin Abdul Aziz Alsaud"]
["King Pak Fu"]
["Clifford Illig"]
["Kirill Pisarev"]
["Kirill Shamalov"]
["G.V. Prasad"]
["Kirsten Rausing"]
["Kishore Mariwala"]
["Kjeld Kirk Kristiansen"]
["Kjell Inge Rokke"]
["Klaus Hellmann"]
["Klaus Jacobs"]
["Klaus Oberwelland"]
["Kiran Mazumdar-Shaw"]
["Klaus-Michael Kuehne"]
["Klaus-Peter Schulenberg"]
["Koh Wee Meng"]
["Kommer Damen"]
["Kong Jian Min"]
["Kirk Kerkorian"]
["Konstantin Nikolaev"]
["Koo Bon-Joon"]
["Koo Bon-Moo"]
["Koo Bon-Neung"]
["Koo Bon-Sik"]
["Koos Bekker"]
["Kostyantin Zhevago"]
["KP Singh"]
["Krit Ratanarak"]
["Kuan Kam Hon"]
["Kuang-piu (K.P.) Chao"]
["Kuldip Singh & Gurbachan Singh Dhingra"]
["Kumar Birla"]
["Kun-Hee Lee & Family"]
["Kunio Busujima & Family"]
["Kuok Khoon Hong"]
["Kurt Krieger"]
["Kushal Pal Singh"]
["Kutayba Alghanim"]
["Kwee brothers"]
["Kwek Leng Beng & Family"]
["Kwon Hyuk-Bin"]
["Kyosuke Kinoshita"]
["L Lowry Mays"]
["Lachhman Das Mittal"]
["Lakshmi Mittal"]
["Lam Kong"]
["Lam Wai Ying"]
["Lang Walker"]
["Larry Page"]
["Larry Robbins"]
["Larry Rong Zhijian"]
["Larry Yung"]
["Lars Larsen"]
["Lau Cho Kun"]
["Laurance Rockefeller"]
["Laurence Alan Tisch"]
["Laurence Graff & Family"]
["Laurene Powell Jobs & Family"]
["Laurent Burelle"]
["Law Kar Po"]
["Lawrence Ellison"]
["Lawrence Ho"]
["Lawrence Jr. Flinn"]
["Lawrence Stroll"]
["Leandro Rizzuto & Family"]
["Lee Bass"]
["Lee Boo-Jin"]
["Lee Hae-Jin"]
["Lee Ho-Jin"]
["Lee Hwa-Kyung"]
["Lee Jay-Hyun"]
["Lee Jay-Yong"]
["Lee Joong-Keun"]
["Lee Kun-Hee"]
["Lee Man Tat"]
["Lee Myung-Hee"]
["Lee Seng Wee & Family"]
["Lee Seo-Hyun"]
["Lee Shau Kee"]
["Lee Shin Cheng"]
["Lee, Sid And Perry Bass"]
["Leena Tewari"]
["Lei Jufang"]
["Lei Jun"]
["Len Ainsworth"]
["Leng Chan Quek"]
["Leo Kirch & Family"]
["Leon Black"]
["Leon Charney"]
["Leon Feffer"]
["Leon G. Cooperman"]
["Leon Levine & Family"]
["Leona Helmsley"]
["Leonard Blavatnik"]
["Leonard Buckeridge"]
["Leonard Lauder"]
["Leonard Schleifer"]
["Leonard Stern"]
["Leonardo Del Vecchio"]
["Leonid Boguslavsky"]
["Leonid Fedun"]
["Leonid Mikhelson"]
["Leonid Nevzlin"]
["Li Yihai"]
["Leonore Annenberg"]
["Leslie Alexander"]
["Leslie Gonda"]
["Leslie L. And Louis L. Gonda"]
["Leslie Lampton"]
["Leslie Wexner"]
["Lester Crown & Family"]
["Leszek Czarnecki"]
["Lev Kvetnoi"]
["Lev Leviev"]
["Li Fuchao"]
["Li Fucheng"]
["Li Guoqiang"]
["Li Hejun"]
["Li Hongxin & Family"]
["Li Jinyuan"]
["Li Ka-shing"]
["Li Li & Family"]
["Li Liufa"]
["Li San Yim"]
["Li Shufu"]
["Li Shuirong"]
["Li Sze Lim"]
["Li Tan"]
["Li Wa"]
["Li Weiwei"]
["Liu Dianbo"]
["Li Yong"]
["Malvinder & Shivinder Singh"]
["Li Zhaohui"]
["Li Zhen"]
["Li Zhenjiang"]
["Li Zhongchu"]
["Lia Maria Aguiar"]
["Liang Guangwei"]
["Liang Qingde"]
["Liang Wengen"]
["Liang Xinjun"]
["Liang Yunchao"]
["Marilyn Carlson Nelson"]
["Liao Long-Shing"]
["Lilian Werninghaus"]
["Liliane Bettencourt & Family"]
["Lily Safra"]
["Lim Goh Tong"]
["Lim Hariyanto Wijaya Sarwono"]
["Lim Oon Kuin"]
["Lim Sung-Ki"]
["Lin Bin"]
["Lin Jianhua"]
["Lin Li"]
["Lin Ming-cheng & Family"]
["Lin Ming-Hsiung"]
["Lin Rong San"]
["Lin Tianfu"]
["Lin Xiucheng & Family"]
["Lin Yu-lin"]
["Lina Maria Aguiar"]
["Linda Pritzker"]
["Lindsay Fox"]
["Lirio Parisotto"]
["Liselott Persson"]
["Liu Baolin"]
["Liu Changqing"]
["Jeanine Dick"]
["Liu Gexin"]
["Liu Ming Chung"]
["Michael Jaharis"]
["Liu Qiangdong"]
["Liu Shaoxi"]
["Liu Xiaodong"]
["Satish Reddy"]
["Liu Yiqian"]
["Liu Yonghao & Family"]
["Liu Yongxing"]
["Liu Zaiwang & Family"]
["Liu Zhenguo"]
["Liu Zhiqiang"]
["Liu Zhongtian & Family"]
["Lloyd Dorfman"]
["Lo Siu Yu"]
["Lo Siu-tong"]
["Lord Rothermere"]
["Lorenzo & Family Rossi Di Montelera"]
["Lorenzo Fertitta"]
["Lorenzo Mendoza & Family"]
["Lorenzo Zambrano & Family"]
["Loretta Robinson"]
["Lottie Tham"]
["Zhu Jiman"]
["Louis Bacon"]
["Louis Gonda"]
["Louis Le Duff"]
["Low Tuck Kwong"]
["Lu Di"]
["Lu Feng"]
["Lu Guanqiu"]
["Lu Xiangyang"]
["Lu Yonghua"]
["Lu Zhiqiang"]
["Luca Barilla"]
["Lucia Maggi"]
["Luciano Benetton & Family"]
["Lucio & Susan Co"]
["Lucio and Susan Co"]
["Lucio Tan & Family"]
["Lucy Stitzer"]
["Ludwig Merckle"]
["Ludwig Theodor Braun"]
["Lui Che Woo"]
["Luigi Cremonini"]
["Luigi Rovati"]
["Luis Carlos Sarmiento"]
["Luis del Rivero"]
["Luis Enrique Yarur Rey"]
["Luis Portillo"]
["Luiz Alberto Garcia"]
["Lukas Walton"]
["Luo Jye & Family"]
["Lutz Mario Helmig"]
["Airat Shaimiev"]
["Lv Yongxiang"]
["Lynn Schusterman"]
["M.A. Yusuff Ali"]
["Ma Hong"]
["Ma Huateng"]
["Ma Jianrong & Family"]
["Ma Xingtian"]
["Ma Xingtian & Family"]
["Maan Al-Sanea"]
["Madeleine Olsson Ericksson"]
["Madeleine Schickedanz"]
["Maersk Mc-Kinney Moller"]
["Magdalena Martullo-Blocher"]
["Maggie Magerko"]
["Mahdi Al-Tajir"]
["Maja Oeri"]
["Majid Al Futtaim"]
["Makhtoum bin Rashid Al-Maktoum"]
["Malcolm Glazer & Family"]
["Malcolm Green III Chace"]
["Malone Mitchell III"]
["Albert Shigaboutdinov"]
["Manfred Lautenschlager"]
["Mangal Prabhat Lodha"]
["Manny Mashouf & Family"]
["Manoj Bhargava"]
["Mansour bin Zayed Al Nahayan"]
["Manuel Jove"]
["Manuel Lao Hernandez"]
["Manuel Manrique"]
["Manuel Moroun & Family"]
["Manuel Villar"]
["Mao Zhongwu"]
["Marc Benioff"]
["Marc Coucke"]
["Marc Ladreit de Lacharriere"]
["Marc Lasry"]
["Marc Rich"]
["Marc Rowan"]
["Johanna Quandt"]
["Marcel Adams"]
["Marcel Erni"]
["Marcel Herrmann Telles"]
["Marcel Telles"]
["Marco Tronchetti Provera"]
["Marcos Antonio Molina dos Santos"]
["Margaret Cargill"]
["Margaret Magerko"]
["Margaret Whitman"]
["Margaretta Taylor"]
["Margarita Louis-Dreyfus"]
["Marguerite Harbert"]
["Maria Asuncion Aramburuzabala & Family"]
["Maria de Lourdes Egydio Villela"]
["Maria Del Pino y Calvo-Sotelo"]
["Maria Franca Fissolo"]
["Maria Helena Moraes Scripilliti"]
["Maria Ines de Lafuente Lacroze & Family"]
["Maria Luisa Solari Falabella & Family"]
["Maria-Elisabeth Schaeffler"]
["Marianne Liebmann"]
["Marie Besnier Beauvalot"]
["Anu Aga"]
["Bhadresh Shah"]
["Marina Prada"]
["Mario Brescia Cafferata & Family"]
["Mario Gabelli"]
["Mario Lopez Estrada"]
["Mario Moretti Polegato"]
["Marion MacMillan Pictet"]
["Marion Sandler"]
["Maritsa Lazari"]
["Marius Nacht"]
["Mark Coombs"]
["Mark Cuban"]
["Mark Dixon"]
["Mark McCormack"]
["Mark Pincus"]
["Mark Scheinberg"]
["Mark Shoen"]
["Mark Stevens"]
["Mark Vadon"]
["Mark Walter"]
["Mark Zuckerberg"]
["Markus Persson"]
["Marli Pissollo"]
["Martha Ford"]
["Martha Ingram & Family"]
["Martha MacMillan"]
["Martha Robinson Rivers Ingram"]
["Martha Stewart"]
["Martin & Olivier Bouygues"]
["Martin Ebner"]
["Martin Haefner"]
["Martin Hilti"]
["Martin Moller Nielsen"]
["Martin Naughton"]
["Martin Selig"]
["Martin Viessmann"]
["Martua Sitorus"]
["Marvin Davis"]
["Marvin Herb"]
["Brijmohan Lall Munjal"]
["Mary Alice Dorrance Malone"]
["Mary Anselmo"]
["Mary Janet Cargill"]
["Masafumi Miyamoto"]
["Masahiro Miki"]
["Masahiro Noda"]
["Masahiro Ohga"]
["Masahito Otsuka"]
["Masakazu Shiiki"]
["Masakuni Osano"]
["Masao Morita"]
["Masatoshi Ito"]
["Masayoshi Son"]
["Massimiliana Landini Aleotti"]
["Massimo Moratti"]
["Mathias Kamprad"]
["Matt & Dan Walsh"]
["Matthew Bucksbaum & Family"]
["Matthias Reimann-Andersen"]
["Matthias Reinhart"]
["Maurice Alter"]
["Maurice Greenberg"]
["Maurizio Billi"]
["Max Michel Suberville"]
["Max Turnauer"]
["Maxim Nogotkov"]
["Cheung Yan"]
["Megdet Rahimkulov"]
["Mehmet Aydinlar"]
["Ahsen Ozokur"]
["Mehmet Hattat"]
["Mehmet Nazif Gunal"]
["Mehmet Omer Koc"]
["Mehmet Rustu Basaran"]
["Mehmet Sepil"]
["Mehmet Sinan Tara"]
["Melinda Esterhazy"]
["Melker Schorling"]
["Melvin Simon"]
["Meng Qingshan & Family"]
["Mian Muhammad Mansha"]
["Miao Shouliang"]
["Michael & Marian Ilitch & Family"]
["Michael & Rainer Schmidt-Ruthenbeck & Family"]
["Michael Ashcroft"]
["Michael Ashley"]
["Michael Birck"]
["Michael Bloomberg"]
["Michael Chiang"]
["Michael DeGroote"]
["Michael Dell"]
["Michael Federmann & Family"]
["Michael Hartono"]
["Michael Heisley Sr"]
["Michael Herz"]
["Michael Hilti & Family"]
["Michael Hintze"]
["Chu Jinfu"]
["Michael Jordan"]
["Michael Kadoorie & Family"]
["Michael Klein"]
["Michael Krasny"]
["Michael Lee-Chin"]
["Dmitry Mazepin"]
["Michael Milken"]
["Michael Moritz"]
["Michael Novogratz"]
["Michael Otto & Family"]
["Michael Pieper"]
["Michael Platt"]
["Michael Price"]
["Michael Rubin"]
["Michael Steinhardt"]
["Michael Stoschek & Family"]
["Michael Strauss & Family"]
["Michael Ying"]
["Michal Solowow"]
["Michel Chalhoub & Family"]
["Michel David-Weill"]
["Michel Fribourg"]
["Michel Leclercq & Family"]
["Michele Ferrero & Family"]
["Micky Arison"]
["Micky Jagtiani"]
["Miguel Fluxa Rossello"]
["Miguel Krigsner"]
["Miguel McKelvey"]
["Mikail Shishkhanov"]
["Mike Adenuga"]
["Mike Cannon-Brookes"]
["Mike Lazaridis"]
["Mikhail Abyzov"]
["Jon Huntsman"]
["Mikhail Brudno"]
["Mikhail Fedyaev"]
["Mikhail Fridman"]
["Mikhail Goutseriev"]
["Mikhail Gutseriev"]
["Mikhail Khodorkovsky"]
["Mikhail Prokhorov"]
["Milane Frantz"]
["Miloud Chaabi"]
["Min Kao"]
["Ming Hsieh"]
["Minoru Mori"]
["Miriam Baumann-Blocher"]
["Mitchell Goldhar"]
["Mitchell Jacobson"]
["Mitchell Rales"]
["Miuccia Prada"]
["Mo Tianquan"]
["Mochtar Riady & Family"]
["Mofatraj Munot"]
["Mohamed (Bob) Hasan"]
["Mohamed A Al-Bahar"]
["Mohamed Al Fayed"]
["Mohamed Bin Issa Al Jaber"]
["Mohamed Mansour"]
["Mohammed Al Amoudi"]
["Mohammed Al Barwani"]
["Mohammed Al Fahim"]
["Mohammed Al Issa"]
["Mohammed Al Rajhi"]
["Mohammed Dewji"]
["Mohammed Ibrahim"]
["Mohammed Jameel & Family"]
["Mohannad Al-Kharafi"]
["Mohed Altrad"]
["Moise Safra"]
["Mokhzani Mahathir"]
["Monika Schoeller"]
["Monique Louis-Dreyfus"]
["Jacques Merceron-Vicat & Family"]
["Montri Jiaravanont"]
["Mori Arkin"]
["Morris Kahn"]
["Mortimer Zuckerman"]
["Mikhail Balakin"]
["Mukesh & Anil Ambani"]
["Mukesh Ambani"]
["Muneaki Masuda"]
["Murali Divi"]
["Murat Ulker"]
["Murat Vargi"]
["Murdaya Poo"]
["Mustafa Kucuk"]
["Mustafa Latif Topbas"]
["Mustafa Rahmi Koc"]
["David McMurtry"]
["Myung-Hee Lee"]
["N Murray Edwards"]
["N. Murray Edwards"]
["N.R. Narayana Murthy & Family"]
["Nadhmi Auchi"]
["Nadir Godrej"]
["Naguib Sawiris"]
["Najib Mikati"]
["Nan Cunhui"]
["Nancy Lerner Beck"]
["Nancy Walton Laurie"]
["Nandan Nilekani & Family"]
["Naresh Goyal"]
["Naruatsu Baba"]
["Nassef Sawiris"]
["Nasser Al-Kharafi & Family"]
["Nasser Khalili"]
["Nathan Blecharczyk"]
["Nathan Kirsh"]
["Nazek Hariri"]
["Neal Patterson"]
["Neide Helena de Moraes"]
["Neil Bluhm"]
["Neil Shen"]
["Nelson Peltz"]
["Nerijus Numavicius"]
["Nevaldo Rocha & Family"]
["Nezih Barut"]
["Ng Teng Fong & Family"]
["Ni Zhaoxing"]
["Ni Zugen"]
["Nicholas Pritzker II"]
["Qiu Jianping"]
["Nicky Oppenheimer & Family"]
["Nicola Bulgari"]
["Nicola Leibinger-Kammueller"]
["Nicolas Berggruen"]
["Nicolas Hayek"]
["Nicolas Puech"]
["Niels Peter Louis-Hansen"]
["Nihat Ozdemir"]
["Nikita Mishin"]
["Niklas Herlin"]
["Radik Shaimiev"]
["Robert Stiller"]
["Nikolai Sarkisov"]
["Rustem Sulteev"]
["Nina Wang"]
["Niranjan Hiranandani"]
["Nirav Modi"]
["Noam Gottesman"]
["Nobutada Saji"]
["Nobutoshi Shimamura & Family"]
["Nochi Dankner"]
["Norbert Dentressangle"]
["Norberto Odebrecht"]
["Norma Lerner"]
["Norman Braman"]
["Norman W. Waitt"]
["NR Narayana Murthy"]
["Nurzhan Subkhanberdin"]
["O. Francis Biondi"]
["Odd Reitan"]
["Olav Thon"]
["Oleg Bakhmatyuk"]
["Oleg Boyko"]
["Oleg Deripaska"]
["Sun Shangchuan & wife"]
["Ollen Bruton Smith"]
["Om Jindal"]
["Omer Dinckok"]
["Omer Sabanci"]
["Omid Kordestani"]
["Onsi Sawiris"]
["Oprah Winfrey"]
["Or Wai Sheun"]
["Orion Hindawi"]
["Othman Benjelloun"]
["Otto Beisheim"]
["Otto Happel"]
["Otto Philipp Braun"]
["Sun Weijie"]
["Ou Zongrong"]
["P.N.C. Menon"]
["P.V. Ramprasad Reddy"]
["Pallonji Mistry"]
["Pan Sutong"]
["Pan Weiming"]
["Pan Zhengmin & Family"]
["Pang Kang"]
["Pang Qinghua"]
["Pankaj Patel"]
["Pansy Ho"]
["Paolo & Gianfelice Mario Rocca"]
["Paolo Barilla"]
["Paolo Bulgari"]
["Park Hyeon-Joo"]
["Pat Stryker"]
["Patokh Chodiev"]
["Patrice Motsepe"]
["Patricia A. Short"]
["Patricia Angelini Rossi"]
["Patricia Matte"]
["Patrick Bowlen & Family"]
["Patrick Drahi"]
["Patrick Guerrand-Hermès"]
["Patrick Lee"]
["Patrick McGovern"]
["Patrick Ryan"]
["Patrick Soon-Shiong"]
["Patrick Wang & Family"]
["Patrizio Bertelli"]
["Paul Allen"]
["Paul Desmarais"]
["Paul Fireman"]
["Paul Foster"]
["Paul Mellon"]
["Paul Milstein & Family"]
["Paul Ramsay"]
["Paul Raymond"]
["Paul Riegel"]
["Paul Singer"]
["Paul Tudor Jones II"]
["Pauline MacMillan Keinath"]
["Paul-Louis Halley"]
["Pavel Tykac"]
["Pedro Moreira Salles"]
["Peng Jianhu"]
["Penny Pritzker"]
["Perenna Kei & Family"]
["Perry Bass"]
["Peter Alfond"]
["Peter and Family Livanos"]
["Peter Briger Jr"]
["Peter Buck"]
["Peter Gilgan"]
["Peter Hargreaves"]
["Peter Jr. Haas"]
["Peter Kamprad"]
["Peter Kellogg"]
["Peter Leibinger"]
["Peter Lewis"]
["Peter Lim"]
["Peter Nicholas"]
["Peter Peterson"]
["Peter Sondakh"]
["Peter Sperling"]
["Peter Spuhler"]
["Peter Sr. Haas"]
["Peter Thiel"]
["Peter Unger"]
["Peter Woo & Family"]
["Petr Kellner"]
["Petro Poroshenko"]
["Petter Stordalen"]
["Pham Nhat Vuong"]
["Philip & Cristina Green"]
["Philip Anschutz"]
["Philip Falcone"]
["Philip Hampson Knight"]
["Philip Niarchos"]
["Philippe Bouriez"]
["Philippe Foriel-Destezet"]
["Phillip Frost"]
["Phillip Ragon"]
["Phillip Ruffin"]
["Phillipe Foriel-Destezet"]
["Phoebe Hearst Cooke"]
["Phyllis Taylor"]
["Pier Luigi Loro Piana"]
["Piero Ferrari"]
["Piero Solari Donaggio & Family"]
["Pierre Bellon & Family"]
["Tu Jianhua"]
["Pierre Chen"]
["Pierre Landolt & Family"]
["Pierre Omidyar"]
["Pierre Papillaud"]
["Pincus Green"]
["Piya Bhirombhakdi"]
["Platon Lebedev"]
["Pollyanna Chu"]
["Polys Haji-Ioannou"]
["Prachai Leophairatana"]
["Prajogo Pangestu"]
["Prasert Prasarttong-Osoth"]
["Preston Tisch"]
["Prince Alwaleed Bin Talal Alsaud"]
["Prince Sultan bin Mohammed bin Saud Al Kabeer"]
["Purnomo Prawiro"]
["Putera Sampoerna"]
["Pyotr Aven"]
["Pyotr Kondrashev"]
["Qi Jinxing"]
["Qi Shi"]
["Qi Xiangdong"]
["Qin Yinglin"]
["Qiu Guanghe & Family"]
["Wang Haipeng"]
["Que Wenbin & Family"]
["Quek Leng Chan"]
["R Allen Stanford"]
["R. Budi Hartono"]
["Rachman Halim & Family"]
["Radhe Shyam Agarwal"]
["Radhe Shyam Goenka"]
["Wang Xicheng"]
["Radovan Vitek"]
["Rafael Del Pino"]
["Rafael Del Pino y Calvo-Sotelo"]
["Rafik Al-Hariri & Family"]
["Raghuvinder Kataria"]
["Ra-Hee Hong"]
["Rahel Blocher"]
["Rahmi Koc & Family"]
["Rahul Bajaj"]
["Rainer Blickle"]
["Raj Kumar & Kishin RK"]
["Raj Rajaratnam"]
["Wang Yong & Family"]
["Rajan Raheja & Family"]
["Rakesh Gangwal"]
["Rakesh Jhunjhunwala"]
["Rakesh Wadhawan & Family"]
["Ralph Dommermuth"]
["Ralph Lauren"]
["Ralph Sonnenberg & Family"]
["Rama Prasad Goenka"]
["Ramesh Chandra"]
["Randa Williams"]
["Randal Kirk"]
["Randal Nardone"]
["Randall Rollins"]
["Randolph Apperson Hearst"]
["Randolph Lerner"]
["Ranjan Pai"]
["Ravi Jaipuria"]
["Ravi Pillai"]
["Ray Dalio"]
["Ray Davis"]
["Ray Dolby"]
["Wei Qi"]
["Ray Lee Hunt"]
["Reed Hastings"]
["Reese McIntosh Rowling"]
["Regina de Camargo Pires Oliveira Dias"]
["Regine Leibinger"]
["Reid Hoffman"]
["You Xiaoping"]
["Zhou Mingjie"]
["Reinhard Mohn & Family"]
["Reinhold Schmieding"]
["Reinhold Würth"]
["Reinold Geiger"]
["Reji Abraham"]
["Rem Vyakhirev"]
["Remo Ruffini"]
["Ren Jianhua"]
["Ren Yuanlin"]
["Ren Zhengfei"]
["Renata de Camargo Nascimento"]
["Renate Reimann-Haas"]
["Renato Soru"]
["Renichi Takenaka"]
["Renzo Rosso"]
["Ricardo Constantino"]
["Ricardo Martin Bringas"]
["Ricardo Salinas Pliego & Family"]
["Richard Alexander Manoogian"]
["Richard Branson"]
["Richard Chandler"]
["Richard Chang"]
["Ziyad Manasir"]
["Richard Desmond"]
["Richard DeVos"]
["Richard Egan"]
["Daniel Mate"]
["Richard Farmer"]
["Richard Goldman"]
["Richard Hayne"]
["Richard Kinder"]
["Richard LeFrak & Family"]
["Richard Li"]
["Richard Marriott"]
["Richard Oetker"]
["Richard Peery"]
["Richard Pratt"]
["Jean Claude Gandur"]
["Richard Scaife"]
["Richard Schulze"]
["Richard Tsai"]
["Richard Yuengling Jr"]
["Rick Caruso"]
["Riley Bechtel"]
["Rinat Akhmetov"]
["Rinji Shino"]
["Rishad Naoroji"]
["Robert & Family Oatley"]
["Robert & Philip Ng"]
["Robert Bass"]
["Robert Bosch Jr & Family"]
["Robert Citrone"]
["Robert Coyiuto Jr"]
["Robert Day"]
["Robert Douglas Haas"]
["Robert Drayton McLane Jr"]
["Robert Duggan"]
["Robert Ell"]
["Robert Fisher"]
["Robert Friedland"]
["Robert Galvin"]
["Robert Henry Dedman"]
["Robert Holding"]
["Robert Ingham"]
["Robert Johnson"]
["Robert Kauffman"]
["Robert Kraft"]
["Robert Kuok"]
["Robert McNair"]
["Robert Miller"]
["Robert Miller"]
["Robert Mouawad"]
["Robert Naify"]
["Robert Pera"]
["Richard Elman"]
["Robert Pritzker"]
["Robert Rich Jr"]
["Robert Rich Sr"]
["Robert Rowling"]
["Robert Smith"]
["Alex Beard"]
["Robert Toennies"]
["Robert Ziff"]
["Roberta Anamaria Civita"]
["Roberto and Gabriel Andrade"]
["Roberto Angelini Rossi"]
["Roberto Civita & Family"]
["Roberto Gonzalez Barrera & Family"]
["Roberto Hernandez Ramirez"]
["Roberto Irineu Marinho"]
["Roberto Marinho"]
["Roberto Ongpin"]
["Roberto Rocca"]
["Robin Li"]
["Rochling Family"]
["Rodney Lewis"]
["Rodney Sacks"]
["Roger Milliken"]
["Roger Penske"]
["Roger W. Sant"]
["Roger Wang"]
["Roland Arnall"]
["Rolf Gerling"]
["Romain Zaleski"]
["Roman Abramovich"]
["Roman Avdeev"]
["Roman Karkosik"]
["Romesh T. Wadhwani"]
["Ron & Fred Mannix"]
["Ron Baron"]
["Ron Mannix"]
["Marie-Jeanne Meyer"]
["Ronald Burkle"]
["Ronald Joyce"]
["Ronald Lauder"]
["Ronald McAulay"]
["Ronald Perelman"]
["Ronald Southern"]
["Ronald Wanek"]
["Ronda Stryker"]
["Rosa Anna Magno Garavoglia & Family"]
["Rosa Brescia Cafferata"]
["Rosa Evangelina Marcondes Penido Dalla Vecchia"]
["Rosalia Mera"]
["Rosely Schweizer"]
["Rossana Camargo de Arruda Botelho"]
["Rostam Azizi"]
["Monique Roosmale Nepveu"]
["Roy Disney"]
["Ru Jiyong"]
["Ruan Shuilong"]
["Rubens Menin Teixeira de Souza"]
["Rubens Ometto Silveira Mello"]
["Rudolf August Oetker & Family"]
["Rudolf Maag"]
["Rufino Vigil Gonzalez"]
["Run Run Shaw"]
["Rupert Johnson Jr"]
["Russ Weiner"]
["Claude Dauphin"]
["Ruth Parasol"]
["Ryan Graves"]
["Mubariz Gurbanoglu"]
["Ryoichi Jinnai"]
["Ryusuke Kimura"]
["S.D. Shibulal"]
["S.D. Shibulal & Family"]
["Saad Halim"]
["Saad Hariri"]
["Saban Cemil Kazanci"]
["Sachin Bansal"]
["Saddam Hussein"]
["Saif Al Ghurair & Family"]
["Sait-Salam Gutseriev"]
["Sakip Sabanci & Family"]
["Saleh bin Abdul Aziz Al Rajhi"]
["Saleh Kamel"]
["Salman Alhokair"]
["Sam Goi"]
["Sameer Gehlaut"]
["Samih Sawiris"]
["Sammy & Yuli Ofer"]
["Samuel Curtis Johnson"]
["Samuel Irving Newhouse Jr."]
["Samuel Jayson LeFrak"]
["Samuel Robson Walton"]
["Samuel Tak Lee"]
["Samuel Truett Cathy"]
["Samuel Wyly"]
["Samuel Yin"]
["Samuel Zell"]
["Samvel Karapetyan"]
["Sandra Ortega Mera & Family"]
["Sandro Veronesi"]
["Sanford Diller"]
["Sanford Weill"]
["Konstantin Grigorishin"]
["Sanjiv Goenka"]
["Sanjiv Sidhu"]
["Santosa Handojo"]
["Sara Blakely"]
["Sarah Chaney"]
["Sarik Tara"]
["Satish Mehta"]
["Liu Ming Hui"]
["Saud Abdul Aziz Algosaibi"]
["Savitri Jindal & Family"]
["Scott Cook"]
["Scott Duncan"]
["Scott Farquhar"]
["Scott G. McNealy"]
["Scott Kriens"]
["Scott Lin"]
["Scott Simplot"]
["Sean Parker"]
["Sean Quinn & Family"]
["Sebastian Pinera"]
["Sefik Yilmaz Dizdar"]
["Semahat Sevim Arsel"]
["Senapathy Gopalakrishnan & Family"]
["Seng Lee"]
["Seo Jung-Jin"]
["Serge Dassault & Family"]
["Serge Godin"]
["Serge Kampf"]
["Sergei Galitsky"]
["Liu Xuejing & Family"]
["Sergei Kislov"]
["Sergei Petrov"]
["Sergei Popov"]
["Sergei Pugachev"]
["Sergei Sarkisov"]
["Sergei Tsikalyuk"]
["Sergey Brin"]
["Sergio Lins Andrade & Family"]
["Sergio Mantegazza"]
["Serhiy Taruta"]
["Serhiy Tihipko"]
["Nikolai Buinov"]
["Seth Klarman"]
["Sevil Sabanci Sabanci"]
["Sevket Sabanci"]
["Sezai Bacaksiz"]
["Shahid Balwa"]
["Shahid Khan"]
["Shalva Chigirinsky"]
["Shao Genhuo"]
["Shao Zhongyi"]
["Shari Arison"]
["Shashi & Ravi Ruia"]
["Shaul Shani"]
["Sheikh Jaber Al-ahmed Al-jaber Al-sabah"]
["Sheikh Zayed Bin Sultan Al Nahyan"]
["Sheldon Adelson"]
["Sheldon Solow"]
["Shen Dongri"]
["Shen Guojun"]
["Shen Wenrong"]
["Nikolai Maximov & Family"]
["Sheng Baijiao"]
["Sheryl Sandberg"]
["Shi Yuzhu"]
["Shi Zhengrong"]
["Shigefumi Wada"]
["Shigenobu Nagamori"]
["Shigeyoshi Kinoshita"]
["Shi-hui Huang"]
["Shin Chang-Jae"]
["Shin Dong-Bin"]
["Shin Dong-Joo"]
["Shin Kyuk-ho & Family"]
["Ray Irani"]
["Shiv Nadar"]
["Shlomo Eliahu"]
["Shoichiro Toyoda"]
["Shoji Uehara"]
["Shosuke Idemitsu"]
["Shoul Eisenberg"]
["Shuai Fangwen"]
["Sid Bass"]
["Sanjay Singal"]
["Sidney Frank"]
["Sidney Kimmel"]
["Siegfried Meister"]
["Silas Chou"]
["Silvio Berlusconi & Family"]
["Silvio Santos"]
["Silvio Scaglia"]
["Sim Daniel Abraham"]
["Simon Halabi"]
["Simon Xie"]
["Simonpietro Salini"]
["Sioe Liong Liem"]
["Sir Anthony and Family Bamford"]
["Sit Kwong Lam"]
["Sjamsul Nursalim"]
["Smita Crishna-Godrej"]
["Socrates Kokkalis"]
["Soegiarto Adikoesoemo"]
["Soichiro Fukutake"]
["Solomon Lew"]
["Somphote Ahunai"]
["Song Zuowen"]
["Spiro Latsis & Family"]
["Sri Prakash Lohia"]
["Srichand, Gopichand Hinduja"]
["Stanley Druckenmiller"]
["Stanley Ho"]
["Stanley Perron"]
["Stanley Stub Hubbard"]
["Stef Wertheimer & Family"]
["Stefan Olsson"]
["Stefan Persson"]
["Stefan Quandt"]
["Stefan Reimann-Andersen"]
["Stefan Schörghuber"]
["Stefan von Holtzbrinck"]
["Stefano Gabbana"]
["Stefano Pessina"]
["Stein Erik Hagen"]
["Stein Erik Hagen & Family"]
["Stelios Haji-Ioannou"]
["Steno Marcegaglia & Family"]
["Stephan Schmidheiny"]
["Stephen Bechtel Jr"]
["Stephen Bisciotti"]
["Stephen Feinberg"]
["Stephen Jarislowsky"]
["Stephen Lansdown"]
["Stephen M. Ross"]
["Stephen Mandel Jr"]
["Stephen Rubin"]
["Stephen Saad"]
["Stephen Schwarzman"]
["Steve Ballmer"]
["Steve Case"]
["Steve Wynn"]
["Steven A. Cohen"]
["Steven Jobs"]
["Steven Rales"]
["Tor Peterson"]
["Steven Schonfeld"]
["Steven Spielberg"]
["Steven Udvar-Hazy"]
["Stewart & Lynda Resnick"]
["Stewart Horejsi"]
["Stewart Rahr"]
["Su Weizhong"]
["Suat Gunsel"]
["Subhash Chandra"]
["Ingeburg Herz"]
["Sudhir & Samir Mehta"]
["Sudhir Ruparelia"]
["Sudthida Ratanarak"]
["Suh Kyung-Bae"]
["Suhon Lin"]
["Suhurto"]
["Sukanto Tanoto"]
["Sulaiman Al Rajhi & Family"]
["Sulaiman Algosaibi"]
["Suleiman Kerimov"]
["Suliman Olayan"]
["Sultan Hassanal Bolkiah"]
["Sumet Jiaravanon"]
["Summerfield Johnston Jr"]
["Sumner Redstone"]
["Elisabeth Badinter & Family"]
["Sun Guangxin"]
["Sun Hongbin"]
["Sun Piaoyang"]
["Sun Qinghuan"]
["Joesoph Dahr Jamail Jr"]
["Sun Shoukuan"]
["Jonathan Oringer"]
["Sun Xishuang"]
["Suna Kirac"]
["Sunil Mittal & Family"]
["Sunil Vaswani"]
["Sunny Varkey"]
["Surang Prempree"]
["Surendra Hiranandani"]
["Surin Upatkoon"]
["Susan Alfond"]
["Mustafa Vehbi Koc"]
["Susan Thompson Buffett"]
["Susanne Klatten"]
["Susanne Veltins"]
["Susanne Zimmermann von Siefart "]
["Rajan Raheja"]
["Swift Xie"]
["Sybill Storz"]
["Sydell Miller"]
["Syed Mokhtar AlBukhary"]
["Sylvia Ströher"]
["Sze Man Bok"]
["T Denny Sanford"]
["T. Boone Pickens"]
["T.S. Kalyanaraman"]
["T.Y. Tsai"]
["Tadahiro Yoshida"]
["Tadashi Yanai & Family"]
["Taha Mikati"]
["Tahir"]
["Taizo Son"]
["Tajudin Ramli"]
["Takao Katayama"]
["Takao Yasuda"]
["Takemitsu Takizaki"]
["Tamara Gustavson & Family"]
["Tamir Sapir"]
["Tang Hsiang-chien"]
["Tang Xiuguo"]
["Tang Yiu"]
["Tatiana Casiraghi"]
["Teck Puat Khoo"]
["Ted Alfond"]
["Ted Arison"]
["Ted Forstmann"]
["Ted Lerner"]
["Ted Schwartz"]
["Ted Turner"]
["Teddy Sagi"]
["Teh Hong Piow"]
["Terence (Terry) Matthews"]
["Teresa Matilde Solari Falabella & Family"]
["Terrence Pegula"]
["Terry Gou"]
["Tetsuro Funai"]
["Thaksin Shinawatra & Family"]
["Tham Liselott"]
["Theo & Karl Albrecht"]
["Theo Albrecht Jr & Family"]
["Theo Mueller"]
["Theodore Rachmat"]
["Theodore Waitt"]
["Richard Rainwater"]
["Thomas & Raymond Kwok & Family"]
["Thomas Bailey"]
["Thomas Barrack"]
["Thomas Bruch"]
["Thomas Flatley"]
["Thomas Friedkin"]
["Thomas Frist Jr & Family"]
["Thomas Haffa"]
["Thomas Hicks"]
["Thomas Hunter"]
["Thomas Kaplan"]
["Thomas Lau"]
["Thomas Lee"]
["Thomas Meyer"]
["Thomas Peterffy"]
["Thomas Pritzker"]
["Thomas Sandell"]
["Thomas Schmidheiny"]
["Thomas Secunda"]
["Thomas Siebel"]
["Thomas Steyer"]
["Thomas Straumann"]
["Thomas Struengmann"]
["Thomas Tull"]
["Thomas Wu"]
["Thongma Vijitpongpun"]
["Thor Bjorgolfsson"]
["Tian Ming"]
["Tilman Fertitta"]
["Timothy Blixseth"]
["Timothy Boyle"]
["Timothy Headington"]
["Timur Kulibaev"]
["Tiong Hiew King"]
["Tiong Lay Yeoh"]
["Todd Wagner"]
["Toichi Takenaka"]
["Tom & Judy Love"]
["Tom Benson"]
["Tom Golisano"]
["Tom Gores"]
["Tom Morris"]
["Tom Persson"]
["Tom Ward"]
["Tong Jinquan"]
["Tony Chen"]
["Tony Tan Caktiong & Family"]
["Serra Sabanci"]
["Torbjorn Tornqvist"]
["Torsten Toeller"]
["Suzan Sabanci Dincer"]
["Tracy Krohn"]
["Traudl Engelhorn"]
["Travis Kalanick"]
["Trevor Rees-Jones"]
["Trond Mohn"]
["Tsai Cheng-da"]
["Tsai Eng-Meng"]
["Tsai Hong-tu"]
["Tsai Ming-Kai"]
["Tsai Wan Lin & Family"]
["Tsai Wan-Tsai & Family"]
["Tse Ping"]
["Tseng Shin-Yi"]
["Zhang Hongwei"]
["Tulsi Tanti"]
["Tuncay Ozilhan"]
["Tung Chee Hwa"]
["Turgay Ciner"]
["Ty Warner"]
["Uday Kotak"]
["Udo & Harald Tschira"]
["Uehara Shoji"]
["Umberto Agnelli & Family"]
["Ural Rakhimov"]
["Urs Wietlisbach"]
["Ursula Engelhorn"]
["V. Prem Watsa"]
["Zhu Yicai"]
["Vadim Moshkovich"]
["Vadim Novinsky"]
["Vadim Yakunin"]
["Vagit Alekperov"]
["Valentin Bukhtoyarov"]
["Valentin Gapontsev"]
["Valentin Gapontsev & Family"]
["Valery Kogan"]
["Vanich Chaiyawan"]
["Vasily Anisimov"]
["Vasily Shakhnovsky"]
["Adolf Alfred Taubman"]
["Vichai Srivaddhanaprabha"]
["Victor Civita Neto"]
["Victor Fung"]
["Victor Gradin & Family"]
["Victor Pinchuk"]
["Vijay Mallya"]
["Charles Cadogan & Family"]
["Vikram Lal"]
["Viktor Chernomyrdin"]
["Viktor Kharitonin"]
["Viktor Nusenkis"]
["Viktor Rashnikov"]
["Viktor Vekselberg"]
["Vinay and Family Rai"]
["Vincent Bollore"]
["Vincent C. Smith"]
["Vincent Lo"]
["Vincent Tan"]
["Vincent Viola"]
["Vinod Goenka"]
["Vinod Gupta"]
["Vinod Khosla"]
["Virendra Mhaiskar"]
["Vitaliy Hayduk"]
["Vito Rodriguez Rodriguez"]
["Vivek Chaand Sehgal"]
["Vivek Chand Burman"]
["Vivian Wu"]
["Vivien Chen"]
["Vladimir Bogdanov"]
["Vladimir Dubov"]
["Vladimir Gridin & Family"]
["Christos Lazari"]
["Vladimir Iorich"]
["Vladimir Kim"]
["Vladimir Lisin"]
["Vladimir Melnichenko"]
["Vladimir Potanin"]
["Vladimir Scherbakov"]
["Vladimir Yevtushenkov"]
["Vyacheslav Kantor"]
["Vyacheslav Sheremet"]
["W. Barron Hilton"]
["W. Herbert Hunt"]
["Wallace McCain"]
["Walter Droege"]
["Walter Faria"]
["Walter Frey"]
["Walter H Annenberg"]
["Walter Haefner"]
["Walter Kwok"]
["Walter Scott Jr"]
["Walter Shorenstein & Family"]
["Walter, Thomas & Raymond Kwok"]
["Walther Moreira Salles Junior"]
["Wan Lianbu"]
["Wang Changtian"]
["Wang Chaobin"]
["Wang Chuanfu"]
["Chen Jinsong"]
["Wang Han"]
["Wang Jianfeng"]
["Wang Jianlin"]
["Wang Jianyi"]
["Wang Jing"]
["Wang Jinshu"]
["Wang Jiufang"]
["Wang Junhao"]
["Wang Junjin"]
["Wang Junmin"]
["Wang Kunxiao"]
["Wang Laichun"]
["Wang Laisheng"]
["Wang Muqing & Family"]
["Gordon Wu"]
["Wang Qingtao"]
["Wang Wei"]
["Wang Wenjing"]
["Wang Wenliang"]
["Wang Wenxue"]
["Wang Wenyin"]
["Guo Wengui"]
["Wang Xing"]
["Wang Xingchun"]
["Wang Yiting"]
["Huang Wen Tsai"]
["Lou Zhongfu"]
["Wang Yue"]
["Wang Yung-Tsai"]
["Wang Yusuo & Family"]
["Wang Zhenghua"]
["Ou Zonghong"]
["Warren Buffett"]
["Warren Stephens"]
["Wee Cho Yaw"]
["Wei Ing-Chou"]
["Wei Jianjun & Family"]
["Steven Roth"]
["Wei Shaojun"]
["Wei Wenyuan"]
["Wei Yin-Chun"]
["Wei Ying-Chiao"]
["Wei Yin-Heng"]
["Wen Jianping"]
["Wen Long Shi & Family"]
["Wen Yibo & Family"]
["Werner Voigt"]
["Wesley Edens"]
["Whitney MacMillan"]
["Wichai Thongtang"]
["Wichai Thongthan"]
["Wilbur Ross Jr"]
["Willi & Isolde Liebherr & Family"]
["William Ackman"]
["William Berkley"]
["William Boyd"]
["William Connor"]
["William Conway Jr"]
["William Cook"]
["William Davidson"]
["William Ding"]
["William Erbey"]
["William F. Austin"]
["William Fisher"]
["William Ford Sr"]
["William France Jr"]
["William Fung"]
["William Hearst III"]
["William Heinecke"]
["William Kellogg"]
["William Koch"]
["William Lauder"]
["William Macaulay"]
["William MacMillan"]
["William Moncrief Jr"]
["William Morean"]
["William Pulte"]
["William Redington Hewlett"]
["William S. Levine"]
["William Stone"]
["William Wrigley Jr"]
["William Young"]
["Willibert Krueger"]
["Willy Michel"]
["Wilma Tisch"]
["Wim Van Der Leegte"]
["Winnie Johnson-Marquart"]
["Winthrop Paul Rockefeller"]
["Wolfgang Herz"]
["Wolfgang Leitner"]
["Wolfgang Marguerre"]
["Wolfgang Reimann"]
["Wong Kwong Yu & Family"]
["Wong Luen Hei"]
["Wong Man Li"]
["Woo-choong And Family Kim"]
["Woods Staton"]
["Wu Chung-Yi"]
["Wu Gang"]
["Wu Guangming & Family"]
["Wu Jianlong"]
["Wu Jianshu"]
["Wu Xushun"]
["Wu Yajun & Family"]
["Wu Yiling & Family"]
["Wu Zhigang"]
["Xavier Niel"]
["Subhash Runwal"]
["Xian Yang"]
["Xiang Wenbo"]
["Thian Poh Chua"]
["Xiao Wenge"]
["Xiaofeng Peng"]
["Xiong Xuqiang & Family"]
["Xiu Laigui"]
["Xiu Li Hawken"]
["Xu Chuanhua & Family"]
["Xu Jingren & Family"]
["Xu Shihui"]
["Xu Ziquan"]
["Xue Xiangdong & Family"]
["Yahaya Ahmad"]
["Yan Zhi"]
["Yang Huiyan"]
["Yang Kai"]
["Yang Keng"]
["Vikas Oberoi"]
["Yang Zhimao"]
["Yao Juhuo & Family"]
["Yao Xinyi"]
["Yao Zhenhua"]
["Yasseen Mansour"]
["Yasuhiro Fukushima"]
["Yasumitsu Shigeta"]
["Yasuo Takei & Family"]
["Yasuyuki Nambu"]
["YC Wang"]
["Ye Cheng"]
["Ye Chenghai & Family"]
["Ye Yuanxi & Family"]
["Yeoh Tiong Lay"]
["Yeung Kin-man"]
["Yi Zheng"]
["Yildirim Ali Koc"]
["Yin Xingman"]
["Yiren & Family Rong"]
["Yitzhak Tshuva"]
["Yong Keu Cha"]
["Yonghao Liu Yongxing"]
["Yoshiaki Tsutsumi"]
["Yoshikazu Tanaka"]
["Yoshiko Mori"]
["Yoshitaka Fukuda & Family"]
["Yoshiyuki Sankai"]
["Klaus Tschira"]
["Youssef Mansour"]
["Aneel Bhusri"]
["Yu Minhong & Family"]
["Yu Peidi"]
["Yu Tan"]
["Yu Yong"]
["Yuan Fugen"]
["Yuan Yafei"]
["Yuli and Sammy Ofer"]
["Alexander Samwer"]
["Yuri Kovalchuk"]
["Yuri Milner"]
["Yuri Shefler"]
["Yuri Zhukov"]
["Yuriy Kosiuk"]
["Yusaku Maezawa"]
["Yusuf Hamied"]
["Yvonne Bauer & Family"]
["Zadik Bino"]
["Zan Shengda"]
["Zarakh Iliev"]
["Zdenek Bakala"]
["Marc Samwer"]
["Zeng Kaitian"]
["Zhai Meiqin"]
["Zhang Bangxin"]
["Zhang Changhong"]
["Zhang Cheng Fei"]
["Zhang Desheng"]
["Zhang Guiping & Family"]
["Oliver Samwer"]
["Zhang Jindong"]
["Zhang Kaiyuan"]
["Zhang Keqiang"]
["Zhang Li"]
["Zhang Shiping & Family"]
["Zhang Wanzhen"]
["Zhang Xin & Family"]
["Zhang Zhangsun"]
["Zhang Zhidong"]
["Zhang Zhirong"]
["Zhang Zhixiang"]
["Zhang Zhongneng & Family"]
["Zhao Xiaoqiang"]
["Zheng Jianjiang"]
["Zheng Xiaodong"]
["Zheng Yuewen"]
["Zhengrong Shi"]
["Zhong Sheng Jian"]
["Zhou Chengjian"]
["Zhou Furen"]
["Zhou Guohui"]
["Zhou Hongyi"]
["Zhou Jianping"]
["Gary Burrell"]
["Zhou Qunfei"]
["Zhou Yahui"]
["Zhou Yaoting"]
["Zhou Yifeng"]
["Zhu Baoguo & Family"]
["Zhu Chongyun"]
["Zhu Gongshan"]
["Michael Lynch"]
["Zhu Qingyi"]
["Zhu Xingliang"]
["Sun Deliang"]
["Zhuang Min"]
["Xia Shudong"]
["Ziyaudin Magomedov"]
["Zong Qinghou"]
["Zygmunt Solorz-Zak"]
["Juan Francisco Beckmann Vidal"]
["Suhail Bahwan"]
["Julio Ponce Lerou"]
["Sebastian Piñera"]
["Carlos Ardila Lülle"]
["Svein Stole"]
["Demetrio Carceller Coll"]
["Daniel Kretinsky"]
["Wu Xu"]
["Yakir Gabay"]
["Georg Stumpf"]
["Ramon Ang"]
["Mika Anttonen"]
["Lesley Bamberger"]
["Robert Defares"]
["Jean Salata"]
["Manny Stul"]
["Jorge Horacio Brito"]
["Bruce Flatt"]
["Thomas Prinzhorn"]
["Eduardo Cojuangco"]
["Carl Douglas"]
["Eric Douglas"]
["Archie Hwang"]
["Nguyen Thi Phuong Thao"]
["Rit Thirakomen"]
["Jun-Hyuk Bang"]
["Ivan Chrenko"]
["John Collison"]
["Patrick Collison"]
["Louise Lindh"]
["Harald Link"]
["Prayudh Mahagitsiri"]
["Katarina Martinson"]
["Judith Neilson"]
["Liora Ofer"]
["Mohammed Serafi"]
["Mohammed Bahwan"]
["Eduardo Costantini"]
["Marcos Galperin"]
["Torstein Hagen"]
["Hoi Kin Hong"]
["Lee Sang-Hyuk"]
["Desmond Lim Siew Choon"]
["Jannie Mouton"]
["Erik Paulsson"]
["Pierre Karl Péladeau"]
["Edgar Sia"]
["Terry Snow"]
["Charles Johnson"]
["Zhao Tao"]
["Xu Bo"]
["Yu Huijiao"]
["Bajaj brothers"]
["Nusli Wadia"]
["Nie Tengyun"]
["Pawan Munjal"]
["Clifford Asness"]
["Allan Goldman"]
["Jane Goldman"]
["Amy Goldman Fowler"]
["Diane Kemper"]
["Meisong Lai"]
["Zhang Fan"]
["Zhang Xiaojuan"]
["Charles Cohen"]
["Jen-Hsun Huang"]
["Rita Tong Liu"]
["Zhang Jing"]
["Acharya Balkrishna"]
["Li Gaiteng"]
["Nick Caporella"]
["Radhakishan Damani"]
["Bernard Lewis"]
["Chen Dongsheng"]
["Todd Christopher"]
["Ong Beng Seng and Christina Ong"]
["Xie Zhikun"]
["Zhao Yan"]
["Osman Kibar"]
["Eric Smidt"]
["Wu Lanlan"]
["Gu Yuhua"]
["Thomas Hagen"]
["Sarah MacMillan"]
["Wu Guangming"]
["Cai Wensheng"]
["Chen Dejun"]
["Kerry Stokes"]
["Arvind Tiku"]
["Chen Xiaoying"]
["He Simo"]
["Masateru Uno"]
["Christine Volkmann"]
["Xiao Yongming"]
["Chen Xueli"]
["Philippe Ginestet"]
["Christian Latouche"]
["Thai Lee"]
["Gabriele Stoschek"]
["Su Suyu"]
["Alan N. Trefler"]
["Roman Trotsenko"]
["Wen Pengcheng"]
["Chen Liying"]
["Chen Qixing"]
["Jean-Paul Clozel"]
["Sergei Gordeev"]
["Jiang Xuefei"]
["Li Zongsong"]
["Wang Miaotong"]
["Zhang Jingzhang"]
["Chen Dakui"]
["Chen Nianci"]
["Chua Thian Poh"]
["Fu Mingkang"]
["Ji Qi"]
["Jiang Yehua"]
["Liu Bing"]
["Rajju Shroff"]
["Wu Daohong"]
["Bao Hongxing"]
["Bo Shijiu"]
["Alexander Klyachin"]
["Liu Fuhai"]
["Liu Ruopeng"]
["Ma Xiuhui"]
["Vincent McMahon"]
["Vijay Shekhar Sharma"]
["Bryan Sheffield"]
["Julia Stoschek"]
["Maximilian Stoschek"]
["Satoshi Suzuki"]
["Shamsheer Vayalil"]
["Xu Qiming"]
["Chi Yufeng"]
["Cui Genliang"]
["Masayuki Ishihara"]
["Li Denghai"]
["Li Rucheng"]
["Mahendra Prasad"]
["Chris Sacca"]
["Analjit Singh"]
["Kevin Systrom"]
["Tang Jianfang"]
["Oleg Tinkov"]
["Wang Yaohai"]
["Zhang Anqiang"]
["Zhang Xinghai"]
["Zhang Xiugen"]
["Zhang Yue"]
["Zhu Wenchen"]
["Markus Blocher"]
["Chen Xiaxin"]
["Chen Zuyuan"]
["Arnold Clark"]
["Sol Daurella"]
["Dominique Desseigne"]
["Jamie Dimon"]
["Ding Yuhua"]
["Dong Fan"]
["Hon Kwok Lung"]
["Hu Baifan"]
["Thomas James"]
["Jin Huiming"]
["Rana Kapoor"]
["Martin Lau"]
["Li Dongjun"]
["Lin Yi"]
["Lo Ka Shui"]
["Lu Jonathan"]
["Ma Yunsheng"]
["Georg Nemetschek"]
["Lucy Peng"]
["Shang Jiyong"]
["Yoshiko Shinohara"]
["Samprada Singh"]
["Sun Yinhuan"]
["Wang Liping"]
["Wang Zhenhua"]
["Xia Dinghu"]
["Xiao Chunhong"]
["Xu Xiong"]
["Yao Liangsong"]
["Zhang Daocai"]
["Zhao Weiguo"]
["Zhou Yunjie"]
["Marc Andreessen"]
["Saket Burman"]
["Yvon Chouinard"]
["Philip Day"]
["David Kabiller"]
["Liao Chang"]
["John Liew"]
["Liu Canglong"]
["Liu Hanyuan"]
["Liu Jianjun"]
["Liu Zhendong"]
["Mi Enhua"]
["Lowell Milken"]
["Simon Nixon"]
["Kentaro Ogawa"]
["John Schnatter"]
["Eric Ya Shen"]
["Axel Stawski"]
["Tang Shing-bor"]
["Wang Qunbin"]
["David Shou-Yeh Wong"]
["Zhou Yifeng"]